Workbook

Sheet Servicing Calc
AJ1: Australia
AJ2: China | AP2: Income | AQ2: China Income | AR2: other offshore income | AS2: Total China CAP | AT2: Debts | AU2: China Debts | AV2: Other offshore | AX2: Total Allowable China Income
L3: LoanOne Green Series - Non- Residential Servicing Calculator | AJ3: Hong Kong
AJ4: Indonesia
A5: . | AA5: ='Exchange Rates'!D14 -> 0.70457 | AJ5: Japan | AO5: BWR 1 | AP5: =SUM(E22)+SUM(E31)+(SUM(E36)*80%)+(SUM(O22)*80%)+(SUM(O26)*0.8)+(SUM(O31)*80%)+(SUM(O36)*80%)+(SUM(E26)*80%) -> 0 | AQ5: =BI32 -> 0 | AR5: =(SUM(AD21*90%)+SUM(AD29*90%)+(SUM(AD35)*80%)+(SUM(AK21)*80%)+(SUM(AX21+AR21)*0.8)+(SUM(AK29)*80%)+(SUM(AK35)*80%)) -> 0 | AS5: =(AV12*(SUM(AU12:AU15))/12)+'Additional Borrowers'!BP3 -> 0 | AT5: =((E42+O42+E46)*125%)+E56+E57+E58+((O44*3.8%))+'Additional Borrowers'!AT3 -> 0 | AU5: =BI43+BL45+'Additional Borrowers'!AU3 -> 0 | AV5: =(((AF41+AF42+AF43)*125%)+BI48+AD60+AD61+AD62+(((AK41+AK42)*3%))-AU5)+'Additional Borrowers'!AV3 -> 0 | AX5: =AQ9-AU9 -> 0 | AY5: GrossChinaincome | BB5: =IF(AND(AW6<>0,AW6*90%=AX7),AX7,AQ9) -> 0
B6: 1. Borrower Details | AD6: Loan Product | AF6: Repayment Type | AH6: I/O Term | AI6: Small Appt | AJ6: Macau | AO6: BWR 2 | AP6: =SUM(E23)+SUM(E32)+(SUM(E37)*80%)+(SUM(O23)*80%)+(SUM(O27)*0.8)+(SUM(O32)*80%)+(SUM(O37)*80%)+(SUM(E27)*80%) -> 0 | AQ6: =BL32 -> 0 | AR6: =(SUM(AD22*90%)+SUM(AD30*90%)+(SUM(AD36)*80%)+(SUM(AK22)*80%)+(SUM(AX22+AR22)*0.8)+(SUM(AK30)*80%)+(SUM(AK36)*80%)) -> 0 | AW6: =IF((AQ9=0),AZ7,AX6) -> 0.00 | AX6: =IF(IF(((AX5*12)>(AV12)),(AV12/12),(AX5)),(AV12/12)) -> FALSE | AY6: Net China Allowable
B7: Full Name - Bwr 1 | D7: =IF(ISBLANK(E7), "<First Name, Last Name>", E7) -> <First Name, Last Name> | L7: Country of Residency - Bwr 1 | N7: =IF(ISBLANK(O7), "<Select>", "") -> <Select> | R7: Postcode - Bwr 1 | T7: =IF(ISBLANK(U7), "<If in AUS>", "") -> <If in AUS> | AA7: $50,000 | AB7: USD | AD7: Brighten Saver | AF7: P&I | AH7: 0 | AI7: Yes | AJ7: Malaysia | AO7: BWR 3 | AP7: ='Additional Borrowers'!Y12 -> 0 | AQ7: ='Additional Borrowers'!AQ3 -> 0 | AR7: =(SUM(AD23*90%)+SUM(AD31*90%)+(SUM(AD37)*80%)+(SUM(AK23)*80%)+(SUM(AX23+AR23)*0.8)+(SUM(AK31)*80%)+(SUM(AK37)*80%)) -> 0 | AX7: =(IF((AW6>AX5),(AX5),(AW6)))*90% -> 0.00 | BB7: =(IF((AW6>BB5),(BB5),(AW6))) -> 0
B8: Bwr 2 | D8: =IF(ISBLANK(E8), " <First Name, Last Name>", E8) -> <First Name, Last Name> | L8: Bwr 2 | N8: =IF(ISBLANK(O8), "<Select>", O8) -> <Select> | R8: Bwr 2 | T8: =IF(ISBLANK(U8), "<If in Aus>", U8) -> <If in Aus> | AA8: =AA7/'Exchange Rates'!D14 -> $70,965 | AB8: AUD | AD8: Brighten Easy Builder | AF8: I/O | AH8: 1 | AI8: No | AJ8: Singapore | AO8: BWR 4 | AP8: ='Additional Borrowers'!Y13 -> 0 | AQ8: ='Additional Borrowers'!AQ4 -> 0 | AR8: =(SUM(AD24*90%)+SUM(AD32*90%)+(SUM(AD38)*80%)+(SUM(AK24)*80%)+(SUM(AX24+AR24)*0.8)+(SUM(AK32)*80%)+(SUM(AK38)*80%)) -> 0 | AX8: =AP9 -> 0 | AY8: Onshore Income | BB8: =AX8 -> 0
AD9: Brighten Evergreen | AH9: 2 | AI9: Self Employed Income | AJ9: South Korea | AP9: =SUM(AP5:AP8) -> 0 | AQ9: =SUM(AQ5:AQ8) -> 0 | AR9: =SUM(AR5:AR8) -> 0 | AT9: =SUM(AT5:AT8) -> 0 | AU9: =SUM(AU5:AU8) -> 0 | AV9: =SUM(AV5:AV8) -> 0 | AX9: =AR9 -> 0 | AY9: Other Offshore | BB9: =AX9 -> 0
B10: 2. Loan Details | AD10: Brighten Platinum | AH10: 3 | AI10: YES | AJ10: Taiwan | AO10: GLEE | AP10: Onshore | AR10: offshore | AU10: # Adults | AV10: USD CAP | AX10: =SUM(AX7:AX9) -> 0 | AY10: Total Income | BB10: =SUM(BB7:BB9)++((O15*52)/12) -> 0
B11: Loan Product | E11: Brighten Evergreen | L11: Loan Amount | AH11: 4 | AI11: NO | AJ11: United States | AP11: Benchmark | AQ11: Declared | AR11: Benchmark | AS11: Declared
B12: P&I or I/O | E12: P&I | L12: Security Value | AH12: 5 | AJ12: United Kingdom | AO12: Household 1 | AP12: =(E50*AA55)+(E51*AA56)+(E52*AA57) -> 0 | AQ12: =E53 -> 0 | AR12: =SUM(AB58:AI58) -> 0 | AS12: =AD52 -> 0 | AT12: =(IF(AQ12>AP12,AQ12,AP12)+(IF(AS12>AR12,AS12,AR12))) -> 0 | AU12: =SUM(H50+E50+(H51*2)+(E51*2)) -> 0 | AV12: =(AA8*(SUM(AU12:AU15)))+'Additional Borrowers'!BS10 -> 0 | AX12: =AT9+AV9+AX15 -> 0 | AY12: Total Debts
B13: I/O Term | G13: Year | H13: Years | L13: LVR | O13: =O11/O12 ->  | AJ13: Vietnam | AO13: Household 2 | AP13: =(O50*AA55)+(O51*AA56)+(O52*AA57) -> 0 | AQ13: =O53 -> 0 | AR13: =SUM(AJ58:AQ58) -> 0 | AS13: =AK52 -> 0 | AT13: =(IF(AQ13>AP13,AQ13,AP13)+(IF(AS13>AR13,AS13,AR13))) -> 0 | AU13: =SUM(R50+O50+(R51*2)+(O51*2)) -> 0 | AX13: =IF(BI48=0, Z53,0) -> 0 | AY13: Total Living Exp
B14: Self Employed Income | E14: NO | O14: =IF(E11="Brighten Evergreen",IF(O13>80%,AA74,""),IF(O13>70%,AA75,"")) ->  | AO14: Household 3 | AP14: ='Additional Borrowers'!AP10 -> 0 | AQ14: ='Additional Borrowers'!AQ10 -> 0 | AR14: ='Additional Borrowers'!BO10 -> 0 | AS14: ='Additional Borrowers'!BP10 -> 0 | AT14: 0
B15: Loan Term | H15: Years | L15: Proposed Rental | N15: =IF(ISBLANK(O15), " <AUD>", "") -> <AUD> | R15: Per Week | AO15: Household 4 | AP15: ='Additional Borrowers'!AP11 -> 0 | AQ15: ='Additional Borrowers'!AQ11 -> 0 | AR15: ='Additional Borrowers'!BO11 -> 0 | AS15: ='Additional Borrowers'!BP11 -> 0 | AT15: 0 | AX15: =IF((AQ9=0),AU5,AZ7) -> 0
AD16: Brighten Easy Builder
AD17: Brighten Evergreen
AD18: Brighten Platinum
AT19: =SUM(AT12:AT18) -> 0 | BB19: Onshore | BC19: Offshore | BH19: China Offshore Income
B20: 3. Income - PAYG Income (Monthly) | Z20: =SUM(E22:E23)+SUM(E31:E32)+SUM(Z22:Z36)+(SUM(E36:E37)*80%)+(SUM(O22:O23)*80%)+(SUM(O26:O27)*0.8)+(SUM(O31:O32)*80%)+(SUM(O36:O37)*80%)+(SUM(E26:E27)*80%)+'Additional Borrowers'!Y12 -> 0 | AB20: PAYG | AD20: AUD Amount | AF20: Offshore | AI20: Nett Overtime | AK20: Onshore | AM20: Offshore | AP20: Nett Commission | AV20: Nett Bonus | BA20: BWR 1 | BC20: =SUM(AD21)+SUM(AD29)+(SUM(AD35)*80%)+(SUM(AK21)*80%)+(SUM(AX21+AR21)*0.8)+(SUM(AK29)*80%)+(SUM(AK35)*80%) -> 0 | BH20: BWR 1 | BK20: BWR 2
B21: Nett Salary | E21: Onshore | H21: Offshore | K21: Currency | L21: Nett Overtime | O21: Onshore | R21: Offshore | U21: Currency | Z21: =AA14+BB24 -> 0 | AB21: Bwr 1 | AD21: =IF(K22="CNY",0,(IFERROR((H22/AF21),0))) -> 0 | AF21: =VLOOKUP(K22,'Exchange Rates'!C4:D16,2,FALSE) ->  | AI21: Bwr 1 | AK21: =IF(U22="CNY",0,(IFERROR((R22/AM21),0))) -> 0 | AM21: =VLOOKUP(U22,'Exchange Rates'!C4:D16,2,FALSE) ->  | AP21: Bwr 1 | AR21: =IF(K26="CNY",0,(IFERROR((H26/AT21),0))) -> 0 | AT21: =VLOOKUP(K26,'Exchange Rates'!C4:D16,2,FALSE) ->  | AV21: Bwr 1 | AX21: =IF(U26="CNY",0,(IFERROR((R26/AZ21),0))) -> 0 | AZ21: =VLOOKUP(U26,'Exchange Rates'!C4:D16,2,FALSE) ->  | BA21: BWR 2 | BC21: =SUM(AD22)+SUM(AD30)+(SUM(AD36)*80%)+(SUM(AK22)*80%)+(SUM(AX22+AR22)*0.8)+(SUM(AK30)*80%)+(SUM(AK36)*80%) -> 0 | BG21: Net PAYG | BH21: =K22 -> 0 | BI21: =H22 -> 0 | BK21: =K23 -> 0 | BL21: =H23 -> 0
B22: Bwr 1 | D22: =IF(ISBLANK(E22), "<AUD>", E22) -> <AUD> | G22: =IF(ISBLANK(H22), "<Local Currency>", H22) -> <Local Currency> | J22: =IF(ISBLANK(K22), "<Select>", "") -> <Select> | L22: Bwr 1 | N22: =IF(ISBLANK(O22), "<AUD>", O22) -> <AUD> | Q22: =IF(ISBLANK(R22), "<Local Currency>", R22) -> <Local Currency> | T22: =IF(ISBLANK(U22), "<Select>", "") -> <Select> | Z22: =SUM(AD21:AD24)+SUM(AK21:AK24)+SUM(AR21:AR24)+SUM(AX21:AX24) -> 0 | AB22: Bwr 2 | AD22: =IF(K23="CNY",0,(IFERROR((H23/AF22),0))) -> 0 | AF22: =VLOOKUP(K23,'Exchange Rates'!C4:D16,2,FALSE) ->  | AI22: Bwr 2 | AK22: =IF(U23="CNY",0,(IFERROR((R23/AM22),0))) -> 0 | AM22: =VLOOKUP(U23,'Exchange Rates'!C4:D16,2,FALSE) ->  | AP22: Bwr 2 | AR22: =IF(K27="CNY",0,(IFERROR((H27/AT22),0))) -> 0 | AT22: =VLOOKUP(K27,'Exchange Rates'!C4:D16,2,FALSE) ->  | AV22: Bwr 2 | AX22: =IF(U27="CNY",0,(IFERROR((R27/AZ22),0))) -> 0 | AZ22: =VLOOKUP(U27,'Exchange Rates'!C4:D16,2,FALSE) ->  | BA22: BWR 3 | BC22: =SUM(AD23)+SUM(AD31)+(SUM(AD37)*80%)+(SUM(AK23)*80%)+(SUM(AX23+AR23)*0.8)+(SUM(AK31)*80%)+(SUM(AK37)*80%) -> 0 | BG22: Commissions | BH22: =K26 -> 0 | BI22: =H26*80% -> 0 | BK22: =K27 -> 0 | BL22: =H27*80% -> 0
B23: Bwr 2 | F23: 0 | G23: =IF(ISBLANK(H23), "<Local Currency>", H23) -> <Local Currency> | J23: =IF(ISBLANK(K23), "<Select>", K23) -> <Select> | L23: Bwr 2 | T23: =IF(ISBLANK(U23), "<Select>", U23) -> <Select> | AB23: Bwr 3 | AD23: =IF('Additional Borrowers'!K13="CNY",0,(IFERROR(('Additional Borrowers'!H13/AF23),0))) -> 0 | AF23: =VLOOKUP('Additional Borrowers'!K13,'Exchange Rates'!C4:D16,2,FALSE) ->  | AI23: Bwr 3 | AK23: =IF('Additional Borrowers'!U13="CNY",0,(IFERROR(('Additional Borrowers'!R13/AM23),0))) -> 0 | AM23: =VLOOKUP('Additional Borrowers'!U13,'Exchange Rates'!C4:D16,2,FALSE) ->  | AP23: Bwr 3 | AR23: =IF('Additional Borrowers'!K17="CNY",0,(IFERROR(('Additional Borrowers'!H17/AT23),0))) -> 0 | AT23: =VLOOKUP('Additional Borrowers'!K17,'Exchange Rates'!C4:D16,2,FALSE) ->  | AV23: Bwr 3 | AX23: =IF('Additional Borrowers'!U17="CNY",0,(IFERROR(('Additional Borrowers'!R17/AZ23),0))) -> 0 | AZ23: =VLOOKUP('Additional Borrowers'!U17,'Exchange Rates'!C4:D16,2,FALSE) ->  | BA23: BWR 4 | BC23: =SUM(AD24)+SUM(AD32)+(SUM(AD38)*80%)+(SUM(AK24)*80%)+(SUM(AX24+AR24)*0.8)+(SUM(AK32)*80%)+(SUM(AK38)*80%) -> 0 | BG23: Self Employed | BH23: =K31 -> 0 | BI23: =H31 -> 0 | BK23: =K32 -> 0 | BL23: =H32 -> 0
AB24: Bwr 4 | AD24: =IF('Additional Borrowers'!K14="CNY",0,(IFERROR(('Additional Borrowers'!H14/AF24),0))) -> 0 | AF24: =VLOOKUP('Additional Borrowers'!K14,'Exchange Rates'!C4:D16,2,FALSE) ->  | AI24: Bwr 4 | AK24: =IF('Additional Borrowers'!U14="CNY",0,(IFERROR(('Additional Borrowers'!R14/AM24),0))) -> 0 | AM24: =VLOOKUP('Additional Borrowers'!U14,'Exchange Rates'!C4:D16,2,FALSE) ->  | AP24: Bwr 4 | AR24: =IF('Additional Borrowers'!K18="CNY",0,(IFERROR(('Additional Borrowers'!H18/AT24),0))) -> 0 | AT24: =VLOOKUP('Additional Borrowers'!K18,'Exchange Rates'!C4:D16,2,FALSE) ->  | AV24: Bwr 4 | AX24: =IF('Additional Borrowers'!U18="CNY",0,(IFERROR(('Additional Borrowers'!R18/AZ24),0))) -> 0 | AZ24: =VLOOKUP('Additional Borrowers'!U18,'Exchange Rates'!C4:D16,2,FALSE) ->  | BA24: Total | BB24: =SUM(AP5:AP8) -> 0 | BC24: =SUM(BC20:BC23) -> 0 | BG24: Rental | BH24: =K36 -> 0 | BI24: =H36*80% -> 0 | BK24: =K37 -> 0 | BL24: =H37*80% -> 0
B25: Nett Commission | E25: Onshore | H25: Offshore | K25: Currency | L25: Nett Bonus | O25: Onshore | R25: Offshore | U25: Currency | BG25: net OT | BH25: =U22 -> 0 | BI25: =R22*80% -> 0 | BK25: =U23 -> 0 | BL25: =R23*80% -> 0
B26: Bwr 1 | D26: =IF(ISBLANK(E26), "<AUD>", E26) -> <AUD> | G26: =IF(ISBLANK(H26), "<Local Currency>", H26) -> <Local Currency> | J26: =IF(ISBLANK(K26), "<Select>", "") -> <Select> | L26: Bwr 1 | N26: =IF(ISBLANK(O26), "<AUD>", O26) -> <AUD> | Q26: =IF(ISBLANK(R26), "<Local Currency>", R26) -> <Local Currency> | T26: =IF(ISBLANK(U26), "<Select>", "") -> <Select> | BG26: Bonus | BH26: =U26 -> 0 | BI26: =R26*80% -> 0 | BK26: =U27 -> 0 | BL26: =R27*80% -> 0
B27: Bwr 2 | J27: =IF(ISBLANK(K27), "<Select>", K27) -> <Select> | L27: Bwr 2 | T27: =IF(ISBLANK(U27), "<Select>", U27) -> <Select> | BG27: other net | BH27: =U31 -> 0 | BI27: =R31*80% -> 0 | BK27: =U32 -> 0 | BL27: =R32*80% -> 0
AB28: Self Employed | AI28: Other Income | BG28: other investment | BH28: =U36 -> 0 | BI28: =R36*80% -> 0 | BK28: =U37 -> 0 | BL28: =R37*80% -> 0
B29: 4. Income - Self Employed or Other Income (Monthly) | AB29: Bwr 1 | AD29: =IF(K31="CNY",0,(IFERROR((H31/AF29),0))) -> 0 | AF29: =VLOOKUP(K31,'Exchange Rates'!C4:D16,2,FALSE) ->  | AI29: Bwr 1 | AK29: =IF(U31="CNY",0,(IFERROR((R31/AM29),0))) -> 0 | AM29: =VLOOKUP(U31,'Exchange Rates'!C4:D16,2,FALSE) ->  | BH29: Lookup and sum | BK29: Lookup and sum
B30: Nett Self Employed | E30: Onshore | H30: Offshore | K30: Currency | L30: Nett Other Income | O30: Onshore | R30: Offshore | U30: Currency | Z30: =SUM(AD29:AD32)+(SUM(AK29:AK32)*0.8) -> 0 | AB30: Bwr 2 | AD30: =IF(K32="CNY",0,(IFERROR((H32/AF30),0))) -> 0 | AF30: =VLOOKUP(K32,'Exchange Rates'!C4:D16,2,FALSE) ->  | AI30: Bwr 2 | AK30: =IF(U32="CNY",0,(IFERROR((R32/AM30),0))) -> 0 | AM30: =VLOOKUP(U32,'Exchange Rates'!C4:D16,2,FALSE) ->  | BH30: CNY | BI30: =SUMIF($BH$21:$BH$28,BH30,$BI$21:$BI$28) -> 0 | BK30: CNY | BL30: =SUMIF($BK$21:$BK$28,BK30,$BL$21:$BL$28) -> 0
B31: Bwr 1 | D31: =IF(ISBLANK(E31), "<AUD>", E31) -> <AUD> | G31: =IF(ISBLANK(H31), "<Local Currency>", H31) -> <Local Currency> | J31: =IF(ISBLANK(K31), "<Select>", "") -> <Select> | L31: Bwr 1 | N31: =IF(ISBLANK(O31), "<AUD>", O31) -> <AUD> | Q31: =IF(ISBLANK(R31), "<Local Currency>", R31) -> <Local Currency> | T31: =IF(ISBLANK(U31), "<Select>", "") -> <Select> | AB31: Bwr 3 | AD31: =IF('Additional Borrowers'!K22="CNY",0,(IFERROR(('Additional Borrowers'!H22/AF31),0))) -> 0 | AF31: =VLOOKUP('Additional Borrowers'!K22,'Exchange Rates'!C4:D16,2,FALSE) ->  | AI31: Bwr 3 | AK31: =IF('Additional Borrowers'!U22="CNY",0,(IFERROR(('Additional Borrowers'!R22/AM31),0))) -> 0 | AM31: =VLOOKUP('Additional Borrowers'!U22,'Exchange Rates'!C4:D16,2,FALSE) ->  | BH31: ='Exchange Rates'!D5 -> 4.52266 | BK31: ='Exchange Rates'!D5 -> 4.52266
B32: Bwr 2 | L32: Bwr 2 | T32: =IF(ISBLANK(U32), "<Select>", U32) -> <Select> | AB32: Bwr 4 | AD32: =IF('Additional Borrowers'!K23="CNY",0,(IFERROR(('Additional Borrowers'!H23/AF32),0))) -> 0 | AF32: =VLOOKUP('Additional Borrowers'!K23,'Exchange Rates'!C4:D16,2,FALSE) ->  | AI32: Bwr 4 | AK32: =IF('Additional Borrowers'!U23="CNY",0,(IFERROR(('Additional Borrowers'!R23/AM32),0))) -> 0 | AM32: =VLOOKUP('Additional Borrowers'!U23,'Exchange Rates'!C4:D16,2,FALSE) ->  | BH32: AUD Amount | BI32: =BI30/BH31 -> 0 | BK32: AUD Amount | BL32: =BL30/BK31 -> 0
B34: 5. Income - Rental or Investment Income (Monthly) | AB34: Rental Income | AI34: Other Investment Income | BH34: China Offshore Debts
B35: Rental Income | E35: Onshore | H35: Offshore | K35: Currency | L35: Nett Investment Income | O35: Onshore | R35: Offshore | U35: Currency | AB35: Bwr 1 | AD35: =IF(K36="CNY",0,(IFERROR((H36/AF35),0))) -> 0 | AF35: =VLOOKUP(K36,'Exchange Rates'!C4:D16,2,FALSE) ->  | AI35: Bwr 1 | AK35: =IF(U36="CNY",0,(IFERROR((R36/AM35),0))) -> 0 | AM35: =VLOOKUP(U36,'Exchange Rates'!C4:D16,2,FALSE) ->  | BH35: Debts | BI35: AUD | BK35: GLEE
B36: Bwr 1 | D36: =IF(ISBLANK(E36), "<Gross, AUD>", E36) -> <Gross, AUD> | G36: =IF(ISBLANK(H36), "<Nett, Local Currency>", H36) -> <Nett, Local Currency> | J36: =IF(ISBLANK(K36), "<Select>","") -> <Select> | L36: Bwr 1 | N36: =IF(ISBLANK(O36), "<AUD>", O36) -> <AUD> | Q36: =IF(ISBLANK(R36), "<Local Currency>", R36) -> <Local Currency> | T36: =IF(ISBLANK(U36), "<Select>", "") -> <Select> | Z36: =(SUM(AD35:AD38)+SUM(AK35:AK38)*0.8) -> 0 | AB36: Bwr 2 | AD36: =IF(K37="CNY",0,(IFERROR((H37/AF36),0))) -> 0 | AF36: =VLOOKUP(K37,'Exchange Rates'!C4:D16,2,FALSE) ->  | AI36: Bwr 2 | AK36: =IF(U37="CNY",0,(IFERROR((R37/AM36),0))) -> 0 | AM36: =VLOOKUP(U37,'Exchange Rates'!C4:D16,2,FALSE) ->  | BG36: Mortgage | BH36: =K42 -> 0 | BI36: =AF41*125% -> 0 | BK36: =K56 -> 0 | BL36: =H56 -> 0
B37: Bwr 2 | L37: Bwr 2 | T37: =IF(ISBLANK(U37), "<Select>", U37) -> <Select> | AB37: Bwr 3 | AD37: =IF('Additional Borrowers'!K27="CNY",0,(IFERROR(('Additional Borrowers'!H27/AF37),0))) -> 0 | AF37: =VLOOKUP('Additional Borrowers'!K27,'Exchange Rates'!C4:D16,2,FALSE) ->  | AI37: Bwr 3 | AK37: =IF('Additional Borrowers'!U27="CNY",0,(IFERROR(('Additional Borrowers'!R27/AM37),0))) -> 0 | AM37: =VLOOKUP('Additional Borrowers'!U27,'Exchange Rates'!C4:D16,2,FALSE) ->  | BG37: Investment | BH37: =U42 -> 0 | BI37: =AF42*125% -> 0 | BK37: =K57 -> 0 | BL37: =H57 -> 0
AB38: Bwr 4 | AD38: =IF('Additional Borrowers'!K28="CNY",0,(IFERROR(('Additional Borrowers'!H28/AF38),0))) -> 0 | AF38: =VLOOKUP('Additional Borrowers'!K28,'Exchange Rates'!C4:D16,2,FALSE) ->  | AI38: Bwr 4 | AK38: =IF('Additional Borrowers'!U28="CNY",0,(IFERROR(('Additional Borrowers'!R28/AM38),0))) -> 0 | AM38: =VLOOKUP('Additional Borrowers'!U28,'Exchange Rates'!C4:D16,2,FALSE) ->  | BG38: Other | BH38: =K46 -> 0 | BI38: =AF43*125% -> 0 | BK38: =K58 -> 0 | BL38: =H58 -> 0
B39: 6. Existing Debts | BG39: Other CC | BH39: =U44 -> 0 | BI39: =AK41*3% -> 0
E40: Onshore | H40: Offshore | K40: Currency | O40: Onshore | R40: Offshore | U40: Currency | BH40: CNY | BI40: =AK42*3% -> 0
B41: Mortgage Balance | D41: =IF(ISBLANK(E41), "<AUD>", E41) -> <AUD> | G41: =IF(ISBLANK(H41), "<Local Currency>", H41) -> <Local Currency> | J41: =IF(ISBLANK(K41), "<Select>", "") -> <Select> | L41: Investment Mortgage/s Balance | N41: =IF(ISBLANK(O41), "<AUD>", O41) -> <AUD> | Q41: =IF(ISBLANK(R41), "<Local Currency>", R41) -> <Local Currency> | T41: =IF(ISBLANK(U41), "<Select>", "") -> <Select> | AC41: Mortgage Repayment | AF41: =IFERROR((H42/AH41),0) -> 0 | AH41: =VLOOKUP(K42,'Exchange Rates'!C4:D16,2,FALSE) ->  | AJ41: Total Credit Card Limits | AK41: =IFERROR((R44/AM41),0) -> 0 | AM41: =VLOOKUP(U44,'Exchange Rates'!C4:D16,2,FALSE) -> 
B42: Mortgage Repayment | D42: <AUD> | G42: =IF(ISBLANK(H42), "<Local Currency>", H42) -> <Local Currency> | J42: =IF(ISBLANK(K42), "<Select>", "") -> <Select> | L42: Investment Mortgage/s Repayments | N42: <AUD> | Q42: =IF(ISBLANK(R42), "<Local Currency>", R42) -> <Local Currency> | T42: =IF(ISBLANK(U42), "<Select>", "") -> <Select> | Z42: =Z43+Z44 -> 0 | AD42: Investment Mortgage/s Repayments | AF42: =IFERROR((R42/AH42),0) -> 0 | AH42: =VLOOKUP(U42,'Exchange Rates'!C4:D16,2,FALSE) ->  | AJ42: Total China Card Balance | AK42: =IFERROR((R45/AM42),0) -> 0 | AM42: =VLOOKUP(U45,'Exchange Rates'!C4:D16,2,FALSE) -> 4.52266 | BH42: Lookup and sum | BI42: AUD Amount | BK42: Lookup and sum
Y43: B1 and B2 | Z43: =((E42+O42+E46)*125%)+((O44*3.8%))+Z45 -> 0 | AC43: Other Loans Repayments | AF43: =IFERROR((H46/AH43),0) -> 0 | AH43: =VLOOKUP(K46,'Exchange Rates'!C4:D16,2,FALSE) ->  | BH43: CNY | BI43: =SUMIF($BH$36:$BH$40,BH43,$BI$36:$BI$40)+BI48 -> 0 | BK43: CNY | BL43: =SUMIF($BK$36:$BK$38,BK43,$BL$36:$BL$38) -> 0
B44: Other Loans Balances/Limits | D44: <AUD> | G44: <Local Currency> | J44: =IF(ISBLANK(K44), "<Select>", "") -> <Select> | L44: Total Credit Card Limits (Exc China) | N44: <AUD> | Q44: =IF(ISBLANK(R44), "<Local Currency>", R44) -> <Local Currency> | T44: =IF(ISBLANK(U44), "<Select>", "") -> <Select> | Y44: B3 and B4 | Z44: ='Additional Borrowers'!Y15 -> 0 | BK44: ='Exchange Rates'!D5 -> 4.52266
B45: Description | D45: =IF(ISBLANK(E45), " <Enter description of above declared Loan>", E45) -> <Enter description of above declared Loan> | L45: Total China Card Balances | Q45: =IF(ISBLANK(R45), "<Local Currency>", R45) -> <Local Currency> | U45: CNY | Y45: Offshore | Z45: =((AF41+AF42+AF43)*125%)+(((AK41+AK42)*3.8%)) -> 0 | BK45: AUD Amount | BL45: =BL43/BK44 -> 0
B46: Other Loans Repayments | D46: <AUD> | G46: <Local Currency> | J46: =IF(ISBLANK(K46), "<Select>", "") -> <Select> | L46: Total China Card Limits | Q46: =IF(ISBLANK(R46), "<Local Currency>", R46) -> <Local Currency> | U46: CNY
BH47: China living expenses
B48: 7. General Living Expenses (Monthly) | BI48: =IF(K50="China", (Z62-BK48), 0) -> 0 | BK48: 0
B49: Household 1 | E49: Onshore | H49: Offshore | K49: Country | L49: Household 2 | O49: Onshore | R49: Offshore | U49: Country
B50: # of Single Adults | J50: =IF(ISBLANK(K50), "<Select>", "") -> <Select> | L50: # of Single Adults | T50: =IF(ISBLANK(U50), "<Select>", "") -> <Select>
B51: # of Couple | L51: # of Couple | AD51: AUD Amount | AF51: Offshore | AK51: AUD Amount | AM51: Offshore
B52: # of Dependants | L52: # of Dependants | AB52: Customer Declared Amount | AD52: =IFERROR(('GL&EE TOOL'!H22/AF52),0) -> 0 | AF52: =VLOOKUP('GL&EE TOOL'!H24,'Exchange Rates'!C4:D16,2,FALSE) ->  | AI52: Customer Declared Amount | AK52: =IFERROR(('GL&EE TOOL'!M22/AM52),0) -> 0 | AM52: =VLOOKUP('GL&EE TOOL'!M24,'Exchange Rates'!C4:D16,2,FALSE) -> 
B53: Customer Declared Amount | E53: ='GL&EE TOOL'!F22 -> 0 | H53: ='GL&EE TOOL'!H22 -> 0 | K53: Calculator | L53: Customer Declared Amount | O53: ='GL&EE TOOL'!K22 -> 0 | R53: ='GL&EE TOOL'!M22 -> 0 | U53: Calculator | Z53: =Z62+SUM(E56:E58)+SUM(AD60:AD62)+'Additional Borrowers'!Y20 -> 0
B55: Other Regular Expenses | Z55: Single | AA55: 1300
B56: Child Support | D56: =IF(ISBLANK(E56), "<AUD>", E56) -> <AUD> | G56: =IF(ISBLANK(H56), "<Local Currency>", H56) -> <Local Currency> | J56: =IF(ISBLANK(K56), "<Select>", "") -> <Select> | Z56: Couple | AA56: 2800
B57: Rental | D57: <AUD> | G57: <Local Currency> | J57: =IF(ISBLANK(K57), "<Select>", "") -> <Select> | Z57: Dependant | AA57: 468 | AB57: Other | AC57: China 60% | AD57: Vietnam 60% | AF57: Malaysia 60% | AH57: Indonesia 60% | AI57: South Korea 110% | AJ57: Other | AK57: China 60% | AL57: Vietnam 60% | AN57: Malaysia 60% | AP57: Indonesia 60% | AQ57: South Korea 110%
B58: Other | D58: <AUD> | G58: <Local Currency> | J58: =IF(ISBLANK(K58), "<Select>", "") -> <Select> | AB58: =IF(NOT(OR(K50="china", K50="Vietnam", K50="Malaysia", K50="Indonesia", K50="south korea")), ((H50*AA55)+(H51*AA56)+(H52*AA57)), "") -> 0 | AC58: =IF(K50="China", ((H50*AA55)+(H51*AA56)+(H52*AA57))*60%, "") ->  | AD58: =IF(K50="Vietnam", ((H50*AA55)+(H51*AA56)+(H52*AA57))*60%, "") ->  | AF58: =IF(K50="Malaysia", ((H50*AA55)+(H51*AA56)+(H52*AA57))*60%, "") ->  | AH58: =IF(K50="Indonesia", ((H50*AA55)+(H51*AA56)+(H52*AA57))*60%, "") ->  | AI58: =IF(K50="South Korea", ((H50*AA55)+(H51*AA56)+(H52*AA57))*110%, "") ->  | AJ58: =IF(NOT(OR(U50="china", U50="Vietnam", U50="Malaysia", U50="Indonesia", U50="south korea")), ((R50*AA55)+(R51*AA56)+(R52*AA57)), "") -> 0 | AK58: =IF(U50="China", ((R50*AA55)+(R51*AA56)+(R52*AA57))*60%, "") ->  | AL58: =IF(U50="Vietnam", ((R50*AA55)+(R51*AA56)+(R52*AA57))*60%, "") ->  | AN58: =IF(U50="Malaysia", ((R50*AA55)+(R51*AA56)+(R52*AA57))*60%, "") ->  | AP58: =IF(U50="Indonesia", ((R50*AA55)+(R51*AA56)+(R52*AA57))*60%, "") ->  | AQ58: =IF(U50="South Korea", ((R50*AA55)+(R51*AA56)+(R52*AA57))*110%, "") -> 
Z59: Onshore | AA59: =(E50*AA55)+(O50*AA55)+(E51*AA56)+(O51*AA56)+(E52*AA57)+(O52*AA57) -> 0 | AB59: Other Regular Expenses | AD59: AUD Amount | AF59: Offshore | AH59: Currency
B60: 8. Result | Z60: Offshore | AA60: =SUM(AB58:AQ58) -> 0 | AB60: Child Support | AD60: =IFERROR((H56/AF60),0) -> 0 | AF60: =VLOOKUP(K56,'Exchange Rates'!C4:D16,2,FALSE) -> 
B61: Income | E61: =AP9+BB5+AR9+((O15*52)/12) -> 0 | AB61: Rental | AD61: =IFERROR((H57/AF61),0) -> 0 | AF61: =VLOOKUP(K57,'Exchange Rates'!C4:D16,2,FALSE) -> 
B62: Existing Repayments | E62: =Z42 -> 0 | Z62: =IF(((E53+AD52+O53+AK52)>(AA59+AA60)),(E53+AD52+O53+AK52), (AA59+AA60)) -> 0 | AB62: Other | AD62: =IFERROR((H58/AF62),0) -> 0 | AF62: =VLOOKUP(K58,'Exchange Rates'!C4:D16,2,FALSE) -> 
B63: General Living & Expenses | E63: =Z53 -> 0
AC64: =Z66*12 -> 0
B65: Servicing Ratio | E65: =IFERROR(Z74,"") ->  | H65: =Z78 ->  | Z65: =IF(Z66<0,"",Z66) -> 0 | AC65: =Z67*12 -> 0 | AI65: Mortgage | AO65: Investment Mtg | AU65: other Loans
E66: =IFERROR(Z75,"") ->  | Z66: =((O15*80%)*52/12)+AX10 -> 0 | AA66: Income | AC66: 0 | AI66: Bwr 1 & 2 | AK66: =IFERROR((H41/AM66),0) -> 0 | AM66: =VLOOKUP(K41,'Exchange Rates'!C4:D16,2,FALSE) ->  | AO66: Bwr 1 & 2 | AQ66: =IFERROR((R41/AS66),0) -> 0 | AS66: =VLOOKUP(U41,'Exchange Rates'!C4:D16,2,FALSE) ->  | AU66: Bwr 1 & 2 | AW66: =IFERROR((H44/AY66),0) -> 0 | AY66: =VLOOKUP(K42,'Exchange Rates'!D4:D16,2,FALSE) -> 
Z67: =AX12+AX13 -> 0 | AA67: Debts & GLEE | AC67: 0 | AI67: Bwr 3 & 4 | AK67: =IFERROR(('Additional Borrowers'!H33/AM67),0) -> 0 | AM67: =VLOOKUP('Additional Borrowers'!K33,'Exchange Rates'!C4:D16,2,FALSE) ->  | AO67: Bwr 3 & 4 | AQ67: =IFERROR(('Additional Borrowers'!R33/AS67),0) -> 0 | AS67: =VLOOKUP('Additional Borrowers'!U33,'Exchange Rates'!C4:D16,2,FALSE) ->  | AU67: Bwr 3 & 4 | AW67: =IFERROR(('Additional Borrowers'!H36/AY67),0) -> 0 | AY67: =VLOOKUP('Additional Borrowers'!K36,'Exchange Rates'!C4:D16,2,FALSE) -> 
Z68: =Z66-Z67 -> 0 | AA68: Funds Available | AK68: =SUM(AK66:AK67) -> 0 | AQ68: =SUM(AQ66:AQ67) -> 0 | AW68: =SUM(AW66:AW67) -> 0
Y69: Loan terms | Z69: =IF(E15<30,E15,29.9) -> 0 | AC69: =Z72*12 -> $0.87
B70: 9. Disclaimer | Z70: =-PMT(Z71/12,(Z69-E13)*12,O11,0,0) ->  | AA70: Proposed Loan
B71: Version 09/06/2022 | Z71: =IF('Assessment Rate Table'!D28<>"",'Assessment Rate Table'!D28,IF('Assessment Rate Table'!I28<>"",'Assessment Rate Table'!I28,"")) ->  | AA71: Stress Rate
B72: For Broker and internal use only, not for publication. This calculation is not an offer of credit but an estimate only of the applicant’s capacity to service the proposed loan based on the information provided, and does not include all applicable fees including any government or 3rd party fees. Our lending criteria and basis upon which we assess what a borrower can afford may change at any time without notice. All interest rates referred to in the calculators are current, as indicated on brighten.com.au. The interest rates represented on this page may include promotional discounts and are subject to change. When assessing ability to service a loan, Brighten may use an interest rate that is higher than the current interest rate for the loan requested. The output of the is subject to assumptions that are subject to change. The calculator does not take into account any future refinancing options which may be available. The calculator does not take into account any product features, grants or any applicable bank fees. | Z72: 7.25% | AA72: Prev. Stress Rate | AI72: C/cards | AO72: China C/cards
AI73: Bwr 1 & 2 | AK73: =IFERROR((R44/AM73),0) -> 0 | AM73: =VLOOKUP(U44,'Exchange Rates'!C4:D16,2,FALSE) ->  | AO73: Bwr 1 & 2 | AQ73: =IFERROR((R45/AS73),0) -> 0 | AS73: =VLOOKUP(U45,'Exchange Rates'!C4:D16,2,FALSE) -> 4.52
Z74: =Z68/Z70 ->  | AA74: Max LVR cannot exceed 80% | AI74: Bwr 3 & 4 | AK74: =IFERROR(('Additional Borrowers'!R36/AM74),0) -> 0 | AM74: =VLOOKUP('Additional Borrowers'!U36,'Exchange Rates'!C4:D16,2,FALSE) ->  | AO74: Bwr 3 & 4 | AQ74: =IFERROR(('Additional Borrowers'!R37/AS74),0) -> 0 | AS74: =VLOOKUP('Additional Borrowers'!U37,'Exchange Rates'!C4:D16,2,FALSE) -> 4.52
Z75: =(O11+E41+AK68+O41+AQ68+E44+AW68+O44+AK75+AQ75+'Additional Borrowers'!E33+'Additional Borrowers'!E36+'Additional Borrowers'!O33+'Additional Borrowers'!O36)/((AX5+AX8+AX9)*12) ->  | AA75: Max LVR cannot exceed 70% | AK75: =SUM(AK73:AK74) -> 0 | AQ75: =SUM(AQ73:AQ74) -> 0
Z77: =IF(E65<1,"Outside Lending Policy", "") ->  | AB77: 1.0001
Z78: =IF(AND(E65>=AB77,E65<=AB78),"Refer for Credit Review","") ->  | AB78: 1.0999
AB79: 1.1

Sheet Additional Borrowers
L2: LoanOne Green Series - Non- Residential -Additional Borrower | AP2: Income | AQ2: China Income | AR2: other offshore income | AS2: Total China CAP | AT2: Debts | AU2: China Debts | AV2: Other offshore | AX2: Total Allowable China Income | BP2: Total China CAP | BQ2: Debts | BR2: China Debts | BS2: Other offshore | BU2: Total Allowable China Income
AO3: BWR 3 | AQ3: =BI30 -> 0 | AR3: =(SUM(AD19)+SUM(AD27)+(SUM(AD15)*80%)+(SUM(AK19)*80%)+(SUM(AX19+AR19)*0.8)+(SUM(AK28)*80%)+(SUM(AK33)*80%))-AQ3 -> 0 | AS3: =(AV10*(SUM(AU10:AU13))/12) -> 0 | AT3: =((E34+O34+E38)*125%)+E49+E50+E51+((O36*3.8%)) -> 0 | AU3: =BI41+BL43 -> 0 | AV3: =((AD15+AD16+AD17)*125%)+(((AI15+AI16)*3%)) -> 0 | AX3: =AQ7-AU7 -> 0 | AY3: GrossChinaincome | BP3: =(BS10*(SUM(BR10:BR13))/12) -> 0 | BQ3: =((E34+O34+E38)*125%)+((O36*3%)) -> 0 | BR3: =CF41+CI43 -> 0 | BS3: =((AD33+AD34+AD35)*125%)+(((AJ33+AJ34)*3%))-BR3 -> 0 | BU3: =AQ7-BR7 -> 0 | BV3: GrossChinaincome
B4: 1. Borrower Details | AO4: BWR 4 | AQ4: =BL30 -> 0 | AR4: =(SUM(AD20)+SUM(AD28)+(SUM(AD16)*80%)+(SUM(AK20)*80%)+(SUM(AX20+AR20)*0.8)+(SUM(AK29)*80%)+(SUM(AK34)*80%))-AQ4 -> 0 | AX4: =IF(IF(((AX3*12)>(AV10)),(AV10/12),(AX3)),(AV10/12)) -> FALSE | AY4: Net China Allowable | BU4: =IF(IF(((BU3*12)>(BS10)),(BS10/12),(BU3)),(BS10/12)) -> FALSE | BV4: Net China Allowable
B5: Full Name - Bwr 3 | D5: =IF(ISBLANK(E5), " <First Name, Last Name>", E5) -> <First Name, Last Name> | L5: Country of Residency - Bwr 3 | N5: =IF(ISBLANK(O5), "<Select>", "") -> <Select> | R5: Postcode - Bwr 3 | T5: =IF(ISBLANK(U5), "<If in AUS>", "") -> <If in AUS> | AA5: $50,000
B6: Bwr 4 | D6: =IF(ISBLANK(E6), "<First Name, Last Name>", E6) -> <First Name, Last Name> | L6: Bwr 4 | N6: =IF(ISBLANK(O6), "<Select>", O6) -> <Select> | R6: Bwr 4 | T6: =IF(ISBLANK(U6), "<If in Aus>", U6) -> <If in Aus> | AA6: =AA5/'Exchange Rates'!D14 -> $70,965 | AB6: AUD | AX6: =AP7 -> 0 | AY6: Onshore Income | BU6: =AP7 -> 0 | BV6: Onshore Income
AP7: =SUM(AP3:AP6) -> 0 | AQ7: =SUM(AQ3:AQ6) -> 0 | AR7: =SUM(AR3:AR6) -> 0 | AT7: =SUM(AT3:AT6) -> 0 | AU7: =SUM(AU3:AU6) -> 0 | AV7: =SUM(AV3:AV6) -> 0 | AX7: =AR7 -> 0 | AY7: Other Offshore | BQ7: =SUM(BQ3:BQ6) -> 0 | BR7: =SUM(BR3:BR6) -> 0 | BS7: =SUM(BS3:BS6) -> 0 | BU7: =BO7 -> 0 | BV7: Other Offshore
AO8: GLEE | AP8: Onshore | AR8: offshore | AU8: # Adults | AV8: USD CAP | AX8: =SUM(AX4:AX7) -> 0 | AY8: Total Income | BR8: # Adults | BS8: USD CAP | BU8: =SUM(BU4:BU7) -> 0 | BV8: Total Income
AP9: Benchmark | AQ9: Declared | AR9: Benchmark | AS9: Declared | BP9: Declared
AO10: Household 3 | AP10: =(E43*Z22)+(E44*Z23)+(E45*Z24) -> 0 | AQ10: =E46 -> 0 | AR10: =SUM(AA27:AH27) -> 0 | AS10: =AC21 -> 0 | AT10: =(IF(AQ10>AP10,AQ10,AP10)+(IF(AS10>AR10,AS10,AR10))) -> 0 | AU10: =SUM(H43+E43+(H44*2)+(E44*2)) -> 0 | AV10: =AA6*(SUM(AU10:AU13)) -> 0 | AX10: =AT7+AV7 -> 0 | AY10: Total Debts | BP10: =AC42 -> 0 | BQ10: =(IF(AQ10>AP10,AQ10,AP10)+(IF(BP10>BO10,BP10,BO10))) -> 0 | BR10: =SUM(H43+(H44*2)) -> 0 | BS10: =AA6*(SUM(BR10:BR13)) -> 0 | BU10: =BQ7+BS7 -> 0 | BV10: Total Debts
B11: 3. Income - PAYG Income (Monthly) | AO11: Household 4 | AP11: =(O43*Z22)+(O44*Z23)+(O45*Z24) -> 0 | AQ11: =O46 -> 0 | AR11: =SUM(AI27:AP27) -> 0 | AS11: =AJ21 -> 0 | AT11: =(IF(AQ11>AP11,AQ11,AP11)+(IF(AS11>AR11,AS11,AR11))) -> 0 | AU11: =SUM(R43+O43+(R44*2)+(O44*2)) -> 0 | AX11: =AT17 -> 0 | AY11: Total Living Exp | BP11: =AJ42 -> 0 | BQ11: =(IF(AQ11>AP11,AQ11,AP11)+(IF(BP11>BO11,BP11,BO11))) -> 0 | BR11: =SUM(R43+(R44*2)) -> 0 | BU11: =BQ17 -> 0 | BV11: Total Living Exp
B12: Nett Salary | E12: Onshore | H12: Offshore | K12: Currency | L12: Nett Overtime | O12: Onshore | R12: Offshore | U12: Currency | Y12: =SUM(E13)+SUM(E22)+(SUM(O13)*80%)+(SUM(E17)*80%)+(SUM(O17)*0.8)+(SUM(O22)*80%)+(SUM(E27)*80%)+(SUM(O27)*80%) -> 0 | Z12: Bwr 3 | AA12: =SUM(E13)+SUM(E22)+(SUM(O13)*80%)+(SUM(E17)*80%)+(SUM(O17)*0.8)+(SUM(O22)*80%)+(SUM(E27)*80%)+(SUM(O27)*80%) -> 0 | AT12: =(IF(AQ12>AP12,AQ12,AP12)+(IF(AS12>AR12,AS12,AR12))) -> 0 | BQ12: =(IF(AQ12>AP12,AQ12,AP12)+(IF(BP12>BO12,BP12,BO12))) -> 0
B13: Bwr 3 | D13: =IF(ISBLANK(E13), "<AUD>", E13) -> <AUD> | G13: =IF(ISBLANK(H13), "<Local Currency>", H13) -> <Local Currency> | J13: =IF(ISBLANK(K13), "<Select>", "") -> <Select> | L13: Bwr 3 | N13: =IF(ISBLANK(O13), "<AUD>", O13) -> <AUD> | Q13: =IF(ISBLANK(R13), "<Local Currency>", R13) -> <Local Currency> | T13: =IF(ISBLANK(U13), "<Select>", "") -> <Select> | Y13: =SUM(E14)+SUM(E23)+(SUM(O14)*80%)+(SUM(E18)*80%)+(SUM(O18)*0.8)+(SUM(O23)*80%)+(SUM(E28)*80%)+(SUM(O28)*80%) -> 0 | Z13: Bwr 4 | AA13: =SUM(E14)+SUM(E23)+(SUM(O14)*80%)+(SUM(E18)*80%)+(SUM(O18)*0.8)+(SUM(O23)*80%)+(SUM(E28)*80%)+(SUM(O28)*80%) -> 0 | AT13: =(IF(AQ13>AP13,AQ13,AP13)+(IF(AS13>AR13,AS13,AR13))) -> 0 | BQ13: =(IF(AQ13>AP13,AQ13,AP13)+(IF(BP13>BO13,BP13,BO13))) -> 0
B14: Bwr 4 | D14: =IF(ISBLANK(E13), "<AUD>", E13) -> <AUD> | J14: =IF(ISBLANK(K14), "<Select>", K14) -> <Select> | L14: Bwr 4 | T14: =IF(ISBLANK(U14), "<Select>", U14) -> <Select>
Y15: =((E34+O34+E38)*125%)+((O36*3%))+Y17 -> 0 | AA15: Mortgage Repayment | AD15: =IFERROR((H34/AF15),0) -> 0 | AF15: =VLOOKUP(K34,'Exchange Rates'!C4:D16,2,FALSE) ->  | AH15: Total Credit Card Limits | AI15: =IFERROR((R36/AK15),0) -> 0 | AK15: =VLOOKUP(U36,'Exchange Rates'!C4:D16,2,FALSE) -> 
B16: Nett Commission | E16: Onshore | H16: Offshore | K16: Currency | L16: Nett Bonus | O16: Onshore | R16: Offshore | U16: Currency | Z16: Investment Mortgage/s Repayments | AD16: =IFERROR((R34/AF16),0) -> 0 | AF16: =VLOOKUP(U34,'Exchange Rates'!C4:D16,2,FALSE) ->  | AH16: Total China Card Balance | AI16: =IFERROR((R37/AK16),0) -> 0 | AK16: =VLOOKUP(U37,'Exchange Rates'!C4:D16,2,FALSE) -> 4.52
B17: Bwr 3 | D17: =IF(ISBLANK(E17), "<AUD>", E17) -> <AUD> | G17: =IF(ISBLANK(H17), "<Local Currency>", H17) -> <Local Currency> | J17: =IF(ISBLANK(K17), "<Select>", "") -> <Select> | L17: Bwr 3 | N17: =IF(ISBLANK(O17), "<AUD>", O17) -> <AUD> | Q17: =IF(ISBLANK(R17), "<Local Currency>", R17) -> <Local Currency> | T17: =IF(ISBLANK(U17), "<Select>", "") -> <Select> | Y17: =((AD15+AD16+AD17)*125%)+(((AI15+AI16)*3.8%)) -> 0 | AA17: Other Loans Repayments | AD17: =IFERROR((H38/AF17),0) -> 0 | AF17: =VLOOKUP(K38,'Exchange Rates'!C4:D16,2,FALSE) ->  | BB17: Onshore | BC17: Offshore | BH17: China Offshore Income
B18: Bwr 4 | D18: =IF(ISBLANK(E18), "<AUD>", E18) -> <AUD> | J18: =IF(ISBLANK(K18), "<Select>", K18) -> <Select> | L18: Bwr 4 | N18: =IF(ISBLANK(O18), "<AUD>", O18) -> <AUD> | T18: =IF(ISBLANK(U18), "<Select>", U18) -> <Select> | BA18: BWR 1 | BC18: =SUM(AD19)+SUM(AD27)+(SUM(AD33)*80%)+(SUM(AK19)*80%)+(SUM(AX19+AR19)*0.8)+(SUM(AK27)*80%)+(SUM(AK33)*80%) -> 0 | BH18: BWR 3 | BK18: BWR 4
BA19: BWR 2 | BC19: =SUM(AD20)+SUM(AD28)+(SUM(AD34)*80%)+(SUM(AK20)*80%)+(SUM(AX20+AR20)*0.8)+(SUM(AK28)*80%)+(SUM(AK34)*80%) -> 0 | BG19: Net PAYG | BH19: =K13 -> 0 | BI19: =H13 -> 0 | BK19: =K14 -> 0 | BL19: =H14 -> 0
B20: 4. Income - Self Employed or Other Income (Monthly) | Y20: =Y29+SUM(E49:E51)+SUM(AC29:AC31) -> 0 | AC20: AUD Amount | AE20: Offshore | AJ20: AUD Amount | AL20: Offshore | BA20: BWR 3 | BC20: =SUM(AD21)+SUM(AD29)+(SUM(AD35)*80%)+(SUM(AK21)*80%)+(SUM(AX21+AR21)*0.8)+(SUM(AK29)*80%)+(SUM(AK35)*80%) -> 0 | BG20: Commissions | BH20: =K17 -> 0 | BI20: =H17*80% -> 0 | BK20: =K18 -> 0 | BL20: =H18*80% -> 0
B21: Nett Self Employed | E21: Onshore | H21: Offshore | K21: Currency | L21: Nett Other Income | O21: Onshore | R21: Offshore | U21: Currency | AA21: Customer Declared Amount | AC21: =IFERROR((H46/AE21),0) -> 0 | AE21: =VLOOKUP('GL&EE TOOL'!H46,'Exchange Rates'!C4:D16,2,FALSE) ->  | AH21: Customer Declared Amount | AJ21: =IFERROR((R46/AL21),0) -> 0 | AL21: =VLOOKUP('GL&EE TOOL'!M46,'Exchange Rates'!C4:D16,2,FALSE) ->  | BA21: BWR 4 | BC21: =SUM(AD22)+SUM(AD30)+(SUM(AD36)*80%)+(SUM(AK22)*80%)+(SUM(AX22+AR22)*0.8)+(SUM(AK30)*80%)+(SUM(AK36)*80%) -> 0 | BG21: Self Employed | BH21: =K22 -> 0 | BI21: =H22 -> 0 | BK21: =K23 -> 0 | BL21: =H23 -> 0
B22: Bwr 3 | D22: =IF(ISBLANK(E22), "<AUD>", E22) -> <AUD> | G22: =IF(ISBLANK(H22), "<Local Currency>", H22) -> <Local Currency> | J22: =IF(ISBLANK(K22), "<Select>", "") -> <Select> | L22: Bwr 3 | N22: =IF(ISBLANK(O22), "<AUD>", O22) -> <AUD> | Q22: =IF(ISBLANK(R22), "<Local Currency>", R22) -> <Local Currency> | T22: =IF(ISBLANK(U22), "<Select>", "") -> <Select> | Y22: Single | Z22: 1300 | BA22: Total | BB22: =SUM(AP3:AP6) -> 0 | BC22: =SUM(BC18:BC21) -> 0 | BG22: Rental | BH22: =K27 -> 0 | BI22: =H27*80% -> 0 | BK22: =K28 -> 0 | BL22: =H28*80% -> 0
B23: Bwr 4 | D23: =IF(ISBLANK(E23), "<AUD>", E23) -> <AUD> | G23: =IF(ISBLANK(H23), " <Local Currency>", H23) -> <Local Currency> | J23: =IF(ISBLANK(K23), "<Select>", K23) -> <Select> | L23: Bwr 4 | T23: =IF(ISBLANK(U23), "<Select>", U23) -> <Select> | Y23: Couple | Z23: 2800 | BG23: net OT | BH23: =U13 -> 0 | BI23: =R13*80% -> 0 | BK23: =U14 -> 0 | BL23: =R14*80% -> 0
Y24: Dependant | Z24: 468 | BG24: Bonus | BH24: =U17 -> 0 | BI24: =R17*80% -> 0 | BK24: =U18 -> 0 | BL24: =R18*80% -> 0
B25: 5. Income - Rental or Investment Income (Monthly) | BG25: other net | BH25: =U22 -> 0 | BI25: =R22*80% -> 0 | BK25: =U23 -> 0 | BL25: =R23*80% -> 0
B26: Rental Income | E26: Onshore | H26: Offshore | K26: Currency | L26: Nett Investment Income | O26: Onshore | R26: Offshore | U26: Currency | Y26: Onshore | Z26: =(E43*Z22)+(O43*Z22)+(E44*Z23)+(O44*Z23)+(E45*Z24)+(O45*Z24) -> 0 | AA26: Other | AB26: China 60% | AC26: Vietnam 60% | AE26: Malaysia 60% | AG26: Indonesia 60% | AH26: South Korea 110% | AI26: Other | AJ26: China 60% | AK26: Vietnam 60% | AM26: Malaysia 60% | AO26: Indonesia 60% | AP26: South Korea 110% | BG26: other investment | BH26: =U27 -> 0 | BI26: =R27*80% -> 0 | BK26: =U28 -> 0 | BL26: =R28*80% -> 0
B27: Bwr 3 | D27: =IF(ISBLANK(E27), "<Gross, AUD>", E27) -> <Gross, AUD> | G27: =IF(ISBLANK(H27), "<Local Currency>", H27) -> <Local Currency> | J27: =IF(ISBLANK(K27), "<Select>", "") -> <Select> | L27: Bwr 3 | N27: =IF(ISBLANK(O27), "<AUD>", O27) -> <AUD> | Q27: =IF(ISBLANK(R27), "<Local Currency>", R27) -> <Local Currency> | T27: =IF(ISBLANK(U27), "<Select>", "") -> <Select> | Y27: Offshore | Z27: =SUM(AA27:AP27) -> 0 | AA27: =IF(NOT(OR(K43="china", K43="Vietnam", K43="Malaysia", K43="Indonesia", K43="south korea")), ((H43*Z22)+(H44*Z23)+(H45*Z24)), "") -> 0 | AB27: =IF(K43="China", ((H43*Z22)+(H44*Z23)+(H45*Z24))*60%, "") ->  | AC27: =IF(K43="Vietnam", ((H43*Z22)+(H44*Z23)+(H45*Z24))*60%, "") ->  | AE27: =IF(K43="Malaysia", ((H43*Z22)+(H44*Z23)+(H45*Z24))*60%, "") ->  | AG27: =IF(K43="Indonesia", ((H43*Z22)+(H44*Z23)+(H45*Z24))*60%, "") ->  | AH27: =IF(K43="South Korea", ((H43*Z22)+(H44*Z23)+(H45*Z24))*110%, "") ->  | AI27: =IF(NOT(OR(U43="china", U43="Vietnam", U43="Malaysia", U43="Indonesia", U43="south korea")), ((R43*Z22)+(R44*Z23)+(R45*Z24)), "") -> 0 | AJ27: =IF(U43="China", ((R43*Z22)+(R44*Z23)+(R45*Z24))*60%, "") ->  | AK27: =IF(U43="Vietnam", ((R43*Z22)+(R44*Z23)+(R45*Z24))*60%, "") ->  | AM27: =IF(U43="Malaysia", ((R43*Z22)+(R44*Z23)+(R45*Z24))*60%, "") ->  | AO27: =IF(U43="Indonesia", ((R43*Z22)+(R44*Z23)+(R45*Z24))*60%, "") ->  | AP27: =IF(U43="South Korea", ((R43*Z22)+(R44*Z23)+(R45*Z24))*110%, "") ->  | BH27: Lookup and sum | BK27: Lookup and sum
B28: Bwr 4 | D28: =IF(ISBLANK(E28), "<AUD>", E28) -> <AUD> | J28: =IF(ISBLANK(K28), "<Select>", K28) -> <Select> | L28: Bwr 4 | T28: =IF(ISBLANK(U28), "<Select>", U28) -> <Select> | AA28: Other Regular Expenses | AC28: AUD Amount | AE28: Offshore | AG28: Currency | BH28: CNY | BI28: =SUMIF($BH$19:$BH$26,BH28,$BI$19:$BI$26) -> 0 | BK28: CNY | BL28: =SUMIF($BK$19:$BK$26,BK28,$BL$19:$BL$26) -> 0
Y29: =IF(((E46+AC21+O46+AJ21)>(Z26+Z27)),(E46+AC21+O46+AJ21), (Z26+Z27)) -> 0 | AA29: Child Support | AC29: =IFERROR((H49/AE29),0) -> 0 | AE29: =VLOOKUP(K49,'Exchange Rates'!C4:D16,2,FALSE) ->  | BH29: ='Exchange Rates'!D5 -> 4.52266 | BK29: ='Exchange Rates'!D5 -> 4.52266
B30: Total | E30: =IFERROR(#REF!,"") ->  | AA30: Rental | AC30: =IFERROR((H50/AE30),0) -> 0 | AE30: =VLOOKUP(K50,'Exchange Rates'!C4:D16,2,FALSE) ->  | BH30: AUD Amount | BI30: =BI28/BH29 -> 0 | BK30: AUD Amount | BL30: =BL28/BK29 -> 0
B31: 6. Existing Debts | AA31: Other | AC31: =IFERROR((H51/AE31),0) -> 0 | AE31: =VLOOKUP(K51,'Exchange Rates'!C4:D16,2,FALSE) -> 
E32: Onshore | H32: Offshore | K32: Currency | O32: Onshore | R32: Offshore | U32: Currency | BH32: China Offshore Debts
B33: Mortgage Balance | D33: =IF(ISBLANK(E33), "<AUD>", E33) -> <AUD> | G33: =IF(ISBLANK(H33), "<Local Currency>", H33) -> <Local Currency> | J33: =IF(ISBLANK(K33), "<Select>", "") -> <Select> | L33: Investment Mortgage/s Balance | N33: =IF(ISBLANK(O33), "<AUD>", O33) -> <AUD> | Q33: =IF(ISBLANK(R33), "<Local Currency>", R33) -> <Local Currency> | T33: =IF(ISBLANK(U33), "<Select>", "") -> <Select> | BH33: Debts | BI33: AUD | BK33: GLEE
B34: Mortgage Repayment | D34: <AUD> | G34: <Local Currency> | J34: =IF(ISBLANK(K34), "<Select>", "") -> <Select> | L34: Investment Mortgage/s Repayments | N34: <AUD> | Q34: =IF(ISBLANK(R34), "<Local Currency>", R34) -> <Local Currency> | T34: =IF(ISBLANK(U34), "<Select>", "") -> <Select> | BG34: Mortgage | BH34: =K34 -> 0 | BI34: =AD15*125% -> 0 | BK34: =K49 -> 0 | BL34: =H49 -> 0
BG35: Investment | BH35: =U34 -> 0 | BI35: =AD16*125% -> 0 | BK35: =K50 -> 0 | BL35: =H50 -> 0
B36: Other Loans Balances/Limits | D36: <AUD> | G36: <Local Currency> | J36: =IF(ISBLANK(K36), "<Select>", "") -> <Select> | L36: Total Credit Card Limits (Exc China) | N36: <AUD> | Q36: =IF(ISBLANK(R36), "<Local Currency>", R36) -> <Local Currency> | T36: =IF(ISBLANK(U36), "<Select>", "") -> <Select> | BG36: Other | BH36: =K38 -> 0 | BI36: =AD17*125% -> 0 | BK36: =K51 -> 0 | BL36: =H51 -> 0
B37: Description | D37: =IF(ISBLANK(E37), " <Enter description of above declared Loan>", E37) -> <Enter description of above declared Loan> | L37: Total China Card Balances | Q37: =IF(ISBLANK(R37), "<Local Currency>", R37) -> <Local Currency> | U37: CNY | BG37: Other CC | BH37: =U36 -> 0 | BI37: =AI15*3% -> 0
B38: Other Loans Repayments | D38: <AUD> | G38: <Local Currency> | J38: =IF(ISBLANK(K38), "<Select>", "") -> <Select> | L38: Total China Card Limits | Q38: =IF(ISBLANK(R38), "<Local Currency>", R38) -> <Local Currency> | U38: CNY | BH38: CNY | BI38: =AI16*3% -> 0
B40: Total | E40: =IFERROR(#REF!,"") ->  | BH40: Lookup and sum | BI40: AUD Amount | BK40: Lookup and sum
B41: 7. General Living Expenses (Monthly) | BH41: CNY | BI41: =SUMIF($BH$34:$BH$38,BH41,$BI$34:$BI$38) -> 0 | BK41: CNY | BL41: =SUMIF($BK$34:$BK$36,BK41,$BL$34:$BL$36) -> 0
B42: Household 3 | E42: Onshore | H42: Offshore | K42: Country | L42: Household 4 | O42: Onshore | R42: Offshore | U42: Country | BK42: ='Exchange Rates'!D5 -> 4.52266
B43: # of Single Adults | J43: =IF(ISBLANK(K43), "<Select>", "") -> <Select> | L43: # of Single Adults | T43: =IF(ISBLANK(U43), "<Select>", "") -> <Select> | BK43: AUD Amount | BL43: =BL41/BK42 -> 0
B44: # of Couple | L44: # of Couple
B45: # of Dependants | L45: # of Dependants
B46: Customer Declared Amount | E46: ='GL&EE TOOL'!F44 -> 0 | H46: ='GL&EE TOOL'!H44 -> 0 | K46: Calculator | L46: Customer Declared Amount | O46: ='GL&EE TOOL'!K44 -> 0 | R46: ='GL&EE TOOL'!M44 -> 0 | U46: Calculator
B48: Other Regular Expenses | E48: Onshore | H48: Offshore | K48: Currency
B49: Child Support | D49: =IF(ISBLANK(E49), "<AUD>", E49) -> <AUD> | G49: =IF(ISBLANK(H49), "<Local Currency>", H49) -> <Local Currency> | J49: =IF(ISBLANK(K49), "<Select>", "") -> <Select>
B50: Rental | D50: <AUD> | G50: <Local Currency> | J50: =IF(ISBLANK(K50), "<Select>", "") -> <Select>
B51: Other | D51: <AUD> | G51: <Local Currency> | J51: =IF(ISBLANK(K51), "<Select>", "") -> <Select>
I53: Back to Main Page
B57: 9. Disclaimer
B58: ='Servicing Calc'!B71 -> Version 09/06/2022
B59: For Broker and internal use only, not for publication. This calculation is not an offer of credit but an estimate only of the applicant’s capacity to service the proposed loan based on the information provided, and does not include all applicable fees including any government or 3rd party fees. Our lending criteria and basis upon which we assess what a borrower can afford may change at any time without notice. All interest rates referred to in the calculators are current, as indicated on brighten.com.au. The interest rates represented on this page may include promotional discounts and are subject to change. When assessing ability to service a loan, Brighten may use an interest rate that is higher than the current interest rate for the loan requested. The output of the is subject to assumptions that are subject to change. The calculator does not take into account any future refinancing options which may be available. The calculator does not take into account any product features, grants or any applicable bank fees.

Sheet GL&EE TOOL
H2: General Living& Entertainment Expenses Tool
B4: 1. General Living Expenses (Monthly)
B5: Household 1 Status | J5: Household 2 Status
F6: Onshore | H6: Offshore | K6: Onshore | M6: Offshore | O6: Back To Main Page
B7: Property Utilities (eg. rates, electricity)
B8: Phone, Internet
B9: Pay TV, Media Streaming
B10: Food & Groceries
B11: Recreation & Entertainment (eg. Gym membership)
B12: Clothing & Personal Care
B13: Medical & Health
B14: Transport
B15: Education
B16: Childcare
B17: Insurance
B18: Investment Property Utilities (eg. rates,maintenance, insurance)
B19: Other (Describe Below:)
D22: Monthly Total | F22: =SUM(F7:F20) -> 0 | H22: =SUM(H7:H20) -> 0.00 | K22: =SUM(K7:K20) -> 0 | M22: =SUM(M7:M20) -> 0.00
H23: Currency | M23: Currency
G24: =IF(ISBLANK(H24), " <Select>", "") -> <Select> | L24: =IF(ISBLANK(M24), " <Select>", "") -> <Select>
B26: 2. General Living Expenses (Monthly)
B27: Household 3 Status | J27: Household 4 Status
F28: Onshore | H28: Offshore | K28: Onshore | M28: Offshore | O28: Back To Additional Bwrs
B29: Property Utilities (eg. rates, electricity)
B30: Phone, Internet
B31: Pay TV, Media Streaming
B32: Food & Groceries
B33: Recreation & Entertainment (eg. Gym membership)
B34: Clothing & Personal Care
B35: Medical & Health
B36: Transport
B37: Education
B38: Childcare
B39: Insurance
B40: Investment Property Utilities (eg. rates,maintenance, insurance)
B41: Other (Describe Below:)
D44: Monthly Total | F44: =SUM(F29:F42) -> 0 | H44: =SUM(H29:H42) -> 0.00 | K44: =SUM(K29:K42) -> 0 | M44: =SUM(M29:M42) -> 0.00
H45: Currency | M45: Currency
G46: =IF(ISBLANK(H46), " <Select>", "") -> <Select> | L46: =IF(ISBLANK(M46), " <Select>", "") -> <Select>
B48: 3. Disclaimer
B49: ='Servicing Calc'!B71 -> Version 09/06/2022
B50: For Broker and internal use only, not for publication. This calculation is not an offer of credit but an estimate only of the applicant’s capacity to service the proposed loan based on the information provided, and does not include all applicable fees including any government or 3rd party fees. Our lending criteria and basis upon which we assess what a borrower can afford may change at any time without notice. All interest rates referred to in the calculators are current, as indicated on brighten.com.au. The interest rates represented on this page may include promotional discounts and are subject to change. When assessing ability to service a loan, Brighten may use an interest rate that is higher than the current interest rate for the loan requested. The output of the is subject to assumptions that are subject to change. The calculator does not take into account any future refinancing options which may be available. The calculator does not take into account any product features, grants or any applicable bank fees.

Sheet Loan Fees Calculator (hidden)
R1: 2020-08-31
Q2: =TODAY() -> 2022-07-26 | R2: 2020-12-31
B4: 1. Loan Details | R4: Application fee: | S4: Valuation Fee | T4: Legal Fee | U4: Settlement Fee | V4: Establishment fee | W4: Risk Fee | X4: 1st Year Fee | Y4: Ongoing Fee | Z4: Construction Fee | AA4: Split Fee
B5: Loan Product | D5: Brighten Easy Builder | Q5: Brighten Saver | R5: =IF(D5="Brighten Saver", ('Brighten Product'!H18),"") ->  | S5: =IF(D5="Brighten Saver", ('Brighten Product'!H19),"") ->  | T5: =IF(D5="Brighten Saver", ('Brighten Product'!H20),"") ->  | U5: =IF(D5="Brighten Saver", ('Brighten Product'!H21),"") ->  | V5: =IF(D5="Brighten Saver", ('Brighten Product'!H22),"") ->  | W5: =IF(D5="Brighten Saver", ('Brighten Product'!H23),"") ->  | X5: =IF(D5="Brighten Saver", ('Brighten Product'!H24),"") ->  | Y5: =IF(D5="Brighten Saver", ('Brighten Product'!H24),"") -> 
B6: Loan Term | D6: 0 | G6: Years | Q6: Brighten Easy Builder | R6: =IF(D5="Brighten Easy Builder", ('Brighten Product'!AD18),"") -> $660.00 | S6: =IF(D5="Brighten Easy Builder", ('Brighten Product'!AD19),"") -> $330.00 | T6: =IF(D5="Brighten Easy Builder", ('Brighten Product'!AD20),"") -> $300.00 | U6: =IF(D5="Brighten Easy Builder", ('Brighten Product'!AD21),"") -> 0 | V6: =IF(D5="Brighten Easy Builder", ('Brighten Product'!AD22),"") -> 0 | W6: =IF(D5="Brighten Easy Builder", ('Brighten Product'!AD23),"") -> $18,000.00 | X6: =IF(D5="Brighten Easy Builder", ('Brighten Product'!AD24),"") -> $499.00 | Y6: =IF(D5="Brighten Easy Builder", ('Brighten Product'!AD24),"") -> $499.00 | Z6: =IF(D5="Brighten Easy Builder", ('Brighten Product'!AD28),"") -> $300.00
B7: P&I or IO | F7: P&I | Q7: Brighten Platinum | R7: =IF(D5="Brighten Platinum", ('Brighten Product'!N18),"") ->  | S7: =IF(D5="Brighten Platinum", ('Brighten Product'!N19),"") ->  | T7: =IF(D5="Brighten Platinum", ('Brighten Product'!N20),"") ->  | U7: =IF(D5="Brighten Platinum", ('Brighten Product'!N21),"") ->  | V7: =IF(D5="Brighten Platinum", ('Brighten Product'!N22),"") ->  | W7: =IF(D5="Brighten Platinum", ('Brighten Product'!N23),"") ->  | X7: =IF(D5="Brighten Platinum", ('Brighten Product'!N24),"") ->  | Y7: =IF(D5="Brighten Platinum", ('Brighten Product'!N24),"") -> 
B8: I/O Term | F8: 5 | G8: Year/s | Q8: Brighten Platinum Offset | R8: =IF(D6="Brighten Platinum Offset", (#REF!),"") ->  | S8: =IF(D6="Brighten Platinum", (#REF!),"") ->  | T8: =IF(D6="Brighten Platinum", (#REF!),"") ->  | U8: =IF(D6="Brighten Platinum", (#REF!),"") ->  | V8: =IF(D6="Brighten Platinum", (#REF!),"") ->  | W8: =IF(D6="Brighten Platinum", (#REF!),"") ->  | X8: =IF(D6="Brighten Platinum", (#REF!),"") ->  | Y8: =IF(D6="Brighten Platinum", (#REF!),"") -> 
B9: Loan Amount | D9: $1,800,000.00 | Q9: Brighten Evergreen | R9: =IF(D5="Brighten Evergreen", ('Brighten Product'!T18),"") ->  | S9: =IF(D5="Brighten Evergreen", ('Brighten Product'!T19),"") ->  | T9: =IF(D5="Brighten Evergreen", ('Brighten Product'!T20),"") ->  | U9: =IF(D5="Brighten Evergreen", ('Brighten Product'!T21),"") ->  | V9: =IF(D5="Brighten Evergreen", ('Brighten Product'!T22),"") ->  | W9: =IF(D5="Brighten Evergreen", ('Brighten Product'!T23),"") ->  | X9: =IF(D5="Brighten Evergreen", ('Brighten Product'!T24),"") ->  | Y9: =IF(D5="Brighten Evergreen", ('Brighten Product'!T24),"") -> 
B10: Security Value | D10: $3,000,000.00 | R10: =IF(D5="Evergreen Star Package", (#REF!),"") ->  | S10: =IF(D5="Evergreen Star Package", (#REF!),"") ->  | T10: =IF(D5="Evergreen Star Package", (#REF!),"") ->  | U10: =IF(D5="Evergreen Star Package", (#REF!),"") ->  | V10: =IF(D5="Evergreen Star Package", (#REF!),"") ->  | W10: =IF(D5="Evergreen Star Package", (#REF!),"") ->  | X10: =IF(D5="Evergreen Star Package", (#REF!),"") ->  | Y10: =IF(D5="Evergreen Star Package", ((#REF!)-990),"") -> 
B11: Small Apartment (Size <50sqm) | D11: . | F11: Yes | Q11: Totals | R11: =SUM(R5:R10) -> $660.00 | S11: $330.00 | T11: $300.00 | U11: 0 | V11: 0 | W11: $18,000.00 | X11: $499.00 | Y11: $499.00 | Z11: $300.00
B12: Self Employed | F12: No
B13: Fixed Rate | F13: No
B14: LVR | D14: =D9/D10 -> 60.00% | G14: =IF(D5="Brighten Evergreen",IF(OR(AND(AND(D9>1500000,D9<2000000),Q19>50%),AND(D9=1500000,Q19>70%)),"LVR exceeds max acceptable LVR for this loan amount",""),IF(D5="Brighten Easy Builder", IF(OR(AND(D9>=1000000,Q19>70%),AND(D9>=1500000,Q19>65%),AND(D9>=2000000,Q19>50%)),"LVR exceeds max acceptable LVR for this loan amount",""),"")) -> 
B16: 2. Fees
B18: Application Fee | D18: =IF(LEN(G14)=0,R11,"-") -> $660.00 | Q18: =D14 -> 60.00%
B19: Settlement Fee | D19: =IF(LEN(G14)=0,U11,"-") -> 0 | Q19: =D14*1 -> 60.00%
B20: Legal Fee | D20: =IF(LEN(G14)=0,T11,"-") -> $300.00 | Q20: =IF(AND(AND(D9>='Risk Fee Matrix'!B43,D9<='Risk Fee Matrix'!B44),Q19>0.5),"NOT APPLICABLE",_xlfn.IFNA(W11,"NOT APPLICABLE")) -> NOT APPLICABLE
B21: Ongoing Annual Fee | D21: =IF(LEN(G14)=0,Y11,"-") -> $499.00
B22: Establishment Fee | D22: =IF(LEN(G14)=0,V11,"-") -> 0
B23: Risk Fee | D23: =IF(LEN(G14)=0,W11,"-") -> $18,000.00
B24: Valuation Fee | D24: =IF(LEN(G14)=0,S11,"-") -> $330.00 | F24: =IF(LEN(G14)=0,IF(D10>750000,"Quote maybe required",""),"") -> Quote maybe required
B25: Discharge Fee | D25: =IF(LEN(G14)=0,550,"-") -> $550.00
B26: Progress Payment Fees | D26: =IF(LEN(G14)=0,Z11,"-") -> $300.00 | F26: =IF(LEN(G14)=0,IF(Z11>400,"*per drawdown",""),"") -> 
B27: Other fees | F27: Total Upfront Fees | G27: =IF(LEN(G14)=0,IF(AND(Q2>R1,Q2<R2),IF(D5="Brighten Evergreen",D18+D19+D20+D21+D23+D24,D18+D19+D20+D21+D22+D23+D24),D19+D20+D21+D22+D23+D24),"-") -> $19,129.00
B29: Total | D29: =SUM(D18:D27) -> $20,639.00
B31: 3. Disclaimer
B32: Version 13/10/2021
B33: For Broker and internal use only, not for publication. This calculation is not an offer of credit but an estimate only of the applicant’s capacity to service the proposed loan based on the information provided, and does not include all applicable fees including any government or 3rd party fees. Our lending criteria and basis upon which we assess what a borrower can afford may change at any time without notice. All interest rates referred to in the calculators are current, as indicated on brighten.com.au. The interest rates represented on this page may include promotional discounts and are subject to change. When assessing ability to service a loan, Brighten may use an interest rate that is higher than the current interest rate for the loan requested. The output of the is subject to assumptions that are subject to change. The calculator does not take into account any future refinancing options which may be available. The calculator does not take into account any product features, grants or any applicable bank fees.

Sheet Exchange Rates (hidden)
A1: BHLJF!
B2: Exchange Rates
B3: Country | C3: Currency Name | D3: Rate
B4: Australia | C4: AUD | D4: 1.0000
B5: China | C5: CNY | D5: 4.5227
B6: Hong Kong SAR | C6: HKD | D6: 5.4801
B7: Indonesia | C7: IDR | D7: 10099.5000
B8: Japan | C8: JPY | D8: 79.7781
B9: Macau SAR | C9: MOP | D9: 5.8900
B10: Malaysia | C10: MYR | D10: 3.0600
B11: Singapore | C11: SGD | D11: 0.9552
B12: South Korea | C12: KRW | D12: 879.8700
B13: Taiwan | C13: NTD | D13: 20.6700
B14: United States | C14: USD | D14: 0.7046
B15: United Kingdom | C15: GBP | D15: 0.5182
B16: Vietnam | C16: VND | D16: 16698.3900

Sheet Assessment Rate Table (hidden)
B3: Brighten Evergreen | G3: Brighten Easy Builder
B5: Loan amount | C5: LVR | D5: Rate | G5: Loan amount | H5: LVR | I5: Rate
B7: $150,000.00 - $1,000,000.00 | C7: 0% - 60% | D7: 4.63% | G7: $200,000.00 - $900,000.00 | H7: 0% - 60% | I7: 4.99%
B9: $150,000.00 - $1,000,000.00 | C9: 60% - 65% | D9: 4.63% | G9: $200,000.00 - $900,000.00 | H9: 60% - 65% | I9: 4.99%
B11: $150,000.00 - $1,000,000.00 | C11: 65% - 70% | D11: 5.03% | G11: $200,000.00 - $900,000.00 | H11: 65% - 70% | I11: 5.49%
B13: $150,000.00 - $1,000,000.00 | C13: 70% - 75% | D13: 5.43% | H13: 70% - 75%
B15: Loadings | G15: Loadings
B16: Interest Only (IO) | D16: 0.30% | G16: Interest Only (IO) | I16: 0.30%
B17: Self Employed (SE) | D17: 0.30% | G17: Self Employed (SE) | I17: 0.30%
B18: Loan Amount | G18: Loan Amount
B19: $1,000,000.00 - $1,500,000.00 | D19: 0.40% | G19: ≤$900,000.00
B20: > $1,500,000.00 | D20: 0.80% | G20: > $900,000.00 | I20: 1.00%
B21: Obtain SE income: | D21: =IF('Servicing Calc'!E11:E11<>"Brighten Evergreen","",'Servicing Calc'!E14) -> NO | G21: Obtain SE income: | I21: =IF('Servicing Calc'!E11:E11<>"Brighten Easy Builder","",'Servicing Calc'!E14) -> 
B23: Base rate: | D23: =IF('Servicing Calc'!E11:E11<>"Brighten Evergreen","",IF('Servicing Calc'!O13:O13<=60%,D7,IF(AND('Servicing Calc'!O13:O13>60%,'Servicing Calc'!O13:O13<=65%),D9, IF(AND('Servicing Calc'!O13:O13>65%,'Servicing Calc'!O13:O13<=70%), D11,D13)))) ->  | G23: Base rate: | I23: =IF('Servicing Calc'!E11:E11<>"Brighten Easy Builder","", IF('Servicing Calc'!O13:O13<=60%,I7,IF(AND('Servicing Calc'!O13:O13>60%,'Servicing Calc'!O13:O13<=65%),I9, IF(AND('Servicing Calc'!O13:O13>65%,'Servicing Calc'!O13:O13<=70%), I11,"")))) -> 
B24: Loan amount > 1mil or 1.5mil | D24: =IF('Servicing Calc'!E11:E11<>"Brighten Evergreen","",IF('Servicing Calc'!O11:O11<=1000000,D23,IF('Servicing Calc'!O11:O11>1500000,D23+D20,D23+D19))) ->  | G24: Loan amount > 900K or 1.5mil | I24: =IF('Servicing Calc'!E11:E11<>"Brighten Easy Builder","",IF('Servicing Calc'!O11:O11>900000,I23+I20,I23)) -> 
B25: IO | D25: =IF('Servicing Calc'!E11:E11<>"Brighten Evergreen","",IF(OR('Servicing Calc'!E12:E12="I/O", 'Servicing Calc'!E13>0),D24+D16,D24)) ->  | G25: IO | I25: =IF('Servicing Calc'!E11:E11<>"Brighten Easy Builder","",IF(OR('Servicing Calc'!E12:E12="I/O", 'Servicing Calc'!E13>0),I24+I16,I24)) -> 
B26: SE | D26: =IF('Servicing Calc'!E11:E11<>"Brighten Evergreen","",IF('Servicing Calc'!E14="YES",D25+D17,D25)) ->  | G26: SE | I26: =IF('Servicing Calc'!E11:E11<>"Brighten Easy Builder","",IF('Servicing Calc'!E14="YES", I25+I17,I25)) -> 
B27: (+2.5%) | D27: =IF('Servicing Calc'!E11:E11<>"Brighten Evergreen","",D26+2.5%) ->  | G27: (+2.5%) | I27: =IF('Servicing Calc'!E11:E11<>"Brighten Easy Builder","",I26+2.5%) -> 
B28: Assessment Rate | D28: =IF('Servicing Calc'!E11:E11<>"Brighten Evergreen","",IF(D27>5.5%,D27,5.5%)) ->  | G28: Assessment Rate | I28: =IF(I27>5.5%,I27,5.5%) -> 

Sheet LVR Calc (hidden)
P3: Apartment Type | X3: Max LVR | Y3: =IFERROR(IF(AND(G10="House and Land",VLOOKUP(G10,P5:U6,6,0)=0%),0%,IF(G10="House and Land",IF(G11*VLOOKUP(G10,P4:U6,6,0)>2000000,2000000/G11,IF(G11*VLOOKUP(G10,P4:U6,6,0)<200000, "No Result",VLOOKUP(G10,P4:U6,6,0))),IF(G11*VLOOKUP(G10,P4:U6,6,0)>2000000,2000000/G11,IF(G11*VLOOKUP(G10,P4:U6,6,0)<150000, "No Result",VLOOKUP(G10,P4:U6,6,0))))),"") -> 49%
P4: Apartment or Townhouse | S4: =V4 -> $750,000.00 | U4: =Q24 -> 70% | V4: =IF(Q24="N/A","N/A",MIN(2000000,Q25)) -> $750,000.00 | X4: MAX LM | Y4: =IFERROR(IF(AND(G10="House and Land",VLOOKUP(G10,P5:U6,6,0)=0%),0,IF(G10="House and Land",IF(G11*G14>2000000,2000000,IF(G11*G14<200000,200000,G11*G14)),IF(G11*G14>2000000,2000000,IF(G11*G14<150000,150000,G11*G14)))),"") -> $500,000.00
B5: 1. Loan Details | P5: Apartment or Townhouse or Detached House | S5: =V5 -> $500,000.00 | U5: =Q48 -> 49% | V5: =IF(Q48="N/A","N/A",MIN(2000000,Q49)) -> $500,000.00 | X5: Max LVR | Y5: =G15/G11 -> 49%
P6: House and Land | S6: $500,000.00 | U6: =Q68 -> 65% | V6: =IF(Q68="N/A","N/A",MIN(2000000,Q69)) -> $500,000.00 | X6: MAX LM | Y6: =VLOOKUP(G10,P5:S6,4,0) -> 500000 | AF6: Sydney and Melbourne Metro | AH6: High Density | AJ6: Other Metro Cities | AM6: Other Category 1
P8: Apartment/Townhouse | AH8: High Density (postcode+ there are more than 65 units in the complex） | AM8: Other Category 1
AH9: Max 65% | AM9: Max 60% up to $500,000
E10: Property Type | G10: Apartment or Townhouse or Detached House | J10: Please enter the estimated Value (or Purchase Price) and Postcode of your security. | P10: SYD AND MELB METRO | U10: OTHER METRO | Y10: OTHER CATEGORY 1 LOCATIONS | AC10: NSW | AD10: 2010 | AE10: NSW | AF10: 2010 | AH10: 4000 | AI10: QLD | AJ10: 4007 | AL10: NSW | AM10: 2012
E11: Purchase Price | G11: $1,030,000.00 | P11: price | Q11: loan size | R11: lvr | U11: price | V11: loan size | W11: lvr | Y11: price | Z11: loan size | AA11: lvr | AD11: 2011 | AF11: 2011 | AH11: 4001 | AJ11: 4008 | AM11: 2013
E12: Property Postcode | G12: 2012 | J12: =IF(G12="","",IF(ISNA(VLOOKUP(G12,AH10:AH58,1,0))=TRUE,IF(ISNA(VLOOKUP(G12,AD10:AD2146,1,0))=TRUE,"*The postcode of your property may not had been added to our database, please contact us for more details.",""),IF(G10="House and Land","","*LVR restriction applies for Inner City High Density Units/Apartments"))) ->  | P12: =Q12/R12 -> $200,000 | Q12: $150,000 | R12: 75% | U12: =V12/W12 -> $214,285.71 | V12: $150,000 | W12: 70% | Y12: =Z12/AA12 -> $250,000 | Z12: $150,000 | AA12: 60% | AD12: 2012 | AF12: 2012 | AH12: 4002 | AJ12: 4009 | AM12: 2014
P13: =Q13/R12+0.1 -> $1,000,000 | Q13: $750,000 | R13: 70% | U13: =V13/W12+0.1 -> $714,286 | V13: $500,000 | W13: 65% | Y13: =Z13/AA12+0.1 -> $833,333.43 | Z13: $500,000 | AA13: 60% | AD13: 2013 | AF13: 2013 | AH13: 4003 | AJ13: 4010 | AM13: 2250
E14: Max. LVR | G14: =IFERROR(IF(G10="House and Land",IF(Y6<200000,"N/A",Y5),IF(Y6<150000,"N/A",Y5)),"") -> 49% | P14: =Q14/R13+0.1 -> $1,285,714 | Q14: $900,000 | R14: 65% | U14: =V14/W13+0.1 -> $1,230,769 | V14: $800,000 | W14: 60% | AD14: 2014 | AF14: 2014 | AH14: 4004 | AJ14: 4011 | AM14: 2251
E15: Max. Loan Amount | G15: =IFERROR(IF(G10="House and Land",IF(Y6<200000,"N/A",Y6),IF(Y6<150000,"N/A",Y6)),"") -> $500,000.00 | J15: =IFERROR(IF(G10="House and Land",IF(G14="","",IF(G14="N/A","Loan size can only be range from $200,000 to $2,000,000",IF(G14="N/A","Loan size can only be range from $200,000 to $2,000,000",""))),IF(G14="","",IF(G14="N/A","Loan size can only be range from $150,000 to $2,000,000",IF(G14="N/A","Loan size can only be range from $150,000 to $2,000,000","")))),"") ->  | P15: =Q15/R14+0.1 -> $2,307,692 | Q15: $1,500,000 | R15: 50% | U15: =V15/W14+0.1 -> $1,500,000 | V15: $900,000 | W15: 50% | AD15: 2015 | AF15: 2015 | AH15: 4005 | AJ15: 4012 | AM15: 2252
P16: $4,000,000 | Q16: $2,000,000 | R16: 50% | AD16: 2016 | AF16: 2016 | AH16: 4006 | AJ16: 4013 | AM16: 2253
B17: 2. Disclaimer | P17: $100,000,000 | Q17: $2,000,000 | R17: 50% | AD17: 2021 | AF17: 2021 | AH17: 4101 | AJ17: 4014 | AM17: 2254
B18: Version 25/01/2021 | P18: PRICE | Q18: =G11 -> $1,030,000 | R18: =VLOOKUP(Q18,P12:R17,3,TRUE) -> 0.7 | AD18: 2022 | AF18: 2022 | AH18: 4169 | AJ18: 4015 | AM18: 2255
B19: *Maximum LVR for Inner City High Density Apartment (I.e. there are more than 65 units in the complex) is 65%. Maximum LVR for a house under construction is 70%. Where multiple restrictions apply, the lowest LVR is applied as the maximum. Minimum loan per security $150,000($200,000 for construction loan). Maximum loan per security $2,000,000. Maximum Exposure to one borrower $3,000,000. | P19: MAX LVR-1 | Q19: =IF(IF(ISNA(VLOOKUP(Q22,AF10:AF2001,1,FALSE)),"false","true")="true",IF(Q18>100000000,"50%",VLOOKUP(Q18,P12:R17,3,TRUE)),"50%") -> 70% | U19: MAX LVR-2 | V19: =IF(IF(ISNA(VLOOKUP(Q22,AJ10:AJ1001,1,FALSE)),"false","true")="true",VLOOKUP(Q18,U12:W16,3,TRUE),"N/A") -> N/A | Y19: MAX LVR-3 | Z19: =IF(IF(ISNA(VLOOKUP(Q22,AM10:AM1001,1,FALSE)),"false","true")="true",VLOOKUP(Q18,Y12:AA14,3,TRUE),"N/A") -> 60% | AD19: 2023 | AF19: 2023 | AH19: 2000 | AJ19: 4016 | AM19: 2256
P20: MAX LOAN-1 | Q20: =IF(AND(Q19=70%,Q19*Q18<750000), 750000,IF(AND(Q19=65%,Q19*Q18<900000),900000,IF(AND(Q19=50%,Q19*Q18<1500000),1500000,Q19*Q18))) -> $750,000 | U20: MAX LOAN-2 | V20: =IF(Q18>1500000,900000,IF(AND(V19=65%,V19*Q18<500000), 500000,IF(AND(V19=60%,V19*Q18<800000),800000,IF(AND(V19=50%,V19*Q18<900000),900000,V19*Q18)))) ->  | Y20: MAX LOAN-3 | Z20: =IF(Q18>833333,500000,Z19*Q18) -> $500,000 | AD20: 2024 | AF20: 2024 | AH20: 2001 | AJ20: 4017 | AM20: 2257
AD21: 2025 | AF21: 2025 | AH21: 2002 | AJ21: 4018 | AM21: 2258
P22: POSTCODE | Q22: =G12 -> 2012 | R22: =IF(IF(ISNA(VLOOKUP(Q22,AD10:AD2559,1,FALSE)),"false","true")="false","The postcode of your property may not yet have been added to our database, please contact us for more details.","") ->  | AD22: 2026 | AF22: 2026 | AH22: 2003 | AJ22: 4019 | AM22: 2259
V23: +IF(ISNA(VLOOKUP(G12,AH10:AH57,1,0))=TRUE,0,1) | AD23: 2027 | AF23: 2027 | AH23: 2004 | AJ23: 4020 | AM23: 2260
P24: MAX LVR (USELESS NOW) | Q24: =IF(IF(ISNA(VLOOKUP(Q22,AF10:AF1001,1,FALSE)),"false","true")="true",Q19,IF(IF(ISNA(VLOOKUP(Q22,AJ10:AJ1001,1,FALSE)),"false","true")="true",V19,Z19)) -> 70% | R24: =IF(IF(ISNA(VLOOKUP(Q22,AH10:AH702,FALSE)),"false","true")="true","Your security may be an Inner City High Density Apartment*","") -> Your security may be an Inner City High Density Apartment* | AD24: 2028 | AF24: 2028 | AH24: 2005 | AJ24: 4021 | AM24: 2261
P25: MAX LOAN | Q25: =IF(IF(ISNA(VLOOKUP(Q22,AF10:AF1001,1,FALSE)),"false","true")="true",Q20,IF(IF(ISNA(VLOOKUP(Q22,AJ10:AJ1001,1,FALSE)),"false","true")="true",V20,Z20)) -> $750,000 | AD25: 2029 | AF25: 2029 | AH25: 2006 | AJ25: 4022 | AM25: 2262
AD26: 2030 | AF26: 2030 | AH26: 2007 | AJ26: 4030 | AM26: 2263
AD27: 2031 | AF27: 2031 | AG27: NSW | AH27: 2008 | AJ27: 4031 | AM27: 2264
AD28: 2032 | AF28: 2032 | AH28: 2009 | AJ28: 4032 | AM28: 2265
AD29: 2033 | AF29: 2033 | AH29: 2017 | AJ29: 4033 | AM29: 2267
AD30: 2034 | AF30: 2034 | AH30: 2018 | AJ30: 4034 | AM30: 2278
P31: Apartment or Townhouse or Detached House | AD31: 2035 | AF31: 2035 | AH31: 2019 | AJ31: 4035 | AM31: 2280
AD32: 2036 | AF32: 2036 | AH32: 2020 | AJ32: 4036 | AM32: 2281
P33: SYD AND MELB METRO | U33: OTHER METRO | Y33: OTHER CATEGORY 1 LOCATIONS | AD33: 2037 | AF33: 2037 | AH33: 3000 | AJ33: 4037 | AM33: 2282
Q34: price | R34: loan size | S34: lvr | U34: price | V34: loan size | W34: lvr | Y34: price | Z34: loan size | AA34: lvr | AD34: 2038 | AF34: 2038 | AH34: 3001 | AJ34: 4038 | AM34: 2283
P35: =IF(Q42<=Q35,1,0) -> 1 | Q35: =R35/S35 -> $1,333,333 | R35: $1,000,000 | S35: 75% | T35: =IF(Q42<=U35,1,0) -> 0 | U35: =V35/W35 -> $1,000,000.00 | V35: $750,000 | W35: 75% | X35: 1 | Y35: =Z35/AA35 -> $714,286 | Z35: $500,000 | AA35: 70% | AD35: 2039 | AF35: 2039 | AH35: 3002 | AJ35: 4039 | AM35: 2284
P36: =IF(AND(Q42<=Q36,Q42>Q35),1,0) -> 0 | Q36: =R36/S36+0.1 -> $2,142,857 | R36: $1,500,000 | S36: 70% | T36: =IF(AND(Q42<=U36,Q42>U35),1,0) -> 1 | U36: =V36/W36+0.1 -> $1,285,714 | V36: $900,000 | W36: 70% | AD36: 2040 | AF36: 2040 | AH36: 3003 | AJ36: 4040 | AM36: 2285
P37: =IF(Q42>Q36,1,0) -> 0 | Q37: =R37/S37+0.1 -> $4,000,000 | R37: $2,000,000 | S37: 50% | T37: =IF(Q42>U36,1,0) -> 0 | U37: =V37/W37+0.1 -> $1,923,077 | V37: $1,250,000 | W37: 65% | AD37: 2041 | AF37: 2041 | AH37: 3004 | AJ37: 4041 | AM37: 2286
P38: Other Cat 1 | Q38: =IF(ISNA(VLOOKUP(Q46,AM10:AM1000,1,0))=TRUE,0,1) -> 1 | R38: Other Cat 1 | AD38: 2042 | AF38: 2042 | AH38: 3005 | AJ38: 4042 | AM38: 2287
P39: other metro | Q39: =IF(ISNA(VLOOKUP(Q46,AJ10:AJ1000,1,0))=TRUE,0,1) -> 0 | R39: other metro | AD39: 2043 | AF39: 2043 | AH39: 3006 | AJ39: 4043 | AM39: 2288
P40: Metro | Q40: =IF(ISNA(VLOOKUP(Q46,AF10:AF1000,1,0))=TRUE,0,1) -> 1 | R40: Metro | AD40: 2044 | AF40: 2044 | AH40: 3007 | AJ40: 4044 | AM40: 2289
P42: PRICE | Q42: =G11 -> $1,030,000 | AD42: 2045 | AF42: 2045 | AH42: 3008 | AJ42: 4045 | AM42: 2290
P43: MAX LVR-1 | Q43: =VLOOKUP(1,P35:S37,4,0) -> 75% | U43: MAX LVR-2 | V43: =VLOOKUP(1,T35:W37,4,0) -> 70% | Y43: MAX LVR-3 | Z43: =VLOOKUP(1,X35:AA35,4,0) -> 70% | AD43: 2046 | AF43: 2046 | AH43: 3009 | AJ43: 4046 | AM43: 2291
P44: MAX LOAN-1 | Q44: =IF(AND(Q43=70%,Q43*Q42<1000000),1000000,IF(AND(Q43=50%,Q43*Q42<1500000),1500000,IF(AND(Q43=50%,Q43*Q42>2000000),2000000,Q43*Q42))) -> $772,500 | U44: MAX LOAN-2 | V44: =IF(AND(V43=70%,V43*Q42<750000),750000,IF(AND(V43=65%,V43*Q42<900000),900000,IF(AND(V43=65%,V43*Q42>1250000),1250000,V43*Q42))) -> $750,000 | Y44: MAX LOAN-3 | Z44: =IF(Q42*Z43>Z35,Z35,Q42*Z43) -> $500,000 | AD44: 2047 | AF44: 2047 | AH44: 3207 | AJ44: 4047 | AM44: 2292
AD45: 2048 | AF45: 2048 | AH45: 5000 | AJ45: 4048 | AM45: 2293
P46: POSTCODE | Q46: =G12 -> 2012 | R46: =IF(IF(ISNA(VLOOKUP(Q46,AD10:AD2559,1,FALSE)),"false","true")="false","The postcode of your property may not yet have been added to our database, please contact us for more details.","") ->  | AD46: 2049 | AF46: 2049 | AH46: 5001 | AJ46: 4049 | AM46: 2294
AD47: 2050 | AF47: 2050 | AH47: 5002 | AJ47: 4050 | AM47: 2295
P48: MAX LVR (USELESS NOW) | Q48: =IF(VLOOKUP(1,Q38:R41,2,0)="Metro",Q43,IF(VLOOKUP(1,Q38:R41,2,0)="other metro",V43,IF(VLOOKUP(1,Q38:R41,2,0)="Other Cat 1",Z44/Q42,IF(VLOOKUP(1,Q38:R41,2,0)="High Density",65%,"")))) -> 49% | AD48: 2051 | AF48: 2051 | AH48: 5003 | AJ48: 4051 | AM48: 2296
P49: MAX LOAN | Q49: =IF(VLOOKUP(1,Q38:R41,2,0)="Metro",Q44,IF(VLOOKUP(1,Q38:R41,2,0)="other metro",V44,IF(VLOOKUP(1,Q38:R41,2,0)="Other Cat 1",Z44,IF(VLOOKUP(1,Q38:R41,2,0)="High Density",Q42*Q48,"")))) -> $500,000 | AD49: 2052 | AF49: 2052 | AG49: VIC | AH49: 5004 | AJ49: 4052 | AM49: 2297
AD50: 2053 | AF50: 2053 | AH50: 5005 | AJ50: 4053 | AM50: 2298
AD51: 2054 | AF51: 2054 | AH51: 6000 | AJ51: 4054 | AM51: 2299
AD52: 2055 | AF52: 2055 | AH52: 6001 | AJ52: 4055 | AM52: 2300
P53: House and Land | AD53: 2056 | AF53: 2056 | AH53: 6002 | AJ53: 4056 | AM53: 2301
Q54: price | R54: loan size | S54: lvr | U54: price | V54: loan size | W54: lvr | Y54: price | Z54: loan size | AD54: 2057 | AF54: 2057 | AH54: 6003 | AJ54: 4057 | AM54: 2302
P55: =IF(Q62<=Q55,1,0) -> 1 | Q55: =R55/S55 -> $1,428,571 | R55: $1,000,000 | S55: 70% | T55: =IF(Q62<=U55,1,0) -> 1 | U55: =V55/W55 -> $1,071,428.57 | V55: $750,000 | W55: 70% | X55: 1 | Y55: $500,000.00 | Z55: $500,000 | AA55: 65% | AD55: 2058 | AF55: 2058 | AH55: 6004 | AJ55: 4058 | AM55: 2303
P56: =IF(AND(Q62<=Q56,Q62>Q55),1,0) -> 0 | Q56: =R56/S56+0.1 -> $2,307,692 | R56: $1,500,000 | S56: 65% | T56: =IF(AND(Q62<=U56,Q62>U55),1,0) -> 0 | U56: =V56/W56+0.1 -> $1,384,615 | V56: $900,000 | W56: 65% | AD56: 2059 | AF56: 2059 | AH56: 6005 | AJ56: 4059 | AM56: 2304
P57: =IF(Q62>Q56,1,0) -> 0 | Q57: =R57/S57+0.1 -> $4,000,000 | R57: $2,000,000 | S57: 50% | T57: =IF(Q62>U56,1,0) -> 0 | U57: =V57/W57+0.1 -> $2,083,333 | V57: $1,250,000 | W57: 60% | AD57: 2060 | AF57: 2060 | AH57: 800 | AJ57: 4060 | AM57: 2305
P58: Other Cat 1 | Q58: =IF(ISNA(VLOOKUP(Q66,AM10:AM1020,1,0))=TRUE,0,1) -> 1 | R58: Other Cat 1 | AD58: 2061 | AF58: 2061 | AH58: 7000 | AJ58: 4061 | AM58: 2306
P59: other metro | Q59: =IF(ISNA(VLOOKUP(Q66,AJ10:AJ1020,1,0))=TRUE,0,1) -> 0 | R59: other metro | AD59: 2062 | AF59: 2062 | AJ59: 4062 | AM59: 2307
P60: Metro | Q60: =IF(ISNA(VLOOKUP(Q66,AF10:AF1020,1,0))=TRUE,0,1) -> 1 | R60: Metro | AD60: 2063 | AF60: 2063 | AG60: SA/WA | AJ60: 4063 | AM60: 2308
AD61: 2064 | AF61: 2064 | AJ61: 4064 | AM61: 2315
P62: PRICE | Q62: =G11 -> $1,030,000 | AD62: 2065 | AF62: 2065 | AJ62: 4065 | AM62: 2316
P63: MAX LVR-1 | Q63: =VLOOKUP(1,P55:S57,4,0) -> 70% | U63: MAX LVR-2 | V63: =VLOOKUP(1,T55:W57,4,0) -> 70% | Y63: MAX LVR-3 | Z63: 65% | AD63: 2066 | AF63: 2066 | AJ63: 4066 | AM63: 2317
P64: MAX LOAN-1 | Q64: =IF(AND(Q63=65%,Q63*Q62<1000000),1000000,IF(AND(Q63=50%,Q63*Q62<1500000),1500000,IF(AND(Q63=50%,Q63*Q62>2000000),2000000,Q63*Q62))) -> $721,000 | U64: MAX LOAN-2 | V64: =IF(AND(V63=65%,V63*Q62<750000),750000,IF(AND(V63=60%,V63*Q62<900000),900000,IF(AND(V63=60%,V63*Q62>1250000),1250000,V63*Q62))) -> $721,000 | Y64: MAX LOAN-3 | Z64: =IF(Q62*Z63>Z55,Z55,Q62*Z63) -> $500,000 | AD64: 2067 | AF64: 2067 | AJ64: 4067 | AM64: 2318
AD65: 2068 | AF65: 2068 | AJ65: 4068 | AM65: 2319
P66: POSTCODE | Q66: =G12 -> 2012 | R66: =IF(IF(ISNA(VLOOKUP(Q66,AD30:AD2579,1,FALSE)),"false","true")="false","The postcode of your property may not yet have been added to our database, please contact us for more details.","") ->  | AD66: 2069 | AF66: 2069 | AJ66: 4069 | AM66: 2320
AD67: 2070 | AF67: 2070 | AJ67: 4070 | AM67: 2321
P68: MAX LVR (USELESS NOW) | Q68: =IF(VLOOKUP(1,Q58:R61,2,0)="Metro",Q63,IF(VLOOKUP(1,Q58:R61,2,0)="other metro",V63,IF(VLOOKUP(1,Q58:R61,2,0)="Other Cat 1",Z63,IF(VLOOKUP(1,Q58:R61,2,0)="High Density",65%,"")))) -> 65% | AD68: 2071 | AF68: 2071 | AJ68: 4071 | AM68: 2322
P69: MAX LOAN | Q69: =IF(Q68=0,0,IF(VLOOKUP(1,Q58:R61,2,0)="Metro",Q64,IF(VLOOKUP(1,Q58:R61,2,0)="other metro",V64,IF(VLOOKUP(1,Q58:R61,2,0)="Other Cat 1",Z64,IF(VLOOKUP(1,Q58:R61,2,0)="High Density",Q62*Q68,""))))) -> $500,000 | AD69: 2072 | AF69: 2072 | AJ69: 4072 | AM69: 2323
AD70: 2073 | AF70: 2073 | AJ70: 4073 | AM70: 2327
AD71: 2074 | AF71: 2074 | AJ71: 4074 | AM71: 2340
AD72: 2075 | AF72: 2075 | AJ72: 4075 | AM72: 2444
AD73: 2076 | AF73: 2076 | AJ73: 4076 | AM73: 2450
AD74: 2077 | AF74: 2077 | AJ74: 4077 | AM74: 2451
AD75: 2078 | AF75: 2078 | AJ75: 4078 | AM75: 2452
AD76: 2079 | AF76: 2079 | AJ76: 4079 | AM76: 2477
AD77: 2080 | AF77: 2080 | AJ77: 4080 | AM77: 2478
AD78: 2081 | AF78: 2081 | AJ78: 4081 | AM78: 2479
AD79: 2082 | AF79: 2082 | AJ79: 4082 | AM79: 2480
AD80: 2083 | AF80: 2083 | AJ80: 4083 | AM80: 2481
AD81: 2084 | AF81: 2084 | AJ81: 4084 | AM81: 2482
AD82: 2085 | AF82: 2085 | AJ82: 4085 | AM82: 2483
AD83: 2086 | AF83: 2086 | AJ83: 4086 | AM83: 2484
AD84: 2087 | AF84: 2087 | AJ84: 4087 | AM84: 2485
AD85: 2088 | AF85: 2088 | AJ85: 4088 | AM85: 2486
AD86: 2089 | AF86: 2089 | AJ86: 4089 | AM86: 2487
AD87: 2090 | AF87: 2090 | AJ87: 4090 | AM87: 2488
AD88: 2091 | AF88: 2091 | AJ88: 4091 | AM88: 2489
AD89: 2092 | AF89: 2092 | AJ89: 4092 | AM89: 2500
AD90: 2093 | AF90: 2093 | AJ90: 4093 | AM90: 2501
AD91: 2094 | AF91: 2094 | AJ91: 4094 | AM91: 2502
AD92: 2095 | AF92: 2095 | AJ92: 4095 | AM92: 2503
AD93: 2096 | AF93: 2096 | AJ93: 4096 | AM93: 2504
AD94: 2097 | AF94: 2097 | AJ94: 4097 | AM94: 2505
AD95: 2098 | AF95: 2098 | AJ95: 4098 | AM95: 2506
AD96: 2099 | AF96: 2099 | AJ96: 4099 | AM96: 2507
AD97: 2100 | AF97: 2100 | AJ97: 4100 | AM97: 2508
AD98: 2101 | AF98: 2101 | AJ98: 4101 | AM98: 2509
AD99: 2102 | AF99: 2102 | AJ99: 4102 | AM99: 2510
AD100: 2103 | AF100: 2103 | AJ100: 4103 | AM100: 2511
AD101: 2104 | AF101: 2104 | AJ101: 4104 | AM101: 2512
AD102: 2105 | AF102: 2105 | AJ102: 4105 | AM102: 2513
AD103: 2106 | AF103: 2106 | AJ103: 4106 | AM103: 2514
AD104: 2107 | AF104: 2107 | AJ104: 4107 | AM104: 2515
AD105: 2108 | AF105: 2108 | AJ105: 4108 | AM105: 2516
AD106: 2109 | AF106: 2109 | AJ106: 4109 | AM106: 2517
AD107: 2110 | AF107: 2110 | AJ107: 4110 | AM107: 2518
AD108: 2111 | AF108: 2111 | AJ108: 4111 | AM108: 2519
AD109: 2112 | AF109: 2112 | AJ109: 4112 | AM109: 2520
AD110: 2113 | AF110: 2113 | AJ110: 4113 | AM110: 2521
AD111: 2114 | AF111: 2114 | AJ111: 4114 | AM111: 2522
AD112: 2115 | AF112: 2115 | AJ112: 4115 | AM112: 2523
AD113: 2116 | AF113: 2116 | AJ113: 4116 | AM113: 2524
AD114: 2117 | AF114: 2117 | AJ114: 4117 | AM114: 2525
AD115: 2118 | AF115: 2118 | AJ115: 4118 | AM115: 2526
AD116: 2119 | AF116: 2119 | AJ116: 4119 | AM116: 2527
AD117: 2120 | AF117: 2120 | AJ117: 4120 | AM117: 2528
AD118: 2121 | AF118: 2121 | AJ118: 4121 | AM118: 2529
AD119: 2122 | AF119: 2122 | AJ119: 4122 | AM119: 2530
AD120: 2123 | AF120: 2123 | AJ120: 4123 | AM120: 2531
AD121: 2124 | AF121: 2124 | AJ121: 4124 | AM121: 2532
AD122: 2125 | AF122: 2125 | AJ122: 4125 | AM122: 2533
AD123: 2126 | AF123: 2126 | AJ123: 4126 | AM123: 2534
AD124: 2127 | AF124: 2127 | AJ124: 4127 | AM124: 2555
AD125: 2128 | AF125: 2128 | AJ125: 4128 | AM125: 2556
AD126: 2129 | AF126: 2129 | AJ126: 4129 | AM126: 2557
AD127: 2130 | AF127: 2130 | AJ127: 4130 | AM127: 2558
AD128: 2131 | AF128: 2131 | AJ128: 4131 | AM128: 2559
AD129: 2132 | AF129: 2132 | AJ129: 4132 | AM129: 2560
AD130: 2133 | AF130: 2133 | AJ130: 4133 | AM130: 2561
AD131: 2134 | AF131: 2134 | AJ131: 4134 | AM131: 2562
AD132: 2135 | AF132: 2135 | AJ132: 4135 | AM132: 2563
AD133: 2136 | AF133: 2136 | AJ133: 4136 | AM133: 2564
AD134: 2137 | AF134: 2137 | AJ134: 4137 | AM134: 2565
AD135: 2138 | AF135: 2138 | AJ135: 4138 | AM135: 2566
AD136: 2139 | AF136: 2139 | AJ136: 4139 | AM136: 2567
AD137: 2140 | AF137: 2140 | AJ137: 4140 | AM137: 2568
AD138: 2141 | AF138: 2141 | AJ138: 4141 | AM138: 2569
AD139: 2142 | AF139: 2142 | AJ139: 4142 | AM139: 2570
AD140: 2143 | AF140: 2143 | AJ140: 4143 | AM140: 2571
AD141: 2144 | AF141: 2144 | AJ141: 4144 | AM141: 2572
AD142: 2145 | AF142: 2145 | AJ142: 4145 | AM142: 2573
AD143: 2146 | AF143: 2146 | AJ143: 4146 | AM143: 2574
AD144: 2147 | AF144: 2147 | AJ144: 4147 | AM144: 2575
AD145: 2148 | AF145: 2148 | AJ145: 4148 | AM145: 2576
AD146: 2149 | AF146: 2149 | AJ146: 4149 | AM146: 2577
AD147: 2150 | AF147: 2150 | AJ147: 4150 | AM147: 2578
AD148: 2151 | AF148: 2151 | AJ148: 4151 | AM148: 2579
AD149: 2152 | AF149: 2152 | AJ149: 4152 | AM149: 2619
AD150: 2153 | AF150: 2153 | AJ150: 4153 | AM150: 2620
AD151: 2154 | AF151: 2154 | AJ151: 4154 | AM151: 2621
AD152: 2155 | AF152: 2155 | AJ152: 4155 | AM152: 2640
AD153: 2156 | AF153: 2156 | AJ153: 4156 | AM153: 2641
AD154: 2157 | AF154: 2157 | AJ154: 4157 | AM154: 2650
AD155: 2158 | AF155: 2158 | AJ155: 4158 | AM155: 2651
AD156: 2159 | AF156: 2159 | AJ156: 4159 | AM156: 2776
AD157: 2160 | AF157: 2160 | AJ157: 4160 | AM157: 2777
AD158: 2161 | AF158: 2161 | AJ158: 4161 | AM158: 2778
AD159: 2162 | AF159: 2162 | AJ159: 4162 | AM159: 2779
AD160: 2163 | AF160: 2163 | AJ160: 4163 | AM160: 2780
AD161: 2164 | AF161: 2164 | AJ161: 4164 | AM161: 2781
AD162: 2165 | AF162: 2165 | AJ162: 4165 | AM162: 2782
AD163: 2166 | AF163: 2166 | AJ163: 4166 | AM163: 2783
AD164: 2167 | AF164: 2167 | AJ164: 4167 | AM164: 2784
AD165: 2168 | AF165: 2168 | AJ165: 4168 | AM165: 2785
AD166: 2169 | AF166: 2169 | AJ166: 4169 | AM166: 2795
AD167: 2170 | AF167: 2170 | AJ167: 4170 | AM167: 2830
AD168: 2171 | AF168: 2171 | AJ168: 4171 | AM168: 2907
AD169: 2172 | AF169: 2172 | AJ169: 4172 | AM169: 2908
AD170: 2173 | AF170: 2173 | AJ170: 4173 | AM170: 2909
AD171: 2174 | AF171: 2174 | AJ171: 4174 | AM171: 2910
AD172: 2175 | AF172: 2175 | AJ172: 4175 | AM172: 3211
AD173: 2176 | AF173: 2176 | AJ173: 4176 | AL173: ACT | AM173: 3212
AD174: 2177 | AF174: 2177 | AJ174: 4177 | AM174: 3213
AD175: 2178 | AF175: 2178 | AJ175: 4178 | AM175: 3214
AD176: 2179 | AF176: 2179 | AJ176: 4179 | AM176: 3215
AD177: 2180 | AF177: 2180 | AJ177: 4205 | AM177: 3216
AD178: 2181 | AF178: 2181 | AJ178: 4206 | AM178: 3218
AD179: 2182 | AF179: 2182 | AJ179: 4207 | AM179: 3219
AD180: 2183 | AF180: 2183 | AJ180: 4208 | AM180: 3220
AD181: 2184 | AF181: 2184 | AJ181: 4209 | AM181: 3221
AD182: 2185 | AF182: 2185 | AJ182: 4210 | AL182: VIC | AM182: 3222
AD183: 2186 | AF183: 2186 | AJ183: 4211 | AM183: 3223
AD184: 2187 | AF184: 2187 | AJ184: 4212 | AM184: 3224
AD185: 2188 | AF185: 2188 | AJ185: 4213 | AM185: 3225
AD186: 2189 | AF186: 2189 | AJ186: 4214 | AM186: 3226
AD187: 2190 | AF187: 2190 | AJ187: 4215 | AM187: 3227
AD188: 2191 | AF188: 2191 | AJ188: 4216 | AM188: 3228
AD189: 2192 | AF189: 2192 | AJ189: 4217 | AM189: 3232
AD190: 2193 | AF190: 2193 | AJ190: 4218 | AM190: 3233
AD191: 2194 | AF191: 2194 | AJ191: 4219 | AM191: 3234
AD192: 2195 | AF192: 2195 | AJ192: 4220 | AM192: 3335
AD193: 2196 | AF193: 2196 | AJ193: 4221 | AM193: 3336
AD194: 2197 | AF194: 2197 | AJ194: 4223 | AM194: 3337
AD195: 2198 | AF195: 2198 | AJ195: 4224 | AM195: 3338
AD196: 2199 | AF196: 2199 | AJ196: 4225 | AM196: 3339
AD197: 2200 | AF197: 2200 | AJ197: 4226 | AM197: 3340
AD198: 2201 | AF198: 2201 | AJ198: 4227 | AM198: 3341
AD199: 2202 | AF199: 2202 | AJ199: 4228 | AM199: 3429
AD200: 2203 | AF200: 2203 | AJ200: 4229 | AM200: 3690
AD201: 2204 | AF201: 2204 | AJ201: 2600 | AM201: 3750
AD202: 2205 | AF202: 2205 | AJ202: 2601 | AM202: 3751
AD203: 2206 | AF203: 2206 | AJ203: 2602 | AM203: 3752
AD204: 2207 | AF204: 2207 | AJ204: 2603 | AM204: 3753
... 1940 more rows

Sheet repayment (hidden)
A1: Loan Amount | C1: ='Comparison Calculator'!$E$7 -> 1800000 | E1: YEAR | F1: ='Comparison Calculator'!$E$12 -> 0 | H1: ='Comparison Calculator'!H24 -> $499.00 | J1: Loan Amount | L1: ='Comparison Calculator'!$E$7 -> 1800000 | N1: YEAR | O1: ='Comparison Calculator'!$E$12 -> 0 | Q1: ='Comparison Calculator'!E24 -> $468.00 | S1: Loan Amount | U1: ='Comparison Calculator'!$E$7 -> 1800000 | W1: YEAR | X1: ='Comparison Calculator'!$E$12 -> 0 | Z1: ='Comparison Calculator'!$K$24 -> $499.00 | AB1: Loan Amount | AD1: ='Comparison Calculator'!$E$7 -> 1800000 | AF1: YEAR | AG1: ='Comparison Calculator'!$E$12 -> 0 | AI1: ='Comparison Calculator'!$N$24 -> $499.00 | AK1: Loan Amount | AM1: ='Comparison Calculator'!$E$7 -> 1800000 | AO1: YEAR | AP1: ='Comparison Calculator'!$E$12 -> 0 | AR1: $499.00 | AT1: Loan Amount | AV1: ='Comparison Calculator'!$E$7 -> 1800000 | AX1: YEAR | AY1: ='Comparison Calculator'!$E$12 -> 0 | BA1: ='Comparison Calculator'!T24 -> $499.00 | BC1: Loan Amount | BE1: ='Comparison Calculator'!$E$7 -> 1800000 | BG1: YEAR | BH1: ='Comparison Calculator'!$E$12 -> 0 | BJ1: ='Comparison Calculator'!AC24 -> $499.00 | BK1: Loan Amount | BM1: ='Comparison Calculator'!$E$7 -> 1800000 | BO1: YEAR | BP1: ='Comparison Calculator'!$E$12 -> 0 | BR1: ='Comparison Calculator'!Z24 -> $499.00 | BT1: Loan Amount | BV1: ='Comparison Calculator'!$E$7 -> 1800000 | BX1: YEAR | BY1: ='Comparison Calculator'!$E$12 -> 0 | CA1: ='Comparison Calculator'!AC24 -> $499.00 | CC1: Loan Amount | CE1: ='Comparison Calculator'!$E$7 -> 1800000 | CG1: YEAR | CH1: ='Comparison Calculator'!$E$12 -> 0 | CJ1: ='Comparison Calculator'!H43 -> $468.00 | CL1: Loan Amount | CN1: ='Comparison Calculator'!$E$7 -> 1800000 | CP1: YEAR | CQ1: ='Comparison Calculator'!$E$12 -> 0 | CS1: ='Comparison Calculator'!N43 -> $499.00 | CU1: Loan Amount | CW1: ='Comparison Calculator'!$E$7 -> 1800000 | CY1: YEAR | CZ1: ='Comparison Calculator'!$E$12 -> 0 | DB1: ='Comparison Calculator'!$W$43 -> $499.00 | DD1: Loan Amount | DF1: ='Comparison Calculator'!$E$7 -> 1800000 | DH1: YEAR | DI1: ='Comparison Calculator'!$E$12 -> 0 | DK1: ='Comparison Calculator'!AF43 -> $499.00
A2: Brighten Saver | J2: Brighten Saver old | S2: Brighten Platinum (old) | AB2: Brighten Platinum (NEW) | AK2: Brighten Evergreen (old) | AT2: Brighten Evergreen (NEW) | BC2: Brighten Evergreen (STAR) | BK2: Brighten Builder (old) | BT2: Brighten Builder (NEW) | CC2: BC Signature | CL2: BC Ultimate | CU2: AAA | DD2: BC Freedom
G3: P&I | H3: IO | P3: P&I | Q3: IO | Y3: P&I | Z3: IO | AH3: P&I | AI3: IO | AQ3: P&I | AR3: IO | AZ3: P&I | BA3: IO | BI3: P&I | BJ3: IO | BQ3: P&I | BR3: IO | BZ3: P&I | CA3: IO | CI3: P&I | CJ3: IO | CR3: P&I | CS3: IO | DA3: P&I | DB3: IO | DJ3: P&I | DK3: IO
A4: Month | B4: Year | C4: Principal | D4: Interest | E4: Total | F4: Loan outstanding (O/S) | G4: =Rates!D12 -> 4.48% | H4: =G4+Rates!B20 -> 4.78% | J4: Month | K4: Year | L4: Principal | M4: Interest | N4: Total | O4: Loan outstanding (O/S) | P4: =Rates!L12 -> 4.48% | Q4: =P4+Rates!J20 -> 4.78% | S4: Month | T4: Year | U4: Principal | V4: Interest | W4: Total | X4: Loan outstanding (O/S) | AB4: Month | AC4: Year | AD4: Principal | AE4: Interest | AF4: Total | AG4: Loan outstanding (O/S) | AK4: Month | AL4: Year | AM4: Principal | AN4: Interest | AO4: Total | AP4: Loan outstanding (O/S) | AT4: Month | AU4: Year | AV4: Principal | AW4: Interest | AX4: Total | AY4: Loan outstanding (O/S) | BC4: Month | BD4: Year | BE4: Principal | BF4: Interest | BG4: Total | BH4: Loan outstanding (O/S) | BK4: Month | BL4: Year | BM4: Principal | BN4: Interest | BO4: Total | BP4: Loan outstanding (O/S) | BT4: Month | BU4: Year | BV4: Principal | BW4: Interest | BX4: Total | BY4: Loan outstanding (O/S) | CC4: Month | CD4: Year | CE4: Principal | CF4: Interest | CG4: Total | CH4: Loan outstanding (O/S) | CL4: Month | CM4: Year | CN4: Principal | CO4: Interest | CP4: Total | CQ4: Loan outstanding (O/S) | CU4: Month | CV4: Year | CW4: Principal | CX4: Interest | CY4: Total | CZ4: Loan outstanding (O/S) | DD4: Month | DE4: Year | DF4: Principal | DG4: Interest | DH4: Total | DI4: Loan outstanding (O/S)
A5: 1 | B5: 1 | C5: =IF(('Comparison Calculator'!$E$11-B5)>=0,0,IFERROR(-PPMT($G$5/12,A5,$F$1*12,$C$1),0)) -> $0.00 | D5: =IF(('Comparison Calculator'!$G$11-B5)>=0,$C$1*$G$5/12,IFERROR(-IPMT($G$5/12,A5,$F$1*12,$C$1,0),0)) -> $0.00 | E5: =C5+D5 -> $0.00 | F5: =$C$1-C5 -> $1,800,000.00 | G5: =Rates!D22 ->  | J5: 1 | K5: 1 | L5: =IF(('Comparison Calculator'!$E$11-K5)>=0,0,IFERROR(-PPMT($P$5/12,J5,$F$1*12,$C$1),0)) -> $0.00 | M5: =IF(('Comparison Calculator'!$G$11-K5)>=0,$C$1*$P$5/12,IFERROR(-IPMT($P$5/12,J5,$F$1*12,$C$1,0),0)) -> $0.00 | N5: =L5+M5 -> $0.00 | O5: =$C$1-L5 -> $1,800,000.00 | P5: =Rates!L22 ->  | S5: 1 | T5: 1 | U5: =IF(('Comparison Calculator'!$E$11-T5)>=0,0,IFERROR(-PPMT($Y$5/12,S5,$F$1*12,$C$1),0)) -> $0.00 | V5: =IF(('Comparison Calculator'!$G$11-T5)>=0,$C$1*$Y$5/12,IFERROR(-IPMT($Y$5/12,S5,$F$1*12,$C$1,0),0)) -> $0.00 | W5: =U5+V5 -> $0.00 | X5: =$C$1-U5 -> $1,800,000.00 | Y5: =Rates!$E$43 ->  | AB5: 1 | AC5: 1 | AD5: =IF(('Comparison Calculator'!$E$11-AC5)>=0,0,IFERROR(-PPMT($AH$5/12,AB5,$F$1*12,$C$1),0)) -> $0.00 | AE5: =IF(('Comparison Calculator'!$G$11-AC5)>=0,$C$1*$AH$5/12,IFERROR(-IPMT($AH$5/12,AB5,$F$1*12,$C$1,0),0)) -> $0.00 | AF5: =AD5+AE5 -> $0.00 | AG5: =$C$1-AD5 -> $1,800,000.00 | AH5: =Rates!$M$43 ->  | AK5: 1 | AL5: 1 | AM5: =IF(('Comparison Calculator'!$E$11-AL5)>=0,0,IFERROR(-PPMT($AQ$5/12,AK5,$F$1*12,$C$1),0)) -> $0.00 | AN5: =IF(('Comparison Calculator'!$G$11-AL5)>=0,$C$1*$AQ$5/12,IFERROR(-IPMT($AQ$5/12,AK5,$F$1*12,$C$1,0),0)) -> $0.00 | AO5: =AM5+AN5 -> $0.00 | AP5: =$C$1-AM5 -> $1,800,000.00 | AQ5: =Rates!$C$65 -> 5.36% | AT5: 1 | AU5: 1 | AV5: =IF(('Comparison Calculator'!$E$11-AU5)>=0,0,IFERROR(-PPMT($AZ$5/12,AT5,$F$1*12,$C$1),0)) -> $0.00 | AW5: =IF(('Comparison Calculator'!$G$11-AU5)>=0,$C$1*$AZ$5/12,IFERROR(-IPMT($AZ$5/12,AT5,$F$1*12,$C$1,0),0)) -> $0.00 | AX5: =AV5+AW5 -> $0.00 | AY5: =$C$1-AV5 -> $1,800,000.00 | AZ5: =Rates!$L$65 ->  | BC5: 1 | BD5: 1 | BE5: =IF(('Comparison Calculator'!$E$11-BD5)>=0,0,IFERROR(-PPMT($BI$5/12,BC5,$F$1*12,$C$1),0)) -> $0.00 | BF5: =IF(('Comparison Calculator'!$G$11-BD5)>=0,$C$1*$BI$5/12,IFERROR(-IPMT($BI$5/12,BC5,$F$1*12,$C$1,0),0)) -> $0.00 | BG5: =BE5+BF5 -> $0.00 | BH5: =$C$1-BE5 -> $1,800,000.00 | BI5: ='Comparison Calculator'!N12 -> 4.98% | BK5: 1 | BL5: 1 | BM5: =IF(('Comparison Calculator'!$E$11-BL5)>=0,0,IFERROR(-PPMT($BQ$5/12,BK5,$F$1*12,$C$1),0)) -> $0.00 | BN5: =IF(('Comparison Calculator'!$G$11-BL5)>=0,$C$1*$BQ$5/12,IFERROR(-IPMT($BQ$5/12,BK5,$F$1*12,$C$1,0),0)) -> $0.00 | BO5: =BM5+BN5 -> $0.00 | BP5: =$C$1-BM5 -> $1,800,000.00 | BQ5: =Rates!$C$85 -> 6.48% | BT5: 1 | BU5: 1 | BV5: =IF(('Comparison Calculator'!$E$11-BU5)>=0,0,IFERROR(-PPMT($BZ$5/12,BT5,$F$1*12,$C$1),0)) -> $0.00 | BW5: =IF(('Comparison Calculator'!$G$11-BU5)>=0,$C$1*$BZ$5/12,IFERROR(-IPMT($BZ$5/12,BT5,$F$1*12,$C$1,0),0)) -> $0.00 | BX5: =BV5+BW5 -> $0.00 | BY5: =$C$1-BV5 -> $1,800,000.00 | BZ5: =Rates!$K$85 -> 6.48% | CC5: 1 | CD5: 1 | CE5: =IF(('Comparison Calculator'!$E$11-CD5)>=0,0,IFERROR(-PPMT($CI$5/12,CC5,$F$1*12,$C$1),0)) -> $0.00 | CF5: =IF(('Comparison Calculator'!$G$11-CD5)>=0,$C$1*$CI$5/12,IFERROR(-IPMT($CI$5/12,CC5,$F$1*12,$C$1,0),0)) -> $0.00 | CG5: =CE5+CF5 -> $0.00 | CH5: =$C$1-CE5 -> $1,800,000.00 | CI5: =Rates!$C$104 ->  | CL5: 1 | CM5: 1 | CN5: =IF(('Comparison Calculator'!$E$11-CM5)>=0,0,IFERROR(-PPMT($CR$5/12,CL5,$F$1*12,$C$1),0)) -> $0.00 | CO5: =IF(('Comparison Calculator'!$G$11-CM5)>=0,$C$1*$CR$5/12,IFERROR(-IPMT($CR$5/12,CL5,$F$1*12,$C$1,0),0)) -> $0.00 | CP5: =CN5+CO5 -> $0.00 | CQ5: =$C$1-CN5 -> $1,800,000.00 | CR5: =Rates!$B$125 ->  | CU5: 1 | CV5: 1 | CW5: =IF(('Comparison Calculator'!$E$11-CV5)>=0,0,IFERROR(-PPMT($DA$5/12,CU5,$F$1*12,$C$1),0)) -> $0.00 | CX5: =IF(('Comparison Calculator'!$G$11-CV5)>=0,$C$1*$DA$5/12,IFERROR(-IPMT($DA$5/12,CU5,$F$1*12,$C$1,0),0)) -> $0.00 | CY5: =CW5+CX5 -> $0.00 | CZ5: =$C$1-CW5 -> $1,800,000.00 | DA5: =Rates!$C$144 ->  | DD5: 1 | DE5: 1 | DF5: =IF(('Comparison Calculator'!$E$11-DE5)>=0,0,IFERROR(-PPMT($DJ$5/12,DD5,$F$1*12,$C$1),0)) -> $0.00 | DG5: =IF(('Comparison Calculator'!$G$11-DE5)>=0,$C$1*$DJ$5/12,IFERROR(-IPMT($DJ$5/12,DD5,$F$1*12,$C$1,0),0)) -> $0.00 | DH5: =DF5+DG5 -> $0.00 | DI5: =$C$1-DF5 -> $1,800,000.00 | DJ5: =Rates!$C$164 -> 
A6: 2 | B6: 1 | C6: =IF(('Comparison Calculator'!$E$11-B6)>=0,0,IFERROR(-PPMT($G$5/12,A6,$F$1*12,$C$1),0)) -> $0.00 | D6: =IF(('Comparison Calculator'!$G$11-B6)>=0,$C$1*$G$5/12,IFERROR(-IPMT($G$5/12,A6,$F$1*12,$C$1,0),0)) -> $0.00 | E6: =C6+D6 -> $0.00 | F6: =F5-C6 -> $1,800,000.00 | J6: 2 | K6: 1 | L6: =IF(('Comparison Calculator'!$E$11-K6)>=0,0,IFERROR(-PPMT($P$5/12,J6,$F$1*12,$C$1),0)) -> $0.00 | M6: =IF(('Comparison Calculator'!$G$11-K6)>=0,$C$1*$P$5/12,IFERROR(-IPMT($P$5/12,J6,$F$1*12,$C$1,0),0)) -> $0.00 | N6: =L6+M6 -> $0.00 | O6: =O5-L6 -> $1,800,000.00 | S6: 2 | T6: 1 | U6: =IF(('Comparison Calculator'!$E$11-T6)>=0,0,IFERROR(-PPMT($Y$5/12,S6,$F$1*12,$C$1),0)) -> $0.00 | V6: =IF(('Comparison Calculator'!$G$11-T6)>=0,$C$1*$Y$5/12,IFERROR(-IPMT($Y$5/12,S6,$F$1*12,$C$1,0),0)) -> $0.00 | W6: =U6+V6 -> $0.00 | X6: =X5-U6 -> $1,800,000.00 | AB6: 2 | AC6: 1 | AD6: =IF(('Comparison Calculator'!$E$11-AC6)>=0,0,IFERROR(-PPMT($AH$5/12,AB6,$F$1*12,$C$1),0)) -> $0.00 | AE6: =IF(('Comparison Calculator'!$G$11-AC6)>=0,$C$1*$AH$5/12,IFERROR(-IPMT($AH$5/12,AB6,$F$1*12,$C$1,0),0)) -> $0.00 | AF6: =AD6+AE6 -> $0.00 | AG6: =AG5-AD6 -> $1,800,000.00 | AK6: 2 | AL6: 1 | AM6: =IF(('Comparison Calculator'!$E$11-AL6)>=0,0,IFERROR(-PPMT($AQ$5/12,AK6,$F$1*12,$C$1),0)) -> $0.00 | AN6: =IF(('Comparison Calculator'!$G$11-AL6)>=0,$C$1*$AQ$5/12,IFERROR(-IPMT($AQ$5/12,AK6,$F$1*12,$C$1,0),0)) -> $0.00 | AO6: =AM6+AN6 -> $0.00 | AP6: =AP5-AM6 -> $1,800,000.00 | AT6: 2 | AU6: 1 | AV6: =IF(('Comparison Calculator'!$E$11-AU6)>=0,0,IFERROR(-PPMT($AZ$5/12,AT6,$F$1*12,$C$1),0)) -> $0.00 | AW6: =IF(('Comparison Calculator'!$G$11-AU6)>=0,$C$1*$AZ$5/12,IFERROR(-IPMT($AZ$5/12,AT6,$F$1*12,$C$1,0),0)) -> $0.00 | AX6: =AV6+AW6 -> $0.00 | AY6: =AY5-AV6 -> $1,800,000.00 | BC6: 2 | BD6: 1 | BE6: =IF(('Comparison Calculator'!$E$11-BD6)>=0,0,IFERROR(-PPMT($BI$5/12,BC6,$F$1*12,$C$1),0)) -> $0.00 | BF6: =IF(('Comparison Calculator'!$G$11-BD6)>=0,$C$1*$BI$5/12,IFERROR(-IPMT($BI$5/12,BC6,$F$1*12,$C$1,0),0)) -> $0.00 | BG6: =BE6+BF6 -> $0.00 | BH6: =BH5-BE6 -> $1,800,000.00 | BK6: 2 | BL6: 1 | BM6: =IF(('Comparison Calculator'!$E$11-BL6)>=0,0,IFERROR(-PPMT($BQ$5/12,BK6,$F$1*12,$C$1),0)) -> $0.00 | BN6: =IF(('Comparison Calculator'!$G$11-BL6)>=0,$C$1*$BQ$5/12,IFERROR(-IPMT($BQ$5/12,BK6,$F$1*12,$C$1,0),0)) -> $0.00 | BO6: =BM6+BN6 -> $0.00 | BP6: =BP5-BM6 -> $1,800,000.00 | BT6: 2 | BU6: 1 | BV6: =IF(('Comparison Calculator'!$E$11-BU6)>=0,0,IFERROR(-PPMT($BZ$5/12,BT6,$F$1*12,$C$1),0)) -> $0.00 | BW6: =IF(('Comparison Calculator'!$G$11-BU6)>=0,$C$1*$BZ$5/12,IFERROR(-IPMT($BZ$5/12,BT6,$F$1*12,$C$1,0),0)) -> $0.00 | BX6: =BV6+BW6 -> $0.00 | BY6: =BY5-BV6 -> $1,800,000.00 | CC6: 2 | CD6: 1 | CE6: =IF(('Comparison Calculator'!$E$11-CD6)>=0,0,IFERROR(-PPMT($CI$5/12,CC6,$F$1*12,$C$1),0)) -> $0.00 | CF6: =IF(('Comparison Calculator'!$G$11-CD6)>=0,$C$1*$CI$5/12,IFERROR(-IPMT($CI$5/12,CC6,$F$1*12,$C$1,0),0)) -> $0.00 | CG6: =CE6+CF6 -> $0.00 | CH6: =CH5-CE6 -> $1,800,000.00 | CL6: 2 | CM6: 1 | CN6: =IF(('Comparison Calculator'!$E$11-CM6)>=0,0,IFERROR(-PPMT($CR$5/12,CL6,$F$1*12,$C$1),0)) -> $0.00 | CO6: =IF(('Comparison Calculator'!$G$11-CM6)>=0,$C$1*$CR$5/12,IFERROR(-IPMT($CR$5/12,CL6,$F$1*12,$C$1,0),0)) -> $0.00 | CP6: =CN6+CO6 -> $0.00 | CQ6: =CQ5-CN6 -> $1,800,000.00 | CU6: 2 | CV6: 1 | CW6: =IF(('Comparison Calculator'!$E$11-CV6)>=0,0,IFERROR(-PPMT($DA$5/12,CU6,$F$1*12,$C$1),0)) -> $0.00 | CX6: =IF(('Comparison Calculator'!$G$11-CV6)>=0,$C$1*$DA$5/12,IFERROR(-IPMT($DA$5/12,CU6,$F$1*12,$C$1,0),0)) -> $0.00 | CY6: =CW6+CX6 -> $0.00 | CZ6: =CZ5-CW6 -> $1,800,000.00 | DD6: 2 | DE6: 1 | DF6: =IF(('Comparison Calculator'!$E$11-DE6)>=0,0,IFERROR(-PPMT($DJ$5/12,DD6,$F$1*12,$C$1),0)) -> $0.00 | DG6: =IF(('Comparison Calculator'!$G$11-DE6)>=0,$C$1*$DJ$5/12,IFERROR(-IPMT($DJ$5/12,DD6,$F$1*12,$C$1,0),0)) -> $0.00 | DH6: =DF6+DG6 -> $0.00 | DI6: =DI5-DF6 -> $1,800,000.00
A7: 3 | B7: 1 | C7: =IF(('Comparison Calculator'!$E$11-B7)>=0,0,IFERROR(-PPMT($G$5/12,A7,$F$1*12,$C$1),0)) -> $0.00 | D7: =IF(('Comparison Calculator'!$G$11-B7)>=0,$C$1*$G$5/12,IFERROR(-IPMT($G$5/12,A7,$F$1*12,$C$1,0),0)) -> $0.00 | E7: $0.00 | F7: =F6-C7 -> $1,800,000.00 | J7: 3 | K7: 1 | L7: =IF(('Comparison Calculator'!$E$11-K7)>=0,0,IFERROR(-PPMT($P$5/12,J7,$F$1*12,$C$1),0)) -> $0.00 | M7: =IF(('Comparison Calculator'!$G$11-K7)>=0,$C$1*$P$5/12,IFERROR(-IPMT($P$5/12,J7,$F$1*12,$C$1,0),0)) -> $0.00 | N7: $0.00 | O7: =O6-L7 -> $1,800,000.00 | S7: 3 | T7: 1 | U7: =IF(('Comparison Calculator'!$E$11-T7)>=0,0,IFERROR(-PPMT($Y$5/12,S7,$F$1*12,$C$1),0)) -> $0.00 | V7: =IF(('Comparison Calculator'!$G$11-T7)>=0,$C$1*$Y$5/12,IFERROR(-IPMT($Y$5/12,S7,$F$1*12,$C$1,0),0)) -> $0.00 | W7: $0.00 | X7: =X6-U7 -> $1,800,000.00 | AB7: 3 | AC7: 1 | AD7: =IF(('Comparison Calculator'!$E$11-AC7)>=0,0,IFERROR(-PPMT($AH$5/12,AB7,$F$1*12,$C$1),0)) -> $0.00 | AE7: =IF(('Comparison Calculator'!$G$11-AC7)>=0,$C$1*$AH$5/12,IFERROR(-IPMT($AH$5/12,AB7,$F$1*12,$C$1,0),0)) -> $0.00 | AF7: $0.00 | AG7: =AG6-AD7 -> $1,800,000.00 | AK7: 3 | AL7: 1 | AM7: =IF(('Comparison Calculator'!$E$11-AL7)>=0,0,IFERROR(-PPMT($AQ$5/12,AK7,$F$1*12,$C$1),0)) -> $0.00 | AN7: =IF(('Comparison Calculator'!$G$11-AL7)>=0,$C$1*$AQ$5/12,IFERROR(-IPMT($AQ$5/12,AK7,$F$1*12,$C$1,0),0)) -> $0.00 | AO7: $0.00 | AP7: =AP6-AM7 -> $1,800,000.00 | AT7: 3 | AU7: 1 | AV7: =IF(('Comparison Calculator'!$E$11-AU7)>=0,0,IFERROR(-PPMT($AZ$5/12,AT7,$F$1*12,$C$1),0)) -> $0.00 | AW7: =IF(('Comparison Calculator'!$G$11-AU7)>=0,$C$1*$AZ$5/12,IFERROR(-IPMT($AZ$5/12,AT7,$F$1*12,$C$1,0),0)) -> $0.00 | AX7: $0.00 | AY7: =AY6-AV7 -> $1,800,000.00 | BC7: 3 | BD7: 1 | BE7: =IF(('Comparison Calculator'!$E$11-BD7)>=0,0,IFERROR(-PPMT($BI$5/12,BC7,$F$1*12,$C$1),0)) -> $0.00 | BF7: =IF(('Comparison Calculator'!$G$11-BD7)>=0,$C$1*$BI$5/12,IFERROR(-IPMT($BI$5/12,BC7,$F$1*12,$C$1,0),0)) -> $0.00 | BG7: $0.00 | BH7: =BH6-BE7 -> $1,800,000.00 | BK7: 3 | BL7: 1 | BM7: =IF(('Comparison Calculator'!$E$11-BL7)>=0,0,IFERROR(-PPMT($BQ$5/12,BK7,$F$1*12,$C$1),0)) -> $0.00 | BN7: =IF(('Comparison Calculator'!$G$11-BL7)>=0,$C$1*$BQ$5/12,IFERROR(-IPMT($BQ$5/12,BK7,$F$1*12,$C$1,0),0)) -> $0.00 | BO7: $0.00 | BP7: =BP6-BM7 -> $1,800,000.00 | BT7: 3 | BU7: 1 | BV7: =IF(('Comparison Calculator'!$E$11-BU7)>=0,0,IFERROR(-PPMT($BZ$5/12,BT7,$F$1*12,$C$1),0)) -> $0.00 | BW7: =IF(('Comparison Calculator'!$G$11-BU7)>=0,$C$1*$BZ$5/12,IFERROR(-IPMT($BZ$5/12,BT7,$F$1*12,$C$1,0),0)) -> $0.00 | BX7: $0.00 | BY7: =BY6-BV7 -> $1,800,000.00 | CC7: 3 | CD7: 1 | CE7: =IF(('Comparison Calculator'!$E$11-CD7)>=0,0,IFERROR(-PPMT($CI$5/12,CC7,$F$1*12,$C$1),0)) -> $0.00 | CF7: =IF(('Comparison Calculator'!$G$11-CD7)>=0,$C$1*$CI$5/12,IFERROR(-IPMT($CI$5/12,CC7,$F$1*12,$C$1,0),0)) -> $0.00 | CG7: $0.00 | CH7: =CH6-CE7 -> $1,800,000.00 | CL7: 3 | CM7: 1 | CN7: =IF(('Comparison Calculator'!$E$11-CM7)>=0,0,IFERROR(-PPMT($CR$5/12,CL7,$F$1*12,$C$1),0)) -> $0.00 | CO7: =IF(('Comparison Calculator'!$G$11-CM7)>=0,$C$1*$CR$5/12,IFERROR(-IPMT($CR$5/12,CL7,$F$1*12,$C$1,0),0)) -> $0.00 | CP7: $0.00 | CQ7: =CQ6-CN7 -> $1,800,000.00 | CU7: 3 | CV7: 1 | CW7: =IF(('Comparison Calculator'!$E$11-CV7)>=0,0,IFERROR(-PPMT($DA$5/12,CU7,$F$1*12,$C$1),0)) -> $0.00 | CX7: =IF(('Comparison Calculator'!$G$11-CV7)>=0,$C$1*$DA$5/12,IFERROR(-IPMT($DA$5/12,CU7,$F$1*12,$C$1,0),0)) -> $0.00 | CY7: $0.00 | CZ7: =CZ6-CW7 -> $1,800,000.00 | DD7: 3 | DE7: 1 | DF7: =IF(('Comparison Calculator'!$E$11-DE7)>=0,0,IFERROR(-PPMT($DJ$5/12,DD7,$F$1*12,$C$1),0)) -> $0.00 | DG7: =IF(('Comparison Calculator'!$G$11-DE7)>=0,$C$1*$DJ$5/12,IFERROR(-IPMT($DJ$5/12,DD7,$F$1*12,$C$1,0),0)) -> $0.00 | DH7: $0.00 | DI7: =DI6-DF7 -> $1,800,000.00
A8: 4 | B8: 1 | C8: =IF(('Comparison Calculator'!$E$11-B8)>=0,0,IFERROR(-PPMT($G$5/12,A8,$F$1*12,$C$1),0)) -> $0.00 | D8: =IF(('Comparison Calculator'!$G$11-B8)>=0,$C$1*$G$5/12,IFERROR(-IPMT($G$5/12,A8,$F$1*12,$C$1,0),0)) -> $0.00 | E8: $0.00 | F8: $1,800,000.00 | J8: 4 | K8: 1 | L8: =IF(('Comparison Calculator'!$E$11-K8)>=0,0,IFERROR(-PPMT($P$5/12,J8,$F$1*12,$C$1),0)) -> $0.00 | M8: =IF(('Comparison Calculator'!$G$11-K8)>=0,$C$1*$P$5/12,IFERROR(-IPMT($P$5/12,J8,$F$1*12,$C$1,0),0)) -> $0.00 | N8: $0.00 | O8: $1,800,000.00 | S8: 4 | T8: 1 | U8: =IF(('Comparison Calculator'!$E$11-T8)>=0,0,IFERROR(-PPMT($Y$5/12,S8,$F$1*12,$C$1),0)) -> $0.00 | V8: =IF(('Comparison Calculator'!$G$11-T8)>=0,$C$1*$Y$5/12,IFERROR(-IPMT($Y$5/12,S8,$F$1*12,$C$1,0),0)) -> $0.00 | W8: $0.00 | X8: $1,800,000.00 | AB8: 4 | AC8: 1 | AD8: =IF(('Comparison Calculator'!$E$11-AC8)>=0,0,IFERROR(-PPMT($AH$5/12,AB8,$F$1*12,$C$1),0)) -> $0.00 | AE8: =IF(('Comparison Calculator'!$G$11-AC8)>=0,$C$1*$AH$5/12,IFERROR(-IPMT($AH$5/12,AB8,$F$1*12,$C$1,0),0)) -> $0.00 | AF8: $0.00 | AG8: $1,800,000.00 | AK8: 4 | AL8: 1 | AM8: =IF(('Comparison Calculator'!$E$11-AL8)>=0,0,IFERROR(-PPMT($AQ$5/12,AK8,$F$1*12,$C$1),0)) -> $0.00 | AN8: =IF(('Comparison Calculator'!$G$11-AL8)>=0,$C$1*$AQ$5/12,IFERROR(-IPMT($AQ$5/12,AK8,$F$1*12,$C$1,0),0)) -> $0.00 | AO8: $0.00 | AP8: $1,800,000.00 | AT8: 4 | AU8: 1 | AV8: =IF(('Comparison Calculator'!$E$11-AU8)>=0,0,IFERROR(-PPMT($AZ$5/12,AT8,$F$1*12,$C$1),0)) -> $0.00 | AW8: =IF(('Comparison Calculator'!$G$11-AU8)>=0,$C$1*$AZ$5/12,IFERROR(-IPMT($AZ$5/12,AT8,$F$1*12,$C$1,0),0)) -> $0.00 | AX8: $0.00 | AY8: $1,800,000.00 | BC8: 4 | BD8: 1 | BE8: =IF(('Comparison Calculator'!$E$11-BD8)>=0,0,IFERROR(-PPMT($BI$5/12,BC8,$F$1*12,$C$1),0)) -> $0.00 | BF8: =IF(('Comparison Calculator'!$G$11-BD8)>=0,$C$1*$BI$5/12,IFERROR(-IPMT($BI$5/12,BC8,$F$1*12,$C$1,0),0)) -> $0.00 | BG8: $0.00 | BH8: $1,800,000.00 | BK8: 4 | BL8: 1 | BM8: =IF(('Comparison Calculator'!$E$11-BL8)>=0,0,IFERROR(-PPMT($BQ$5/12,BK8,$F$1*12,$C$1),0)) -> $0.00 | BN8: =IF(('Comparison Calculator'!$G$11-BL8)>=0,$C$1*$BQ$5/12,IFERROR(-IPMT($BQ$5/12,BK8,$F$1*12,$C$1,0),0)) -> $0.00 | BO8: $0.00 | BP8: $1,800,000.00 | BT8: 4 | BU8: 1 | BV8: =IF(('Comparison Calculator'!$E$11-BU8)>=0,0,IFERROR(-PPMT($BZ$5/12,BT8,$F$1*12,$C$1),0)) -> $0.00 | BW8: =IF(('Comparison Calculator'!$G$11-BU8)>=0,$C$1*$BZ$5/12,IFERROR(-IPMT($BZ$5/12,BT8,$F$1*12,$C$1,0),0)) -> $0.00 | BX8: $0.00 | BY8: $1,800,000.00 | CC8: 4 | CD8: 1 | CE8: =IF(('Comparison Calculator'!$E$11-CD8)>=0,0,IFERROR(-PPMT($CI$5/12,CC8,$F$1*12,$C$1),0)) -> $0.00 | CF8: =IF(('Comparison Calculator'!$G$11-CD8)>=0,$C$1*$CI$5/12,IFERROR(-IPMT($CI$5/12,CC8,$F$1*12,$C$1,0),0)) -> $0.00 | CG8: $0.00 | CH8: $1,800,000.00 | CL8: 4 | CM8: 1 | CN8: =IF(('Comparison Calculator'!$E$11-CM8)>=0,0,IFERROR(-PPMT($CR$5/12,CL8,$F$1*12,$C$1),0)) -> $0.00 | CO8: =IF(('Comparison Calculator'!$G$11-CM8)>=0,$C$1*$CR$5/12,IFERROR(-IPMT($CR$5/12,CL8,$F$1*12,$C$1,0),0)) -> $0.00 | CP8: $0.00 | CQ8: $1,800,000.00 | CU8: 4 | CV8: 1 | CW8: =IF(('Comparison Calculator'!$E$11-CV8)>=0,0,IFERROR(-PPMT($DA$5/12,CU8,$F$1*12,$C$1),0)) -> $0.00 | CX8: =IF(('Comparison Calculator'!$G$11-CV8)>=0,$C$1*$DA$5/12,IFERROR(-IPMT($DA$5/12,CU8,$F$1*12,$C$1,0),0)) -> $0.00 | CY8: $0.00 | CZ8: $1,800,000.00 | DD8: 4 | DE8: 1 | DF8: =IF(('Comparison Calculator'!$E$11-DE8)>=0,0,IFERROR(-PPMT($DJ$5/12,DD8,$F$1*12,$C$1),0)) -> $0.00 | DG8: =IF(('Comparison Calculator'!$G$11-DE8)>=0,$C$1*$DJ$5/12,IFERROR(-IPMT($DJ$5/12,DD8,$F$1*12,$C$1,0),0)) -> $0.00 | DH8: $0.00 | DI8: $1,800,000.00
A9: 5 | B9: 1 | C9: =IF(('Comparison Calculator'!$E$11-B9)>=0,0,IFERROR(-PPMT($G$5/12,A9,$F$1*12,$C$1),0)) -> $0.00 | D9: =IF(('Comparison Calculator'!$G$11-B9)>=0,$C$1*$G$5/12,IFERROR(-IPMT($G$5/12,A9,$F$1*12,$C$1,0),0)) -> $0.00 | E9: $0.00 | F9: $1,800,000.00 | J9: 5 | K9: 1 | L9: =IF(('Comparison Calculator'!$E$11-K9)>=0,0,IFERROR(-PPMT($P$5/12,J9,$F$1*12,$C$1),0)) -> $0.00 | M9: =IF(('Comparison Calculator'!$G$11-K9)>=0,$C$1*$P$5/12,IFERROR(-IPMT($P$5/12,J9,$F$1*12,$C$1,0),0)) -> $0.00 | N9: $0.00 | O9: $1,800,000.00 | S9: 5 | T9: 1 | U9: =IF(('Comparison Calculator'!$E$11-T9)>=0,0,IFERROR(-PPMT($Y$5/12,S9,$F$1*12,$C$1),0)) -> $0.00 | V9: =IF(('Comparison Calculator'!$G$11-T9)>=0,$C$1*$Y$5/12,IFERROR(-IPMT($Y$5/12,S9,$F$1*12,$C$1,0),0)) -> $0.00 | W9: $0.00 | X9: $1,800,000.00 | AB9: 5 | AC9: 1 | AD9: =IF(('Comparison Calculator'!$E$11-AC9)>=0,0,IFERROR(-PPMT($AH$5/12,AB9,$F$1*12,$C$1),0)) -> $0.00 | AE9: =IF(('Comparison Calculator'!$G$11-AC9)>=0,$C$1*$AH$5/12,IFERROR(-IPMT($AH$5/12,AB9,$F$1*12,$C$1,0),0)) -> $0.00 | AF9: $0.00 | AG9: $1,800,000.00 | AK9: 5 | AL9: 1 | AM9: =IF(('Comparison Calculator'!$E$11-AL9)>=0,0,IFERROR(-PPMT($AQ$5/12,AK9,$F$1*12,$C$1),0)) -> $0.00 | AN9: =IF(('Comparison Calculator'!$G$11-AL9)>=0,$C$1*$AQ$5/12,IFERROR(-IPMT($AQ$5/12,AK9,$F$1*12,$C$1,0),0)) -> $0.00 | AO9: $0.00 | AP9: $1,800,000.00 | AT9: 5 | AU9: 1 | AV9: =IF(('Comparison Calculator'!$E$11-AU9)>=0,0,IFERROR(-PPMT($AZ$5/12,AT9,$F$1*12,$C$1),0)) -> $0.00 | AW9: =IF(('Comparison Calculator'!$G$11-AU9)>=0,$C$1*$AZ$5/12,IFERROR(-IPMT($AZ$5/12,AT9,$F$1*12,$C$1,0),0)) -> $0.00 | AX9: $0.00 | AY9: $1,800,000.00 | BC9: 5 | BD9: 1 | BE9: =IF(('Comparison Calculator'!$E$11-BD9)>=0,0,IFERROR(-PPMT($BI$5/12,BC9,$F$1*12,$C$1),0)) -> $0.00 | BF9: =IF(('Comparison Calculator'!$G$11-BD9)>=0,$C$1*$BI$5/12,IFERROR(-IPMT($BI$5/12,BC9,$F$1*12,$C$1,0),0)) -> $0.00 | BG9: $0.00 | BH9: $1,800,000.00 | BK9: 5 | BL9: 1 | BM9: =IF(('Comparison Calculator'!$E$11-BL9)>=0,0,IFERROR(-PPMT($BQ$5/12,BK9,$F$1*12,$C$1),0)) -> $0.00 | BN9: =IF(('Comparison Calculator'!$G$11-BL9)>=0,$C$1*$BQ$5/12,IFERROR(-IPMT($BQ$5/12,BK9,$F$1*12,$C$1,0),0)) -> $0.00 | BO9: $0.00 | BP9: $1,800,000.00 | BT9: 5 | BU9: 1 | BV9: =IF(('Comparison Calculator'!$E$11-BU9)>=0,0,IFERROR(-PPMT($BZ$5/12,BT9,$F$1*12,$C$1),0)) -> $0.00 | BW9: =IF(('Comparison Calculator'!$G$11-BU9)>=0,$C$1*$BZ$5/12,IFERROR(-IPMT($BZ$5/12,BT9,$F$1*12,$C$1,0),0)) -> $0.00 | BX9: $0.00 | BY9: $1,800,000.00 | CC9: 5 | CD9: 1 | CE9: =IF(('Comparison Calculator'!$E$11-CD9)>=0,0,IFERROR(-PPMT($CI$5/12,CC9,$F$1*12,$C$1),0)) -> $0.00 | CF9: =IF(('Comparison Calculator'!$G$11-CD9)>=0,$C$1*$CI$5/12,IFERROR(-IPMT($CI$5/12,CC9,$F$1*12,$C$1,0),0)) -> $0.00 | CG9: $0.00 | CH9: $1,800,000.00 | CL9: 5 | CM9: 1 | CN9: =IF(('Comparison Calculator'!$E$11-CM9)>=0,0,IFERROR(-PPMT($CR$5/12,CL9,$F$1*12,$C$1),0)) -> $0.00 | CO9: =IF(('Comparison Calculator'!$G$11-CM9)>=0,$C$1*$CR$5/12,IFERROR(-IPMT($CR$5/12,CL9,$F$1*12,$C$1,0),0)) -> $0.00 | CP9: $0.00 | CQ9: $1,800,000.00 | CU9: 5 | CV9: 1 | CW9: =IF(('Comparison Calculator'!$E$11-CV9)>=0,0,IFERROR(-PPMT($DA$5/12,CU9,$F$1*12,$C$1),0)) -> $0.00 | CX9: =IF(('Comparison Calculator'!$G$11-CV9)>=0,$C$1*$DA$5/12,IFERROR(-IPMT($DA$5/12,CU9,$F$1*12,$C$1,0),0)) -> $0.00 | CY9: $0.00 | CZ9: $1,800,000.00 | DD9: 5 | DE9: 1 | DF9: =IF(('Comparison Calculator'!$E$11-DE9)>=0,0,IFERROR(-PPMT($DJ$5/12,DD9,$F$1*12,$C$1),0)) -> $0.00 | DG9: =IF(('Comparison Calculator'!$G$11-DE9)>=0,$C$1*$DJ$5/12,IFERROR(-IPMT($DJ$5/12,DD9,$F$1*12,$C$1,0),0)) -> $0.00 | DH9: $0.00 | DI9: $1,800,000.00
A10: 6 | B10: 1 | C10: =IF(('Comparison Calculator'!$E$11-B10)>=0,0,IFERROR(-PPMT($G$5/12,A10,$F$1*12,$C$1),0)) -> $0.00 | D10: =IF(('Comparison Calculator'!$G$11-B10)>=0,$C$1*$G$5/12,IFERROR(-IPMT($G$5/12,A10,$F$1*12,$C$1,0),0)) -> $0.00 | E10: $0.00 | F10: $1,800,000.00 | J10: 6 | K10: 1 | L10: =IF(('Comparison Calculator'!$E$11-K10)>=0,0,IFERROR(-PPMT($P$5/12,J10,$F$1*12,$C$1),0)) -> $0.00 | M10: =IF(('Comparison Calculator'!$G$11-K10)>=0,$C$1*$P$5/12,IFERROR(-IPMT($P$5/12,J10,$F$1*12,$C$1,0),0)) -> $0.00 | N10: $0.00 | O10: $1,800,000.00 | S10: 6 | T10: 1 | U10: =IF(('Comparison Calculator'!$E$11-T10)>=0,0,IFERROR(-PPMT($Y$5/12,S10,$F$1*12,$C$1),0)) -> $0.00 | V10: =IF(('Comparison Calculator'!$G$11-T10)>=0,$C$1*$Y$5/12,IFERROR(-IPMT($Y$5/12,S10,$F$1*12,$C$1,0),0)) -> $0.00 | W10: $0.00 | X10: $1,800,000.00 | AB10: 6 | AC10: 1 | AD10: =IF(('Comparison Calculator'!$E$11-AC10)>=0,0,IFERROR(-PPMT($AH$5/12,AB10,$F$1*12,$C$1),0)) -> $0.00 | AE10: =IF(('Comparison Calculator'!$G$11-AC10)>=0,$C$1*$AH$5/12,IFERROR(-IPMT($AH$5/12,AB10,$F$1*12,$C$1,0),0)) -> $0.00 | AF10: $0.00 | AG10: $1,800,000.00 | AK10: 6 | AL10: 1 | AM10: =IF(('Comparison Calculator'!$E$11-AL10)>=0,0,IFERROR(-PPMT($AQ$5/12,AK10,$F$1*12,$C$1),0)) -> $0.00 | AN10: =IF(('Comparison Calculator'!$G$11-AL10)>=0,$C$1*$AQ$5/12,IFERROR(-IPMT($AQ$5/12,AK10,$F$1*12,$C$1,0),0)) -> $0.00 | AO10: $0.00 | AP10: $1,800,000.00 | AT10: 6 | AU10: 1 | AV10: =IF(('Comparison Calculator'!$E$11-AU10)>=0,0,IFERROR(-PPMT($AZ$5/12,AT10,$F$1*12,$C$1),0)) -> $0.00 | AW10: =IF(('Comparison Calculator'!$G$11-AU10)>=0,$C$1*$AZ$5/12,IFERROR(-IPMT($AZ$5/12,AT10,$F$1*12,$C$1,0),0)) -> $0.00 | AX10: $0.00 | AY10: $1,800,000.00 | BC10: 6 | BD10: 1 | BE10: =IF(('Comparison Calculator'!$E$11-BD10)>=0,0,IFERROR(-PPMT($BI$5/12,BC10,$F$1*12,$C$1),0)) -> $0.00 | BF10: =IF(('Comparison Calculator'!$G$11-BD10)>=0,$C$1*$BI$5/12,IFERROR(-IPMT($BI$5/12,BC10,$F$1*12,$C$1,0),0)) -> $0.00 | BG10: $0.00 | BH10: $1,800,000.00 | BK10: 6 | BL10: 1 | BM10: =IF(('Comparison Calculator'!$E$11-BL10)>=0,0,IFERROR(-PPMT($BQ$5/12,BK10,$F$1*12,$C$1),0)) -> $0.00 | BN10: =IF(('Comparison Calculator'!$G$11-BL10)>=0,$C$1*$BQ$5/12,IFERROR(-IPMT($BQ$5/12,BK10,$F$1*12,$C$1,0),0)) -> $0.00 | BO10: $0.00 | BP10: $1,800,000.00 | BT10: 6 | BU10: 1 | BV10: =IF(('Comparison Calculator'!$E$11-BU10)>=0,0,IFERROR(-PPMT($BZ$5/12,BT10,$F$1*12,$C$1),0)) -> $0.00 | BW10: =IF(('Comparison Calculator'!$G$11-BU10)>=0,$C$1*$BZ$5/12,IFERROR(-IPMT($BZ$5/12,BT10,$F$1*12,$C$1,0),0)) -> $0.00 | BX10: $0.00 | BY10: $1,800,000.00 | CC10: 6 | CD10: 1 | CE10: =IF(('Comparison Calculator'!$E$11-CD10)>=0,0,IFERROR(-PPMT($CI$5/12,CC10,$F$1*12,$C$1),0)) -> $0.00 | CF10: =IF(('Comparison Calculator'!$G$11-CD10)>=0,$C$1*$CI$5/12,IFERROR(-IPMT($CI$5/12,CC10,$F$1*12,$C$1,0),0)) -> $0.00 | CG10: $0.00 | CH10: $1,800,000.00 | CL10: 6 | CM10: 1 | CN10: =IF(('Comparison Calculator'!$E$11-CM10)>=0,0,IFERROR(-PPMT($CR$5/12,CL10,$F$1*12,$C$1),0)) -> $0.00 | CO10: =IF(('Comparison Calculator'!$G$11-CM10)>=0,$C$1*$CR$5/12,IFERROR(-IPMT($CR$5/12,CL10,$F$1*12,$C$1,0),0)) -> $0.00 | CP10: $0.00 | CQ10: $1,800,000.00 | CU10: 6 | CV10: 1 | CW10: =IF(('Comparison Calculator'!$E$11-CV10)>=0,0,IFERROR(-PPMT($DA$5/12,CU10,$F$1*12,$C$1),0)) -> $0.00 | CX10: =IF(('Comparison Calculator'!$G$11-CV10)>=0,$C$1*$DA$5/12,IFERROR(-IPMT($DA$5/12,CU10,$F$1*12,$C$1,0),0)) -> $0.00 | CY10: $0.00 | CZ10: $1,800,000.00 | DD10: 6 | DE10: 1 | DF10: =IF(('Comparison Calculator'!$E$11-DE10)>=0,0,IFERROR(-PPMT($DJ$5/12,DD10,$F$1*12,$C$1),0)) -> $0.00 | DG10: =IF(('Comparison Calculator'!$G$11-DE10)>=0,$C$1*$DJ$5/12,IFERROR(-IPMT($DJ$5/12,DD10,$F$1*12,$C$1,0),0)) -> $0.00 | DH10: $0.00 | DI10: $1,800,000.00
A11: 7 | B11: 1 | C11: =IF(('Comparison Calculator'!$E$11-B11)>=0,0,IFERROR(-PPMT($G$5/12,A11,$F$1*12,$C$1),0)) -> $0.00 | D11: =IF(('Comparison Calculator'!$G$11-B11)>=0,$C$1*$G$5/12,IFERROR(-IPMT($G$5/12,A11,$F$1*12,$C$1,0),0)) -> $0.00 | E11: $0.00 | F11: $1,800,000.00 | J11: 7 | K11: 1 | L11: =IF(('Comparison Calculator'!$E$11-K11)>=0,0,IFERROR(-PPMT($P$5/12,J11,$F$1*12,$C$1),0)) -> $0.00 | M11: =IF(('Comparison Calculator'!$G$11-K11)>=0,$C$1*$P$5/12,IFERROR(-IPMT($P$5/12,J11,$F$1*12,$C$1,0),0)) -> $0.00 | N11: $0.00 | O11: $1,800,000.00 | S11: 7 | T11: 1 | U11: =IF(('Comparison Calculator'!$E$11-T11)>=0,0,IFERROR(-PPMT($Y$5/12,S11,$F$1*12,$C$1),0)) -> $0.00 | V11: =IF(('Comparison Calculator'!$G$11-T11)>=0,$C$1*$Y$5/12,IFERROR(-IPMT($Y$5/12,S11,$F$1*12,$C$1,0),0)) -> $0.00 | W11: $0.00 | X11: $1,800,000.00 | AB11: 7 | AC11: 1 | AD11: =IF(('Comparison Calculator'!$E$11-AC11)>=0,0,IFERROR(-PPMT($AH$5/12,AB11,$F$1*12,$C$1),0)) -> $0.00 | AE11: =IF(('Comparison Calculator'!$G$11-AC11)>=0,$C$1*$AH$5/12,IFERROR(-IPMT($AH$5/12,AB11,$F$1*12,$C$1,0),0)) -> $0.00 | AF11: $0.00 | AG11: $1,800,000.00 | AK11: 7 | AL11: 1 | AM11: =IF(('Comparison Calculator'!$E$11-AL11)>=0,0,IFERROR(-PPMT($AQ$5/12,AK11,$F$1*12,$C$1),0)) -> $0.00 | AN11: =IF(('Comparison Calculator'!$G$11-AL11)>=0,$C$1*$AQ$5/12,IFERROR(-IPMT($AQ$5/12,AK11,$F$1*12,$C$1,0),0)) -> $0.00 | AO11: $0.00 | AP11: $1,800,000.00 | AT11: 7 | AU11: 1 | AV11: =IF(('Comparison Calculator'!$E$11-AU11)>=0,0,IFERROR(-PPMT($AZ$5/12,AT11,$F$1*12,$C$1),0)) -> $0.00 | AW11: =IF(('Comparison Calculator'!$G$11-AU11)>=0,$C$1*$AZ$5/12,IFERROR(-IPMT($AZ$5/12,AT11,$F$1*12,$C$1,0),0)) -> $0.00 | AX11: $0.00 | AY11: $1,800,000.00 | BC11: 7 | BD11: 1 | BE11: =IF(('Comparison Calculator'!$E$11-BD11)>=0,0,IFERROR(-PPMT($BI$5/12,BC11,$F$1*12,$C$1),0)) -> $0.00 | BF11: =IF(('Comparison Calculator'!$G$11-BD11)>=0,$C$1*$BI$5/12,IFERROR(-IPMT($BI$5/12,BC11,$F$1*12,$C$1,0),0)) -> $0.00 | BG11: $0.00 | BH11: $1,800,000.00 | BK11: 7 | BL11: 1 | BM11: =IF(('Comparison Calculator'!$E$11-BL11)>=0,0,IFERROR(-PPMT($BQ$5/12,BK11,$F$1*12,$C$1),0)) -> $0.00 | BN11: =IF(('Comparison Calculator'!$G$11-BL11)>=0,$C$1*$BQ$5/12,IFERROR(-IPMT($BQ$5/12,BK11,$F$1*12,$C$1,0),0)) -> $0.00 | BO11: $0.00 | BP11: $1,800,000.00 | BT11: 7 | BU11: 1 | BV11: =IF(('Comparison Calculator'!$E$11-BU11)>=0,0,IFERROR(-PPMT($BZ$5/12,BT11,$F$1*12,$C$1),0)) -> $0.00 | BW11: =IF(('Comparison Calculator'!$G$11-BU11)>=0,$C$1*$BZ$5/12,IFERROR(-IPMT($BZ$5/12,BT11,$F$1*12,$C$1,0),0)) -> $0.00 | BX11: $0.00 | BY11: $1,800,000.00 | CC11: 7 | CD11: 1 | CE11: =IF(('Comparison Calculator'!$E$11-CD11)>=0,0,IFERROR(-PPMT($CI$5/12,CC11,$F$1*12,$C$1),0)) -> $0.00 | CF11: =IF(('Comparison Calculator'!$G$11-CD11)>=0,$C$1*$CI$5/12,IFERROR(-IPMT($CI$5/12,CC11,$F$1*12,$C$1,0),0)) -> $0.00 | CG11: $0.00 | CH11: $1,800,000.00 | CL11: 7 | CM11: 1 | CN11: =IF(('Comparison Calculator'!$E$11-CM11)>=0,0,IFERROR(-PPMT($CR$5/12,CL11,$F$1*12,$C$1),0)) -> $0.00 | CO11: =IF(('Comparison Calculator'!$G$11-CM11)>=0,$C$1*$CR$5/12,IFERROR(-IPMT($CR$5/12,CL11,$F$1*12,$C$1,0),0)) -> $0.00 | CP11: $0.00 | CQ11: $1,800,000.00 | CU11: 7 | CV11: 1 | CW11: =IF(('Comparison Calculator'!$E$11-CV11)>=0,0,IFERROR(-PPMT($DA$5/12,CU11,$F$1*12,$C$1),0)) -> $0.00 | CX11: =IF(('Comparison Calculator'!$G$11-CV11)>=0,$C$1*$DA$5/12,IFERROR(-IPMT($DA$5/12,CU11,$F$1*12,$C$1,0),0)) -> $0.00 | CY11: $0.00 | CZ11: $1,800,000.00 | DD11: 7 | DE11: 1 | DF11: =IF(('Comparison Calculator'!$E$11-DE11)>=0,0,IFERROR(-PPMT($DJ$5/12,DD11,$F$1*12,$C$1),0)) -> $0.00 | DG11: =IF(('Comparison Calculator'!$G$11-DE11)>=0,$C$1*$DJ$5/12,IFERROR(-IPMT($DJ$5/12,DD11,$F$1*12,$C$1,0),0)) -> $0.00 | DH11: $0.00 | DI11: $1,800,000.00
A12: 8 | B12: 1 | C12: =IF(('Comparison Calculator'!$E$11-B12)>=0,0,IFERROR(-PPMT($G$5/12,A12,$F$1*12,$C$1),0)) -> $0.00 | D12: =IF(('Comparison Calculator'!$G$11-B12)>=0,$C$1*$G$5/12,IFERROR(-IPMT($G$5/12,A12,$F$1*12,$C$1,0),0)) -> $0.00 | E12: $0.00 | F12: $1,800,000.00 | J12: 8 | K12: 1 | L12: =IF(('Comparison Calculator'!$E$11-K12)>=0,0,IFERROR(-PPMT($P$5/12,J12,$F$1*12,$C$1),0)) -> $0.00 | M12: =IF(('Comparison Calculator'!$G$11-K12)>=0,$C$1*$P$5/12,IFERROR(-IPMT($P$5/12,J12,$F$1*12,$C$1,0),0)) -> $0.00 | N12: $0.00 | O12: $1,800,000.00 | S12: 8 | T12: 1 | U12: =IF(('Comparison Calculator'!$E$11-T12)>=0,0,IFERROR(-PPMT($Y$5/12,S12,$F$1*12,$C$1),0)) -> $0.00 | V12: =IF(('Comparison Calculator'!$G$11-T12)>=0,$C$1*$Y$5/12,IFERROR(-IPMT($Y$5/12,S12,$F$1*12,$C$1,0),0)) -> $0.00 | W12: $0.00 | X12: $1,800,000.00 | AB12: 8 | AC12: 1 | AD12: =IF(('Comparison Calculator'!$E$11-AC12)>=0,0,IFERROR(-PPMT($AH$5/12,AB12,$F$1*12,$C$1),0)) -> $0.00 | AE12: =IF(('Comparison Calculator'!$G$11-AC12)>=0,$C$1*$AH$5/12,IFERROR(-IPMT($AH$5/12,AB12,$F$1*12,$C$1,0),0)) -> $0.00 | AF12: $0.00 | AG12: $1,800,000.00 | AK12: 8 | AL12: 1 | AM12: =IF(('Comparison Calculator'!$E$11-AL12)>=0,0,IFERROR(-PPMT($AQ$5/12,AK12,$F$1*12,$C$1),0)) -> $0.00 | AN12: =IF(('Comparison Calculator'!$G$11-AL12)>=0,$C$1*$AQ$5/12,IFERROR(-IPMT($AQ$5/12,AK12,$F$1*12,$C$1,0),0)) -> $0.00 | AO12: $0.00 | AP12: $1,800,000.00 | AT12: 8 | AU12: 1 | AV12: =IF(('Comparison Calculator'!$E$11-AU12)>=0,0,IFERROR(-PPMT($AZ$5/12,AT12,$F$1*12,$C$1),0)) -> $0.00 | AW12: =IF(('Comparison Calculator'!$G$11-AU12)>=0,$C$1*$AZ$5/12,IFERROR(-IPMT($AZ$5/12,AT12,$F$1*12,$C$1,0),0)) -> $0.00 | AX12: $0.00 | AY12: $1,800,000.00 | BC12: 8 | BD12: 1 | BE12: =IF(('Comparison Calculator'!$E$11-BD12)>=0,0,IFERROR(-PPMT($BI$5/12,BC12,$F$1*12,$C$1),0)) -> $0.00 | BF12: =IF(('Comparison Calculator'!$G$11-BD12)>=0,$C$1*$BI$5/12,IFERROR(-IPMT($BI$5/12,BC12,$F$1*12,$C$1,0),0)) -> $0.00 | BG12: $0.00 | BH12: $1,800,000.00 | BK12: 8 | BL12: 1 | BM12: =IF(('Comparison Calculator'!$E$11-BL12)>=0,0,IFERROR(-PPMT($BQ$5/12,BK12,$F$1*12,$C$1),0)) -> $0.00 | BN12: =IF(('Comparison Calculator'!$G$11-BL12)>=0,$C$1*$BQ$5/12,IFERROR(-IPMT($BQ$5/12,BK12,$F$1*12,$C$1,0),0)) -> $0.00 | BO12: $0.00 | BP12: $1,800,000.00 | BT12: 8 | BU12: 1 | BV12: =IF(('Comparison Calculator'!$E$11-BU12)>=0,0,IFERROR(-PPMT($BZ$5/12,BT12,$F$1*12,$C$1),0)) -> $0.00 | BW12: =IF(('Comparison Calculator'!$G$11-BU12)>=0,$C$1*$BZ$5/12,IFERROR(-IPMT($BZ$5/12,BT12,$F$1*12,$C$1,0),0)) -> $0.00 | BX12: $0.00 | BY12: $1,800,000.00 | CC12: 8 | CD12: 1 | CE12: =IF(('Comparison Calculator'!$E$11-CD12)>=0,0,IFERROR(-PPMT($CI$5/12,CC12,$F$1*12,$C$1),0)) -> $0.00 | CF12: =IF(('Comparison Calculator'!$G$11-CD12)>=0,$C$1*$CI$5/12,IFERROR(-IPMT($CI$5/12,CC12,$F$1*12,$C$1,0),0)) -> $0.00 | CG12: $0.00 | CH12: $1,800,000.00 | CL12: 8 | CM12: 1 | CN12: =IF(('Comparison Calculator'!$E$11-CM12)>=0,0,IFERROR(-PPMT($CR$5/12,CL12,$F$1*12,$C$1),0)) -> $0.00 | CO12: =IF(('Comparison Calculator'!$G$11-CM12)>=0,$C$1*$CR$5/12,IFERROR(-IPMT($CR$5/12,CL12,$F$1*12,$C$1,0),0)) -> $0.00 | CP12: $0.00 | CQ12: $1,800,000.00 | CU12: 8 | CV12: 1 | CW12: =IF(('Comparison Calculator'!$E$11-CV12)>=0,0,IFERROR(-PPMT($DA$5/12,CU12,$F$1*12,$C$1),0)) -> $0.00 | CX12: =IF(('Comparison Calculator'!$G$11-CV12)>=0,$C$1*$DA$5/12,IFERROR(-IPMT($DA$5/12,CU12,$F$1*12,$C$1,0),0)) -> $0.00 | CY12: $0.00 | CZ12: $1,800,000.00 | DD12: 8 | DE12: 1 | DF12: =IF(('Comparison Calculator'!$E$11-DE12)>=0,0,IFERROR(-PPMT($DJ$5/12,DD12,$F$1*12,$C$1),0)) -> $0.00 | DG12: =IF(('Comparison Calculator'!$G$11-DE12)>=0,$C$1*$DJ$5/12,IFERROR(-IPMT($DJ$5/12,DD12,$F$1*12,$C$1,0),0)) -> $0.00 | DH12: $0.00 | DI12: $1,800,000.00
A13: 9 | B13: 1 | C13: =IF(('Comparison Calculator'!$E$11-B13)>=0,0,IFERROR(-PPMT($G$5/12,A13,$F$1*12,$C$1),0)) -> $0.00 | D13: =IF(('Comparison Calculator'!$G$11-B13)>=0,$C$1*$G$5/12,IFERROR(-IPMT($G$5/12,A13,$F$1*12,$C$1,0),0)) -> $0.00 | E13: $0.00 | F13: $1,800,000.00 | J13: 9 | K13: 1 | L13: =IF(('Comparison Calculator'!$E$11-K13)>=0,0,IFERROR(-PPMT($P$5/12,J13,$F$1*12,$C$1),0)) -> $0.00 | M13: =IF(('Comparison Calculator'!$G$11-K13)>=0,$C$1*$P$5/12,IFERROR(-IPMT($P$5/12,J13,$F$1*12,$C$1,0),0)) -> $0.00 | N13: $0.00 | O13: $1,800,000.00 | S13: 9 | T13: 1 | U13: =IF(('Comparison Calculator'!$E$11-T13)>=0,0,IFERROR(-PPMT($Y$5/12,S13,$F$1*12,$C$1),0)) -> $0.00 | V13: =IF(('Comparison Calculator'!$G$11-T13)>=0,$C$1*$Y$5/12,IFERROR(-IPMT($Y$5/12,S13,$F$1*12,$C$1,0),0)) -> $0.00 | W13: $0.00 | X13: $1,800,000.00 | AB13: 9 | AC13: 1 | AD13: =IF(('Comparison Calculator'!$E$11-AC13)>=0,0,IFERROR(-PPMT($AH$5/12,AB13,$F$1*12,$C$1),0)) -> $0.00 | AE13: =IF(('Comparison Calculator'!$G$11-AC13)>=0,$C$1*$AH$5/12,IFERROR(-IPMT($AH$5/12,AB13,$F$1*12,$C$1,0),0)) -> $0.00 | AF13: $0.00 | AG13: $1,800,000.00 | AK13: 9 | AL13: 1 | AM13: =IF(('Comparison Calculator'!$E$11-AL13)>=0,0,IFERROR(-PPMT($AQ$5/12,AK13,$F$1*12,$C$1),0)) -> $0.00 | AN13: =IF(('Comparison Calculator'!$G$11-AL13)>=0,$C$1*$AQ$5/12,IFERROR(-IPMT($AQ$5/12,AK13,$F$1*12,$C$1,0),0)) -> $0.00 | AO13: $0.00 | AP13: $1,800,000.00 | AT13: 9 | AU13: 1 | AV13: =IF(('Comparison Calculator'!$E$11-AU13)>=0,0,IFERROR(-PPMT($AZ$5/12,AT13,$F$1*12,$C$1),0)) -> $0.00 | AW13: =IF(('Comparison Calculator'!$G$11-AU13)>=0,$C$1*$AZ$5/12,IFERROR(-IPMT($AZ$5/12,AT13,$F$1*12,$C$1,0),0)) -> $0.00 | AX13: $0.00 | AY13: $1,800,000.00 | BC13: 9 | BD13: 1 | BE13: =IF(('Comparison Calculator'!$E$11-BD13)>=0,0,IFERROR(-PPMT($BI$5/12,BC13,$F$1*12,$C$1),0)) -> $0.00 | BF13: =IF(('Comparison Calculator'!$G$11-BD13)>=0,$C$1*$BI$5/12,IFERROR(-IPMT($BI$5/12,BC13,$F$1*12,$C$1,0),0)) -> $0.00 | BG13: $0.00 | BH13: $1,800,000.00 | BK13: 9 | BL13: 1 | BM13: =IF(('Comparison Calculator'!$E$11-BL13)>=0,0,IFERROR(-PPMT($BQ$5/12,BK13,$F$1*12,$C$1),0)) -> $0.00 | BN13: =IF(('Comparison Calculator'!$G$11-BL13)>=0,$C$1*$BQ$5/12,IFERROR(-IPMT($BQ$5/12,BK13,$F$1*12,$C$1,0),0)) -> $0.00 | BO13: $0.00 | BP13: $1,800,000.00 | BT13: 9 | BU13: 1 | BV13: =IF(('Comparison Calculator'!$E$11-BU13)>=0,0,IFERROR(-PPMT($BZ$5/12,BT13,$F$1*12,$C$1),0)) -> $0.00 | BW13: =IF(('Comparison Calculator'!$G$11-BU13)>=0,$C$1*$BZ$5/12,IFERROR(-IPMT($BZ$5/12,BT13,$F$1*12,$C$1,0),0)) -> $0.00 | BX13: $0.00 | BY13: $1,800,000.00 | CC13: 9 | CD13: 1 | CE13: =IF(('Comparison Calculator'!$E$11-CD13)>=0,0,IFERROR(-PPMT($CI$5/12,CC13,$F$1*12,$C$1),0)) -> $0.00 | CF13: =IF(('Comparison Calculator'!$G$11-CD13)>=0,$C$1*$CI$5/12,IFERROR(-IPMT($CI$5/12,CC13,$F$1*12,$C$1,0),0)) -> $0.00 | CG13: $0.00 | CH13: $1,800,000.00 | CL13: 9 | CM13: 1 | CN13: =IF(('Comparison Calculator'!$E$11-CM13)>=0,0,IFERROR(-PPMT($CR$5/12,CL13,$F$1*12,$C$1),0)) -> $0.00 | CO13: =IF(('Comparison Calculator'!$G$11-CM13)>=0,$C$1*$CR$5/12,IFERROR(-IPMT($CR$5/12,CL13,$F$1*12,$C$1,0),0)) -> $0.00 | CP13: $0.00 | CQ13: $1,800,000.00 | CU13: 9 | CV13: 1 | CW13: =IF(('Comparison Calculator'!$E$11-CV13)>=0,0,IFERROR(-PPMT($DA$5/12,CU13,$F$1*12,$C$1),0)) -> $0.00 | CX13: =IF(('Comparison Calculator'!$G$11-CV13)>=0,$C$1*$DA$5/12,IFERROR(-IPMT($DA$5/12,CU13,$F$1*12,$C$1,0),0)) -> $0.00 | CY13: $0.00 | CZ13: $1,800,000.00 | DD13: 9 | DE13: 1 | DF13: =IF(('Comparison Calculator'!$E$11-DE13)>=0,0,IFERROR(-PPMT($DJ$5/12,DD13,$F$1*12,$C$1),0)) -> $0.00 | DG13: =IF(('Comparison Calculator'!$G$11-DE13)>=0,$C$1*$DJ$5/12,IFERROR(-IPMT($DJ$5/12,DD13,$F$1*12,$C$1,0),0)) -> $0.00 | DH13: $0.00 | DI13: $1,800,000.00
A14: 10 | B14: 1 | C14: =IF(('Comparison Calculator'!$E$11-B14)>=0,0,IFERROR(-PPMT($G$5/12,A14,$F$1*12,$C$1),0)) -> $0.00 | D14: =IF(('Comparison Calculator'!$G$11-B14)>=0,$C$1*$G$5/12,IFERROR(-IPMT($G$5/12,A14,$F$1*12,$C$1,0),0)) -> $0.00 | E14: $0.00 | F14: $1,800,000.00 | J14: 10 | K14: 1 | L14: =IF(('Comparison Calculator'!$E$11-K14)>=0,0,IFERROR(-PPMT($P$5/12,J14,$F$1*12,$C$1),0)) -> $0.00 | M14: =IF(('Comparison Calculator'!$G$11-K14)>=0,$C$1*$P$5/12,IFERROR(-IPMT($P$5/12,J14,$F$1*12,$C$1,0),0)) -> $0.00 | N14: $0.00 | O14: $1,800,000.00 | S14: 10 | T14: 1 | U14: =IF(('Comparison Calculator'!$E$11-T14)>=0,0,IFERROR(-PPMT($Y$5/12,S14,$F$1*12,$C$1),0)) -> $0.00 | V14: =IF(('Comparison Calculator'!$G$11-T14)>=0,$C$1*$Y$5/12,IFERROR(-IPMT($Y$5/12,S14,$F$1*12,$C$1,0),0)) -> $0.00 | W14: $0.00 | X14: $1,800,000.00 | AB14: 10 | AC14: 1 | AD14: =IF(('Comparison Calculator'!$E$11-AC14)>=0,0,IFERROR(-PPMT($AH$5/12,AB14,$F$1*12,$C$1),0)) -> $0.00 | AE14: =IF(('Comparison Calculator'!$G$11-AC14)>=0,$C$1*$AH$5/12,IFERROR(-IPMT($AH$5/12,AB14,$F$1*12,$C$1,0),0)) -> $0.00 | AF14: $0.00 | AG14: $1,800,000.00 | AK14: 10 | AL14: 1 | AM14: =IF(('Comparison Calculator'!$E$11-AL14)>=0,0,IFERROR(-PPMT($AQ$5/12,AK14,$F$1*12,$C$1),0)) -> $0.00 | AN14: =IF(('Comparison Calculator'!$G$11-AL14)>=0,$C$1*$AQ$5/12,IFERROR(-IPMT($AQ$5/12,AK14,$F$1*12,$C$1,0),0)) -> $0.00 | AO14: $0.00 | AP14: $1,800,000.00 | AT14: 10 | AU14: 1 | AV14: =IF(('Comparison Calculator'!$E$11-AU14)>=0,0,IFERROR(-PPMT($AZ$5/12,AT14,$F$1*12,$C$1),0)) -> $0.00 | AW14: =IF(('Comparison Calculator'!$G$11-AU14)>=0,$C$1*$AZ$5/12,IFERROR(-IPMT($AZ$5/12,AT14,$F$1*12,$C$1,0),0)) -> $0.00 | AX14: $0.00 | AY14: $1,800,000.00 | BC14: 10 | BD14: 1 | BE14: =IF(('Comparison Calculator'!$E$11-BD14)>=0,0,IFERROR(-PPMT($BI$5/12,BC14,$F$1*12,$C$1),0)) -> $0.00 | BF14: =IF(('Comparison Calculator'!$G$11-BD14)>=0,$C$1*$BI$5/12,IFERROR(-IPMT($BI$5/12,BC14,$F$1*12,$C$1,0),0)) -> $0.00 | BG14: $0.00 | BH14: $1,800,000.00 | BK14: 10 | BL14: 1 | BM14: =IF(('Comparison Calculator'!$E$11-BL14)>=0,0,IFERROR(-PPMT($BQ$5/12,BK14,$F$1*12,$C$1),0)) -> $0.00 | BN14: =IF(('Comparison Calculator'!$G$11-BL14)>=0,$C$1*$BQ$5/12,IFERROR(-IPMT($BQ$5/12,BK14,$F$1*12,$C$1,0),0)) -> $0.00 | BO14: $0.00 | BP14: $1,800,000.00 | BT14: 10 | BU14: 1 | BV14: =IF(('Comparison Calculator'!$E$11-BU14)>=0,0,IFERROR(-PPMT($BZ$5/12,BT14,$F$1*12,$C$1),0)) -> $0.00 | BW14: =IF(('Comparison Calculator'!$G$11-BU14)>=0,$C$1*$BZ$5/12,IFERROR(-IPMT($BZ$5/12,BT14,$F$1*12,$C$1,0),0)) -> $0.00 | BX14: $0.00 | BY14: $1,800,000.00 | CC14: 10 | CD14: 1 | CE14: =IF(('Comparison Calculator'!$E$11-CD14)>=0,0,IFERROR(-PPMT($CI$5/12,CC14,$F$1*12,$C$1),0)) -> $0.00 | CF14: =IF(('Comparison Calculator'!$G$11-CD14)>=0,$C$1*$CI$5/12,IFERROR(-IPMT($CI$5/12,CC14,$F$1*12,$C$1,0),0)) -> $0.00 | CG14: $0.00 | CH14: $1,800,000.00 | CL14: 10 | CM14: 1 | CN14: =IF(('Comparison Calculator'!$E$11-CM14)>=0,0,IFERROR(-PPMT($CR$5/12,CL14,$F$1*12,$C$1),0)) -> $0.00 | CO14: =IF(('Comparison Calculator'!$G$11-CM14)>=0,$C$1*$CR$5/12,IFERROR(-IPMT($CR$5/12,CL14,$F$1*12,$C$1,0),0)) -> $0.00 | CP14: $0.00 | CQ14: $1,800,000.00 | CU14: 10 | CV14: 1 | CW14: =IF(('Comparison Calculator'!$E$11-CV14)>=0,0,IFERROR(-PPMT($DA$5/12,CU14,$F$1*12,$C$1),0)) -> $0.00 | CX14: =IF(('Comparison Calculator'!$G$11-CV14)>=0,$C$1*$DA$5/12,IFERROR(-IPMT($DA$5/12,CU14,$F$1*12,$C$1,0),0)) -> $0.00 | CY14: $0.00 | CZ14: $1,800,000.00 | DD14: 10 | DE14: 1 | DF14: =IF(('Comparison Calculator'!$E$11-DE14)>=0,0,IFERROR(-PPMT($DJ$5/12,DD14,$F$1*12,$C$1),0)) -> $0.00 | DG14: =IF(('Comparison Calculator'!$G$11-DE14)>=0,$C$1*$DJ$5/12,IFERROR(-IPMT($DJ$5/12,DD14,$F$1*12,$C$1,0),0)) -> $0.00 | DH14: $0.00 | DI14: $1,800,000.00
A15: 11 | B15: 1 | C15: =IF(('Comparison Calculator'!$E$11-B15)>=0,0,IFERROR(-PPMT($G$5/12,A15,$F$1*12,$C$1),0)) -> $0.00 | D15: =IF(('Comparison Calculator'!$G$11-B15)>=0,$C$1*$G$5/12,IFERROR(-IPMT($G$5/12,A15,$F$1*12,$C$1,0),0)) -> $0.00 | E15: $0.00 | F15: $1,800,000.00 | J15: 11 | K15: 1 | L15: =IF(('Comparison Calculator'!$E$11-K15)>=0,0,IFERROR(-PPMT($P$5/12,J15,$F$1*12,$C$1),0)) -> $0.00 | M15: =IF(('Comparison Calculator'!$G$11-K15)>=0,$C$1*$P$5/12,IFERROR(-IPMT($P$5/12,J15,$F$1*12,$C$1,0),0)) -> $0.00 | N15: $0.00 | O15: $1,800,000.00 | S15: 11 | T15: 1 | U15: =IF(('Comparison Calculator'!$E$11-T15)>=0,0,IFERROR(-PPMT($Y$5/12,S15,$F$1*12,$C$1),0)) -> $0.00 | V15: =IF(('Comparison Calculator'!$G$11-T15)>=0,$C$1*$Y$5/12,IFERROR(-IPMT($Y$5/12,S15,$F$1*12,$C$1,0),0)) -> $0.00 | W15: $0.00 | X15: $1,800,000.00 | AB15: 11 | AC15: 1 | AD15: =IF(('Comparison Calculator'!$E$11-AC15)>=0,0,IFERROR(-PPMT($AH$5/12,AB15,$F$1*12,$C$1),0)) -> $0.00 | AE15: =IF(('Comparison Calculator'!$G$11-AC15)>=0,$C$1*$AH$5/12,IFERROR(-IPMT($AH$5/12,AB15,$F$1*12,$C$1,0),0)) -> $0.00 | AF15: $0.00 | AG15: $1,800,000.00 | AK15: 11 | AL15: 1 | AM15: =IF(('Comparison Calculator'!$E$11-AL15)>=0,0,IFERROR(-PPMT($AQ$5/12,AK15,$F$1*12,$C$1),0)) -> $0.00 | AN15: =IF(('Comparison Calculator'!$G$11-AL15)>=0,$C$1*$AQ$5/12,IFERROR(-IPMT($AQ$5/12,AK15,$F$1*12,$C$1,0),0)) -> $0.00 | AO15: $0.00 | AP15: $1,800,000.00 | AT15: 11 | AU15: 1 | AV15: =IF(('Comparison Calculator'!$E$11-AU15)>=0,0,IFERROR(-PPMT($AZ$5/12,AT15,$F$1*12,$C$1),0)) -> $0.00 | AW15: =IF(('Comparison Calculator'!$G$11-AU15)>=0,$C$1*$AZ$5/12,IFERROR(-IPMT($AZ$5/12,AT15,$F$1*12,$C$1,0),0)) -> $0.00 | AX15: $0.00 | AY15: $1,800,000.00 | BC15: 11 | BD15: 1 | BE15: =IF(('Comparison Calculator'!$E$11-BD15)>=0,0,IFERROR(-PPMT($BI$5/12,BC15,$F$1*12,$C$1),0)) -> $0.00 | BF15: =IF(('Comparison Calculator'!$G$11-BD15)>=0,$C$1*$BI$5/12,IFERROR(-IPMT($BI$5/12,BC15,$F$1*12,$C$1,0),0)) -> $0.00 | BG15: $0.00 | BH15: $1,800,000.00 | BK15: 11 | BL15: 1 | BM15: =IF(('Comparison Calculator'!$E$11-BL15)>=0,0,IFERROR(-PPMT($BQ$5/12,BK15,$F$1*12,$C$1),0)) -> $0.00 | BN15: =IF(('Comparison Calculator'!$G$11-BL15)>=0,$C$1*$BQ$5/12,IFERROR(-IPMT($BQ$5/12,BK15,$F$1*12,$C$1,0),0)) -> $0.00 | BO15: $0.00 | BP15: $1,800,000.00 | BT15: 11 | BU15: 1 | BV15: =IF(('Comparison Calculator'!$E$11-BU15)>=0,0,IFERROR(-PPMT($BZ$5/12,BT15,$F$1*12,$C$1),0)) -> $0.00 | BW15: =IF(('Comparison Calculator'!$G$11-BU15)>=0,$C$1*$BZ$5/12,IFERROR(-IPMT($BZ$5/12,BT15,$F$1*12,$C$1,0),0)) -> $0.00 | BX15: $0.00 | BY15: $1,800,000.00 | CC15: 11 | CD15: 1 | CE15: =IF(('Comparison Calculator'!$E$11-CD15)>=0,0,IFERROR(-PPMT($CI$5/12,CC15,$F$1*12,$C$1),0)) -> $0.00 | CF15: =IF(('Comparison Calculator'!$G$11-CD15)>=0,$C$1*$CI$5/12,IFERROR(-IPMT($CI$5/12,CC15,$F$1*12,$C$1,0),0)) -> $0.00 | CG15: $0.00 | CH15: $1,800,000.00 | CL15: 11 | CM15: 1 | CN15: =IF(('Comparison Calculator'!$E$11-CM15)>=0,0,IFERROR(-PPMT($CR$5/12,CL15,$F$1*12,$C$1),0)) -> $0.00 | CO15: =IF(('Comparison Calculator'!$G$11-CM15)>=0,$C$1*$CR$5/12,IFERROR(-IPMT($CR$5/12,CL15,$F$1*12,$C$1,0),0)) -> $0.00 | CP15: $0.00 | CQ15: $1,800,000.00 | CU15: 11 | CV15: 1 | CW15: =IF(('Comparison Calculator'!$E$11-CV15)>=0,0,IFERROR(-PPMT($DA$5/12,CU15,$F$1*12,$C$1),0)) -> $0.00 | CX15: =IF(('Comparison Calculator'!$G$11-CV15)>=0,$C$1*$DA$5/12,IFERROR(-IPMT($DA$5/12,CU15,$F$1*12,$C$1,0),0)) -> $0.00 | CY15: $0.00 | CZ15: $1,800,000.00 | DD15: 11 | DE15: 1 | DF15: =IF(('Comparison Calculator'!$E$11-DE15)>=0,0,IFERROR(-PPMT($DJ$5/12,DD15,$F$1*12,$C$1),0)) -> $0.00 | DG15: =IF(('Comparison Calculator'!$G$11-DE15)>=0,$C$1*$DJ$5/12,IFERROR(-IPMT($DJ$5/12,DD15,$F$1*12,$C$1,0),0)) -> $0.00 | DH15: $0.00 | DI15: $1,800,000.00
A16: 12 | B16: 1 | C16: =IF(('Comparison Calculator'!$E$11-B16)>=0,0,IFERROR(-PPMT($G$5/12,A16,$F$1*12,$C$1),0)) -> $0.00 | D16: =IF(('Comparison Calculator'!$G$11-B16)>=0,$C$1*$G$5/12,IFERROR(-IPMT($G$5/12,A16,$F$1*12,$C$1,0),0)) -> $0.00 | E16: $0.00 | F16: $1,800,000.00 | G16: =SUM(E5:E16)+H1 -> $499.00 | J16: 12 | K16: 1 | L16: =IF(('Comparison Calculator'!$E$11-K16)>=0,0,IFERROR(-PPMT($P$5/12,J16,$F$1*12,$C$1),0)) -> $0.00 | M16: =IF(('Comparison Calculator'!$G$11-K16)>=0,$C$1*$P$5/12,IFERROR(-IPMT($P$5/12,J16,$F$1*12,$C$1,0),0)) -> $0.00 | N16: $0.00 | O16: $1,800,000.00 | P16: =SUM(N5:N16)+Q1 -> $468.00 | S16: 12 | T16: 1 | U16: =IF(('Comparison Calculator'!$E$11-T16)>=0,0,IFERROR(-PPMT($Y$5/12,S16,$F$1*12,$C$1),0)) -> $0.00 | V16: =IF(('Comparison Calculator'!$G$11-T16)>=0,$C$1*$Y$5/12,IFERROR(-IPMT($Y$5/12,S16,$F$1*12,$C$1,0),0)) -> $0.00 | W16: $0.00 | X16: $1,800,000.00 | Y16: =SUM(W5:W16)+$Z$1 -> $499.00 | AB16: 12 | AC16: 1 | AD16: =IF(('Comparison Calculator'!$E$11-AC16)>=0,0,IFERROR(-PPMT($AH$5/12,AB16,$F$1*12,$C$1),0)) -> $0.00 | AE16: =IF(('Comparison Calculator'!$G$11-AC16)>=0,$C$1*$AH$5/12,IFERROR(-IPMT($AH$5/12,AB16,$F$1*12,$C$1,0),0)) -> $0.00 | AF16: $0.00 | AG16: $1,800,000.00 | AH16: =SUM(AF5:AF16)+$AI$1 -> $499.00 | AK16: 12 | AL16: 1 | AM16: =IF(('Comparison Calculator'!$E$11-AL16)>=0,0,IFERROR(-PPMT($AQ$5/12,AK16,$F$1*12,$C$1),0)) -> $0.00 | AN16: =IF(('Comparison Calculator'!$G$11-AL16)>=0,$C$1*$AQ$5/12,IFERROR(-IPMT($AQ$5/12,AK16,$F$1*12,$C$1,0),0)) -> $0.00 | AO16: $0.00 | AP16: $1,800,000.00 | AQ16: =SUM(AO5:AO16)+$AR$1 -> $499.00 | AT16: 12 | AU16: 1 | AV16: =IF(('Comparison Calculator'!$E$11-AU16)>=0,0,IFERROR(-PPMT($AZ$5/12,AT16,$F$1*12,$C$1),0)) -> $0.00 | AW16: =IF(('Comparison Calculator'!$G$11-AU16)>=0,$C$1*$AZ$5/12,IFERROR(-IPMT($AZ$5/12,AT16,$F$1*12,$C$1,0),0)) -> $0.00 | AX16: $0.00 | AY16: $1,800,000.00 | AZ16: =SUM(AX5:AX16)+$BA$1 -> $499.00 | BC16: 12 | BD16: 1 | BE16: =IF(('Comparison Calculator'!$E$11-BD16)>=0,0,IFERROR(-PPMT($BI$5/12,BC16,$F$1*12,$C$1),0)) -> $0.00 | BF16: =IF(('Comparison Calculator'!$G$11-BD16)>=0,$C$1*$BI$5/12,IFERROR(-IPMT($BI$5/12,BC16,$F$1*12,$C$1,0),0)) -> $0.00 | BG16: $0.00 | BH16: $1,800,000.00 | BI16: =SUM(BG5:BG16)+$BA$1 -> $499.00 | BK16: 12 | BL16: 1 | BM16: =IF(('Comparison Calculator'!$E$11-BL16)>=0,0,IFERROR(-PPMT($BQ$5/12,BK16,$F$1*12,$C$1),0)) -> $0.00 | BN16: =IF(('Comparison Calculator'!$G$11-BL16)>=0,$C$1*$BQ$5/12,IFERROR(-IPMT($BQ$5/12,BK16,$F$1*12,$C$1,0),0)) -> $0.00 | BO16: $0.00 | BP16: $1,800,000.00 | BQ16: =SUM(BO5:BO16)+$BR$1 -> $499.00 | BT16: 12 | BU16: 1 | BV16: =IF(('Comparison Calculator'!$E$11-BU16)>=0,0,IFERROR(-PPMT($BZ$5/12,BT16,$F$1*12,$C$1),0)) -> $0.00 | BW16: =IF(('Comparison Calculator'!$G$11-BU16)>=0,$C$1*$BZ$5/12,IFERROR(-IPMT($BZ$5/12,BT16,$F$1*12,$C$1,0),0)) -> $0.00 | BX16: $0.00 | BY16: $1,800,000.00 | BZ16: =SUM(BX5:BX16)+$CA$1 -> $499.00 | CC16: 12 | CD16: 1 | CE16: =IF(('Comparison Calculator'!$E$11-CD16)>=0,0,IFERROR(-PPMT($CI$5/12,CC16,$F$1*12,$C$1),0)) -> $0.00 | CF16: =IF(('Comparison Calculator'!$G$11-CD16)>=0,$C$1*$CI$5/12,IFERROR(-IPMT($CI$5/12,CC16,$F$1*12,$C$1,0),0)) -> $0.00 | CG16: $0.00 | CH16: $1,800,000.00 | CI16: =SUM(CG5:CG16)+$CJ$1 -> $468.00 | CL16: 12 | CM16: 1 | CN16: =IF(('Comparison Calculator'!$E$11-CM16)>=0,0,IFERROR(-PPMT($CR$5/12,CL16,$F$1*12,$C$1),0)) -> $0.00 | CO16: =IF(('Comparison Calculator'!$G$11-CM16)>=0,$C$1*$CR$5/12,IFERROR(-IPMT($CR$5/12,CL16,$F$1*12,$C$1,0),0)) -> $0.00 | CP16: $0.00 | CQ16: $1,800,000.00 | CR16: =SUM(CP5:CP16)+$CS$1 -> $499.00 | CU16: 12 | CV16: 1 | CW16: =IF(('Comparison Calculator'!$E$11-CV16)>=0,0,IFERROR(-PPMT($DA$5/12,CU16,$F$1*12,$C$1),0)) -> $0.00 | CX16: =IF(('Comparison Calculator'!$G$11-CV16)>=0,$C$1*$DA$5/12,IFERROR(-IPMT($DA$5/12,CU16,$F$1*12,$C$1,0),0)) -> $0.00 | CY16: $0.00 | CZ16: $1,800,000.00 | DA16: =SUM(CY5:CY16)+$DB$1 -> $499.00 | DD16: 12 | DE16: 1 | DF16: =IF(('Comparison Calculator'!$E$11-DE16)>=0,0,IFERROR(-PPMT($DJ$5/12,DD16,$F$1*12,$C$1),0)) -> $0.00 | DG16: =IF(('Comparison Calculator'!$G$11-DE16)>=0,$C$1*$DJ$5/12,IFERROR(-IPMT($DJ$5/12,DD16,$F$1*12,$C$1,0),0)) -> $0.00 | DH16: $0.00 | DI16: $1,800,000.00 | DJ16: =SUM(DH5:DH16)+$DK$1 -> $499.00
A17: 13 | B17: 2 | C17: =IF(('Comparison Calculator'!$E$11-B17)>=0,0,IFERROR(-PPMT($G$18/12,(A17-12),($F$1-1)*12,$G$17),0)) -> $0.00 | D17: =IF(('Comparison Calculator'!$E$11-B17)>=0,$C$1*$G$18/12,IFERROR(-IPMT($G$18/12,(A17-12),($F$1-1)*12,$G$17,0),0)) -> $9,720.00 | E17: $9,720.00 | F17: $1,800,000.00 | G17: =F16 -> $1,800,000.00 | J17: 13 | K17: 2 | L17: =IF(('Comparison Calculator'!$E$11-K17)>=0,0,IFERROR(-PPMT($P$18/12,(J17-12),($F$1-1)*12,$P$17),0)) -> $0.00 | M17: =IF(('Comparison Calculator'!$E$11-K17)>=0,$C$1*$P$18/12,IFERROR(-IPMT($P$18/12,(J17-12),($F$1-1)*12,$P$17,0),0)) -> $9,720.00 | N17: $9,720.00 | O17: $1,800,000.00 | P17: =O16 -> $1,800,000.00 | S17: 13 | T17: 2 | U17: =IF(('Comparison Calculator'!$E$11-T17)>=0,0,IFERROR(-PPMT($Y$18/12,(S17-12),($F$1-1)*12,$Y$17),0)) -> $0.00 | V17: =IF(('Comparison Calculator'!$E$11-T17)>=0,$C$1*$Y$18/12,IFERROR(-IPMT($Y$18/12,(S17-12),($F$1-1)*12,$Y$17,0),0)) ->  | X17: $1,800,000.00 | Y17: =X16 -> $1,800,000.00 | AB17: 13 | AC17: 2 | AD17: =IF(('Comparison Calculator'!$E$11-AC17)>=0,0,IFERROR(-PPMT($AH$18/12,(AB17-12),($F$1-1)*12,$AH$17),0)) -> $0.00 | AE17: =IF(('Comparison Calculator'!$E$11-AC17)>=0,$C$1*$AH$18/12,IFERROR(-IPMT($AH$18/12,(AB17-12),($F$1-1)*12,$AH$17,0),0)) ->  | AG17: $1,800,000.00 | AH17: =AG16 -> $1,800,000.00 | AK17: 13 | AL17: 2 | AM17: =IF(('Comparison Calculator'!$E$11-AL17)>=0,0,IFERROR(-PPMT($AQ$18/12,(AK17-12),($F$1-1)*12,$AQ$17),0)) -> $0.00 | AN17: =IF(('Comparison Calculator'!$E$11-AL17)>=0,$C$1*$AQ$18/12,IFERROR(-IPMT($AQ$18/12,(AK17-12),($F$1-1)*12,$AQ$17,0),0)) -> $8,040.00 | AO17: $8,040.00 | AP17: $1,800,000.00 | AQ17: =AP16 -> $1,800,000.00 | AT17: 13 | AU17: 2 | AV17: =IF(('Comparison Calculator'!$E$11-AU17)>=0,0,IFERROR(-PPMT($AZ$18/12,(AT17-12),($F$1-1)*12,$AZ$17),0)) -> $0.00 | AW17: =IF(('Comparison Calculator'!$E$11-AU17)>=0,$C$1*$AZ$18/12,IFERROR(-IPMT($AZ$18/12,(AT17-12),($F$1-1)*12,$AZ$17,0),0)) ->  | AY17: $1,800,000.00 | AZ17: =AY16 -> $1,800,000.00 | BC17: 13 | BD17: 2 | BE17: =IF(('Comparison Calculator'!$E$11-BD17)>=0,0,IFERROR(-PPMT($BI$18/12,(BC17-12),($F$1-1)*12,$BI$17),0)) -> $0.00 | BF17: =IF(('Comparison Calculator'!$E$11-BD17)>=0,$C$1*$BI$18/12,IFERROR(-IPMT($BI$18/12,(BC17-12),($F$1-1)*12,$BI$17,0),0)) -> $7,470.00 | BG17: $7,470.00 | BH17: $1,800,000.00 | BI17: =BH16 -> $1,800,000.00 | BK17: 13 | BL17: 2 | BM17: =IF(('Comparison Calculator'!$E$11-BL17)>=0,0,IFERROR(-PPMT($BQ$18/12,(BK17-12),($F$1-1)*12,$BQ$17),0)) -> $0.00 | BN17: =IF(('Comparison Calculator'!$E$11-BL17)>=0,$C$1*$BQ$18/12,IFERROR(-IPMT($BQ$18/12,(BK17-12),($F$1-1)*12,$BQ$17,0),0)) -> $9,720.00 | BO17: $9,720.00 | BP17: $1,800,000.00 | BQ17: =BP16 -> $1,800,000.00 | BT17: 13 | BU17: 2 | BV17: =IF(('Comparison Calculator'!$E$11-BU17)>=0,0,IFERROR(-PPMT($BZ$18/12,(BT17-12),($F$1-1)*12,$BZ$17),0)) -> $0.00 | BW17: =IF(('Comparison Calculator'!$E$11-BU17)>=0,$C$1*$BZ$18/12,IFERROR(-IPMT($BZ$18/12,(BT17-12),($F$1-1)*12,$BZ$17,0),0)) -> $9,720.00 | BX17: $9,720.00 | BY17: $1,800,000.00 | BZ17: =BY16 -> $1,800,000.00 | CC17: 13 | CD17: 2 | CE17: =IF(('Comparison Calculator'!$E$11-CD17)>=0,0,IFERROR(-PPMT($CI$18/12,(CC17-12),($F$1-1)*12,$CI$17),0)) -> $0.00 | CF17: =IF(('Comparison Calculator'!$E$11-CD17)>=0,$C$1*$CI$18/12,IFERROR(-IPMT($CI$18/12,(CC17-12),($F$1-1)*12,$CI$17,0),0)) -> $9,570.00 | CG17: $9,570.00 | CH17: $1,800,000.00 | CI17: =CH16 -> $1,800,000.00 | CL17: 13 | CM17: 2 | CN17: =IF(('Comparison Calculator'!$E$11-CM17)>=0,0,IFERROR(-PPMT($CR$18/12,(CL17-12),($F$1-1)*12,$CR$17),0)) -> $0.00 | CO17: =IF(('Comparison Calculator'!$E$11-CM17)>=0,$C$1*$CR$18/12,IFERROR(-IPMT($CR$18/12,(CL17-12),($F$1-1)*12,$CR$17,0),0)) ->  | CQ17: $1,800,000.00 | CR17: =CQ16 -> $1,800,000.00 | CU17: 13 | CV17: 2 | CW17: =IF(('Comparison Calculator'!$E$11-CV17)>=0,0,IFERROR(-PPMT($DA$18/12,(CU17-12),($F$1-1)*12,$DA$17),0)) -> $0.00 | CX17: =IF(('Comparison Calculator'!$E$11-CV17)>=0,$C$1*$DA$18/12,IFERROR(-IPMT($DA$18/12,(CU17-12),($F$1-1)*12,$DA$17,0),0)) ->  | CZ17: $1,800,000.00 | DA17: =CZ16 -> $1,800,000.00 | DD17: 13 | DE17: 2 | DF17: =IF(('Comparison Calculator'!$E$11-DE17)>=0,0,IFERROR(-PPMT($DJ$18/12,(DD17-12),($F$1-1)*12,$DJ$17),0)) -> $0.00 | DG17: =IF(('Comparison Calculator'!$E$11-DE17)>=0,$C$1*$DJ$18/12,IFERROR(-IPMT($DJ$18/12,(DD17-12),($F$1-1)*12,$DJ$17,0),0)) ->  | DI17: $1,800,000.00 | DJ17: =DI16 -> $1,800,000.00
A18: 14 | B18: 2 | C18: =IF(('Comparison Calculator'!$E$11-B18)>=0,0,IFERROR(-PPMT($G$18/12,(A18-12),($F$1-1)*12,$G$17),0)) -> $0.00 | D18: =IF(('Comparison Calculator'!$E$11-B18)>=0,$C$1*$G$18/12,IFERROR(-IPMT($G$18/12,(A18-12),($F$1-1)*12,$G$17,0),0)) -> $9,720.00 | E18: $9,720.00 | F18: $1,800,000.00 | G18: =Rates!D23 -> 6.48% | J18: 14 | K18: 2 | L18: =IF(('Comparison Calculator'!$E$11-K18)>=0,0,IFERROR(-PPMT($P$18/12,(J18-12),($F$1-1)*12,$P$17),0)) -> $0.00 | M18: =IF(('Comparison Calculator'!$E$11-K18)>=0,$C$1*$P$18/12,IFERROR(-IPMT($P$18/12,(J18-12),($F$1-1)*12,$P$17,0),0)) -> $9,720.00 | N18: $9,720.00 | O18: $1,800,000.00 | P18: =Rates!L23 -> 6.48% | S18: 14 | T18: 2 | U18: =IF(('Comparison Calculator'!$E$11-T18)>=0,0,IFERROR(-PPMT($Y$18/12,(S18-12),($F$1-1)*12,$Y$17),0)) -> $0.00 | V18: =IF(('Comparison Calculator'!$E$11-T18)>=0,$C$1*$Y$18/12,IFERROR(-IPMT($Y$18/12,(S18-12),($F$1-1)*12,$Y$17,0),0)) ->  | X18: $1,800,000.00 | Y18: =Rates!$E$44 ->  | AB18: 14 | AC18: 2 | AD18: =IF(('Comparison Calculator'!$E$11-AC18)>=0,0,IFERROR(-PPMT($AH$18/12,(AB18-12),($F$1-1)*12,$AH$17),0)) -> $0.00 | AE18: =IF(('Comparison Calculator'!$E$11-AC18)>=0,$C$1*$AH$18/12,IFERROR(-IPMT($AH$18/12,(AB18-12),($F$1-1)*12,$AH$17,0),0)) ->  | AG18: $1,800,000.00 | AH18: =Rates!$M$44 ->  | AK18: 14 | AL18: 2 | AM18: =IF(('Comparison Calculator'!$E$11-AL18)>=0,0,IFERROR(-PPMT($AQ$18/12,(AK18-12),($F$1-1)*12,$AQ$17),0)) -> $0.00 | AN18: =IF(('Comparison Calculator'!$E$11-AL18)>=0,$C$1*$AQ$18/12,IFERROR(-IPMT($AQ$18/12,(AK18-12),($F$1-1)*12,$AQ$17,0),0)) -> $8,040.00 | AO18: $8,040.00 | AP18: $1,800,000.00 | AQ18: =Rates!$C$66 -> 5.36% | AT18: 14 | AU18: 2 | AV18: =IF(('Comparison Calculator'!$E$11-AU18)>=0,0,IFERROR(-PPMT($AZ$18/12,(AT18-12),($F$1-1)*12,$AZ$17),0)) -> $0.00 | AW18: =IF(('Comparison Calculator'!$E$11-AU18)>=0,$C$1*$AZ$18/12,IFERROR(-IPMT($AZ$18/12,(AT18-12),($F$1-1)*12,$AZ$17,0),0)) ->  | AY18: $1,800,000.00 | AZ18: =Rates!$L$66 ->  | BC18: 14 | BD18: 2 | BE18: =IF(('Comparison Calculator'!$E$11-BD18)>=0,0,IFERROR(-PPMT($BI$18/12,(BC18-12),($F$1-1)*12,$BI$17),0)) -> $0.00 | BF18: =IF(('Comparison Calculator'!$E$11-BD18)>=0,$C$1*$BI$18/12,IFERROR(-IPMT($BI$18/12,(BC18-12),($F$1-1)*12,$BI$17,0),0)) -> $7,470.00 | BG18: $7,470.00 | BH18: $1,800,000.00 | BI18: ='Comparison Calculator'!N12 -> 4.98% | BK18: 14 | BL18: 2 | BM18: =IF(('Comparison Calculator'!$E$11-BL18)>=0,0,IFERROR(-PPMT($BQ$18/12,(BK18-12),($F$1-1)*12,$BQ$17),0)) -> $0.00 | BN18: =IF(('Comparison Calculator'!$E$11-BL18)>=0,$C$1*$BQ$18/12,IFERROR(-IPMT($BQ$18/12,(BK18-12),($F$1-1)*12,$BQ$17,0),0)) -> $9,720.00 | BO18: $9,720.00 | BP18: $1,800,000.00 | BQ18: =Rates!$C$86 -> 6.48% | BT18: 14 | BU18: 2 | BV18: =IF(('Comparison Calculator'!$E$11-BU18)>=0,0,IFERROR(-PPMT($BZ$18/12,(BT18-12),($F$1-1)*12,$BZ$17),0)) -> $0.00 | BW18: =IF(('Comparison Calculator'!$E$11-BU18)>=0,$C$1*$BZ$18/12,IFERROR(-IPMT($BZ$18/12,(BT18-12),($F$1-1)*12,$BZ$17,0),0)) -> $9,720.00 | BX18: $9,720.00 | BY18: $1,800,000.00 | BZ18: =Rates!$K$86 -> 6.48% | CC18: 14 | CD18: 2 | CE18: =IF(('Comparison Calculator'!$E$11-CD18)>=0,0,IFERROR(-PPMT($CI$18/12,(CC18-12),($F$1-1)*12,$CI$17),0)) -> $0.00 | CF18: =IF(('Comparison Calculator'!$E$11-CD18)>=0,$C$1*$CI$18/12,IFERROR(-IPMT($CI$18/12,(CC18-12),($F$1-1)*12,$CI$17,0),0)) -> $9,570.00 | CG18: $9,570.00 | CH18: $1,800,000.00 | CI18: =Rates!$C$105 -> 6.38% | CL18: 14 | CM18: 2 | CN18: =IF(('Comparison Calculator'!$E$11-CM18)>=0,0,IFERROR(-PPMT($CR$18/12,(CL18-12),($F$1-1)*12,$CR$17),0)) -> $0.00 | CO18: =IF(('Comparison Calculator'!$E$11-CM18)>=0,$C$1*$CR$18/12,IFERROR(-IPMT($CR$18/12,(CL18-12),($F$1-1)*12,$CR$17,0),0)) ->  | CQ18: $1,800,000.00 | CR18: =Rates!$B$126 ->  | CU18: 14 | CV18: 2 | CW18: =IF(('Comparison Calculator'!$E$11-CV18)>=0,0,IFERROR(-PPMT($DA$18/12,(CU18-12),($F$1-1)*12,$DA$17),0)) -> $0.00 | CX18: =IF(('Comparison Calculator'!$E$11-CV18)>=0,$C$1*$DA$18/12,IFERROR(-IPMT($DA$18/12,(CU18-12),($F$1-1)*12,$DA$17,0),0)) ->  | CZ18: $1,800,000.00 | DA18: =Rates!$C$145 ->  | DD18: 14 | DE18: 2 | DF18: =IF(('Comparison Calculator'!$E$11-DE18)>=0,0,IFERROR(-PPMT($DJ$18/12,(DD18-12),($F$1-1)*12,$DJ$17),0)) -> $0.00 | DG18: =IF(('Comparison Calculator'!$E$11-DE18)>=0,$C$1*$DJ$18/12,IFERROR(-IPMT($DJ$18/12,(DD18-12),($F$1-1)*12,$DJ$17,0),0)) ->  | DI18: $1,800,000.00 | DJ18: =Rates!$C$165 -> 
A19: 15 | B19: 2 | C19: =IF(('Comparison Calculator'!$E$11-B19)>=0,0,IFERROR(-PPMT($G$18/12,(A19-12),($F$1-1)*12,$G$17),0)) -> $0.00 | D19: =IF(('Comparison Calculator'!$E$11-B19)>=0,$C$1*$G$18/12,IFERROR(-IPMT($G$18/12,(A19-12),($F$1-1)*12,$G$17,0),0)) -> $9,720.00 | E19: $9,720.00 | F19: $1,800,000.00 | J19: 15 | K19: 2 | L19: =IF(('Comparison Calculator'!$E$11-K19)>=0,0,IFERROR(-PPMT($P$18/12,(J19-12),($F$1-1)*12,$P$17),0)) -> $0.00 | M19: =IF(('Comparison Calculator'!$E$11-K19)>=0,$C$1*$P$18/12,IFERROR(-IPMT($P$18/12,(J19-12),($F$1-1)*12,$P$17,0),0)) -> $9,720.00 | N19: $9,720.00 | O19: $1,800,000.00 | S19: 15 | T19: 2 | U19: =IF(('Comparison Calculator'!$E$11-T19)>=0,0,IFERROR(-PPMT($Y$18/12,(S19-12),($F$1-1)*12,$Y$17),0)) -> $0.00 | V19: =IF(('Comparison Calculator'!$E$11-T19)>=0,$C$1*$Y$18/12,IFERROR(-IPMT($Y$18/12,(S19-12),($F$1-1)*12,$Y$17,0),0)) ->  | X19: $1,800,000.00 | AB19: 15 | AC19: 2 | AD19: =IF(('Comparison Calculator'!$E$11-AC19)>=0,0,IFERROR(-PPMT($AH$18/12,(AB19-12),($F$1-1)*12,$AH$17),0)) -> $0.00 | AE19: =IF(('Comparison Calculator'!$E$11-AC19)>=0,$C$1*$AH$18/12,IFERROR(-IPMT($AH$18/12,(AB19-12),($F$1-1)*12,$AH$17,0),0)) ->  | AG19: $1,800,000.00 | AK19: 15 | AL19: 2 | AM19: =IF(('Comparison Calculator'!$E$11-AL19)>=0,0,IFERROR(-PPMT($AQ$18/12,(AK19-12),($F$1-1)*12,$AQ$17),0)) -> $0.00 | AN19: =IF(('Comparison Calculator'!$E$11-AL19)>=0,$C$1*$AQ$18/12,IFERROR(-IPMT($AQ$18/12,(AK19-12),($F$1-1)*12,$AQ$17,0),0)) -> $8,040.00 | AO19: $8,040.00 | AP19: $1,800,000.00 | AT19: 15 | AU19: 2 | AV19: =IF(('Comparison Calculator'!$E$11-AU19)>=0,0,IFERROR(-PPMT($AZ$18/12,(AT19-12),($F$1-1)*12,$AZ$17),0)) -> $0.00 | AW19: =IF(('Comparison Calculator'!$E$11-AU19)>=0,$C$1*$AZ$18/12,IFERROR(-IPMT($AZ$18/12,(AT19-12),($F$1-1)*12,$AZ$17,0),0)) ->  | AY19: $1,800,000.00 | BC19: 15 | BD19: 2 | BE19: =IF(('Comparison Calculator'!$E$11-BD19)>=0,0,IFERROR(-PPMT($BI$18/12,(BC19-12),($F$1-1)*12,$BI$17),0)) -> $0.00 | BF19: =IF(('Comparison Calculator'!$E$11-BD19)>=0,$C$1*$BI$18/12,IFERROR(-IPMT($BI$18/12,(BC19-12),($F$1-1)*12,$BI$17,0),0)) -> $7,470.00 | BG19: $7,470.00 | BH19: $1,800,000.00 | BK19: 15 | BL19: 2 | BM19: =IF(('Comparison Calculator'!$E$11-BL19)>=0,0,IFERROR(-PPMT($BQ$18/12,(BK19-12),($F$1-1)*12,$BQ$17),0)) -> $0.00 | BN19: =IF(('Comparison Calculator'!$E$11-BL19)>=0,$C$1*$BQ$18/12,IFERROR(-IPMT($BQ$18/12,(BK19-12),($F$1-1)*12,$BQ$17,0),0)) -> $9,720.00 | BO19: $9,720.00 | BP19: $1,800,000.00 | BT19: 15 | BU19: 2 | BV19: =IF(('Comparison Calculator'!$E$11-BU19)>=0,0,IFERROR(-PPMT($BZ$18/12,(BT19-12),($F$1-1)*12,$BZ$17),0)) -> $0.00 | BW19: =IF(('Comparison Calculator'!$E$11-BU19)>=0,$C$1*$BZ$18/12,IFERROR(-IPMT($BZ$18/12,(BT19-12),($F$1-1)*12,$BZ$17,0),0)) -> $9,720.00 | BX19: $9,720.00 | BY19: $1,800,000.00 | CC19: 15 | CD19: 2 | CE19: =IF(('Comparison Calculator'!$E$11-CD19)>=0,0,IFERROR(-PPMT($CI$18/12,(CC19-12),($F$1-1)*12,$CI$17),0)) -> $0.00 | CF19: =IF(('Comparison Calculator'!$E$11-CD19)>=0,$C$1*$CI$18/12,IFERROR(-IPMT($CI$18/12,(CC19-12),($F$1-1)*12,$CI$17,0),0)) -> $9,570.00 | CG19: $9,570.00 | CH19: $1,800,000.00 | CL19: 15 | CM19: 2 | CN19: =IF(('Comparison Calculator'!$E$11-CM19)>=0,0,IFERROR(-PPMT($CR$18/12,(CL19-12),($F$1-1)*12,$CR$17),0)) -> $0.00 | CO19: =IF(('Comparison Calculator'!$E$11-CM19)>=0,$C$1*$CR$18/12,IFERROR(-IPMT($CR$18/12,(CL19-12),($F$1-1)*12,$CR$17,0),0)) ->  | CQ19: $1,800,000.00 | CU19: 15 | CV19: 2 | CW19: =IF(('Comparison Calculator'!$E$11-CV19)>=0,0,IFERROR(-PPMT($DA$18/12,(CU19-12),($F$1-1)*12,$DA$17),0)) -> $0.00 | CX19: =IF(('Comparison Calculator'!$E$11-CV19)>=0,$C$1*$DA$18/12,IFERROR(-IPMT($DA$18/12,(CU19-12),($F$1-1)*12,$DA$17,0),0)) ->  | CZ19: $1,800,000.00 | DD19: 15 | DE19: 2 | DF19: =IF(('Comparison Calculator'!$E$11-DE19)>=0,0,IFERROR(-PPMT($DJ$18/12,(DD19-12),($F$1-1)*12,$DJ$17),0)) -> $0.00 | DG19: =IF(('Comparison Calculator'!$E$11-DE19)>=0,$C$1*$DJ$18/12,IFERROR(-IPMT($DJ$18/12,(DD19-12),($F$1-1)*12,$DJ$17,0),0)) ->  | DI19: $1,800,000.00
A20: 16 | B20: 2 | C20: =IF(('Comparison Calculator'!$E$11-B20)>=0,0,IFERROR(-PPMT($G$18/12,(A20-12),($F$1-1)*12,$G$17),0)) -> $0.00 | D20: =IF(('Comparison Calculator'!$E$11-B20)>=0,$C$1*$G$18/12,IFERROR(-IPMT($G$18/12,(A20-12),($F$1-1)*12,$G$17,0),0)) -> $9,720.00 | E20: $9,720.00 | F20: $1,800,000.00 | J20: 16 | K20: 2 | L20: =IF(('Comparison Calculator'!$E$11-K20)>=0,0,IFERROR(-PPMT($P$18/12,(J20-12),($F$1-1)*12,$P$17),0)) -> $0.00 | M20: =IF(('Comparison Calculator'!$E$11-K20)>=0,$C$1*$P$18/12,IFERROR(-IPMT($P$18/12,(J20-12),($F$1-1)*12,$P$17,0),0)) -> $9,720.00 | N20: $9,720.00 | O20: $1,800,000.00 | S20: 16 | T20: 2 | U20: =IF(('Comparison Calculator'!$E$11-T20)>=0,0,IFERROR(-PPMT($Y$18/12,(S20-12),($F$1-1)*12,$Y$17),0)) -> $0.00 | V20: =IF(('Comparison Calculator'!$E$11-T20)>=0,$C$1*$Y$18/12,IFERROR(-IPMT($Y$18/12,(S20-12),($F$1-1)*12,$Y$17,0),0)) ->  | X20: $1,800,000.00 | AB20: 16 | AC20: 2 | AD20: =IF(('Comparison Calculator'!$E$11-AC20)>=0,0,IFERROR(-PPMT($AH$18/12,(AB20-12),($F$1-1)*12,$AH$17),0)) -> $0.00 | AE20: =IF(('Comparison Calculator'!$E$11-AC20)>=0,$C$1*$AH$18/12,IFERROR(-IPMT($AH$18/12,(AB20-12),($F$1-1)*12,$AH$17,0),0)) ->  | AG20: $1,800,000.00 | AK20: 16 | AL20: 2 | AM20: =IF(('Comparison Calculator'!$E$11-AL20)>=0,0,IFERROR(-PPMT($AQ$18/12,(AK20-12),($F$1-1)*12,$AQ$17),0)) -> $0.00 | AN20: =IF(('Comparison Calculator'!$E$11-AL20)>=0,$C$1*$AQ$18/12,IFERROR(-IPMT($AQ$18/12,(AK20-12),($F$1-1)*12,$AQ$17,0),0)) -> $8,040.00 | AO20: $8,040.00 | AP20: $1,800,000.00 | AT20: 16 | AU20: 2 | AV20: =IF(('Comparison Calculator'!$E$11-AU20)>=0,0,IFERROR(-PPMT($AZ$18/12,(AT20-12),($F$1-1)*12,$AZ$17),0)) -> $0.00 | AW20: =IF(('Comparison Calculator'!$E$11-AU20)>=0,$C$1*$AZ$18/12,IFERROR(-IPMT($AZ$18/12,(AT20-12),($F$1-1)*12,$AZ$17,0),0)) ->  | AY20: $1,800,000.00 | BC20: 16 | BD20: 2 | BE20: =IF(('Comparison Calculator'!$E$11-BD20)>=0,0,IFERROR(-PPMT($BI$18/12,(BC20-12),($F$1-1)*12,$BI$17),0)) -> $0.00 | BF20: =IF(('Comparison Calculator'!$E$11-BD20)>=0,$C$1*$BI$18/12,IFERROR(-IPMT($BI$18/12,(BC20-12),($F$1-1)*12,$BI$17,0),0)) -> $7,470.00 | BG20: $7,470.00 | BH20: $1,800,000.00 | BK20: 16 | BL20: 2 | BM20: =IF(('Comparison Calculator'!$E$11-BL20)>=0,0,IFERROR(-PPMT($BQ$18/12,(BK20-12),($F$1-1)*12,$BQ$17),0)) -> $0.00 | BN20: =IF(('Comparison Calculator'!$E$11-BL20)>=0,$C$1*$BQ$18/12,IFERROR(-IPMT($BQ$18/12,(BK20-12),($F$1-1)*12,$BQ$17,0),0)) -> $9,720.00 | BO20: $9,720.00 | BP20: $1,800,000.00 | BT20: 16 | BU20: 2 | BV20: =IF(('Comparison Calculator'!$E$11-BU20)>=0,0,IFERROR(-PPMT($BZ$18/12,(BT20-12),($F$1-1)*12,$BZ$17),0)) -> $0.00 | BW20: =IF(('Comparison Calculator'!$E$11-BU20)>=0,$C$1*$BZ$18/12,IFERROR(-IPMT($BZ$18/12,(BT20-12),($F$1-1)*12,$BZ$17,0),0)) -> $9,720.00 | BX20: $9,720.00 | BY20: $1,800,000.00 | CC20: 16 | CD20: 2 | CE20: =IF(('Comparison Calculator'!$E$11-CD20)>=0,0,IFERROR(-PPMT($CI$18/12,(CC20-12),($F$1-1)*12,$CI$17),0)) -> $0.00 | CF20: =IF(('Comparison Calculator'!$E$11-CD20)>=0,$C$1*$CI$18/12,IFERROR(-IPMT($CI$18/12,(CC20-12),($F$1-1)*12,$CI$17,0),0)) -> $9,570.00 | CG20: $9,570.00 | CH20: $1,800,000.00 | CL20: 16 | CM20: 2 | CN20: =IF(('Comparison Calculator'!$E$11-CM20)>=0,0,IFERROR(-PPMT($CR$18/12,(CL20-12),($F$1-1)*12,$CR$17),0)) -> $0.00 | CO20: =IF(('Comparison Calculator'!$E$11-CM20)>=0,$C$1*$CR$18/12,IFERROR(-IPMT($CR$18/12,(CL20-12),($F$1-1)*12,$CR$17,0),0)) ->  | CQ20: $1,800,000.00 | CU20: 16 | CV20: 2 | CW20: =IF(('Comparison Calculator'!$E$11-CV20)>=0,0,IFERROR(-PPMT($DA$18/12,(CU20-12),($F$1-1)*12,$DA$17),0)) -> $0.00 | CX20: =IF(('Comparison Calculator'!$E$11-CV20)>=0,$C$1*$DA$18/12,IFERROR(-IPMT($DA$18/12,(CU20-12),($F$1-1)*12,$DA$17,0),0)) ->  | CZ20: $1,800,000.00 | DD20: 16 | DE20: 2 | DF20: =IF(('Comparison Calculator'!$E$11-DE20)>=0,0,IFERROR(-PPMT($DJ$18/12,(DD20-12),($F$1-1)*12,$DJ$17),0)) -> $0.00 | DG20: =IF(('Comparison Calculator'!$E$11-DE20)>=0,$C$1*$DJ$18/12,IFERROR(-IPMT($DJ$18/12,(DD20-12),($F$1-1)*12,$DJ$17,0),0)) ->  | DI20: $1,800,000.00
A21: 17 | B21: 2 | C21: =IF(('Comparison Calculator'!$E$11-B21)>=0,0,IFERROR(-PPMT($G$18/12,(A21-12),($F$1-1)*12,$G$17),0)) -> $0.00 | D21: =IF(('Comparison Calculator'!$E$11-B21)>=0,$C$1*$G$18/12,IFERROR(-IPMT($G$18/12,(A21-12),($F$1-1)*12,$G$17,0),0)) -> $9,720.00 | E21: $9,720.00 | F21: $1,800,000.00 | J21: 17 | K21: 2 | L21: =IF(('Comparison Calculator'!$E$11-K21)>=0,0,IFERROR(-PPMT($P$18/12,(J21-12),($F$1-1)*12,$P$17),0)) -> $0.00 | M21: =IF(('Comparison Calculator'!$E$11-K21)>=0,$C$1*$P$18/12,IFERROR(-IPMT($P$18/12,(J21-12),($F$1-1)*12,$P$17,0),0)) -> $9,720.00 | N21: $9,720.00 | O21: $1,800,000.00 | S21: 17 | T21: 2 | U21: =IF(('Comparison Calculator'!$E$11-T21)>=0,0,IFERROR(-PPMT($Y$18/12,(S21-12),($F$1-1)*12,$Y$17),0)) -> $0.00 | V21: =IF(('Comparison Calculator'!$E$11-T21)>=0,$C$1*$Y$18/12,IFERROR(-IPMT($Y$18/12,(S21-12),($F$1-1)*12,$Y$17,0),0)) ->  | X21: $1,800,000.00 | AB21: 17 | AC21: 2 | AD21: =IF(('Comparison Calculator'!$E$11-AC21)>=0,0,IFERROR(-PPMT($AH$18/12,(AB21-12),($F$1-1)*12,$AH$17),0)) -> $0.00 | AE21: =IF(('Comparison Calculator'!$E$11-AC21)>=0,$C$1*$AH$18/12,IFERROR(-IPMT($AH$18/12,(AB21-12),($F$1-1)*12,$AH$17,0),0)) ->  | AG21: $1,800,000.00 | AK21: 17 | AL21: 2 | AM21: =IF(('Comparison Calculator'!$E$11-AL21)>=0,0,IFERROR(-PPMT($AQ$18/12,(AK21-12),($F$1-1)*12,$AQ$17),0)) -> $0.00 | AN21: =IF(('Comparison Calculator'!$E$11-AL21)>=0,$C$1*$AQ$18/12,IFERROR(-IPMT($AQ$18/12,(AK21-12),($F$1-1)*12,$AQ$17,0),0)) -> $8,040.00 | AO21: $8,040.00 | AP21: $1,800,000.00 | AT21: 17 | AU21: 2 | AV21: =IF(('Comparison Calculator'!$E$11-AU21)>=0,0,IFERROR(-PPMT($AZ$18/12,(AT21-12),($F$1-1)*12,$AZ$17),0)) -> $0.00 | AW21: =IF(('Comparison Calculator'!$E$11-AU21)>=0,$C$1*$AZ$18/12,IFERROR(-IPMT($AZ$18/12,(AT21-12),($F$1-1)*12,$AZ$17,0),0)) ->  | AY21: $1,800,000.00 | BC21: 17 | BD21: 2 | BE21: =IF(('Comparison Calculator'!$E$11-BD21)>=0,0,IFERROR(-PPMT($BI$18/12,(BC21-12),($F$1-1)*12,$BI$17),0)) -> $0.00 | BF21: =IF(('Comparison Calculator'!$E$11-BD21)>=0,$C$1*$BI$18/12,IFERROR(-IPMT($BI$18/12,(BC21-12),($F$1-1)*12,$BI$17,0),0)) -> $7,470.00 | BG21: $7,470.00 | BH21: $1,800,000.00 | BK21: 17 | BL21: 2 | BM21: =IF(('Comparison Calculator'!$E$11-BL21)>=0,0,IFERROR(-PPMT($BQ$18/12,(BK21-12),($F$1-1)*12,$BQ$17),0)) -> $0.00 | BN21: =IF(('Comparison Calculator'!$E$11-BL21)>=0,$C$1*$BQ$18/12,IFERROR(-IPMT($BQ$18/12,(BK21-12),($F$1-1)*12,$BQ$17,0),0)) -> $9,720.00 | BO21: $9,720.00 | BP21: $1,800,000.00 | BT21: 17 | BU21: 2 | BV21: =IF(('Comparison Calculator'!$E$11-BU21)>=0,0,IFERROR(-PPMT($BZ$18/12,(BT21-12),($F$1-1)*12,$BZ$17),0)) -> $0.00 | BW21: =IF(('Comparison Calculator'!$E$11-BU21)>=0,$C$1*$BZ$18/12,IFERROR(-IPMT($BZ$18/12,(BT21-12),($F$1-1)*12,$BZ$17,0),0)) -> $9,720.00 | BX21: $9,720.00 | BY21: $1,800,000.00 | CC21: 17 | CD21: 2 | CE21: =IF(('Comparison Calculator'!$E$11-CD21)>=0,0,IFERROR(-PPMT($CI$18/12,(CC21-12),($F$1-1)*12,$CI$17),0)) -> $0.00 | CF21: =IF(('Comparison Calculator'!$E$11-CD21)>=0,$C$1*$CI$18/12,IFERROR(-IPMT($CI$18/12,(CC21-12),($F$1-1)*12,$CI$17,0),0)) -> $9,570.00 | CG21: $9,570.00 | CH21: $1,800,000.00 | CL21: 17 | CM21: 2 | CN21: =IF(('Comparison Calculator'!$E$11-CM21)>=0,0,IFERROR(-PPMT($CR$18/12,(CL21-12),($F$1-1)*12,$CR$17),0)) -> $0.00 | CO21: =IF(('Comparison Calculator'!$E$11-CM21)>=0,$C$1*$CR$18/12,IFERROR(-IPMT($CR$18/12,(CL21-12),($F$1-1)*12,$CR$17,0),0)) ->  | CQ21: $1,800,000.00 | CU21: 17 | CV21: 2 | CW21: =IF(('Comparison Calculator'!$E$11-CV21)>=0,0,IFERROR(-PPMT($DA$18/12,(CU21-12),($F$1-1)*12,$DA$17),0)) -> $0.00 | CX21: =IF(('Comparison Calculator'!$E$11-CV21)>=0,$C$1*$DA$18/12,IFERROR(-IPMT($DA$18/12,(CU21-12),($F$1-1)*12,$DA$17,0),0)) ->  | CZ21: $1,800,000.00 | DD21: 17 | DE21: 2 | DF21: =IF(('Comparison Calculator'!$E$11-DE21)>=0,0,IFERROR(-PPMT($DJ$18/12,(DD21-12),($F$1-1)*12,$DJ$17),0)) -> $0.00 | DG21: =IF(('Comparison Calculator'!$E$11-DE21)>=0,$C$1*$DJ$18/12,IFERROR(-IPMT($DJ$18/12,(DD21-12),($F$1-1)*12,$DJ$17,0),0)) ->  | DI21: $1,800,000.00
A22: 18 | B22: 2 | C22: =IF(('Comparison Calculator'!$E$11-B22)>=0,0,IFERROR(-PPMT($G$18/12,(A22-12),($F$1-1)*12,$G$17),0)) -> $0.00 | D22: =IF(('Comparison Calculator'!$E$11-B22)>=0,$C$1*$G$18/12,IFERROR(-IPMT($G$18/12,(A22-12),($F$1-1)*12,$G$17,0),0)) -> $9,720.00 | E22: $9,720.00 | F22: $1,800,000.00 | J22: 18 | K22: 2 | L22: =IF(('Comparison Calculator'!$E$11-K22)>=0,0,IFERROR(-PPMT($P$18/12,(J22-12),($F$1-1)*12,$P$17),0)) -> $0.00 | M22: =IF(('Comparison Calculator'!$E$11-K22)>=0,$C$1*$P$18/12,IFERROR(-IPMT($P$18/12,(J22-12),($F$1-1)*12,$P$17,0),0)) -> $9,720.00 | N22: $9,720.00 | O22: $1,800,000.00 | S22: 18 | T22: 2 | U22: =IF(('Comparison Calculator'!$E$11-T22)>=0,0,IFERROR(-PPMT($Y$18/12,(S22-12),($F$1-1)*12,$Y$17),0)) -> $0.00 | V22: =IF(('Comparison Calculator'!$E$11-T22)>=0,$C$1*$Y$18/12,IFERROR(-IPMT($Y$18/12,(S22-12),($F$1-1)*12,$Y$17,0),0)) ->  | X22: $1,800,000.00 | AB22: 18 | AC22: 2 | AD22: =IF(('Comparison Calculator'!$E$11-AC22)>=0,0,IFERROR(-PPMT($AH$18/12,(AB22-12),($F$1-1)*12,$AH$17),0)) -> $0.00 | AE22: =IF(('Comparison Calculator'!$E$11-AC22)>=0,$C$1*$AH$18/12,IFERROR(-IPMT($AH$18/12,(AB22-12),($F$1-1)*12,$AH$17,0),0)) ->  | AG22: $1,800,000.00 | AK22: 18 | AL22: 2 | AM22: =IF(('Comparison Calculator'!$E$11-AL22)>=0,0,IFERROR(-PPMT($AQ$18/12,(AK22-12),($F$1-1)*12,$AQ$17),0)) -> $0.00 | AN22: =IF(('Comparison Calculator'!$E$11-AL22)>=0,$C$1*$AQ$18/12,IFERROR(-IPMT($AQ$18/12,(AK22-12),($F$1-1)*12,$AQ$17,0),0)) -> $8,040.00 | AO22: $8,040.00 | AP22: $1,800,000.00 | AT22: 18 | AU22: 2 | AV22: =IF(('Comparison Calculator'!$E$11-AU22)>=0,0,IFERROR(-PPMT($AZ$18/12,(AT22-12),($F$1-1)*12,$AZ$17),0)) -> $0.00 | AW22: =IF(('Comparison Calculator'!$E$11-AU22)>=0,$C$1*$AZ$18/12,IFERROR(-IPMT($AZ$18/12,(AT22-12),($F$1-1)*12,$AZ$17,0),0)) ->  | AY22: $1,800,000.00 | BC22: 18 | BD22: 2 | BE22: =IF(('Comparison Calculator'!$E$11-BD22)>=0,0,IFERROR(-PPMT($BI$18/12,(BC22-12),($F$1-1)*12,$BI$17),0)) -> $0.00 | BF22: =IF(('Comparison Calculator'!$E$11-BD22)>=0,$C$1*$BI$18/12,IFERROR(-IPMT($BI$18/12,(BC22-12),($F$1-1)*12,$BI$17,0),0)) -> $7,470.00 | BG22: $7,470.00 | BH22: $1,800,000.00 | BK22: 18 | BL22: 2 | BM22: =IF(('Comparison Calculator'!$E$11-BL22)>=0,0,IFERROR(-PPMT($BQ$18/12,(BK22-12),($F$1-1)*12,$BQ$17),0)) -> $0.00 | BN22: =IF(('Comparison Calculator'!$E$11-BL22)>=0,$C$1*$BQ$18/12,IFERROR(-IPMT($BQ$18/12,(BK22-12),($F$1-1)*12,$BQ$17,0),0)) -> $9,720.00 | BO22: $9,720.00 | BP22: $1,800,000.00 | BT22: 18 | BU22: 2 | BV22: =IF(('Comparison Calculator'!$E$11-BU22)>=0,0,IFERROR(-PPMT($BZ$18/12,(BT22-12),($F$1-1)*12,$BZ$17),0)) -> $0.00 | BW22: =IF(('Comparison Calculator'!$E$11-BU22)>=0,$C$1*$BZ$18/12,IFERROR(-IPMT($BZ$18/12,(BT22-12),($F$1-1)*12,$BZ$17,0),0)) -> $9,720.00 | BX22: $9,720.00 | BY22: $1,800,000.00 | CC22: 18 | CD22: 2 | CE22: =IF(('Comparison Calculator'!$E$11-CD22)>=0,0,IFERROR(-PPMT($CI$18/12,(CC22-12),($F$1-1)*12,$CI$17),0)) -> $0.00 | CF22: =IF(('Comparison Calculator'!$E$11-CD22)>=0,$C$1*$CI$18/12,IFERROR(-IPMT($CI$18/12,(CC22-12),($F$1-1)*12,$CI$17,0),0)) -> $9,570.00 | CG22: $9,570.00 | CH22: $1,800,000.00 | CL22: 18 | CM22: 2 | CN22: =IF(('Comparison Calculator'!$E$11-CM22)>=0,0,IFERROR(-PPMT($CR$18/12,(CL22-12),($F$1-1)*12,$CR$17),0)) -> $0.00 | CO22: =IF(('Comparison Calculator'!$E$11-CM22)>=0,$C$1*$CR$18/12,IFERROR(-IPMT($CR$18/12,(CL22-12),($F$1-1)*12,$CR$17,0),0)) ->  | CQ22: $1,800,000.00 | CU22: 18 | CV22: 2 | CW22: =IF(('Comparison Calculator'!$E$11-CV22)>=0,0,IFERROR(-PPMT($DA$18/12,(CU22-12),($F$1-1)*12,$DA$17),0)) -> $0.00 | CX22: =IF(('Comparison Calculator'!$E$11-CV22)>=0,$C$1*$DA$18/12,IFERROR(-IPMT($DA$18/12,(CU22-12),($F$1-1)*12,$DA$17,0),0)) ->  | CZ22: $1,800,000.00 | DD22: 18 | DE22: 2 | DF22: =IF(('Comparison Calculator'!$E$11-DE22)>=0,0,IFERROR(-PPMT($DJ$18/12,(DD22-12),($F$1-1)*12,$DJ$17),0)) -> $0.00 | DG22: =IF(('Comparison Calculator'!$E$11-DE22)>=0,$C$1*$DJ$18/12,IFERROR(-IPMT($DJ$18/12,(DD22-12),($F$1-1)*12,$DJ$17,0),0)) ->  | DI22: $1,800,000.00
A23: 19 | B23: 2 | C23: =IF(('Comparison Calculator'!$E$11-B23)>=0,0,IFERROR(-PPMT($G$18/12,(A23-12),($F$1-1)*12,$G$17),0)) -> $0.00 | D23: =IF(('Comparison Calculator'!$E$11-B23)>=0,$C$1*$G$18/12,IFERROR(-IPMT($G$18/12,(A23-12),($F$1-1)*12,$G$17,0),0)) -> $9,720.00 | E23: $9,720.00 | F23: $1,800,000.00 | J23: 19 | K23: 2 | L23: =IF(('Comparison Calculator'!$E$11-K23)>=0,0,IFERROR(-PPMT($P$18/12,(J23-12),($F$1-1)*12,$P$17),0)) -> $0.00 | M23: =IF(('Comparison Calculator'!$E$11-K23)>=0,$C$1*$P$18/12,IFERROR(-IPMT($P$18/12,(J23-12),($F$1-1)*12,$P$17,0),0)) -> $9,720.00 | N23: $9,720.00 | O23: $1,800,000.00 | S23: 19 | T23: 2 | U23: =IF(('Comparison Calculator'!$E$11-T23)>=0,0,IFERROR(-PPMT($Y$18/12,(S23-12),($F$1-1)*12,$Y$17),0)) -> $0.00 | V23: =IF(('Comparison Calculator'!$E$11-T23)>=0,$C$1*$Y$18/12,IFERROR(-IPMT($Y$18/12,(S23-12),($F$1-1)*12,$Y$17,0),0)) ->  | X23: $1,800,000.00 | AB23: 19 | AC23: 2 | AD23: =IF(('Comparison Calculator'!$E$11-AC23)>=0,0,IFERROR(-PPMT($AH$18/12,(AB23-12),($F$1-1)*12,$AH$17),0)) -> $0.00 | AE23: =IF(('Comparison Calculator'!$E$11-AC23)>=0,$C$1*$AH$18/12,IFERROR(-IPMT($AH$18/12,(AB23-12),($F$1-1)*12,$AH$17,0),0)) ->  | AG23: $1,800,000.00 | AK23: 19 | AL23: 2 | AM23: =IF(('Comparison Calculator'!$E$11-AL23)>=0,0,IFERROR(-PPMT($AQ$18/12,(AK23-12),($F$1-1)*12,$AQ$17),0)) -> $0.00 | AN23: =IF(('Comparison Calculator'!$E$11-AL23)>=0,$C$1*$AQ$18/12,IFERROR(-IPMT($AQ$18/12,(AK23-12),($F$1-1)*12,$AQ$17,0),0)) -> $8,040.00 | AO23: $8,040.00 | AP23: $1,800,000.00 | AT23: 19 | AU23: 2 | AV23: =IF(('Comparison Calculator'!$E$11-AU23)>=0,0,IFERROR(-PPMT($AZ$18/12,(AT23-12),($F$1-1)*12,$AZ$17),0)) -> $0.00 | AW23: =IF(('Comparison Calculator'!$E$11-AU23)>=0,$C$1*$AZ$18/12,IFERROR(-IPMT($AZ$18/12,(AT23-12),($F$1-1)*12,$AZ$17,0),0)) ->  | AY23: $1,800,000.00 | BC23: 19 | BD23: 2 | BE23: =IF(('Comparison Calculator'!$E$11-BD23)>=0,0,IFERROR(-PPMT($BI$18/12,(BC23-12),($F$1-1)*12,$BI$17),0)) -> $0.00 | BF23: =IF(('Comparison Calculator'!$E$11-BD23)>=0,$C$1*$BI$18/12,IFERROR(-IPMT($BI$18/12,(BC23-12),($F$1-1)*12,$BI$17,0),0)) -> $7,470.00 | BG23: $7,470.00 | BH23: $1,800,000.00 | BK23: 19 | BL23: 2 | BM23: =IF(('Comparison Calculator'!$E$11-BL23)>=0,0,IFERROR(-PPMT($BQ$18/12,(BK23-12),($F$1-1)*12,$BQ$17),0)) -> $0.00 | BN23: =IF(('Comparison Calculator'!$E$11-BL23)>=0,$C$1*$BQ$18/12,IFERROR(-IPMT($BQ$18/12,(BK23-12),($F$1-1)*12,$BQ$17,0),0)) -> $9,720.00 | BO23: $9,720.00 | BP23: $1,800,000.00 | BT23: 19 | BU23: 2 | BV23: =IF(('Comparison Calculator'!$E$11-BU23)>=0,0,IFERROR(-PPMT($BZ$18/12,(BT23-12),($F$1-1)*12,$BZ$17),0)) -> $0.00 | BW23: =IF(('Comparison Calculator'!$E$11-BU23)>=0,$C$1*$BZ$18/12,IFERROR(-IPMT($BZ$18/12,(BT23-12),($F$1-1)*12,$BZ$17,0),0)) -> $9,720.00 | BX23: $9,720.00 | BY23: $1,800,000.00 | CC23: 19 | CD23: 2 | CE23: =IF(('Comparison Calculator'!$E$11-CD23)>=0,0,IFERROR(-PPMT($CI$18/12,(CC23-12),($F$1-1)*12,$CI$17),0)) -> $0.00 | CF23: =IF(('Comparison Calculator'!$E$11-CD23)>=0,$C$1*$CI$18/12,IFERROR(-IPMT($CI$18/12,(CC23-12),($F$1-1)*12,$CI$17,0),0)) -> $9,570.00 | CG23: $9,570.00 | CH23: $1,800,000.00 | CL23: 19 | CM23: 2 | CN23: =IF(('Comparison Calculator'!$E$11-CM23)>=0,0,IFERROR(-PPMT($CR$18/12,(CL23-12),($F$1-1)*12,$CR$17),0)) -> $0.00 | CO23: =IF(('Comparison Calculator'!$E$11-CM23)>=0,$C$1*$CR$18/12,IFERROR(-IPMT($CR$18/12,(CL23-12),($F$1-1)*12,$CR$17,0),0)) ->  | CQ23: $1,800,000.00 | CU23: 19 | CV23: 2 | CW23: =IF(('Comparison Calculator'!$E$11-CV23)>=0,0,IFERROR(-PPMT($DA$18/12,(CU23-12),($F$1-1)*12,$DA$17),0)) -> $0.00 | CX23: =IF(('Comparison Calculator'!$E$11-CV23)>=0,$C$1*$DA$18/12,IFERROR(-IPMT($DA$18/12,(CU23-12),($F$1-1)*12,$DA$17,0),0)) ->  | CZ23: $1,800,000.00 | DD23: 19 | DE23: 2 | DF23: =IF(('Comparison Calculator'!$E$11-DE23)>=0,0,IFERROR(-PPMT($DJ$18/12,(DD23-12),($F$1-1)*12,$DJ$17),0)) -> $0.00 | DG23: =IF(('Comparison Calculator'!$E$11-DE23)>=0,$C$1*$DJ$18/12,IFERROR(-IPMT($DJ$18/12,(DD23-12),($F$1-1)*12,$DJ$17,0),0)) ->  | DI23: $1,800,000.00
A24: 20 | B24: 2 | C24: =IF(('Comparison Calculator'!$E$11-B24)>=0,0,IFERROR(-PPMT($G$18/12,(A24-12),($F$1-1)*12,$G$17),0)) -> $0.00 | D24: =IF(('Comparison Calculator'!$E$11-B24)>=0,$C$1*$G$18/12,IFERROR(-IPMT($G$18/12,(A24-12),($F$1-1)*12,$G$17,0),0)) -> $9,720.00 | E24: $9,720.00 | F24: =F23-C24 -> $1,800,000.00 | J24: 20 | K24: 2 | L24: =IF(('Comparison Calculator'!$E$11-K24)>=0,0,IFERROR(-PPMT($P$18/12,(J24-12),($F$1-1)*12,$P$17),0)) -> $0.00 | M24: =IF(('Comparison Calculator'!$E$11-K24)>=0,$C$1*$P$18/12,IFERROR(-IPMT($P$18/12,(J24-12),($F$1-1)*12,$P$17,0),0)) -> $9,720.00 | N24: $9,720.00 | O24: =O23-L24 -> $1,800,000.00 | S24: 20 | T24: 2 | U24: =IF(('Comparison Calculator'!$E$11-T24)>=0,0,IFERROR(-PPMT($Y$18/12,(S24-12),($F$1-1)*12,$Y$17),0)) -> $0.00 | V24: =IF(('Comparison Calculator'!$E$11-T24)>=0,$C$1*$Y$18/12,IFERROR(-IPMT($Y$18/12,(S24-12),($F$1-1)*12,$Y$17,0),0)) ->  | X24: =X23-U24 -> $1,800,000.00 | AB24: 20 | AC24: 2 | AD24: =IF(('Comparison Calculator'!$E$11-AC24)>=0,0,IFERROR(-PPMT($AH$18/12,(AB24-12),($F$1-1)*12,$AH$17),0)) -> $0.00 | AE24: =IF(('Comparison Calculator'!$E$11-AC24)>=0,$C$1*$AH$18/12,IFERROR(-IPMT($AH$18/12,(AB24-12),($F$1-1)*12,$AH$17,0),0)) ->  | AG24: =AG23-AD24 -> $1,800,000.00 | AK24: 20 | AL24: 2 | AM24: =IF(('Comparison Calculator'!$E$11-AL24)>=0,0,IFERROR(-PPMT($AQ$18/12,(AK24-12),($F$1-1)*12,$AQ$17),0)) -> $0.00 | AN24: =IF(('Comparison Calculator'!$E$11-AL24)>=0,$C$1*$AQ$18/12,IFERROR(-IPMT($AQ$18/12,(AK24-12),($F$1-1)*12,$AQ$17,0),0)) -> $8,040.00 | AO24: $8,040.00 | AP24: =AP23-AM24 -> $1,800,000.00 | AT24: 20 | AU24: 2 | AV24: =IF(('Comparison Calculator'!$E$11-AU24)>=0,0,IFERROR(-PPMT($AZ$18/12,(AT24-12),($F$1-1)*12,$AZ$17),0)) -> $0.00 | AW24: =IF(('Comparison Calculator'!$E$11-AU24)>=0,$C$1*$AZ$18/12,IFERROR(-IPMT($AZ$18/12,(AT24-12),($F$1-1)*12,$AZ$17,0),0)) ->  | AY24: =AY23-AV24 -> $1,800,000.00 | BC24: 20 | BD24: 2 | BE24: =IF(('Comparison Calculator'!$E$11-BD24)>=0,0,IFERROR(-PPMT($BI$18/12,(BC24-12),($F$1-1)*12,$BI$17),0)) -> $0.00 | BF24: =IF(('Comparison Calculator'!$E$11-BD24)>=0,$C$1*$BI$18/12,IFERROR(-IPMT($BI$18/12,(BC24-12),($F$1-1)*12,$BI$17,0),0)) -> $7,470.00 | BG24: $7,470.00 | BH24: =BH23-BE24 -> $1,800,000.00 | BK24: 20 | BL24: 2 | BM24: =IF(('Comparison Calculator'!$E$11-BL24)>=0,0,IFERROR(-PPMT($BQ$18/12,(BK24-12),($F$1-1)*12,$BQ$17),0)) -> $0.00 | BN24: =IF(('Comparison Calculator'!$E$11-BL24)>=0,$C$1*$BQ$18/12,IFERROR(-IPMT($BQ$18/12,(BK24-12),($F$1-1)*12,$BQ$17,0),0)) -> $9,720.00 | BO24: $9,720.00 | BP24: =BP23-BM24 -> $1,800,000.00 | BT24: 20 | BU24: 2 | BV24: =IF(('Comparison Calculator'!$E$11-BU24)>=0,0,IFERROR(-PPMT($BZ$18/12,(BT24-12),($F$1-1)*12,$BZ$17),0)) -> $0.00 | BW24: =IF(('Comparison Calculator'!$E$11-BU24)>=0,$C$1*$BZ$18/12,IFERROR(-IPMT($BZ$18/12,(BT24-12),($F$1-1)*12,$BZ$17,0),0)) -> $9,720.00 | BX24: $9,720.00 | BY24: =BY23-BV24 -> $1,800,000.00 | CC24: 20 | CD24: 2 | CE24: =IF(('Comparison Calculator'!$E$11-CD24)>=0,0,IFERROR(-PPMT($CI$18/12,(CC24-12),($F$1-1)*12,$CI$17),0)) -> $0.00 | CF24: =IF(('Comparison Calculator'!$E$11-CD24)>=0,$C$1*$CI$18/12,IFERROR(-IPMT($CI$18/12,(CC24-12),($F$1-1)*12,$CI$17,0),0)) -> $9,570.00 | CG24: $9,570.00 | CH24: =CH23-CE24 -> $1,800,000.00 | CL24: 20 | CM24: 2 | CN24: =IF(('Comparison Calculator'!$E$11-CM24)>=0,0,IFERROR(-PPMT($CR$18/12,(CL24-12),($F$1-1)*12,$CR$17),0)) -> $0.00 | CO24: =IF(('Comparison Calculator'!$E$11-CM24)>=0,$C$1*$CR$18/12,IFERROR(-IPMT($CR$18/12,(CL24-12),($F$1-1)*12,$CR$17,0),0)) ->  | CQ24: =CQ23-CN24 -> $1,800,000.00 | CU24: 20 | CV24: 2 | CW24: =IF(('Comparison Calculator'!$E$11-CV24)>=0,0,IFERROR(-PPMT($DA$18/12,(CU24-12),($F$1-1)*12,$DA$17),0)) -> $0.00 | CX24: =IF(('Comparison Calculator'!$E$11-CV24)>=0,$C$1*$DA$18/12,IFERROR(-IPMT($DA$18/12,(CU24-12),($F$1-1)*12,$DA$17,0),0)) ->  | CZ24: =CZ23-CW24 -> $1,800,000.00 | DD24: 20 | DE24: 2 | DF24: =IF(('Comparison Calculator'!$E$11-DE24)>=0,0,IFERROR(-PPMT($DJ$18/12,(DD24-12),($F$1-1)*12,$DJ$17),0)) -> $0.00 | DG24: =IF(('Comparison Calculator'!$E$11-DE24)>=0,$C$1*$DJ$18/12,IFERROR(-IPMT($DJ$18/12,(DD24-12),($F$1-1)*12,$DJ$17,0),0)) ->  | DI24: =DI23-DF24 -> $1,800,000.00
A25: 21 | B25: 2 | C25: =IF(('Comparison Calculator'!$E$11-B25)>=0,0,IFERROR(-PPMT($G$18/12,(A25-12),($F$1-1)*12,$G$17),0)) -> $0.00 | D25: =IF(('Comparison Calculator'!$E$11-B25)>=0,$C$1*$G$18/12,IFERROR(-IPMT($G$18/12,(A25-12),($F$1-1)*12,$G$17,0),0)) -> $9,720.00 | E25: $9,720.00 | F25: $1,800,000.00 | J25: 21 | K25: 2 | L25: =IF(('Comparison Calculator'!$E$11-K25)>=0,0,IFERROR(-PPMT($P$18/12,(J25-12),($F$1-1)*12,$P$17),0)) -> $0.00 | M25: =IF(('Comparison Calculator'!$E$11-K25)>=0,$C$1*$P$18/12,IFERROR(-IPMT($P$18/12,(J25-12),($F$1-1)*12,$P$17,0),0)) -> $9,720.00 | N25: $9,720.00 | O25: =O24-L25 -> $1,800,000.00 | S25: 21 | T25: 2 | U25: =IF(('Comparison Calculator'!$E$11-T25)>=0,0,IFERROR(-PPMT($Y$18/12,(S25-12),($F$1-1)*12,$Y$17),0)) -> $0.00 | V25: =IF(('Comparison Calculator'!$E$11-T25)>=0,$C$1*$Y$18/12,IFERROR(-IPMT($Y$18/12,(S25-12),($F$1-1)*12,$Y$17,0),0)) ->  | X25: =X24-U25 -> $1,800,000.00 | AB25: 21 | AC25: 2 | AD25: =IF(('Comparison Calculator'!$E$11-AC25)>=0,0,IFERROR(-PPMT($AH$18/12,(AB25-12),($F$1-1)*12,$AH$17),0)) -> $0.00 | AE25: =IF(('Comparison Calculator'!$E$11-AC25)>=0,$C$1*$AH$18/12,IFERROR(-IPMT($AH$18/12,(AB25-12),($F$1-1)*12,$AH$17,0),0)) ->  | AG25: =AG24-AD25 -> $1,800,000.00 | AK25: 21 | AL25: 2 | AM25: =IF(('Comparison Calculator'!$E$11-AL25)>=0,0,IFERROR(-PPMT($AQ$18/12,(AK25-12),($F$1-1)*12,$AQ$17),0)) -> $0.00 | AN25: =IF(('Comparison Calculator'!$E$11-AL25)>=0,$C$1*$AQ$18/12,IFERROR(-IPMT($AQ$18/12,(AK25-12),($F$1-1)*12,$AQ$17,0),0)) -> $8,040.00 | AO25: $8,040.00 | AP25: =AP24-AM25 -> $1,800,000.00 | AT25: 21 | AU25: 2 | AV25: =IF(('Comparison Calculator'!$E$11-AU25)>=0,0,IFERROR(-PPMT($AZ$18/12,(AT25-12),($F$1-1)*12,$AZ$17),0)) -> $0.00 | AW25: =IF(('Comparison Calculator'!$E$11-AU25)>=0,$C$1*$AZ$18/12,IFERROR(-IPMT($AZ$18/12,(AT25-12),($F$1-1)*12,$AZ$17,0),0)) ->  | AY25: =AY24-AV25 -> $1,800,000.00 | BC25: 21 | BD25: 2 | BE25: =IF(('Comparison Calculator'!$E$11-BD25)>=0,0,IFERROR(-PPMT($BI$18/12,(BC25-12),($F$1-1)*12,$BI$17),0)) -> $0.00 | BF25: =IF(('Comparison Calculator'!$E$11-BD25)>=0,$C$1*$BI$18/12,IFERROR(-IPMT($BI$18/12,(BC25-12),($F$1-1)*12,$BI$17,0),0)) -> $7,470.00 | BG25: $7,470.00 | BH25: =BH24-BE25 -> $1,800,000.00 | BK25: 21 | BL25: 2 | BM25: =IF(('Comparison Calculator'!$E$11-BL25)>=0,0,IFERROR(-PPMT($BQ$18/12,(BK25-12),($F$1-1)*12,$BQ$17),0)) -> $0.00 | BN25: =IF(('Comparison Calculator'!$E$11-BL25)>=0,$C$1*$BQ$18/12,IFERROR(-IPMT($BQ$18/12,(BK25-12),($F$1-1)*12,$BQ$17,0),0)) -> $9,720.00 | BO25: $9,720.00 | BP25: =BP24-BM25 -> $1,800,000.00 | BT25: 21 | BU25: 2 | BV25: =IF(('Comparison Calculator'!$E$11-BU25)>=0,0,IFERROR(-PPMT($BZ$18/12,(BT25-12),($F$1-1)*12,$BZ$17),0)) -> $0.00 | BW25: =IF(('Comparison Calculator'!$E$11-BU25)>=0,$C$1*$BZ$18/12,IFERROR(-IPMT($BZ$18/12,(BT25-12),($F$1-1)*12,$BZ$17,0),0)) -> $9,720.00 | BX25: $9,720.00 | BY25: =BY24-BV25 -> $1,800,000.00 | CC25: 21 | CD25: 2 | CE25: =IF(('Comparison Calculator'!$E$11-CD25)>=0,0,IFERROR(-PPMT($CI$18/12,(CC25-12),($F$1-1)*12,$CI$17),0)) -> $0.00 | CF25: =IF(('Comparison Calculator'!$E$11-CD25)>=0,$C$1*$CI$18/12,IFERROR(-IPMT($CI$18/12,(CC25-12),($F$1-1)*12,$CI$17,0),0)) -> $9,570.00 | CG25: $9,570.00 | CH25: =CH24-CE25 -> $1,800,000.00 | CL25: 21 | CM25: 2 | CN25: =IF(('Comparison Calculator'!$E$11-CM25)>=0,0,IFERROR(-PPMT($CR$18/12,(CL25-12),($F$1-1)*12,$CR$17),0)) -> $0.00 | CO25: =IF(('Comparison Calculator'!$E$11-CM25)>=0,$C$1*$CR$18/12,IFERROR(-IPMT($CR$18/12,(CL25-12),($F$1-1)*12,$CR$17,0),0)) ->  | CQ25: =CQ24-CN25 -> $1,800,000.00 | CU25: 21 | CV25: 2 | CW25: =IF(('Comparison Calculator'!$E$11-CV25)>=0,0,IFERROR(-PPMT($DA$18/12,(CU25-12),($F$1-1)*12,$DA$17),0)) -> $0.00 | CX25: =IF(('Comparison Calculator'!$E$11-CV25)>=0,$C$1*$DA$18/12,IFERROR(-IPMT($DA$18/12,(CU25-12),($F$1-1)*12,$DA$17,0),0)) ->  | CZ25: =CZ24-CW25 -> $1,800,000.00 | DD25: 21 | DE25: 2 | DF25: =IF(('Comparison Calculator'!$E$11-DE25)>=0,0,IFERROR(-PPMT($DJ$18/12,(DD25-12),($F$1-1)*12,$DJ$17),0)) -> $0.00 | DG25: =IF(('Comparison Calculator'!$E$11-DE25)>=0,$C$1*$DJ$18/12,IFERROR(-IPMT($DJ$18/12,(DD25-12),($F$1-1)*12,$DJ$17,0),0)) ->  | DI25: =DI24-DF25 -> $1,800,000.00
A26: 22 | B26: 2 | C26: =IF(('Comparison Calculator'!$E$11-B26)>=0,0,IFERROR(-PPMT($G$18/12,(A26-12),($F$1-1)*12,$G$17),0)) -> $0.00 | D26: =IF(('Comparison Calculator'!$E$11-B26)>=0,$C$1*$G$18/12,IFERROR(-IPMT($G$18/12,(A26-12),($F$1-1)*12,$G$17,0),0)) -> $9,720.00 | E26: $9,720.00 | F26: $1,800,000.00 | J26: 22 | K26: 2 | L26: =IF(('Comparison Calculator'!$E$11-K26)>=0,0,IFERROR(-PPMT($P$18/12,(J26-12),($F$1-1)*12,$P$17),0)) -> $0.00 | M26: =IF(('Comparison Calculator'!$E$11-K26)>=0,$C$1*$P$18/12,IFERROR(-IPMT($P$18/12,(J26-12),($F$1-1)*12,$P$17,0),0)) -> $9,720.00 | N26: $9,720.00 | O26: $1,800,000.00 | S26: 22 | T26: 2 | U26: =IF(('Comparison Calculator'!$E$11-T26)>=0,0,IFERROR(-PPMT($Y$18/12,(S26-12),($F$1-1)*12,$Y$17),0)) -> $0.00 | V26: =IF(('Comparison Calculator'!$E$11-T26)>=0,$C$1*$Y$18/12,IFERROR(-IPMT($Y$18/12,(S26-12),($F$1-1)*12,$Y$17,0),0)) ->  | X26: $1,800,000.00 | AB26: 22 | AC26: 2 | AD26: =IF(('Comparison Calculator'!$E$11-AC26)>=0,0,IFERROR(-PPMT($AH$18/12,(AB26-12),($F$1-1)*12,$AH$17),0)) -> $0.00 | AE26: =IF(('Comparison Calculator'!$E$11-AC26)>=0,$C$1*$AH$18/12,IFERROR(-IPMT($AH$18/12,(AB26-12),($F$1-1)*12,$AH$17,0),0)) ->  | AG26: $1,800,000.00 | AK26: 22 | AL26: 2 | AM26: =IF(('Comparison Calculator'!$E$11-AL26)>=0,0,IFERROR(-PPMT($AQ$18/12,(AK26-12),($F$1-1)*12,$AQ$17),0)) -> $0.00 | AN26: =IF(('Comparison Calculator'!$E$11-AL26)>=0,$C$1*$AQ$18/12,IFERROR(-IPMT($AQ$18/12,(AK26-12),($F$1-1)*12,$AQ$17,0),0)) -> $8,040.00 | AO26: $8,040.00 | AP26: $1,800,000.00 | AT26: 22 | AU26: 2 | AV26: =IF(('Comparison Calculator'!$E$11-AU26)>=0,0,IFERROR(-PPMT($AZ$18/12,(AT26-12),($F$1-1)*12,$AZ$17),0)) -> $0.00 | AW26: =IF(('Comparison Calculator'!$E$11-AU26)>=0,$C$1*$AZ$18/12,IFERROR(-IPMT($AZ$18/12,(AT26-12),($F$1-1)*12,$AZ$17,0),0)) ->  | AY26: $1,800,000.00 | BC26: 22 | BD26: 2 | BE26: =IF(('Comparison Calculator'!$E$11-BD26)>=0,0,IFERROR(-PPMT($BI$18/12,(BC26-12),($F$1-1)*12,$BI$17),0)) -> $0.00 | BF26: =IF(('Comparison Calculator'!$E$11-BD26)>=0,$C$1*$BI$18/12,IFERROR(-IPMT($BI$18/12,(BC26-12),($F$1-1)*12,$BI$17,0),0)) -> $7,470.00 | BG26: $7,470.00 | BH26: $1,800,000.00 | BK26: 22 | BL26: 2 | BM26: =IF(('Comparison Calculator'!$E$11-BL26)>=0,0,IFERROR(-PPMT($BQ$18/12,(BK26-12),($F$1-1)*12,$BQ$17),0)) -> $0.00 | BN26: =IF(('Comparison Calculator'!$E$11-BL26)>=0,$C$1*$BQ$18/12,IFERROR(-IPMT($BQ$18/12,(BK26-12),($F$1-1)*12,$BQ$17,0),0)) -> $9,720.00 | BO26: $9,720.00 | BP26: $1,800,000.00 | BT26: 22 | BU26: 2 | BV26: =IF(('Comparison Calculator'!$E$11-BU26)>=0,0,IFERROR(-PPMT($BZ$18/12,(BT26-12),($F$1-1)*12,$BZ$17),0)) -> $0.00 | BW26: =IF(('Comparison Calculator'!$E$11-BU26)>=0,$C$1*$BZ$18/12,IFERROR(-IPMT($BZ$18/12,(BT26-12),($F$1-1)*12,$BZ$17,0),0)) -> $9,720.00 | BX26: $9,720.00 | BY26: $1,800,000.00 | CC26: 22 | CD26: 2 | CE26: =IF(('Comparison Calculator'!$E$11-CD26)>=0,0,IFERROR(-PPMT($CI$18/12,(CC26-12),($F$1-1)*12,$CI$17),0)) -> $0.00 | CF26: =IF(('Comparison Calculator'!$E$11-CD26)>=0,$C$1*$CI$18/12,IFERROR(-IPMT($CI$18/12,(CC26-12),($F$1-1)*12,$CI$17,0),0)) -> $9,570.00 | CG26: $9,570.00 | CH26: $1,800,000.00 | CL26: 22 | CM26: 2 | CN26: =IF(('Comparison Calculator'!$E$11-CM26)>=0,0,IFERROR(-PPMT($CR$18/12,(CL26-12),($F$1-1)*12,$CR$17),0)) -> $0.00 | CO26: =IF(('Comparison Calculator'!$E$11-CM26)>=0,$C$1*$CR$18/12,IFERROR(-IPMT($CR$18/12,(CL26-12),($F$1-1)*12,$CR$17,0),0)) ->  | CQ26: $1,800,000.00 | CU26: 22 | CV26: 2 | CW26: =IF(('Comparison Calculator'!$E$11-CV26)>=0,0,IFERROR(-PPMT($DA$18/12,(CU26-12),($F$1-1)*12,$DA$17),0)) -> $0.00 | CX26: =IF(('Comparison Calculator'!$E$11-CV26)>=0,$C$1*$DA$18/12,IFERROR(-IPMT($DA$18/12,(CU26-12),($F$1-1)*12,$DA$17,0),0)) ->  | CZ26: $1,800,000.00 | DD26: 22 | DE26: 2 | DF26: =IF(('Comparison Calculator'!$E$11-DE26)>=0,0,IFERROR(-PPMT($DJ$18/12,(DD26-12),($F$1-1)*12,$DJ$17),0)) -> $0.00 | DG26: =IF(('Comparison Calculator'!$E$11-DE26)>=0,$C$1*$DJ$18/12,IFERROR(-IPMT($DJ$18/12,(DD26-12),($F$1-1)*12,$DJ$17,0),0)) ->  | DI26: $1,800,000.00
A27: 23 | B27: 2 | C27: =IF(('Comparison Calculator'!$E$11-B27)>=0,0,IFERROR(-PPMT($G$18/12,(A27-12),($F$1-1)*12,$G$17),0)) -> $0.00 | D27: =IF(('Comparison Calculator'!$E$11-B27)>=0,$C$1*$G$18/12,IFERROR(-IPMT($G$18/12,(A27-12),($F$1-1)*12,$G$17,0),0)) -> $9,720.00 | E27: $9,720.00 | F27: $1,800,000.00 | J27: 23 | K27: 2 | L27: =IF(('Comparison Calculator'!$E$11-K27)>=0,0,IFERROR(-PPMT($P$18/12,(J27-12),($F$1-1)*12,$P$17),0)) -> $0.00 | M27: =IF(('Comparison Calculator'!$E$11-K27)>=0,$C$1*$P$18/12,IFERROR(-IPMT($P$18/12,(J27-12),($F$1-1)*12,$P$17,0),0)) -> $9,720.00 | N27: $9,720.00 | O27: $1,800,000.00 | S27: 23 | T27: 2 | U27: =IF(('Comparison Calculator'!$E$11-T27)>=0,0,IFERROR(-PPMT($Y$18/12,(S27-12),($F$1-1)*12,$Y$17),0)) -> $0.00 | V27: =IF(('Comparison Calculator'!$E$11-T27)>=0,$C$1*$Y$18/12,IFERROR(-IPMT($Y$18/12,(S27-12),($F$1-1)*12,$Y$17,0),0)) ->  | X27: $1,800,000.00 | AB27: 23 | AC27: 2 | AD27: =IF(('Comparison Calculator'!$E$11-AC27)>=0,0,IFERROR(-PPMT($AH$18/12,(AB27-12),($F$1-1)*12,$AH$17),0)) -> $0.00 | AE27: =IF(('Comparison Calculator'!$E$11-AC27)>=0,$C$1*$AH$18/12,IFERROR(-IPMT($AH$18/12,(AB27-12),($F$1-1)*12,$AH$17,0),0)) ->  | AG27: $1,800,000.00 | AK27: 23 | AL27: 2 | AM27: =IF(('Comparison Calculator'!$E$11-AL27)>=0,0,IFERROR(-PPMT($AQ$18/12,(AK27-12),($F$1-1)*12,$AQ$17),0)) -> $0.00 | AN27: =IF(('Comparison Calculator'!$E$11-AL27)>=0,$C$1*$AQ$18/12,IFERROR(-IPMT($AQ$18/12,(AK27-12),($F$1-1)*12,$AQ$17,0),0)) -> $8,040.00 | AO27: $8,040.00 | AP27: $1,800,000.00 | AT27: 23 | AU27: 2 | AV27: =IF(('Comparison Calculator'!$E$11-AU27)>=0,0,IFERROR(-PPMT($AZ$18/12,(AT27-12),($F$1-1)*12,$AZ$17),0)) -> $0.00 | AW27: =IF(('Comparison Calculator'!$E$11-AU27)>=0,$C$1*$AZ$18/12,IFERROR(-IPMT($AZ$18/12,(AT27-12),($F$1-1)*12,$AZ$17,0),0)) ->  | AY27: $1,800,000.00 | BC27: 23 | BD27: 2 | BE27: =IF(('Comparison Calculator'!$E$11-BD27)>=0,0,IFERROR(-PPMT($BI$18/12,(BC27-12),($F$1-1)*12,$BI$17),0)) -> $0.00 | BF27: =IF(('Comparison Calculator'!$E$11-BD27)>=0,$C$1*$BI$18/12,IFERROR(-IPMT($BI$18/12,(BC27-12),($F$1-1)*12,$BI$17,0),0)) -> $7,470.00 | BG27: $7,470.00 | BH27: $1,800,000.00 | BK27: 23 | BL27: 2 | BM27: =IF(('Comparison Calculator'!$E$11-BL27)>=0,0,IFERROR(-PPMT($BQ$18/12,(BK27-12),($F$1-1)*12,$BQ$17),0)) -> $0.00 | BN27: =IF(('Comparison Calculator'!$E$11-BL27)>=0,$C$1*$BQ$18/12,IFERROR(-IPMT($BQ$18/12,(BK27-12),($F$1-1)*12,$BQ$17,0),0)) -> $9,720.00 | BO27: $9,720.00 | BP27: $1,800,000.00 | BT27: 23 | BU27: 2 | BV27: =IF(('Comparison Calculator'!$E$11-BU27)>=0,0,IFERROR(-PPMT($BZ$18/12,(BT27-12),($F$1-1)*12,$BZ$17),0)) -> $0.00 | BW27: =IF(('Comparison Calculator'!$E$11-BU27)>=0,$C$1*$BZ$18/12,IFERROR(-IPMT($BZ$18/12,(BT27-12),($F$1-1)*12,$BZ$17,0),0)) -> $9,720.00 | BX27: $9,720.00 | BY27: $1,800,000.00 | CC27: 23 | CD27: 2 | CE27: =IF(('Comparison Calculator'!$E$11-CD27)>=0,0,IFERROR(-PPMT($CI$18/12,(CC27-12),($F$1-1)*12,$CI$17),0)) -> $0.00 | CF27: =IF(('Comparison Calculator'!$E$11-CD27)>=0,$C$1*$CI$18/12,IFERROR(-IPMT($CI$18/12,(CC27-12),($F$1-1)*12,$CI$17,0),0)) -> $9,570.00 | CG27: $9,570.00 | CH27: $1,800,000.00 | CL27: 23 | CM27: 2 | CN27: =IF(('Comparison Calculator'!$E$11-CM27)>=0,0,IFERROR(-PPMT($CR$18/12,(CL27-12),($F$1-1)*12,$CR$17),0)) -> $0.00 | CO27: =IF(('Comparison Calculator'!$E$11-CM27)>=0,$C$1*$CR$18/12,IFERROR(-IPMT($CR$18/12,(CL27-12),($F$1-1)*12,$CR$17,0),0)) ->  | CQ27: $1,800,000.00 | CU27: 23 | CV27: 2 | CW27: =IF(('Comparison Calculator'!$E$11-CV27)>=0,0,IFERROR(-PPMT($DA$18/12,(CU27-12),($F$1-1)*12,$DA$17),0)) -> $0.00 | CX27: =IF(('Comparison Calculator'!$E$11-CV27)>=0,$C$1*$DA$18/12,IFERROR(-IPMT($DA$18/12,(CU27-12),($F$1-1)*12,$DA$17,0),0)) ->  | CZ27: $1,800,000.00 | DD27: 23 | DE27: 2 | DF27: =IF(('Comparison Calculator'!$E$11-DE27)>=0,0,IFERROR(-PPMT($DJ$18/12,(DD27-12),($F$1-1)*12,$DJ$17),0)) -> $0.00 | DG27: =IF(('Comparison Calculator'!$E$11-DE27)>=0,$C$1*$DJ$18/12,IFERROR(-IPMT($DJ$18/12,(DD27-12),($F$1-1)*12,$DJ$17,0),0)) ->  | DI27: $1,800,000.00
A28: 24 | B28: 2 | C28: =IF(('Comparison Calculator'!$E$11-B28)>=0,0,IFERROR(-PPMT($G$18/12,(A28-12),($F$1-1)*12,$G$17),0)) -> $0.00 | D28: =IF(('Comparison Calculator'!$E$11-B28)>=0,$C$1*$G$18/12,IFERROR(-IPMT($G$18/12,(A28-12),($F$1-1)*12,$G$17,0),0)) -> $9,720.00 | E28: $9,720.00 | F28: $1,800,000.00 | G28: =SUM(E5:E28)+$H$1*B28 -> $117,638.00 | J28: 24 | K28: 2 | L28: =IF(('Comparison Calculator'!$E$11-K28)>=0,0,IFERROR(-PPMT($P$18/12,(J28-12),($F$1-1)*12,$P$17),0)) -> $0.00 | M28: =IF(('Comparison Calculator'!$E$11-K28)>=0,$C$1*$P$18/12,IFERROR(-IPMT($P$18/12,(J28-12),($F$1-1)*12,$P$17,0),0)) -> $9,720.00 | N28: $9,720.00 | O28: $1,800,000.00 | P28: =SUM(N5:N28)+$H$1*K28 -> $117,638.00 | S28: 24 | T28: 2 | U28: =IF(('Comparison Calculator'!$E$11-T28)>=0,0,IFERROR(-PPMT($Y$18/12,(S28-12),($F$1-1)*12,$Y$17),0)) -> $0.00 | V28: =IF(('Comparison Calculator'!$E$11-T28)>=0,$C$1*$Y$18/12,IFERROR(-IPMT($Y$18/12,(S28-12),($F$1-1)*12,$Y$17,0),0)) ->  | X28: $1,800,000.00 | Y28: =SUM(W5:W28)+$Z$1*T28 ->  | AB28: 24 | AC28: 2 | AD28: =IF(('Comparison Calculator'!$E$11-AC28)>=0,0,IFERROR(-PPMT($AH$18/12,(AB28-12),($F$1-1)*12,$AH$17),0)) -> $0.00 | AE28: =IF(('Comparison Calculator'!$E$11-AC28)>=0,$C$1*$AH$18/12,IFERROR(-IPMT($AH$18/12,(AB28-12),($F$1-1)*12,$AH$17,0),0)) ->  | AG28: $1,800,000.00 | AH28: =SUM(AF5:AF28)+$AI$1*AC28 ->  | AK28: 24 | AL28: 2 | AM28: =IF(('Comparison Calculator'!$E$11-AL28)>=0,0,IFERROR(-PPMT($AQ$18/12,(AK28-12),($F$1-1)*12,$AQ$17),0)) -> $0.00 | AN28: =IF(('Comparison Calculator'!$E$11-AL28)>=0,$C$1*$AQ$18/12,IFERROR(-IPMT($AQ$18/12,(AK28-12),($F$1-1)*12,$AQ$17,0),0)) -> $8,040.00 | AO28: $8,040.00 | AP28: $1,800,000.00 | AQ28: =SUM(AO5:AO28)+$AR$1*AL28 -> $97,478.00 | AT28: 24 | AU28: 2 | AV28: =IF(('Comparison Calculator'!$E$11-AU28)>=0,0,IFERROR(-PPMT($AZ$18/12,(AT28-12),($F$1-1)*12,$AZ$17),0)) -> $0.00 | AW28: =IF(('Comparison Calculator'!$E$11-AU28)>=0,$C$1*$AZ$18/12,IFERROR(-IPMT($AZ$18/12,(AT28-12),($F$1-1)*12,$AZ$17,0),0)) ->  | AY28: $1,800,000.00 | AZ28: =SUM(AX5:AX28)+$BA$1*AU28 ->  | BC28: 24 | BD28: 2 | BE28: =IF(('Comparison Calculator'!$E$11-BD28)>=0,0,IFERROR(-PPMT($BI$18/12,(BC28-12),($F$1-1)*12,$BI$17),0)) -> $0.00 | BF28: =IF(('Comparison Calculator'!$E$11-BD28)>=0,$C$1*$BI$18/12,IFERROR(-IPMT($BI$18/12,(BC28-12),($F$1-1)*12,$BI$17,0),0)) -> $7,470.00 | BG28: $7,470.00 | BH28: $1,800,000.00 | BI28: =SUM(BG5:BG28)+$BA$1*BD28 -> $90,638.00 | BK28: 24 | BL28: 2 | BM28: =IF(('Comparison Calculator'!$E$11-BL28)>=0,0,IFERROR(-PPMT($BQ$18/12,(BK28-12),($F$1-1)*12,$BQ$17),0)) -> $0.00 | BN28: =IF(('Comparison Calculator'!$E$11-BL28)>=0,$C$1*$BQ$18/12,IFERROR(-IPMT($BQ$18/12,(BK28-12),($F$1-1)*12,$BQ$17,0),0)) -> $9,720.00 | BO28: $9,720.00 | BP28: $1,800,000.00 | BQ28: =SUM(BO5:BO28)+$BR$1*BL28 -> $117,638.00 | BT28: 24 | BU28: 2 | BV28: =IF(('Comparison Calculator'!$E$11-BU28)>=0,0,IFERROR(-PPMT($BZ$18/12,(BT28-12),($F$1-1)*12,$BZ$17),0)) -> $0.00 | BW28: =IF(('Comparison Calculator'!$E$11-BU28)>=0,$C$1*$BZ$18/12,IFERROR(-IPMT($BZ$18/12,(BT28-12),($F$1-1)*12,$BZ$17,0),0)) -> $9,720.00 | BX28: $9,720.00 | BY28: $1,800,000.00 | BZ28: =SUM(BX5:BX28)+$CA$1*BU28 -> $117,638.00 | CC28: 24 | CD28: 2 | CE28: =IF(('Comparison Calculator'!$E$11-CD28)>=0,0,IFERROR(-PPMT($CI$18/12,(CC28-12),($F$1-1)*12,$CI$17),0)) -> $0.00 | CF28: =IF(('Comparison Calculator'!$E$11-CD28)>=0,$C$1*$CI$18/12,IFERROR(-IPMT($CI$18/12,(CC28-12),($F$1-1)*12,$CI$17,0),0)) -> $9,570.00 | CG28: $9,570.00 | CH28: $1,800,000.00 | CI28: =SUM(CG5:CG28)+$CJ$1*CD28 -> $115,776.00 | CL28: 24 | CM28: 2 | CN28: =IF(('Comparison Calculator'!$E$11-CM28)>=0,0,IFERROR(-PPMT($CR$18/12,(CL28-12),($F$1-1)*12,$CR$17),0)) -> $0.00 | CO28: =IF(('Comparison Calculator'!$E$11-CM28)>=0,$C$1*$CR$18/12,IFERROR(-IPMT($CR$18/12,(CL28-12),($F$1-1)*12,$CR$17,0),0)) ->  | CQ28: $1,800,000.00 | CR28: =SUM(CP5:CP28)+$CS$1*CM28 ->  | CU28: 24 | CV28: 2 | CW28: =IF(('Comparison Calculator'!$E$11-CV28)>=0,0,IFERROR(-PPMT($DA$18/12,(CU28-12),($F$1-1)*12,$DA$17),0)) -> $0.00 | CX28: =IF(('Comparison Calculator'!$E$11-CV28)>=0,$C$1*$DA$18/12,IFERROR(-IPMT($DA$18/12,(CU28-12),($F$1-1)*12,$DA$17,0),0)) ->  | CZ28: $1,800,000.00 | DA28: =SUM(CY5:CY28)+$DB$1*CV28 ->  | DD28: 24 | DE28: 2 | DF28: =IF(('Comparison Calculator'!$E$11-DE28)>=0,0,IFERROR(-PPMT($DJ$18/12,(DD28-12),($F$1-1)*12,$DJ$17),0)) -> $0.00 | DG28: =IF(('Comparison Calculator'!$E$11-DE28)>=0,$C$1*$DJ$18/12,IFERROR(-IPMT($DJ$18/12,(DD28-12),($F$1-1)*12,$DJ$17,0),0)) ->  | DI28: $1,800,000.00 | DJ28: =SUM(DH5:DH28)+$DK$1*DE28 -> 
A29: 25 | B29: 3 | C29: =IF(('Comparison Calculator'!$E$11-B29)>=0,0,IFERROR(-PPMT($G$30/12,(A29-24),($F$1-2)*12,$G$29),0)) -> $0.00 | D29: =IF(('Comparison Calculator'!$E$11-B29)>=0,$C$1*$G$30/12,IFERROR(-IPMT($G$30/12,(A29-24),($F$1-2)*12,$G$29,0),0)) -> $9,720.00 | E29: $9,720.00 | F29: $1,800,000.00 | G29: =F28 -> $1,800,000.00 | J29: 25 | K29: 3 | L29: =IF(('Comparison Calculator'!$E$11-K29)>=0,0,IFERROR(-PPMT($P$30/12,(J29-24),($F$1-2)*12,$P$29),0)) -> $0.00 | M29: =IF(('Comparison Calculator'!$E$11-K29)>=0,$C$1*$P$30/12,IFERROR(-IPMT($P$30/12,(J29-24),($F$1-2)*12,$P$29,0),0)) -> $9,720.00 | N29: $9,720.00 | O29: $1,800,000.00 | P29: =O28 -> $1,800,000.00 | S29: 25 | T29: 3 | U29: =IF(('Comparison Calculator'!$E$11-T29)>=0,0,IFERROR(-PPMT($Y$30/12,(S29-24),($F$1-2)*12,$Y$29),0)) -> $0.00 | V29: =IF(('Comparison Calculator'!$E$11-T29)>=0,$C$1*$Y$30/12,IFERROR(-IPMT($Y$30/12,(S29-24),($F$1-2)*12,$Y$29,0),0)) ->  | X29: $1,800,000.00 | Y29: =X28 -> $1,800,000.00 | AB29: 25 | AC29: 3 | AD29: =IF(('Comparison Calculator'!$E$11-AC29)>=0,0,IFERROR(-PPMT($AH$30/12,(AB29-24),($F$1-2)*12,$AH$29),0)) -> $0.00 | AE29: =IF(('Comparison Calculator'!$E$11-AC29)>=0,$C$1*$AH$30/12,IFERROR(-IPMT($AH$30/12,(AB29-24),($F$1-2)*12,$AH$29,0),0)) ->  | AG29: $1,800,000.00 | AH29: =AG28 -> $1,800,000.00 | AK29: 25 | AL29: 3 | AM29: =IF(('Comparison Calculator'!$E$11-AL29)>=0,0,IFERROR(-PPMT($AQ$30/12,(AK29-24),($F$1-2)*12,$AQ$29),0)) -> $0.00 | AN29: =IF(('Comparison Calculator'!$E$11-AL29)>=0,$C$1*$AQ$30/12,IFERROR(-IPMT($AQ$30/12,(AK29-24),($F$1-2)*12,$AQ$29,0),0)) -> $8,040.00 | AO29: $8,040.00 | AP29: $1,800,000.00 | AQ29: =AP28 -> $1,800,000.00 | AT29: 25 | AU29: 3 | AV29: =IF(('Comparison Calculator'!$E$11-AU29)>=0,0,IFERROR(-PPMT($AZ$30/12,(AT29-24),($F$1-2)*12,$AZ$29),0)) -> $0.00 | AW29: =IF(('Comparison Calculator'!$E$11-AU29)>=0,$C$1*$AZ$30/12,IFERROR(-IPMT($AZ$30/12,(AT29-24),($F$1-2)*12,$AZ$29,0),0)) ->  | AY29: $1,800,000.00 | AZ29: =AY28 -> $1,800,000.00 | BC29: 25 | BD29: 3 | BE29: =IF(('Comparison Calculator'!$E$11-BD29)>=0,0,IFERROR(-PPMT($BI$30/12,(BC29-24),($F$1-2)*12,$BI$29),0)) -> $0.00 | BF29: =IF(('Comparison Calculator'!$E$11-BD29)>=0,$C$1*$BI$30/12,IFERROR(-IPMT($BI$30/12,(BC29-24),($F$1-2)*12,$BI$29,0),0)) -> $7,470.00 | BG29: $7,470.00 | BH29: $1,800,000.00 | BI29: =BH28 -> $1,800,000.00 | BK29: 25 | BL29: 3 | BM29: =IF(('Comparison Calculator'!$E$11-BL29)>=0,0,IFERROR(-PPMT($BQ$30/12,(BK29-24),($F$1-2)*12,$BQ$29),0)) -> $0.00 | BN29: =IF(('Comparison Calculator'!$E$11-BL29)>=0,$C$1*$BQ$30/12,IFERROR(-IPMT($BQ$30/12,(BK29-24),($F$1-2)*12,$BQ$29,0),0)) -> $9,720.00 | BO29: $9,720.00 | BP29: $1,800,000.00 | BQ29: =BP28 -> $1,800,000.00 | BT29: 25 | BU29: 3 | BV29: =IF(('Comparison Calculator'!$E$11-BU29)>=0,0,IFERROR(-PPMT($BZ$30/12,(BT29-24),($F$1-2)*12,$BZ$29),0)) -> $0.00 | BW29: =IF(('Comparison Calculator'!$E$11-BU29)>=0,$C$1*$BZ$30/12,IFERROR(-IPMT($BZ$30/12,(BT29-24),($F$1-2)*12,$BZ$29,0),0)) -> $9,720.00 | BX29: $9,720.00 | BY29: $1,800,000.00 | BZ29: =BY28 -> $1,800,000.00 | CC29: 25 | CD29: 3 | CE29: =IF(('Comparison Calculator'!$E$11-CD29)>=0,0,IFERROR(-PPMT($CI$30/12,(CC29-24),($F$1-2)*12,$CI$29),0)) -> $0.00 | CF29: =IF(('Comparison Calculator'!$E$11-CD29)>=0,$C$1*$CI$30/12,IFERROR(-IPMT($CI$30/12,(CC29-24),($F$1-2)*12,$CI$29,0),0)) -> $9,570.00 | CG29: $9,570.00 | CH29: $1,800,000.00 | CI29: =CH28 -> $1,800,000.00 | CL29: 25 | CM29: 3 | CN29: =IF(('Comparison Calculator'!$E$11-CM29)>=0,0,IFERROR(-PPMT($CR$30/12,(CL29-24),($F$1-2)*12,$CR$29),0)) -> $0.00 | CO29: =IF(('Comparison Calculator'!$E$11-CM29)>=0,$C$1*$CR$30/12,IFERROR(-IPMT($CR$30/12,(CL29-24),($F$1-2)*12,$CR$29,0),0)) ->  | CQ29: $1,800,000.00 | CR29: =CQ28 -> $1,800,000.00 | CU29: 25 | CV29: 3 | CW29: =IF(('Comparison Calculator'!$E$11-CV29)>=0,0,IFERROR(-PPMT($DA$30/12,(CU29-24),($F$1-2)*12,$DA$29),0)) -> $0.00 | CX29: =IF(('Comparison Calculator'!$E$11-CV29)>=0,$C$1*$DA$30/12,IFERROR(-IPMT($DA$30/12,(CU29-24),($F$1-2)*12,$DA$29,0),0)) ->  | CZ29: $1,800,000.00 | DA29: =CZ28 -> $1,800,000.00 | DD29: 25 | DE29: 3 | DF29: =IF(('Comparison Calculator'!$E$11-DE29)>=0,0,IFERROR(-PPMT($DJ$30/12,(DD29-24),($F$1-2)*12,$DJ$29),0)) -> $0.00 | DG29: =IF(('Comparison Calculator'!$E$11-DE29)>=0,$C$1*$DJ$30/12,IFERROR(-IPMT($DJ$30/12,(DD29-24),($F$1-2)*12,$DJ$29,0),0)) ->  | DI29: $1,800,000.00 | DJ29: =DI28 -> $1,800,000.00
A30: 26 | B30: 3 | C30: =IF(('Comparison Calculator'!$E$11-B30)>=0,0,IFERROR(-PPMT($G$30/12,(A30-24),($F$1-2)*12,$G$29),0)) -> $0.00 | D30: =IF(('Comparison Calculator'!$E$11-B30)>=0,$C$1*$G$30/12,IFERROR(-IPMT($G$30/12,(A30-24),($F$1-2)*12,$G$29,0),0)) -> $9,720.00 | E30: $9,720.00 | F30: $1,800,000.00 | G30: =Rates!D24 -> 6.48% | J30: 26 | K30: 3 | L30: =IF(('Comparison Calculator'!$E$11-K30)>=0,0,IFERROR(-PPMT($P$30/12,(J30-24),($F$1-2)*12,$P$29),0)) -> $0.00 | M30: =IF(('Comparison Calculator'!$E$11-K30)>=0,$C$1*$P$30/12,IFERROR(-IPMT($P$30/12,(J30-24),($F$1-2)*12,$P$29,0),0)) -> $9,720.00 | N30: $9,720.00 | O30: $1,800,000.00 | P30: =Rates!L24 -> 6.48% | S30: 26 | T30: 3 | U30: =IF(('Comparison Calculator'!$E$11-T30)>=0,0,IFERROR(-PPMT($Y$30/12,(S30-24),($F$1-2)*12,$Y$29),0)) -> $0.00 | V30: =IF(('Comparison Calculator'!$E$11-T30)>=0,$C$1*$Y$30/12,IFERROR(-IPMT($Y$30/12,(S30-24),($F$1-2)*12,$Y$29,0),0)) ->  | X30: $1,800,000.00 | Y30: =Rates!$E$45 ->  | AB30: 26 | AC30: 3 | AD30: =IF(('Comparison Calculator'!$E$11-AC30)>=0,0,IFERROR(-PPMT($AH$30/12,(AB30-24),($F$1-2)*12,$AH$29),0)) -> $0.00 | AE30: =IF(('Comparison Calculator'!$E$11-AC30)>=0,$C$1*$AH$30/12,IFERROR(-IPMT($AH$30/12,(AB30-24),($F$1-2)*12,$AH$29,0),0)) ->  | AG30: $1,800,000.00 | AH30: =Rates!$M$45 ->  | AK30: 26 | AL30: 3 | AM30: =IF(('Comparison Calculator'!$E$11-AL30)>=0,0,IFERROR(-PPMT($AQ$30/12,(AK30-24),($F$1-2)*12,$AQ$29),0)) -> $0.00 | AN30: =IF(('Comparison Calculator'!$E$11-AL30)>=0,$C$1*$AQ$30/12,IFERROR(-IPMT($AQ$30/12,(AK30-24),($F$1-2)*12,$AQ$29,0),0)) -> $8,040.00 | AO30: $8,040.00 | AP30: $1,800,000.00 | AQ30: =Rates!$C$67 -> 5.36% | AT30: 26 | AU30: 3 | AV30: =IF(('Comparison Calculator'!$E$11-AU30)>=0,0,IFERROR(-PPMT($AZ$30/12,(AT30-24),($F$1-2)*12,$AZ$29),0)) -> $0.00 | AW30: =IF(('Comparison Calculator'!$E$11-AU30)>=0,$C$1*$AZ$30/12,IFERROR(-IPMT($AZ$30/12,(AT30-24),($F$1-2)*12,$AZ$29,0),0)) ->  | AY30: $1,800,000.00 | AZ30: =Rates!$L$67 ->  | BC30: 26 | BD30: 3 | BE30: =IF(('Comparison Calculator'!$E$11-BD30)>=0,0,IFERROR(-PPMT($BI$30/12,(BC30-24),($F$1-2)*12,$BI$29),0)) -> $0.00 | BF30: =IF(('Comparison Calculator'!$E$11-BD30)>=0,$C$1*$BI$30/12,IFERROR(-IPMT($BI$30/12,(BC30-24),($F$1-2)*12,$BI$29,0),0)) -> $7,470.00 | BG30: $7,470.00 | BH30: $1,800,000.00 | BI30: 4.98% | BK30: 26 | BL30: 3 | BM30: =IF(('Comparison Calculator'!$E$11-BL30)>=0,0,IFERROR(-PPMT($BQ$30/12,(BK30-24),($F$1-2)*12,$BQ$29),0)) -> $0.00 | BN30: =IF(('Comparison Calculator'!$E$11-BL30)>=0,$C$1*$BQ$30/12,IFERROR(-IPMT($BQ$30/12,(BK30-24),($F$1-2)*12,$BQ$29,0),0)) -> $9,720.00 | BO30: $9,720.00 | BP30: $1,800,000.00 | BQ30: =Rates!$C$87 -> 6.48% | BT30: 26 | BU30: 3 | BV30: =IF(('Comparison Calculator'!$E$11-BU30)>=0,0,IFERROR(-PPMT($BZ$30/12,(BT30-24),($F$1-2)*12,$BZ$29),0)) -> $0.00 | BW30: =IF(('Comparison Calculator'!$E$11-BU30)>=0,$C$1*$BZ$30/12,IFERROR(-IPMT($BZ$30/12,(BT30-24),($F$1-2)*12,$BZ$29,0),0)) -> $9,720.00 | BX30: $9,720.00 | BY30: $1,800,000.00 | BZ30: =Rates!$K$87 -> 6.48% | CC30: 26 | CD30: 3 | CE30: =IF(('Comparison Calculator'!$E$11-CD30)>=0,0,IFERROR(-PPMT($CI$30/12,(CC30-24),($F$1-2)*12,$CI$29),0)) -> $0.00 | CF30: =IF(('Comparison Calculator'!$E$11-CD30)>=0,$C$1*$CI$30/12,IFERROR(-IPMT($CI$30/12,(CC30-24),($F$1-2)*12,$CI$29,0),0)) -> $9,570.00 | CG30: $9,570.00 | CH30: $1,800,000.00 | CI30: =Rates!$C$106 -> 6.38% | CL30: 26 | CM30: 3 | CN30: =IF(('Comparison Calculator'!$E$11-CM30)>=0,0,IFERROR(-PPMT($CR$30/12,(CL30-24),($F$1-2)*12,$CR$29),0)) -> $0.00 | CO30: =IF(('Comparison Calculator'!$E$11-CM30)>=0,$C$1*$CR$30/12,IFERROR(-IPMT($CR$30/12,(CL30-24),($F$1-2)*12,$CR$29,0),0)) ->  | CQ30: $1,800,000.00 | CR30: =Rates!$B$127 ->  | CU30: 26 | CV30: 3 | CW30: =IF(('Comparison Calculator'!$E$11-CV30)>=0,0,IFERROR(-PPMT($DA$30/12,(CU30-24),($F$1-2)*12,$DA$29),0)) -> $0.00 | CX30: =IF(('Comparison Calculator'!$E$11-CV30)>=0,$C$1*$DA$30/12,IFERROR(-IPMT($DA$30/12,(CU30-24),($F$1-2)*12,$DA$29,0),0)) ->  | CZ30: $1,800,000.00 | DA30: =Rates!$C$146 ->  | DD30: 26 | DE30: 3 | DF30: =IF(('Comparison Calculator'!$E$11-DE30)>=0,0,IFERROR(-PPMT($DJ$30/12,(DD30-24),($F$1-2)*12,$DJ$29),0)) -> $0.00 | DG30: =IF(('Comparison Calculator'!$E$11-DE30)>=0,$C$1*$DJ$30/12,IFERROR(-IPMT($DJ$30/12,(DD30-24),($F$1-2)*12,$DJ$29,0),0)) ->  | DI30: $1,800,000.00 | DJ30: =Rates!$C$166 -> 
A31: 27 | B31: 3 | C31: =IF(('Comparison Calculator'!$E$11-B31)>=0,0,IFERROR(-PPMT($G$30/12,(A31-24),($F$1-2)*12,$G$29),0)) -> $0.00 | D31: =IF(('Comparison Calculator'!$E$11-B31)>=0,$C$1*$G$30/12,IFERROR(-IPMT($G$30/12,(A31-24),($F$1-2)*12,$G$29,0),0)) -> $9,720.00 | E31: $9,720.00 | F31: $1,800,000.00 | J31: 27 | K31: 3 | L31: =IF(('Comparison Calculator'!$E$11-K31)>=0,0,IFERROR(-PPMT($P$30/12,(J31-24),($F$1-2)*12,$P$29),0)) -> $0.00 | M31: =IF(('Comparison Calculator'!$E$11-K31)>=0,$C$1*$P$30/12,IFERROR(-IPMT($P$30/12,(J31-24),($F$1-2)*12,$P$29,0),0)) -> $9,720.00 | N31: $9,720.00 | O31: $1,800,000.00 | S31: 27 | T31: 3 | U31: =IF(('Comparison Calculator'!$E$11-T31)>=0,0,IFERROR(-PPMT($Y$30/12,(S31-24),($F$1-2)*12,$Y$29),0)) -> $0.00 | V31: =IF(('Comparison Calculator'!$E$11-T31)>=0,$C$1*$Y$30/12,IFERROR(-IPMT($Y$30/12,(S31-24),($F$1-2)*12,$Y$29,0),0)) ->  | X31: $1,800,000.00 | AB31: 27 | AC31: 3 | AD31: =IF(('Comparison Calculator'!$E$11-AC31)>=0,0,IFERROR(-PPMT($AH$30/12,(AB31-24),($F$1-2)*12,$AH$29),0)) -> $0.00 | AE31: =IF(('Comparison Calculator'!$E$11-AC31)>=0,$C$1*$AH$30/12,IFERROR(-IPMT($AH$30/12,(AB31-24),($F$1-2)*12,$AH$29,0),0)) ->  | AG31: $1,800,000.00 | AK31: 27 | AL31: 3 | AM31: =IF(('Comparison Calculator'!$E$11-AL31)>=0,0,IFERROR(-PPMT($AQ$30/12,(AK31-24),($F$1-2)*12,$AQ$29),0)) -> $0.00 | AN31: =IF(('Comparison Calculator'!$E$11-AL31)>=0,$C$1*$AQ$30/12,IFERROR(-IPMT($AQ$30/12,(AK31-24),($F$1-2)*12,$AQ$29,0),0)) -> $8,040.00 | AO31: $8,040.00 | AP31: $1,800,000.00 | AT31: 27 | AU31: 3 | AV31: =IF(('Comparison Calculator'!$E$11-AU31)>=0,0,IFERROR(-PPMT($AZ$30/12,(AT31-24),($F$1-2)*12,$AZ$29),0)) -> $0.00 | AW31: =IF(('Comparison Calculator'!$E$11-AU31)>=0,$C$1*$AZ$30/12,IFERROR(-IPMT($AZ$30/12,(AT31-24),($F$1-2)*12,$AZ$29,0),0)) ->  | AY31: $1,800,000.00 | BC31: 27 | BD31: 3 | BE31: =IF(('Comparison Calculator'!$E$11-BD31)>=0,0,IFERROR(-PPMT($BI$30/12,(BC31-24),($F$1-2)*12,$BI$29),0)) -> $0.00 | BF31: =IF(('Comparison Calculator'!$E$11-BD31)>=0,$C$1*$BI$30/12,IFERROR(-IPMT($BI$30/12,(BC31-24),($F$1-2)*12,$BI$29,0),0)) -> $7,470.00 | BG31: $7,470.00 | BH31: $1,800,000.00 | BK31: 27 | BL31: 3 | BM31: =IF(('Comparison Calculator'!$E$11-BL31)>=0,0,IFERROR(-PPMT($BQ$30/12,(BK31-24),($F$1-2)*12,$BQ$29),0)) -> $0.00 | BN31: =IF(('Comparison Calculator'!$E$11-BL31)>=0,$C$1*$BQ$30/12,IFERROR(-IPMT($BQ$30/12,(BK31-24),($F$1-2)*12,$BQ$29,0),0)) -> $9,720.00 | BO31: $9,720.00 | BP31: $1,800,000.00 | BT31: 27 | BU31: 3 | BV31: =IF(('Comparison Calculator'!$E$11-BU31)>=0,0,IFERROR(-PPMT($BZ$30/12,(BT31-24),($F$1-2)*12,$BZ$29),0)) -> $0.00 | BW31: =IF(('Comparison Calculator'!$E$11-BU31)>=0,$C$1*$BZ$30/12,IFERROR(-IPMT($BZ$30/12,(BT31-24),($F$1-2)*12,$BZ$29,0),0)) -> $9,720.00 | BX31: $9,720.00 | BY31: $1,800,000.00 | CC31: 27 | CD31: 3 | CE31: =IF(('Comparison Calculator'!$E$11-CD31)>=0,0,IFERROR(-PPMT($CI$30/12,(CC31-24),($F$1-2)*12,$CI$29),0)) -> $0.00 | CF31: =IF(('Comparison Calculator'!$E$11-CD31)>=0,$C$1*$CI$30/12,IFERROR(-IPMT($CI$30/12,(CC31-24),($F$1-2)*12,$CI$29,0),0)) -> $9,570.00 | CG31: $9,570.00 | CH31: $1,800,000.00 | CL31: 27 | CM31: 3 | CN31: =IF(('Comparison Calculator'!$E$11-CM31)>=0,0,IFERROR(-PPMT($CR$30/12,(CL31-24),($F$1-2)*12,$CR$29),0)) -> $0.00 | CO31: =IF(('Comparison Calculator'!$E$11-CM31)>=0,$C$1*$CR$30/12,IFERROR(-IPMT($CR$30/12,(CL31-24),($F$1-2)*12,$CR$29,0),0)) ->  | CQ31: $1,800,000.00 | CU31: 27 | CV31: 3 | CW31: =IF(('Comparison Calculator'!$E$11-CV31)>=0,0,IFERROR(-PPMT($DA$30/12,(CU31-24),($F$1-2)*12,$DA$29),0)) -> $0.00 | CX31: =IF(('Comparison Calculator'!$E$11-CV31)>=0,$C$1*$DA$30/12,IFERROR(-IPMT($DA$30/12,(CU31-24),($F$1-2)*12,$DA$29,0),0)) ->  | CZ31: $1,800,000.00 | DD31: 27 | DE31: 3 | DF31: =IF(('Comparison Calculator'!$E$11-DE31)>=0,0,IFERROR(-PPMT($DJ$30/12,(DD31-24),($F$1-2)*12,$DJ$29),0)) -> $0.00 | DG31: =IF(('Comparison Calculator'!$E$11-DE31)>=0,$C$1*$DJ$30/12,IFERROR(-IPMT($DJ$30/12,(DD31-24),($F$1-2)*12,$DJ$29,0),0)) ->  | DI31: $1,800,000.00
A32: 28 | B32: 3 | C32: =IF(('Comparison Calculator'!$E$11-B32)>=0,0,IFERROR(-PPMT($G$30/12,(A32-24),($F$1-2)*12,$G$29),0)) -> $0.00 | D32: =IF(('Comparison Calculator'!$E$11-B32)>=0,$C$1*$G$30/12,IFERROR(-IPMT($G$30/12,(A32-24),($F$1-2)*12,$G$29,0),0)) -> $9,720.00 | E32: $9,720.00 | F32: $1,800,000.00 | J32: 28 | K32: 3 | L32: =IF(('Comparison Calculator'!$E$11-K32)>=0,0,IFERROR(-PPMT($P$30/12,(J32-24),($F$1-2)*12,$P$29),0)) -> $0.00 | M32: =IF(('Comparison Calculator'!$E$11-K32)>=0,$C$1*$P$30/12,IFERROR(-IPMT($P$30/12,(J32-24),($F$1-2)*12,$P$29,0),0)) -> $9,720.00 | N32: $9,720.00 | O32: $1,800,000.00 | S32: 28 | T32: 3 | U32: =IF(('Comparison Calculator'!$E$11-T32)>=0,0,IFERROR(-PPMT($Y$30/12,(S32-24),($F$1-2)*12,$Y$29),0)) -> $0.00 | V32: =IF(('Comparison Calculator'!$E$11-T32)>=0,$C$1*$Y$30/12,IFERROR(-IPMT($Y$30/12,(S32-24),($F$1-2)*12,$Y$29,0),0)) ->  | X32: $1,800,000.00 | AB32: 28 | AC32: 3 | AD32: =IF(('Comparison Calculator'!$E$11-AC32)>=0,0,IFERROR(-PPMT($AH$30/12,(AB32-24),($F$1-2)*12,$AH$29),0)) -> $0.00 | AE32: =IF(('Comparison Calculator'!$E$11-AC32)>=0,$C$1*$AH$30/12,IFERROR(-IPMT($AH$30/12,(AB32-24),($F$1-2)*12,$AH$29,0),0)) ->  | AG32: $1,800,000.00 | AK32: 28 | AL32: 3 | AM32: =IF(('Comparison Calculator'!$E$11-AL32)>=0,0,IFERROR(-PPMT($AQ$30/12,(AK32-24),($F$1-2)*12,$AQ$29),0)) -> $0.00 | AN32: =IF(('Comparison Calculator'!$E$11-AL32)>=0,$C$1*$AQ$30/12,IFERROR(-IPMT($AQ$30/12,(AK32-24),($F$1-2)*12,$AQ$29,0),0)) -> $8,040.00 | AO32: $8,040.00 | AP32: $1,800,000.00 | AT32: 28 | AU32: 3 | AV32: =IF(('Comparison Calculator'!$E$11-AU32)>=0,0,IFERROR(-PPMT($AZ$30/12,(AT32-24),($F$1-2)*12,$AZ$29),0)) -> $0.00 | AW32: =IF(('Comparison Calculator'!$E$11-AU32)>=0,$C$1*$AZ$30/12,IFERROR(-IPMT($AZ$30/12,(AT32-24),($F$1-2)*12,$AZ$29,0),0)) ->  | AY32: $1,800,000.00 | BC32: 28 | BD32: 3 | BE32: =IF(('Comparison Calculator'!$E$11-BD32)>=0,0,IFERROR(-PPMT($BI$30/12,(BC32-24),($F$1-2)*12,$BI$29),0)) -> $0.00 | BF32: =IF(('Comparison Calculator'!$E$11-BD32)>=0,$C$1*$BI$30/12,IFERROR(-IPMT($BI$30/12,(BC32-24),($F$1-2)*12,$BI$29,0),0)) -> $7,470.00 | BG32: $7,470.00 | BH32: $1,800,000.00 | BK32: 28 | BL32: 3 | BM32: =IF(('Comparison Calculator'!$E$11-BL32)>=0,0,IFERROR(-PPMT($BQ$30/12,(BK32-24),($F$1-2)*12,$BQ$29),0)) -> $0.00 | BN32: =IF(('Comparison Calculator'!$E$11-BL32)>=0,$C$1*$BQ$30/12,IFERROR(-IPMT($BQ$30/12,(BK32-24),($F$1-2)*12,$BQ$29,0),0)) -> $9,720.00 | BO32: $9,720.00 | BP32: $1,800,000.00 | BT32: 28 | BU32: 3 | BV32: =IF(('Comparison Calculator'!$E$11-BU32)>=0,0,IFERROR(-PPMT($BZ$30/12,(BT32-24),($F$1-2)*12,$BZ$29),0)) -> $0.00 | BW32: =IF(('Comparison Calculator'!$E$11-BU32)>=0,$C$1*$BZ$30/12,IFERROR(-IPMT($BZ$30/12,(BT32-24),($F$1-2)*12,$BZ$29,0),0)) -> $9,720.00 | BX32: $9,720.00 | BY32: $1,800,000.00 | CC32: 28 | CD32: 3 | CE32: =IF(('Comparison Calculator'!$E$11-CD32)>=0,0,IFERROR(-PPMT($CI$30/12,(CC32-24),($F$1-2)*12,$CI$29),0)) -> $0.00 | CF32: =IF(('Comparison Calculator'!$E$11-CD32)>=0,$C$1*$CI$30/12,IFERROR(-IPMT($CI$30/12,(CC32-24),($F$1-2)*12,$CI$29,0),0)) -> $9,570.00 | CG32: $9,570.00 | CH32: $1,800,000.00 | CL32: 28 | CM32: 3 | CN32: =IF(('Comparison Calculator'!$E$11-CM32)>=0,0,IFERROR(-PPMT($CR$30/12,(CL32-24),($F$1-2)*12,$CR$29),0)) -> $0.00 | CO32: =IF(('Comparison Calculator'!$E$11-CM32)>=0,$C$1*$CR$30/12,IFERROR(-IPMT($CR$30/12,(CL32-24),($F$1-2)*12,$CR$29,0),0)) ->  | CQ32: $1,800,000.00 | CU32: 28 | CV32: 3 | CW32: =IF(('Comparison Calculator'!$E$11-CV32)>=0,0,IFERROR(-PPMT($DA$30/12,(CU32-24),($F$1-2)*12,$DA$29),0)) -> $0.00 | CX32: =IF(('Comparison Calculator'!$E$11-CV32)>=0,$C$1*$DA$30/12,IFERROR(-IPMT($DA$30/12,(CU32-24),($F$1-2)*12,$DA$29,0),0)) ->  | CZ32: $1,800,000.00 | DD32: 28 | DE32: 3 | DF32: =IF(('Comparison Calculator'!$E$11-DE32)>=0,0,IFERROR(-PPMT($DJ$30/12,(DD32-24),($F$1-2)*12,$DJ$29),0)) -> $0.00 | DG32: =IF(('Comparison Calculator'!$E$11-DE32)>=0,$C$1*$DJ$30/12,IFERROR(-IPMT($DJ$30/12,(DD32-24),($F$1-2)*12,$DJ$29,0),0)) ->  | DI32: $1,800,000.00
A33: 29 | B33: 3 | C33: =IF(('Comparison Calculator'!$E$11-B33)>=0,0,IFERROR(-PPMT($G$30/12,(A33-24),($F$1-2)*12,$G$29),0)) -> $0.00 | D33: =IF(('Comparison Calculator'!$E$11-B33)>=0,$C$1*$G$30/12,IFERROR(-IPMT($G$30/12,(A33-24),($F$1-2)*12,$G$29,0),0)) -> $9,720.00 | E33: $9,720.00 | F33: $1,800,000.00 | J33: 29 | K33: 3 | L33: =IF(('Comparison Calculator'!$E$11-K33)>=0,0,IFERROR(-PPMT($P$30/12,(J33-24),($F$1-2)*12,$P$29),0)) -> $0.00 | M33: =IF(('Comparison Calculator'!$E$11-K33)>=0,$C$1*$P$30/12,IFERROR(-IPMT($P$30/12,(J33-24),($F$1-2)*12,$P$29,0),0)) -> $9,720.00 | N33: $9,720.00 | O33: $1,800,000.00 | S33: 29 | T33: 3 | U33: =IF(('Comparison Calculator'!$E$11-T33)>=0,0,IFERROR(-PPMT($Y$30/12,(S33-24),($F$1-2)*12,$Y$29),0)) -> $0.00 | V33: =IF(('Comparison Calculator'!$E$11-T33)>=0,$C$1*$Y$30/12,IFERROR(-IPMT($Y$30/12,(S33-24),($F$1-2)*12,$Y$29,0),0)) ->  | X33: $1,800,000.00 | AB33: 29 | AC33: 3 | AD33: =IF(('Comparison Calculator'!$E$11-AC33)>=0,0,IFERROR(-PPMT($AH$30/12,(AB33-24),($F$1-2)*12,$AH$29),0)) -> $0.00 | AE33: =IF(('Comparison Calculator'!$E$11-AC33)>=0,$C$1*$AH$30/12,IFERROR(-IPMT($AH$30/12,(AB33-24),($F$1-2)*12,$AH$29,0),0)) ->  | AG33: $1,800,000.00 | AK33: 29 | AL33: 3 | AM33: =IF(('Comparison Calculator'!$E$11-AL33)>=0,0,IFERROR(-PPMT($AQ$30/12,(AK33-24),($F$1-2)*12,$AQ$29),0)) -> $0.00 | AN33: =IF(('Comparison Calculator'!$E$11-AL33)>=0,$C$1*$AQ$30/12,IFERROR(-IPMT($AQ$30/12,(AK33-24),($F$1-2)*12,$AQ$29,0),0)) -> $8,040.00 | AO33: $8,040.00 | AP33: $1,800,000.00 | AT33: 29 | AU33: 3 | AV33: =IF(('Comparison Calculator'!$E$11-AU33)>=0,0,IFERROR(-PPMT($AZ$30/12,(AT33-24),($F$1-2)*12,$AZ$29),0)) -> $0.00 | AW33: =IF(('Comparison Calculator'!$E$11-AU33)>=0,$C$1*$AZ$30/12,IFERROR(-IPMT($AZ$30/12,(AT33-24),($F$1-2)*12,$AZ$29,0),0)) ->  | AY33: $1,800,000.00 | BC33: 29 | BD33: 3 | BE33: =IF(('Comparison Calculator'!$E$11-BD33)>=0,0,IFERROR(-PPMT($BI$30/12,(BC33-24),($F$1-2)*12,$BI$29),0)) -> $0.00 | BF33: =IF(('Comparison Calculator'!$E$11-BD33)>=0,$C$1*$BI$30/12,IFERROR(-IPMT($BI$30/12,(BC33-24),($F$1-2)*12,$BI$29,0),0)) -> $7,470.00 | BG33: $7,470.00 | BH33: $1,800,000.00 | BK33: 29 | BL33: 3 | BM33: =IF(('Comparison Calculator'!$E$11-BL33)>=0,0,IFERROR(-PPMT($BQ$30/12,(BK33-24),($F$1-2)*12,$BQ$29),0)) -> $0.00 | BN33: =IF(('Comparison Calculator'!$E$11-BL33)>=0,$C$1*$BQ$30/12,IFERROR(-IPMT($BQ$30/12,(BK33-24),($F$1-2)*12,$BQ$29,0),0)) -> $9,720.00 | BO33: $9,720.00 | BP33: $1,800,000.00 | BT33: 29 | BU33: 3 | BV33: =IF(('Comparison Calculator'!$E$11-BU33)>=0,0,IFERROR(-PPMT($BZ$30/12,(BT33-24),($F$1-2)*12,$BZ$29),0)) -> $0.00 | BW33: =IF(('Comparison Calculator'!$E$11-BU33)>=0,$C$1*$BZ$30/12,IFERROR(-IPMT($BZ$30/12,(BT33-24),($F$1-2)*12,$BZ$29,0),0)) -> $9,720.00 | BX33: $9,720.00 | BY33: $1,800,000.00 | CC33: 29 | CD33: 3 | CE33: =IF(('Comparison Calculator'!$E$11-CD33)>=0,0,IFERROR(-PPMT($CI$30/12,(CC33-24),($F$1-2)*12,$CI$29),0)) -> $0.00 | CF33: =IF(('Comparison Calculator'!$E$11-CD33)>=0,$C$1*$CI$30/12,IFERROR(-IPMT($CI$30/12,(CC33-24),($F$1-2)*12,$CI$29,0),0)) -> $9,570.00 | CG33: $9,570.00 | CH33: $1,800,000.00 | CL33: 29 | CM33: 3 | CN33: =IF(('Comparison Calculator'!$E$11-CM33)>=0,0,IFERROR(-PPMT($CR$30/12,(CL33-24),($F$1-2)*12,$CR$29),0)) -> $0.00 | CO33: =IF(('Comparison Calculator'!$E$11-CM33)>=0,$C$1*$CR$30/12,IFERROR(-IPMT($CR$30/12,(CL33-24),($F$1-2)*12,$CR$29,0),0)) ->  | CQ33: $1,800,000.00 | CU33: 29 | CV33: 3 | CW33: =IF(('Comparison Calculator'!$E$11-CV33)>=0,0,IFERROR(-PPMT($DA$30/12,(CU33-24),($F$1-2)*12,$DA$29),0)) -> $0.00 | CX33: =IF(('Comparison Calculator'!$E$11-CV33)>=0,$C$1*$DA$30/12,IFERROR(-IPMT($DA$30/12,(CU33-24),($F$1-2)*12,$DA$29,0),0)) ->  | CZ33: $1,800,000.00 | DD33: 29 | DE33: 3 | DF33: =IF(('Comparison Calculator'!$E$11-DE33)>=0,0,IFERROR(-PPMT($DJ$30/12,(DD33-24),($F$1-2)*12,$DJ$29),0)) -> $0.00 | DG33: =IF(('Comparison Calculator'!$E$11-DE33)>=0,$C$1*$DJ$30/12,IFERROR(-IPMT($DJ$30/12,(DD33-24),($F$1-2)*12,$DJ$29,0),0)) ->  | DI33: $1,800,000.00
A34: 30 | B34: 3 | C34: =IF(('Comparison Calculator'!$E$11-B34)>=0,0,IFERROR(-PPMT($G$30/12,(A34-24),($F$1-2)*12,$G$29),0)) -> $0.00 | D34: =IF(('Comparison Calculator'!$E$11-B34)>=0,$C$1*$G$30/12,IFERROR(-IPMT($G$30/12,(A34-24),($F$1-2)*12,$G$29,0),0)) -> $9,720.00 | E34: $9,720.00 | F34: $1,800,000.00 | J34: 30 | K34: 3 | L34: =IF(('Comparison Calculator'!$E$11-K34)>=0,0,IFERROR(-PPMT($P$30/12,(J34-24),($F$1-2)*12,$P$29),0)) -> $0.00 | M34: =IF(('Comparison Calculator'!$E$11-K34)>=0,$C$1*$P$30/12,IFERROR(-IPMT($P$30/12,(J34-24),($F$1-2)*12,$P$29,0),0)) -> $9,720.00 | N34: $9,720.00 | O34: $1,800,000.00 | S34: 30 | T34: 3 | U34: =IF(('Comparison Calculator'!$E$11-T34)>=0,0,IFERROR(-PPMT($Y$30/12,(S34-24),($F$1-2)*12,$Y$29),0)) -> $0.00 | V34: =IF(('Comparison Calculator'!$E$11-T34)>=0,$C$1*$Y$30/12,IFERROR(-IPMT($Y$30/12,(S34-24),($F$1-2)*12,$Y$29,0),0)) ->  | X34: $1,800,000.00 | AB34: 30 | AC34: 3 | AD34: =IF(('Comparison Calculator'!$E$11-AC34)>=0,0,IFERROR(-PPMT($AH$30/12,(AB34-24),($F$1-2)*12,$AH$29),0)) -> $0.00 | AE34: =IF(('Comparison Calculator'!$E$11-AC34)>=0,$C$1*$AH$30/12,IFERROR(-IPMT($AH$30/12,(AB34-24),($F$1-2)*12,$AH$29,0),0)) ->  | AG34: $1,800,000.00 | AK34: 30 | AL34: 3 | AM34: =IF(('Comparison Calculator'!$E$11-AL34)>=0,0,IFERROR(-PPMT($AQ$30/12,(AK34-24),($F$1-2)*12,$AQ$29),0)) -> $0.00 | AN34: =IF(('Comparison Calculator'!$E$11-AL34)>=0,$C$1*$AQ$30/12,IFERROR(-IPMT($AQ$30/12,(AK34-24),($F$1-2)*12,$AQ$29,0),0)) -> $8,040.00 | AO34: $8,040.00 | AP34: $1,800,000.00 | AT34: 30 | AU34: 3 | AV34: =IF(('Comparison Calculator'!$E$11-AU34)>=0,0,IFERROR(-PPMT($AZ$30/12,(AT34-24),($F$1-2)*12,$AZ$29),0)) -> $0.00 | AW34: =IF(('Comparison Calculator'!$E$11-AU34)>=0,$C$1*$AZ$30/12,IFERROR(-IPMT($AZ$30/12,(AT34-24),($F$1-2)*12,$AZ$29,0),0)) ->  | AY34: $1,800,000.00 | BC34: 30 | BD34: 3 | BE34: =IF(('Comparison Calculator'!$E$11-BD34)>=0,0,IFERROR(-PPMT($BI$30/12,(BC34-24),($F$1-2)*12,$BI$29),0)) -> $0.00 | BF34: =IF(('Comparison Calculator'!$E$11-BD34)>=0,$C$1*$BI$30/12,IFERROR(-IPMT($BI$30/12,(BC34-24),($F$1-2)*12,$BI$29,0),0)) -> $7,470.00 | BG34: $7,470.00 | BH34: $1,800,000.00 | BK34: 30 | BL34: 3 | BM34: =IF(('Comparison Calculator'!$E$11-BL34)>=0,0,IFERROR(-PPMT($BQ$30/12,(BK34-24),($F$1-2)*12,$BQ$29),0)) -> $0.00 | BN34: =IF(('Comparison Calculator'!$E$11-BL34)>=0,$C$1*$BQ$30/12,IFERROR(-IPMT($BQ$30/12,(BK34-24),($F$1-2)*12,$BQ$29,0),0)) -> $9,720.00 | BO34: $9,720.00 | BP34: $1,800,000.00 | BT34: 30 | BU34: 3 | BV34: =IF(('Comparison Calculator'!$E$11-BU34)>=0,0,IFERROR(-PPMT($BZ$30/12,(BT34-24),($F$1-2)*12,$BZ$29),0)) -> $0.00 | BW34: =IF(('Comparison Calculator'!$E$11-BU34)>=0,$C$1*$BZ$30/12,IFERROR(-IPMT($BZ$30/12,(BT34-24),($F$1-2)*12,$BZ$29,0),0)) -> $9,720.00 | BX34: $9,720.00 | BY34: $1,800,000.00 | CC34: 30 | CD34: 3 | CE34: =IF(('Comparison Calculator'!$E$11-CD34)>=0,0,IFERROR(-PPMT($CI$30/12,(CC34-24),($F$1-2)*12,$CI$29),0)) -> $0.00 | CF34: =IF(('Comparison Calculator'!$E$11-CD34)>=0,$C$1*$CI$30/12,IFERROR(-IPMT($CI$30/12,(CC34-24),($F$1-2)*12,$CI$29,0),0)) -> $9,570.00 | CG34: $9,570.00 | CH34: $1,800,000.00 | CL34: 30 | CM34: 3 | CN34: =IF(('Comparison Calculator'!$E$11-CM34)>=0,0,IFERROR(-PPMT($CR$30/12,(CL34-24),($F$1-2)*12,$CR$29),0)) -> $0.00 | CO34: =IF(('Comparison Calculator'!$E$11-CM34)>=0,$C$1*$CR$30/12,IFERROR(-IPMT($CR$30/12,(CL34-24),($F$1-2)*12,$CR$29,0),0)) ->  | CQ34: $1,800,000.00 | CU34: 30 | CV34: 3 | CW34: =IF(('Comparison Calculator'!$E$11-CV34)>=0,0,IFERROR(-PPMT($DA$30/12,(CU34-24),($F$1-2)*12,$DA$29),0)) -> $0.00 | CX34: =IF(('Comparison Calculator'!$E$11-CV34)>=0,$C$1*$DA$30/12,IFERROR(-IPMT($DA$30/12,(CU34-24),($F$1-2)*12,$DA$29,0),0)) ->  | CZ34: $1,800,000.00 | DD34: 30 | DE34: 3 | DF34: =IF(('Comparison Calculator'!$E$11-DE34)>=0,0,IFERROR(-PPMT($DJ$30/12,(DD34-24),($F$1-2)*12,$DJ$29),0)) -> $0.00 | DG34: =IF(('Comparison Calculator'!$E$11-DE34)>=0,$C$1*$DJ$30/12,IFERROR(-IPMT($DJ$30/12,(DD34-24),($F$1-2)*12,$DJ$29,0),0)) ->  | DI34: $1,800,000.00
A35: 31 | B35: 3 | C35: =IF(('Comparison Calculator'!$E$11-B35)>=0,0,IFERROR(-PPMT($G$30/12,(A35-24),($F$1-2)*12,$G$29),0)) -> $0.00 | D35: =IF(('Comparison Calculator'!$E$11-B35)>=0,$C$1*$G$30/12,IFERROR(-IPMT($G$30/12,(A35-24),($F$1-2)*12,$G$29,0),0)) -> $9,720.00 | E35: $9,720.00 | F35: $1,800,000.00 | J35: 31 | K35: 3 | L35: =IF(('Comparison Calculator'!$E$11-K35)>=0,0,IFERROR(-PPMT($P$30/12,(J35-24),($F$1-2)*12,$P$29),0)) -> $0.00 | M35: =IF(('Comparison Calculator'!$E$11-K35)>=0,$C$1*$P$30/12,IFERROR(-IPMT($P$30/12,(J35-24),($F$1-2)*12,$P$29,0),0)) -> $9,720.00 | N35: $9,720.00 | O35: $1,800,000.00 | S35: 31 | T35: 3 | U35: =IF(('Comparison Calculator'!$E$11-T35)>=0,0,IFERROR(-PPMT($Y$30/12,(S35-24),($F$1-2)*12,$Y$29),0)) -> $0.00 | V35: =IF(('Comparison Calculator'!$E$11-T35)>=0,$C$1*$Y$30/12,IFERROR(-IPMT($Y$30/12,(S35-24),($F$1-2)*12,$Y$29,0),0)) ->  | X35: $1,800,000.00 | AB35: 31 | AC35: 3 | AD35: =IF(('Comparison Calculator'!$E$11-AC35)>=0,0,IFERROR(-PPMT($AH$30/12,(AB35-24),($F$1-2)*12,$AH$29),0)) -> $0.00 | AE35: =IF(('Comparison Calculator'!$E$11-AC35)>=0,$C$1*$AH$30/12,IFERROR(-IPMT($AH$30/12,(AB35-24),($F$1-2)*12,$AH$29,0),0)) ->  | AG35: $1,800,000.00 | AK35: 31 | AL35: 3 | AM35: =IF(('Comparison Calculator'!$E$11-AL35)>=0,0,IFERROR(-PPMT($AQ$30/12,(AK35-24),($F$1-2)*12,$AQ$29),0)) -> $0.00 | AN35: =IF(('Comparison Calculator'!$E$11-AL35)>=0,$C$1*$AQ$30/12,IFERROR(-IPMT($AQ$30/12,(AK35-24),($F$1-2)*12,$AQ$29,0),0)) -> $8,040.00 | AO35: $8,040.00 | AP35: $1,800,000.00 | AT35: 31 | AU35: 3 | AV35: =IF(('Comparison Calculator'!$E$11-AU35)>=0,0,IFERROR(-PPMT($AZ$30/12,(AT35-24),($F$1-2)*12,$AZ$29),0)) -> $0.00 | AW35: =IF(('Comparison Calculator'!$E$11-AU35)>=0,$C$1*$AZ$30/12,IFERROR(-IPMT($AZ$30/12,(AT35-24),($F$1-2)*12,$AZ$29,0),0)) ->  | AY35: $1,800,000.00 | BC35: 31 | BD35: 3 | BE35: =IF(('Comparison Calculator'!$E$11-BD35)>=0,0,IFERROR(-PPMT($BI$30/12,(BC35-24),($F$1-2)*12,$BI$29),0)) -> $0.00 | BF35: =IF(('Comparison Calculator'!$E$11-BD35)>=0,$C$1*$BI$30/12,IFERROR(-IPMT($BI$30/12,(BC35-24),($F$1-2)*12,$BI$29,0),0)) -> $7,470.00 | BG35: $7,470.00 | BH35: $1,800,000.00 | BK35: 31 | BL35: 3 | BM35: =IF(('Comparison Calculator'!$E$11-BL35)>=0,0,IFERROR(-PPMT($BQ$30/12,(BK35-24),($F$1-2)*12,$BQ$29),0)) -> $0.00 | BN35: =IF(('Comparison Calculator'!$E$11-BL35)>=0,$C$1*$BQ$30/12,IFERROR(-IPMT($BQ$30/12,(BK35-24),($F$1-2)*12,$BQ$29,0),0)) -> $9,720.00 | BO35: $9,720.00 | BP35: $1,800,000.00 | BT35: 31 | BU35: 3 | BV35: =IF(('Comparison Calculator'!$E$11-BU35)>=0,0,IFERROR(-PPMT($BZ$30/12,(BT35-24),($F$1-2)*12,$BZ$29),0)) -> $0.00 | BW35: =IF(('Comparison Calculator'!$E$11-BU35)>=0,$C$1*$BZ$30/12,IFERROR(-IPMT($BZ$30/12,(BT35-24),($F$1-2)*12,$BZ$29,0),0)) -> $9,720.00 | BX35: $9,720.00 | BY35: $1,800,000.00 | CC35: 31 | CD35: 3 | CE35: =IF(('Comparison Calculator'!$E$11-CD35)>=0,0,IFERROR(-PPMT($CI$30/12,(CC35-24),($F$1-2)*12,$CI$29),0)) -> $0.00 | CF35: =IF(('Comparison Calculator'!$E$11-CD35)>=0,$C$1*$CI$30/12,IFERROR(-IPMT($CI$30/12,(CC35-24),($F$1-2)*12,$CI$29,0),0)) -> $9,570.00 | CG35: $9,570.00 | CH35: $1,800,000.00 | CL35: 31 | CM35: 3 | CN35: =IF(('Comparison Calculator'!$E$11-CM35)>=0,0,IFERROR(-PPMT($CR$30/12,(CL35-24),($F$1-2)*12,$CR$29),0)) -> $0.00 | CO35: =IF(('Comparison Calculator'!$E$11-CM35)>=0,$C$1*$CR$30/12,IFERROR(-IPMT($CR$30/12,(CL35-24),($F$1-2)*12,$CR$29,0),0)) ->  | CQ35: $1,800,000.00 | CU35: 31 | CV35: 3 | CW35: =IF(('Comparison Calculator'!$E$11-CV35)>=0,0,IFERROR(-PPMT($DA$30/12,(CU35-24),($F$1-2)*12,$DA$29),0)) -> $0.00 | CX35: =IF(('Comparison Calculator'!$E$11-CV35)>=0,$C$1*$DA$30/12,IFERROR(-IPMT($DA$30/12,(CU35-24),($F$1-2)*12,$DA$29,0),0)) ->  | CZ35: $1,800,000.00 | DD35: 31 | DE35: 3 | DF35: =IF(('Comparison Calculator'!$E$11-DE35)>=0,0,IFERROR(-PPMT($DJ$30/12,(DD35-24),($F$1-2)*12,$DJ$29),0)) -> $0.00 | DG35: =IF(('Comparison Calculator'!$E$11-DE35)>=0,$C$1*$DJ$30/12,IFERROR(-IPMT($DJ$30/12,(DD35-24),($F$1-2)*12,$DJ$29,0),0)) ->  | DI35: $1,800,000.00
A36: 32 | B36: 3 | C36: =IF(('Comparison Calculator'!$E$11-B36)>=0,0,IFERROR(-PPMT($G$30/12,(A36-24),($F$1-2)*12,$G$29),0)) -> $0.00 | D36: =IF(('Comparison Calculator'!$E$11-B36)>=0,$C$1*$G$30/12,IFERROR(-IPMT($G$30/12,(A36-24),($F$1-2)*12,$G$29,0),0)) -> $9,720.00 | E36: $9,720.00 | F36: $1,800,000.00 | J36: 32 | K36: 3 | L36: =IF(('Comparison Calculator'!$E$11-K36)>=0,0,IFERROR(-PPMT($P$30/12,(J36-24),($F$1-2)*12,$P$29),0)) -> $0.00 | M36: =IF(('Comparison Calculator'!$E$11-K36)>=0,$C$1*$P$30/12,IFERROR(-IPMT($P$30/12,(J36-24),($F$1-2)*12,$P$29,0),0)) -> $9,720.00 | N36: $9,720.00 | O36: $1,800,000.00 | S36: 32 | T36: 3 | U36: =IF(('Comparison Calculator'!$E$11-T36)>=0,0,IFERROR(-PPMT($Y$30/12,(S36-24),($F$1-2)*12,$Y$29),0)) -> $0.00 | V36: =IF(('Comparison Calculator'!$E$11-T36)>=0,$C$1*$Y$30/12,IFERROR(-IPMT($Y$30/12,(S36-24),($F$1-2)*12,$Y$29,0),0)) ->  | X36: $1,800,000.00 | AB36: 32 | AC36: 3 | AD36: =IF(('Comparison Calculator'!$E$11-AC36)>=0,0,IFERROR(-PPMT($AH$30/12,(AB36-24),($F$1-2)*12,$AH$29),0)) -> $0.00 | AE36: =IF(('Comparison Calculator'!$E$11-AC36)>=0,$C$1*$AH$30/12,IFERROR(-IPMT($AH$30/12,(AB36-24),($F$1-2)*12,$AH$29,0),0)) ->  | AG36: $1,800,000.00 | AK36: 32 | AL36: 3 | AM36: =IF(('Comparison Calculator'!$E$11-AL36)>=0,0,IFERROR(-PPMT($AQ$30/12,(AK36-24),($F$1-2)*12,$AQ$29),0)) -> $0.00 | AN36: =IF(('Comparison Calculator'!$E$11-AL36)>=0,$C$1*$AQ$30/12,IFERROR(-IPMT($AQ$30/12,(AK36-24),($F$1-2)*12,$AQ$29,0),0)) -> $8,040.00 | AO36: $8,040.00 | AP36: $1,800,000.00 | AT36: 32 | AU36: 3 | AV36: =IF(('Comparison Calculator'!$E$11-AU36)>=0,0,IFERROR(-PPMT($AZ$30/12,(AT36-24),($F$1-2)*12,$AZ$29),0)) -> $0.00 | AW36: =IF(('Comparison Calculator'!$E$11-AU36)>=0,$C$1*$AZ$30/12,IFERROR(-IPMT($AZ$30/12,(AT36-24),($F$1-2)*12,$AZ$29,0),0)) ->  | AY36: $1,800,000.00 | BC36: 32 | BD36: 3 | BE36: =IF(('Comparison Calculator'!$E$11-BD36)>=0,0,IFERROR(-PPMT($BI$30/12,(BC36-24),($F$1-2)*12,$BI$29),0)) -> $0.00 | BF36: =IF(('Comparison Calculator'!$E$11-BD36)>=0,$C$1*$BI$30/12,IFERROR(-IPMT($BI$30/12,(BC36-24),($F$1-2)*12,$BI$29,0),0)) -> $7,470.00 | BG36: $7,470.00 | BH36: $1,800,000.00 | BK36: 32 | BL36: 3 | BM36: =IF(('Comparison Calculator'!$E$11-BL36)>=0,0,IFERROR(-PPMT($BQ$30/12,(BK36-24),($F$1-2)*12,$BQ$29),0)) -> $0.00 | BN36: =IF(('Comparison Calculator'!$E$11-BL36)>=0,$C$1*$BQ$30/12,IFERROR(-IPMT($BQ$30/12,(BK36-24),($F$1-2)*12,$BQ$29,0),0)) -> $9,720.00 | BO36: $9,720.00 | BP36: $1,800,000.00 | BT36: 32 | BU36: 3 | BV36: =IF(('Comparison Calculator'!$E$11-BU36)>=0,0,IFERROR(-PPMT($BZ$30/12,(BT36-24),($F$1-2)*12,$BZ$29),0)) -> $0.00 | BW36: =IF(('Comparison Calculator'!$E$11-BU36)>=0,$C$1*$BZ$30/12,IFERROR(-IPMT($BZ$30/12,(BT36-24),($F$1-2)*12,$BZ$29,0),0)) -> $9,720.00 | BX36: $9,720.00 | BY36: $1,800,000.00 | CC36: 32 | CD36: 3 | CE36: =IF(('Comparison Calculator'!$E$11-CD36)>=0,0,IFERROR(-PPMT($CI$30/12,(CC36-24),($F$1-2)*12,$CI$29),0)) -> $0.00 | CF36: =IF(('Comparison Calculator'!$E$11-CD36)>=0,$C$1*$CI$30/12,IFERROR(-IPMT($CI$30/12,(CC36-24),($F$1-2)*12,$CI$29,0),0)) -> $9,570.00 | CG36: $9,570.00 | CH36: $1,800,000.00 | CL36: 32 | CM36: 3 | CN36: =IF(('Comparison Calculator'!$E$11-CM36)>=0,0,IFERROR(-PPMT($CR$30/12,(CL36-24),($F$1-2)*12,$CR$29),0)) -> $0.00 | CO36: =IF(('Comparison Calculator'!$E$11-CM36)>=0,$C$1*$CR$30/12,IFERROR(-IPMT($CR$30/12,(CL36-24),($F$1-2)*12,$CR$29,0),0)) ->  | CQ36: $1,800,000.00 | CU36: 32 | CV36: 3 | CW36: =IF(('Comparison Calculator'!$E$11-CV36)>=0,0,IFERROR(-PPMT($DA$30/12,(CU36-24),($F$1-2)*12,$DA$29),0)) -> $0.00 | CX36: =IF(('Comparison Calculator'!$E$11-CV36)>=0,$C$1*$DA$30/12,IFERROR(-IPMT($DA$30/12,(CU36-24),($F$1-2)*12,$DA$29,0),0)) ->  | CZ36: $1,800,000.00 | DD36: 32 | DE36: 3 | DF36: =IF(('Comparison Calculator'!$E$11-DE36)>=0,0,IFERROR(-PPMT($DJ$30/12,(DD36-24),($F$1-2)*12,$DJ$29),0)) -> $0.00 | DG36: =IF(('Comparison Calculator'!$E$11-DE36)>=0,$C$1*$DJ$30/12,IFERROR(-IPMT($DJ$30/12,(DD36-24),($F$1-2)*12,$DJ$29,0),0)) ->  | DI36: $1,800,000.00
A37: 33 | B37: 3 | C37: =IF(('Comparison Calculator'!$E$11-B37)>=0,0,IFERROR(-PPMT($G$30/12,(A37-24),($F$1-2)*12,$G$29),0)) -> $0.00 | D37: =IF(('Comparison Calculator'!$E$11-B37)>=0,$C$1*$G$30/12,IFERROR(-IPMT($G$30/12,(A37-24),($F$1-2)*12,$G$29,0),0)) -> $9,720.00 | E37: $9,720.00 | F37: $1,800,000.00 | J37: 33 | K37: 3 | L37: =IF(('Comparison Calculator'!$E$11-K37)>=0,0,IFERROR(-PPMT($P$30/12,(J37-24),($F$1-2)*12,$P$29),0)) -> $0.00 | M37: =IF(('Comparison Calculator'!$E$11-K37)>=0,$C$1*$P$30/12,IFERROR(-IPMT($P$30/12,(J37-24),($F$1-2)*12,$P$29,0),0)) -> $9,720.00 | N37: $9,720.00 | O37: $1,800,000.00 | S37: 33 | T37: 3 | U37: =IF(('Comparison Calculator'!$E$11-T37)>=0,0,IFERROR(-PPMT($Y$30/12,(S37-24),($F$1-2)*12,$Y$29),0)) -> $0.00 | V37: =IF(('Comparison Calculator'!$E$11-T37)>=0,$C$1*$Y$30/12,IFERROR(-IPMT($Y$30/12,(S37-24),($F$1-2)*12,$Y$29,0),0)) ->  | X37: $1,800,000.00 | AB37: 33 | AC37: 3 | AD37: =IF(('Comparison Calculator'!$E$11-AC37)>=0,0,IFERROR(-PPMT($AH$30/12,(AB37-24),($F$1-2)*12,$AH$29),0)) -> $0.00 | AE37: =IF(('Comparison Calculator'!$E$11-AC37)>=0,$C$1*$AH$30/12,IFERROR(-IPMT($AH$30/12,(AB37-24),($F$1-2)*12,$AH$29,0),0)) ->  | AG37: $1,800,000.00 | AK37: 33 | AL37: 3 | AM37: =IF(('Comparison Calculator'!$E$11-AL37)>=0,0,IFERROR(-PPMT($AQ$30/12,(AK37-24),($F$1-2)*12,$AQ$29),0)) -> $0.00 | AN37: =IF(('Comparison Calculator'!$E$11-AL37)>=0,$C$1*$AQ$30/12,IFERROR(-IPMT($AQ$30/12,(AK37-24),($F$1-2)*12,$AQ$29,0),0)) -> $8,040.00 | AO37: $8,040.00 | AP37: $1,800,000.00 | AT37: 33 | AU37: 3 | AV37: =IF(('Comparison Calculator'!$E$11-AU37)>=0,0,IFERROR(-PPMT($AZ$30/12,(AT37-24),($F$1-2)*12,$AZ$29),0)) -> $0.00 | AW37: =IF(('Comparison Calculator'!$E$11-AU37)>=0,$C$1*$AZ$30/12,IFERROR(-IPMT($AZ$30/12,(AT37-24),($F$1-2)*12,$AZ$29,0),0)) ->  | AY37: $1,800,000.00 | BC37: 33 | BD37: 3 | BE37: =IF(('Comparison Calculator'!$E$11-BD37)>=0,0,IFERROR(-PPMT($BI$30/12,(BC37-24),($F$1-2)*12,$BI$29),0)) -> $0.00 | BF37: =IF(('Comparison Calculator'!$E$11-BD37)>=0,$C$1*$BI$30/12,IFERROR(-IPMT($BI$30/12,(BC37-24),($F$1-2)*12,$BI$29,0),0)) -> $7,470.00 | BG37: $7,470.00 | BH37: $1,800,000.00 | BK37: 33 | BL37: 3 | BM37: =IF(('Comparison Calculator'!$E$11-BL37)>=0,0,IFERROR(-PPMT($BQ$30/12,(BK37-24),($F$1-2)*12,$BQ$29),0)) -> $0.00 | BN37: =IF(('Comparison Calculator'!$E$11-BL37)>=0,$C$1*$BQ$30/12,IFERROR(-IPMT($BQ$30/12,(BK37-24),($F$1-2)*12,$BQ$29,0),0)) -> $9,720.00 | BO37: $9,720.00 | BP37: $1,800,000.00 | BT37: 33 | BU37: 3 | BV37: =IF(('Comparison Calculator'!$E$11-BU37)>=0,0,IFERROR(-PPMT($BZ$30/12,(BT37-24),($F$1-2)*12,$BZ$29),0)) -> $0.00 | BW37: =IF(('Comparison Calculator'!$E$11-BU37)>=0,$C$1*$BZ$30/12,IFERROR(-IPMT($BZ$30/12,(BT37-24),($F$1-2)*12,$BZ$29,0),0)) -> $9,720.00 | BX37: $9,720.00 | BY37: $1,800,000.00 | CC37: 33 | CD37: 3 | CE37: =IF(('Comparison Calculator'!$E$11-CD37)>=0,0,IFERROR(-PPMT($CI$30/12,(CC37-24),($F$1-2)*12,$CI$29),0)) -> $0.00 | CF37: =IF(('Comparison Calculator'!$E$11-CD37)>=0,$C$1*$CI$30/12,IFERROR(-IPMT($CI$30/12,(CC37-24),($F$1-2)*12,$CI$29,0),0)) -> $9,570.00 | CG37: $9,570.00 | CH37: $1,800,000.00 | CL37: 33 | CM37: 3 | CN37: =IF(('Comparison Calculator'!$E$11-CM37)>=0,0,IFERROR(-PPMT($CR$30/12,(CL37-24),($F$1-2)*12,$CR$29),0)) -> $0.00 | CO37: =IF(('Comparison Calculator'!$E$11-CM37)>=0,$C$1*$CR$30/12,IFERROR(-IPMT($CR$30/12,(CL37-24),($F$1-2)*12,$CR$29,0),0)) ->  | CQ37: $1,800,000.00 | CU37: 33 | CV37: 3 | CW37: =IF(('Comparison Calculator'!$E$11-CV37)>=0,0,IFERROR(-PPMT($DA$30/12,(CU37-24),($F$1-2)*12,$DA$29),0)) -> $0.00 | CX37: =IF(('Comparison Calculator'!$E$11-CV37)>=0,$C$1*$DA$30/12,IFERROR(-IPMT($DA$30/12,(CU37-24),($F$1-2)*12,$DA$29,0),0)) ->  | CZ37: $1,800,000.00 | DD37: 33 | DE37: 3 | DF37: =IF(('Comparison Calculator'!$E$11-DE37)>=0,0,IFERROR(-PPMT($DJ$30/12,(DD37-24),($F$1-2)*12,$DJ$29),0)) -> $0.00 | DG37: =IF(('Comparison Calculator'!$E$11-DE37)>=0,$C$1*$DJ$30/12,IFERROR(-IPMT($DJ$30/12,(DD37-24),($F$1-2)*12,$DJ$29,0),0)) ->  | DI37: $1,800,000.00
A38: 34 | B38: 3 | C38: =IF(('Comparison Calculator'!$E$11-B38)>=0,0,IFERROR(-PPMT($G$30/12,(A38-24),($F$1-2)*12,$G$29),0)) -> $0.00 | D38: =IF(('Comparison Calculator'!$E$11-B38)>=0,$C$1*$G$30/12,IFERROR(-IPMT($G$30/12,(A38-24),($F$1-2)*12,$G$29,0),0)) -> $9,720.00 | E38: $9,720.00 | F38: $1,800,000.00 | J38: 34 | K38: 3 | L38: =IF(('Comparison Calculator'!$E$11-K38)>=0,0,IFERROR(-PPMT($P$30/12,(J38-24),($F$1-2)*12,$P$29),0)) -> $0.00 | M38: =IF(('Comparison Calculator'!$E$11-K38)>=0,$C$1*$P$30/12,IFERROR(-IPMT($P$30/12,(J38-24),($F$1-2)*12,$P$29,0),0)) -> $9,720.00 | N38: $9,720.00 | O38: $1,800,000.00 | S38: 34 | T38: 3 | U38: =IF(('Comparison Calculator'!$E$11-T38)>=0,0,IFERROR(-PPMT($Y$30/12,(S38-24),($F$1-2)*12,$Y$29),0)) -> $0.00 | V38: =IF(('Comparison Calculator'!$E$11-T38)>=0,$C$1*$Y$30/12,IFERROR(-IPMT($Y$30/12,(S38-24),($F$1-2)*12,$Y$29,0),0)) ->  | X38: $1,800,000.00 | AB38: 34 | AC38: 3 | AD38: =IF(('Comparison Calculator'!$E$11-AC38)>=0,0,IFERROR(-PPMT($AH$30/12,(AB38-24),($F$1-2)*12,$AH$29),0)) -> $0.00 | AE38: =IF(('Comparison Calculator'!$E$11-AC38)>=0,$C$1*$AH$30/12,IFERROR(-IPMT($AH$30/12,(AB38-24),($F$1-2)*12,$AH$29,0),0)) ->  | AG38: $1,800,000.00 | AK38: 34 | AL38: 3 | AM38: =IF(('Comparison Calculator'!$E$11-AL38)>=0,0,IFERROR(-PPMT($AQ$30/12,(AK38-24),($F$1-2)*12,$AQ$29),0)) -> $0.00 | AN38: =IF(('Comparison Calculator'!$E$11-AL38)>=0,$C$1*$AQ$30/12,IFERROR(-IPMT($AQ$30/12,(AK38-24),($F$1-2)*12,$AQ$29,0),0)) -> $8,040.00 | AO38: $8,040.00 | AP38: $1,800,000.00 | AT38: 34 | AU38: 3 | AV38: =IF(('Comparison Calculator'!$E$11-AU38)>=0,0,IFERROR(-PPMT($AZ$30/12,(AT38-24),($F$1-2)*12,$AZ$29),0)) -> $0.00 | AW38: =IF(('Comparison Calculator'!$E$11-AU38)>=0,$C$1*$AZ$30/12,IFERROR(-IPMT($AZ$30/12,(AT38-24),($F$1-2)*12,$AZ$29,0),0)) ->  | AY38: $1,800,000.00 | BC38: 34 | BD38: 3 | BE38: =IF(('Comparison Calculator'!$E$11-BD38)>=0,0,IFERROR(-PPMT($BI$30/12,(BC38-24),($F$1-2)*12,$BI$29),0)) -> $0.00 | BF38: =IF(('Comparison Calculator'!$E$11-BD38)>=0,$C$1*$BI$30/12,IFERROR(-IPMT($BI$30/12,(BC38-24),($F$1-2)*12,$BI$29,0),0)) -> $7,470.00 | BG38: $7,470.00 | BH38: $1,800,000.00 | BK38: 34 | BL38: 3 | BM38: =IF(('Comparison Calculator'!$E$11-BL38)>=0,0,IFERROR(-PPMT($BQ$30/12,(BK38-24),($F$1-2)*12,$BQ$29),0)) -> $0.00 | BN38: =IF(('Comparison Calculator'!$E$11-BL38)>=0,$C$1*$BQ$30/12,IFERROR(-IPMT($BQ$30/12,(BK38-24),($F$1-2)*12,$BQ$29,0),0)) -> $9,720.00 | BO38: $9,720.00 | BP38: $1,800,000.00 | BT38: 34 | BU38: 3 | BV38: =IF(('Comparison Calculator'!$E$11-BU38)>=0,0,IFERROR(-PPMT($BZ$30/12,(BT38-24),($F$1-2)*12,$BZ$29),0)) -> $0.00 | BW38: =IF(('Comparison Calculator'!$E$11-BU38)>=0,$C$1*$BZ$30/12,IFERROR(-IPMT($BZ$30/12,(BT38-24),($F$1-2)*12,$BZ$29,0),0)) -> $9,720.00 | BX38: $9,720.00 | BY38: $1,800,000.00 | CC38: 34 | CD38: 3 | CE38: =IF(('Comparison Calculator'!$E$11-CD38)>=0,0,IFERROR(-PPMT($CI$30/12,(CC38-24),($F$1-2)*12,$CI$29),0)) -> $0.00 | CF38: =IF(('Comparison Calculator'!$E$11-CD38)>=0,$C$1*$CI$30/12,IFERROR(-IPMT($CI$30/12,(CC38-24),($F$1-2)*12,$CI$29,0),0)) -> $9,570.00 | CG38: $9,570.00 | CH38: $1,800,000.00 | CL38: 34 | CM38: 3 | CN38: =IF(('Comparison Calculator'!$E$11-CM38)>=0,0,IFERROR(-PPMT($CR$30/12,(CL38-24),($F$1-2)*12,$CR$29),0)) -> $0.00 | CO38: =IF(('Comparison Calculator'!$E$11-CM38)>=0,$C$1*$CR$30/12,IFERROR(-IPMT($CR$30/12,(CL38-24),($F$1-2)*12,$CR$29,0),0)) ->  | CQ38: $1,800,000.00 | CU38: 34 | CV38: 3 | CW38: =IF(('Comparison Calculator'!$E$11-CV38)>=0,0,IFERROR(-PPMT($DA$30/12,(CU38-24),($F$1-2)*12,$DA$29),0)) -> $0.00 | CX38: =IF(('Comparison Calculator'!$E$11-CV38)>=0,$C$1*$DA$30/12,IFERROR(-IPMT($DA$30/12,(CU38-24),($F$1-2)*12,$DA$29,0),0)) ->  | CZ38: $1,800,000.00 | DD38: 34 | DE38: 3 | DF38: =IF(('Comparison Calculator'!$E$11-DE38)>=0,0,IFERROR(-PPMT($DJ$30/12,(DD38-24),($F$1-2)*12,$DJ$29),0)) -> $0.00 | DG38: =IF(('Comparison Calculator'!$E$11-DE38)>=0,$C$1*$DJ$30/12,IFERROR(-IPMT($DJ$30/12,(DD38-24),($F$1-2)*12,$DJ$29,0),0)) ->  | DI38: $1,800,000.00
A39: 35 | B39: 3 | C39: =IF(('Comparison Calculator'!$E$11-B39)>=0,0,IFERROR(-PPMT($G$30/12,(A39-24),($F$1-2)*12,$G$29),0)) -> $0.00 | D39: =IF(('Comparison Calculator'!$E$11-B39)>=0,$C$1*$G$30/12,IFERROR(-IPMT($G$30/12,(A39-24),($F$1-2)*12,$G$29,0),0)) -> $9,720.00 | E39: $9,720.00 | F39: $1,800,000.00 | J39: 35 | K39: 3 | L39: =IF(('Comparison Calculator'!$E$11-K39)>=0,0,IFERROR(-PPMT($P$30/12,(J39-24),($F$1-2)*12,$P$29),0)) -> $0.00 | M39: =IF(('Comparison Calculator'!$E$11-K39)>=0,$C$1*$P$30/12,IFERROR(-IPMT($P$30/12,(J39-24),($F$1-2)*12,$P$29,0),0)) -> $9,720.00 | N39: $9,720.00 | O39: $1,800,000.00 | S39: 35 | T39: 3 | U39: =IF(('Comparison Calculator'!$E$11-T39)>=0,0,IFERROR(-PPMT($Y$30/12,(S39-24),($F$1-2)*12,$Y$29),0)) -> $0.00 | V39: =IF(('Comparison Calculator'!$E$11-T39)>=0,$C$1*$Y$30/12,IFERROR(-IPMT($Y$30/12,(S39-24),($F$1-2)*12,$Y$29,0),0)) ->  | X39: $1,800,000.00 | AB39: 35 | AC39: 3 | AD39: =IF(('Comparison Calculator'!$E$11-AC39)>=0,0,IFERROR(-PPMT($AH$30/12,(AB39-24),($F$1-2)*12,$AH$29),0)) -> $0.00 | AE39: =IF(('Comparison Calculator'!$E$11-AC39)>=0,$C$1*$AH$30/12,IFERROR(-IPMT($AH$30/12,(AB39-24),($F$1-2)*12,$AH$29,0),0)) ->  | AG39: $1,800,000.00 | AK39: 35 | AL39: 3 | AM39: =IF(('Comparison Calculator'!$E$11-AL39)>=0,0,IFERROR(-PPMT($AQ$30/12,(AK39-24),($F$1-2)*12,$AQ$29),0)) -> $0.00 | AN39: =IF(('Comparison Calculator'!$E$11-AL39)>=0,$C$1*$AQ$30/12,IFERROR(-IPMT($AQ$30/12,(AK39-24),($F$1-2)*12,$AQ$29,0),0)) -> $8,040.00 | AO39: $8,040.00 | AP39: $1,800,000.00 | AT39: 35 | AU39: 3 | AV39: =IF(('Comparison Calculator'!$E$11-AU39)>=0,0,IFERROR(-PPMT($AZ$30/12,(AT39-24),($F$1-2)*12,$AZ$29),0)) -> $0.00 | AW39: =IF(('Comparison Calculator'!$E$11-AU39)>=0,$C$1*$AZ$30/12,IFERROR(-IPMT($AZ$30/12,(AT39-24),($F$1-2)*12,$AZ$29,0),0)) ->  | AY39: $1,800,000.00 | BC39: 35 | BD39: 3 | BE39: =IF(('Comparison Calculator'!$E$11-BD39)>=0,0,IFERROR(-PPMT($BI$30/12,(BC39-24),($F$1-2)*12,$BI$29),0)) -> $0.00 | BF39: =IF(('Comparison Calculator'!$E$11-BD39)>=0,$C$1*$BI$30/12,IFERROR(-IPMT($BI$30/12,(BC39-24),($F$1-2)*12,$BI$29,0),0)) -> $7,470.00 | BG39: $7,470.00 | BH39: $1,800,000.00 | BK39: 35 | BL39: 3 | BM39: =IF(('Comparison Calculator'!$E$11-BL39)>=0,0,IFERROR(-PPMT($BQ$30/12,(BK39-24),($F$1-2)*12,$BQ$29),0)) -> $0.00 | BN39: =IF(('Comparison Calculator'!$E$11-BL39)>=0,$C$1*$BQ$30/12,IFERROR(-IPMT($BQ$30/12,(BK39-24),($F$1-2)*12,$BQ$29,0),0)) -> $9,720.00 | BO39: $9,720.00 | BP39: $1,800,000.00 | BT39: 35 | BU39: 3 | BV39: =IF(('Comparison Calculator'!$E$11-BU39)>=0,0,IFERROR(-PPMT($BZ$30/12,(BT39-24),($F$1-2)*12,$BZ$29),0)) -> $0.00 | BW39: =IF(('Comparison Calculator'!$E$11-BU39)>=0,$C$1*$BZ$30/12,IFERROR(-IPMT($BZ$30/12,(BT39-24),($F$1-2)*12,$BZ$29,0),0)) -> $9,720.00 | BX39: $9,720.00 | BY39: $1,800,000.00 | CC39: 35 | CD39: 3 | CE39: =IF(('Comparison Calculator'!$E$11-CD39)>=0,0,IFERROR(-PPMT($CI$30/12,(CC39-24),($F$1-2)*12,$CI$29),0)) -> $0.00 | CF39: =IF(('Comparison Calculator'!$E$11-CD39)>=0,$C$1*$CI$30/12,IFERROR(-IPMT($CI$30/12,(CC39-24),($F$1-2)*12,$CI$29,0),0)) -> $9,570.00 | CG39: $9,570.00 | CH39: $1,800,000.00 | CL39: 35 | CM39: 3 | CN39: =IF(('Comparison Calculator'!$E$11-CM39)>=0,0,IFERROR(-PPMT($CR$30/12,(CL39-24),($F$1-2)*12,$CR$29),0)) -> $0.00 | CO39: =IF(('Comparison Calculator'!$E$11-CM39)>=0,$C$1*$CR$30/12,IFERROR(-IPMT($CR$30/12,(CL39-24),($F$1-2)*12,$CR$29,0),0)) ->  | CQ39: $1,800,000.00 | CU39: 35 | CV39: 3 | CW39: =IF(('Comparison Calculator'!$E$11-CV39)>=0,0,IFERROR(-PPMT($DA$30/12,(CU39-24),($F$1-2)*12,$DA$29),0)) -> $0.00 | CX39: =IF(('Comparison Calculator'!$E$11-CV39)>=0,$C$1*$DA$30/12,IFERROR(-IPMT($DA$30/12,(CU39-24),($F$1-2)*12,$DA$29,0),0)) ->  | CZ39: $1,800,000.00 | DD39: 35 | DE39: 3 | DF39: =IF(('Comparison Calculator'!$E$11-DE39)>=0,0,IFERROR(-PPMT($DJ$30/12,(DD39-24),($F$1-2)*12,$DJ$29),0)) -> $0.00 | DG39: =IF(('Comparison Calculator'!$E$11-DE39)>=0,$C$1*$DJ$30/12,IFERROR(-IPMT($DJ$30/12,(DD39-24),($F$1-2)*12,$DJ$29,0),0)) ->  | DI39: $1,800,000.00
A40: 36 | B40: 3 | C40: =IF(('Comparison Calculator'!$E$11-B40)>=0,0,IFERROR(-PPMT($G$30/12,(A40-24),($F$1-2)*12,$G$29),0)) -> $0.00 | D40: =IF(('Comparison Calculator'!$E$11-B40)>=0,$C$1*$G$30/12,IFERROR(-IPMT($G$30/12,(A40-24),($F$1-2)*12,$G$29,0),0)) -> $9,720.00 | E40: $9,720.00 | F40: $1,800,000.00 | G40: =SUM(E5:E40)+H1*B40 -> $234,777.00 | J40: 36 | K40: 3 | L40: =IF(('Comparison Calculator'!$E$11-K40)>=0,0,IFERROR(-PPMT($P$30/12,(J40-24),($F$1-2)*12,$P$29),0)) -> $0.00 | M40: =IF(('Comparison Calculator'!$E$11-K40)>=0,$C$1*$P$30/12,IFERROR(-IPMT($P$30/12,(J40-24),($F$1-2)*12,$P$29,0),0)) -> $9,720.00 | N40: $9,720.00 | O40: $1,800,000.00 | P40: =SUM(N5:N40)+Q1*K40 -> $234,684.00 | S40: 36 | T40: 3 | U40: =IF(('Comparison Calculator'!$E$11-T40)>=0,0,IFERROR(-PPMT($Y$30/12,(S40-24),($F$1-2)*12,$Y$29),0)) -> $0.00 | V40: =IF(('Comparison Calculator'!$E$11-T40)>=0,$C$1*$Y$30/12,IFERROR(-IPMT($Y$30/12,(S40-24),($F$1-2)*12,$Y$29,0),0)) ->  | X40: $1,800,000.00 | Y40: =SUM(W5:W40)+$Z$1*T40 ->  | AB40: 36 | AC40: 3 | AD40: =IF(('Comparison Calculator'!$E$11-AC40)>=0,0,IFERROR(-PPMT($AH$30/12,(AB40-24),($F$1-2)*12,$AH$29),0)) -> $0.00 | AE40: =IF(('Comparison Calculator'!$E$11-AC40)>=0,$C$1*$AH$30/12,IFERROR(-IPMT($AH$30/12,(AB40-24),($F$1-2)*12,$AH$29,0),0)) ->  | AG40: $1,800,000.00 | AH40: =SUM(AF5:AF40)+$AI$1*AC40 ->  | AK40: 36 | AL40: 3 | AM40: =IF(('Comparison Calculator'!$E$11-AL40)>=0,0,IFERROR(-PPMT($AQ$30/12,(AK40-24),($F$1-2)*12,$AQ$29),0)) -> $0.00 | AN40: =IF(('Comparison Calculator'!$E$11-AL40)>=0,$C$1*$AQ$30/12,IFERROR(-IPMT($AQ$30/12,(AK40-24),($F$1-2)*12,$AQ$29,0),0)) -> $8,040.00 | AO40: $8,040.00 | AP40: $1,800,000.00 | AQ40: =SUM(AO5:AO40)+$AR$1*AL40 -> $194,457.00 | AT40: 36 | AU40: 3 | AV40: =IF(('Comparison Calculator'!$E$11-AU40)>=0,0,IFERROR(-PPMT($AZ$30/12,(AT40-24),($F$1-2)*12,$AZ$29),0)) -> $0.00 | AW40: =IF(('Comparison Calculator'!$E$11-AU40)>=0,$C$1*$AZ$30/12,IFERROR(-IPMT($AZ$30/12,(AT40-24),($F$1-2)*12,$AZ$29,0),0)) ->  | AY40: $1,800,000.00 | AZ40: =SUM(AX5:AX40)+$BA$1*AU40 ->  | BC40: 36 | BD40: 3 | BE40: =IF(('Comparison Calculator'!$E$11-BD40)>=0,0,IFERROR(-PPMT($BI$30/12,(BC40-24),($F$1-2)*12,$BI$29),0)) -> $0.00 | BF40: =IF(('Comparison Calculator'!$E$11-BD40)>=0,$C$1*$BI$30/12,IFERROR(-IPMT($BI$30/12,(BC40-24),($F$1-2)*12,$BI$29,0),0)) -> $7,470.00 | BG40: $7,470.00 | BH40: $1,800,000.00 | BI40: =SUM(BG5:BG40)+$BA$1*BD40 -> $180,777.00 | BK40: 36 | BL40: 3 | BM40: =IF(('Comparison Calculator'!$E$11-BL40)>=0,0,IFERROR(-PPMT($BQ$30/12,(BK40-24),($F$1-2)*12,$BQ$29),0)) -> $0.00 | BN40: =IF(('Comparison Calculator'!$E$11-BL40)>=0,$C$1*$BQ$30/12,IFERROR(-IPMT($BQ$30/12,(BK40-24),($F$1-2)*12,$BQ$29,0),0)) -> $9,720.00 | BO40: $9,720.00 | BP40: $1,800,000.00 | BQ40: =SUM(BO5:BO40)+$BR$1*BL40 -> $234,777.00 | BT40: 36 | BU40: 3 | BV40: =IF(('Comparison Calculator'!$E$11-BU40)>=0,0,IFERROR(-PPMT($BZ$30/12,(BT40-24),($F$1-2)*12,$BZ$29),0)) -> $0.00 | BW40: =IF(('Comparison Calculator'!$E$11-BU40)>=0,$C$1*$BZ$30/12,IFERROR(-IPMT($BZ$30/12,(BT40-24),($F$1-2)*12,$BZ$29,0),0)) -> $9,720.00 | BX40: $9,720.00 | BY40: $1,800,000.00 | BZ40: =SUM(BX5:BX40)+$CA$1*BU40 -> $234,777.00 | CC40: 36 | CD40: 3 | CE40: =IF(('Comparison Calculator'!$E$11-CD40)>=0,0,IFERROR(-PPMT($CI$30/12,(CC40-24),($F$1-2)*12,$CI$29),0)) -> $0.00 | CF40: =IF(('Comparison Calculator'!$E$11-CD40)>=0,$C$1*$CI$30/12,IFERROR(-IPMT($CI$30/12,(CC40-24),($F$1-2)*12,$CI$29,0),0)) -> $9,570.00 | CG40: $9,570.00 | CH40: $1,800,000.00 | CI40: =SUM(CG5:CG40)+$CJ$1*CD40 -> $231,084.00 | CL40: 36 | CM40: 3 | CN40: =IF(('Comparison Calculator'!$E$11-CM40)>=0,0,IFERROR(-PPMT($CR$30/12,(CL40-24),($F$1-2)*12,$CR$29),0)) -> $0.00 | CO40: =IF(('Comparison Calculator'!$E$11-CM40)>=0,$C$1*$CR$30/12,IFERROR(-IPMT($CR$30/12,(CL40-24),($F$1-2)*12,$CR$29,0),0)) ->  | CQ40: $1,800,000.00 | CR40: =SUM(CP5:CP40)+$CS$1*CM40 ->  | CU40: 36 | CV40: 3 | CW40: =IF(('Comparison Calculator'!$E$11-CV40)>=0,0,IFERROR(-PPMT($DA$30/12,(CU40-24),($F$1-2)*12,$DA$29),0)) -> $0.00 | CX40: =IF(('Comparison Calculator'!$E$11-CV40)>=0,$C$1*$DA$30/12,IFERROR(-IPMT($DA$30/12,(CU40-24),($F$1-2)*12,$DA$29,0),0)) ->  | CZ40: $1,800,000.00 | DA40: =SUM(CY5:CY40)+$DB$1*CV40 ->  | DD40: 36 | DE40: 3 | DF40: =IF(('Comparison Calculator'!$E$11-DE40)>=0,0,IFERROR(-PPMT($DJ$30/12,(DD40-24),($F$1-2)*12,$DJ$29),0)) -> $0.00 | DG40: =IF(('Comparison Calculator'!$E$11-DE40)>=0,$C$1*$DJ$30/12,IFERROR(-IPMT($DJ$30/12,(DD40-24),($F$1-2)*12,$DJ$29,0),0)) ->  | DI40: $1,800,000.00 | DJ40: =SUM(DH5:DH40)+$DK$1*DE40 -> 
A41: 37 | B41: 4 | C41: =IF(('Comparison Calculator'!$E$11-B41)>=0,0,IFERROR(-PPMT($G$42/12,(A41-36),($F$1-3)*12,$G$41),0)) -> $0.00 | D41: =IF(('Comparison Calculator'!$E$11-B41)>=0,$C$1*$G$42/12,IFERROR(-IPMT($G$42/12,(A41-36),($F$1-3)*12,$G$41,0),0)) -> $9,720.00 | E41: $9,720.00 | F41: $1,800,000.00 | G41: =F40 -> $1,800,000.00 | J41: 37 | K41: 4 | L41: =IF(('Comparison Calculator'!$E$11-K41)>=0,0,IFERROR(-PPMT($P$42/12,(J41-36),($F$1-3)*12,$P$41),0)) -> $0.00 | M41: =IF(('Comparison Calculator'!$E$11-K41)>=0,$C$1*$P$42/12,IFERROR(-IPMT($P$42/12,(J41-36),($F$1-3)*12,$P$41,0),0)) -> $9,720.00 | N41: $9,720.00 | O41: $1,800,000.00 | P41: =O40 -> $1,800,000.00 | S41: 37 | T41: 4 | U41: =IF(('Comparison Calculator'!$E$11-T41)>=0,0,IFERROR(-PPMT($Y$42/12,(S41-36),($F$1-3)*12,$Y$41),0)) -> $0.00 | V41: =IF(('Comparison Calculator'!$E$11-T41)>=0,$C$1*$Y$42/12,IFERROR(-IPMT($Y$42/12,(S41-36),($F$1-3)*12,$Y$41,0),0)) ->  | X41: $1,800,000.00 | Y41: =X40 -> $1,800,000.00 | AB41: 37 | AC41: 4 | AD41: =IF(('Comparison Calculator'!$E$11-AC41)>=0,0,IFERROR(-PPMT($AH$42/12,(AB41-36),($F$1-3)*12,$AH$41),0)) -> $0.00 | AE41: =IF(('Comparison Calculator'!$E$11-AC41)>=0,$C$1*$AH$42/12,IFERROR(-IPMT($AH$42/12,(AB41-36),($F$1-3)*12,$AH$41,0),0)) ->  | AG41: $1,800,000.00 | AH41: =AG40 -> $1,800,000.00 | AK41: 37 | AL41: 4 | AM41: =IF(('Comparison Calculator'!$E$11-AL41)>=0,0,IFERROR(-PPMT($AQ$42/12,(AK41-36),($F$1-3)*12,$AQ$41),0)) -> $0.00 | AN41: =IF(('Comparison Calculator'!$E$11-AL41)>=0,$C$1*$AQ$42/12,IFERROR(-IPMT($AQ$42/12,(AK41-36),($F$1-3)*12,$AQ$41,0),0)) -> $8,040.00 | AO41: $8,040.00 | AP41: $1,800,000.00 | AQ41: =AP40 -> $1,800,000.00 | AT41: 37 | AU41: 4 | AV41: =IF(('Comparison Calculator'!$E$11-AU41)>=0,0,IFERROR(-PPMT($AZ$42/12,(AT41-36),($F$1-3)*12,$AZ$41),0)) -> $0.00 | AW41: =IF(('Comparison Calculator'!$E$11-AU41)>=0,$C$1*$AZ$42/12,IFERROR(-IPMT($AZ$42/12,(AT41-36),($F$1-3)*12,$AZ$41,0),0)) ->  | AY41: $1,800,000.00 | AZ41: =AY40 -> $1,800,000.00 | BC41: 37 | BD41: 4 | BE41: =IF(('Comparison Calculator'!$E$11-BD41)>=0,0,IFERROR(-PPMT($BI$42/12,(BC41-36),($F$1-3)*12,$BI$41),0)) -> $0.00 | BF41: =IF(('Comparison Calculator'!$E$11-BD41)>=0,$C$1*$BI$42/12,IFERROR(-IPMT($BI$42/12,(BC41-36),($F$1-3)*12,$BI$41,0),0)) -> $7,470.00 | BG41: $7,470.00 | BH41: $1,800,000.00 | BI41: =BH40 -> $1,800,000.00 | BK41: 37 | BL41: 4 | BM41: =IF(('Comparison Calculator'!$E$11-BL41)>=0,0,IFERROR(-PPMT($BQ$42/12,(BK41-36),($F$1-3)*12,$BQ$41),0)) -> $0.00 | BN41: =IF(('Comparison Calculator'!$E$11-BL41)>=0,$C$1*$BQ$42/12,IFERROR(-IPMT($BQ$42/12,(BK41-36),($F$1-3)*12,$BQ$41,0),0)) -> $9,720.00 | BO41: $9,720.00 | BP41: $1,800,000.00 | BQ41: =BP40 -> $1,800,000.00 | BT41: 37 | BU41: 4 | BV41: =IF(('Comparison Calculator'!$E$11-BU41)>=0,0,IFERROR(-PPMT($BZ$42/12,(BT41-36),($F$1-3)*12,$BZ$41),0)) -> $0.00 | BW41: =IF(('Comparison Calculator'!$E$11-BU41)>=0,$C$1*$BZ$42/12,IFERROR(-IPMT($BZ$42/12,(BT41-36),($F$1-3)*12,$BZ$41,0),0)) -> $9,720.00 | BX41: $9,720.00 | BY41: $1,800,000.00 | BZ41: =BY40 -> $1,800,000.00 | CC41: 37 | CD41: 4 | CE41: =IF(('Comparison Calculator'!$E$11-CD41)>=0,0,IFERROR(-PPMT($CI$42/12,(CC41-36),($F$1-3)*12,$CI$41),0)) -> $0.00 | CF41: =IF(('Comparison Calculator'!$E$11-CD41)>=0,$C$1*$CI$42/12,IFERROR(-IPMT($CI$42/12,(CC41-36),($F$1-3)*12,$CI$41,0),0)) -> $9,570.00 | CG41: $9,570.00 | CH41: $1,800,000.00 | CI41: =CH40 -> $1,800,000.00 | CL41: 37 | CM41: 4 | CN41: =IF(('Comparison Calculator'!$E$11-CM41)>=0,0,IFERROR(-PPMT($CR$42/12,(CL41-36),($F$1-3)*12,$CR$41),0)) -> $0.00 | CO41: =IF(('Comparison Calculator'!$E$11-CM41)>=0,$C$1*$CR$42/12,IFERROR(-IPMT($CR$42/12,(CL41-36),($F$1-3)*12,$CR$41,0),0)) ->  | CQ41: $1,800,000.00 | CR41: =CQ40 -> $1,800,000.00 | CU41: 37 | CV41: 4 | CW41: =IF(('Comparison Calculator'!$E$11-CV41)>=0,0,IFERROR(-PPMT($DA$42/12,(CU41-36),($F$1-3)*12,$DA$41),0)) -> $0.00 | CX41: =IF(('Comparison Calculator'!$E$11-CV41)>=0,$C$1*$DA$42/12,IFERROR(-IPMT($DA$42/12,(CU41-36),($F$1-3)*12,$DA$41,0),0)) ->  | CZ41: $1,800,000.00 | DA41: =CZ40 -> $1,800,000.00 | DD41: 37 | DE41: 4 | DF41: =IF(('Comparison Calculator'!$E$11-DE41)>=0,0,IFERROR(-PPMT($DJ$42/12,(DD41-36),($F$1-3)*12,$DJ$41),0)) -> $0.00 | DG41: =IF(('Comparison Calculator'!$E$11-DE41)>=0,$C$1*$DJ$42/12,IFERROR(-IPMT($DJ$42/12,(DD41-36),($F$1-3)*12,$DJ$41,0),0)) ->  | DI41: $1,800,000.00 | DJ41: =DI40 -> $1,800,000.00
A42: 38 | B42: 4 | C42: =IF(('Comparison Calculator'!$E$11-B42)>=0,0,IFERROR(-PPMT($G$42/12,(A42-36),($F$1-3)*12,$G$41),0)) -> $0.00 | D42: =IF(('Comparison Calculator'!$E$11-B42)>=0,$C$1*$G$42/12,IFERROR(-IPMT($G$42/12,(A42-36),($F$1-3)*12,$G$41,0),0)) -> $9,720.00 | E42: $9,720.00 | F42: $1,800,000.00 | G42: =Rates!D25 -> 6.48% | J42: 38 | K42: 4 | L42: =IF(('Comparison Calculator'!$E$11-K42)>=0,0,IFERROR(-PPMT($P$42/12,(J42-36),($F$1-3)*12,$P$41),0)) -> $0.00 | M42: =IF(('Comparison Calculator'!$E$11-K42)>=0,$C$1*$P$42/12,IFERROR(-IPMT($P$42/12,(J42-36),($F$1-3)*12,$P$41,0),0)) -> $9,720.00 | N42: $9,720.00 | O42: $1,800,000.00 | P42: =Rates!L25 -> 6.48% | S42: 38 | T42: 4 | U42: =IF(('Comparison Calculator'!$E$11-T42)>=0,0,IFERROR(-PPMT($Y$42/12,(S42-36),($F$1-3)*12,$Y$41),0)) -> $0.00 | V42: =IF(('Comparison Calculator'!$E$11-T42)>=0,$C$1*$Y$42/12,IFERROR(-IPMT($Y$42/12,(S42-36),($F$1-3)*12,$Y$41,0),0)) ->  | X42: $1,800,000.00 | Y42: =Rates!$E$46 ->  | AB42: 38 | AC42: 4 | AD42: =IF(('Comparison Calculator'!$E$11-AC42)>=0,0,IFERROR(-PPMT($AH$42/12,(AB42-36),($F$1-3)*12,$AH$41),0)) -> $0.00 | AE42: =IF(('Comparison Calculator'!$E$11-AC42)>=0,$C$1*$AH$42/12,IFERROR(-IPMT($AH$42/12,(AB42-36),($F$1-3)*12,$AH$41,0),0)) ->  | AG42: $1,800,000.00 | AH42: =Rates!$M$46 ->  | AK42: 38 | AL42: 4 | AM42: =IF(('Comparison Calculator'!$E$11-AL42)>=0,0,IFERROR(-PPMT($AQ$42/12,(AK42-36),($F$1-3)*12,$AQ$41),0)) -> $0.00 | AN42: =IF(('Comparison Calculator'!$E$11-AL42)>=0,$C$1*$AQ$42/12,IFERROR(-IPMT($AQ$42/12,(AK42-36),($F$1-3)*12,$AQ$41,0),0)) -> $8,040.00 | AO42: $8,040.00 | AP42: $1,800,000.00 | AQ42: =Rates!$C$68 -> 5.36% | AT42: 38 | AU42: 4 | AV42: =IF(('Comparison Calculator'!$E$11-AU42)>=0,0,IFERROR(-PPMT($AZ$42/12,(AT42-36),($F$1-3)*12,$AZ$41),0)) -> $0.00 | AW42: =IF(('Comparison Calculator'!$E$11-AU42)>=0,$C$1*$AZ$42/12,IFERROR(-IPMT($AZ$42/12,(AT42-36),($F$1-3)*12,$AZ$41,0),0)) ->  | AY42: $1,800,000.00 | AZ42: =Rates!$L$68 ->  | BC42: 38 | BD42: 4 | BE42: =IF(('Comparison Calculator'!$E$11-BD42)>=0,0,IFERROR(-PPMT($BI$42/12,(BC42-36),($F$1-3)*12,$BI$41),0)) -> $0.00 | BF42: =IF(('Comparison Calculator'!$E$11-BD42)>=0,$C$1*$BI$42/12,IFERROR(-IPMT($BI$42/12,(BC42-36),($F$1-3)*12,$BI$41,0),0)) -> $7,470.00 | BG42: $7,470.00 | BH42: $1,800,000.00 | BI42: ='Comparison Calculator'!N12 -> 4.98% | BK42: 38 | BL42: 4 | BM42: =IF(('Comparison Calculator'!$E$11-BL42)>=0,0,IFERROR(-PPMT($BQ$42/12,(BK42-36),($F$1-3)*12,$BQ$41),0)) -> $0.00 | BN42: =IF(('Comparison Calculator'!$E$11-BL42)>=0,$C$1*$BQ$42/12,IFERROR(-IPMT($BQ$42/12,(BK42-36),($F$1-3)*12,$BQ$41,0),0)) -> $9,720.00 | BO42: $9,720.00 | BP42: $1,800,000.00 | BQ42: =Rates!$C$88 -> 6.48% | BT42: 38 | BU42: 4 | BV42: =IF(('Comparison Calculator'!$E$11-BU42)>=0,0,IFERROR(-PPMT($BZ$42/12,(BT42-36),($F$1-3)*12,$BZ$41),0)) -> $0.00 | BW42: =IF(('Comparison Calculator'!$E$11-BU42)>=0,$C$1*$BZ$42/12,IFERROR(-IPMT($BZ$42/12,(BT42-36),($F$1-3)*12,$BZ$41,0),0)) -> $9,720.00 | BX42: $9,720.00 | BY42: $1,800,000.00 | BZ42: =Rates!$K$88 -> 6.48% | CC42: 38 | CD42: 4 | CE42: =IF(('Comparison Calculator'!$E$11-CD42)>=0,0,IFERROR(-PPMT($CI$42/12,(CC42-36),($F$1-3)*12,$CI$41),0)) -> $0.00 | CF42: =IF(('Comparison Calculator'!$E$11-CD42)>=0,$C$1*$CI$42/12,IFERROR(-IPMT($CI$42/12,(CC42-36),($F$1-3)*12,$CI$41,0),0)) -> $9,570.00 | CG42: $9,570.00 | CH42: $1,800,000.00 | CI42: =Rates!$C$107 -> 6.38% | CL42: 38 | CM42: 4 | CN42: =IF(('Comparison Calculator'!$E$11-CM42)>=0,0,IFERROR(-PPMT($CR$42/12,(CL42-36),($F$1-3)*12,$CR$41),0)) -> $0.00 | CO42: =IF(('Comparison Calculator'!$E$11-CM42)>=0,$C$1*$CR$42/12,IFERROR(-IPMT($CR$42/12,(CL42-36),($F$1-3)*12,$CR$41,0),0)) ->  | CQ42: $1,800,000.00 | CR42: =Rates!$B$128 ->  | CU42: 38 | CV42: 4 | CW42: =IF(('Comparison Calculator'!$E$11-CV42)>=0,0,IFERROR(-PPMT($DA$42/12,(CU42-36),($F$1-3)*12,$DA$41),0)) -> $0.00 | CX42: =IF(('Comparison Calculator'!$E$11-CV42)>=0,$C$1*$DA$42/12,IFERROR(-IPMT($DA$42/12,(CU42-36),($F$1-3)*12,$DA$41,0),0)) ->  | CZ42: $1,800,000.00 | DA42: =Rates!$C$147 ->  | DD42: 38 | DE42: 4 | DF42: =IF(('Comparison Calculator'!$E$11-DE42)>=0,0,IFERROR(-PPMT($DJ$42/12,(DD42-36),($F$1-3)*12,$DJ$41),0)) -> $0.00 | DG42: =IF(('Comparison Calculator'!$E$11-DE42)>=0,$C$1*$DJ$42/12,IFERROR(-IPMT($DJ$42/12,(DD42-36),($F$1-3)*12,$DJ$41,0),0)) ->  | DI42: $1,800,000.00 | DJ42: =Rates!$C$167 -> 
A43: 39 | B43: 4 | C43: =IF(('Comparison Calculator'!$E$11-B43)>=0,0,IFERROR(-PPMT($G$42/12,(A43-36),($F$1-3)*12,$G$41),0)) -> $0.00 | D43: =IF(('Comparison Calculator'!$E$11-B43)>=0,$C$1*$G$42/12,IFERROR(-IPMT($G$42/12,(A43-36),($F$1-3)*12,$G$41,0),0)) -> $9,720.00 | E43: $9,720.00 | F43: $1,800,000.00 | J43: 39 | K43: 4 | L43: =IF(('Comparison Calculator'!$E$11-K43)>=0,0,IFERROR(-PPMT($P$42/12,(J43-36),($F$1-3)*12,$P$41),0)) -> $0.00 | M43: =IF(('Comparison Calculator'!$E$11-K43)>=0,$C$1*$P$42/12,IFERROR(-IPMT($P$42/12,(J43-36),($F$1-3)*12,$P$41,0),0)) -> $9,720.00 | N43: $9,720.00 | O43: $1,800,000.00 | S43: 39 | T43: 4 | U43: =IF(('Comparison Calculator'!$E$11-T43)>=0,0,IFERROR(-PPMT($Y$42/12,(S43-36),($F$1-3)*12,$Y$41),0)) -> $0.00 | V43: =IF(('Comparison Calculator'!$E$11-T43)>=0,$C$1*$Y$42/12,IFERROR(-IPMT($Y$42/12,(S43-36),($F$1-3)*12,$Y$41,0),0)) ->  | X43: $1,800,000.00 | AB43: 39 | AC43: 4 | AD43: =IF(('Comparison Calculator'!$E$11-AC43)>=0,0,IFERROR(-PPMT($AH$42/12,(AB43-36),($F$1-3)*12,$AH$41),0)) -> $0.00 | AE43: =IF(('Comparison Calculator'!$E$11-AC43)>=0,$C$1*$AH$42/12,IFERROR(-IPMT($AH$42/12,(AB43-36),($F$1-3)*12,$AH$41,0),0)) ->  | AG43: $1,800,000.00 | AK43: 39 | AL43: 4 | AM43: =IF(('Comparison Calculator'!$E$11-AL43)>=0,0,IFERROR(-PPMT($AQ$42/12,(AK43-36),($F$1-3)*12,$AQ$41),0)) -> $0.00 | AN43: =IF(('Comparison Calculator'!$E$11-AL43)>=0,$C$1*$AQ$42/12,IFERROR(-IPMT($AQ$42/12,(AK43-36),($F$1-3)*12,$AQ$41,0),0)) -> $8,040.00 | AO43: $8,040.00 | AP43: $1,800,000.00 | AT43: 39 | AU43: 4 | AV43: =IF(('Comparison Calculator'!$E$11-AU43)>=0,0,IFERROR(-PPMT($AZ$42/12,(AT43-36),($F$1-3)*12,$AZ$41),0)) -> $0.00 | AW43: =IF(('Comparison Calculator'!$E$11-AU43)>=0,$C$1*$AZ$42/12,IFERROR(-IPMT($AZ$42/12,(AT43-36),($F$1-3)*12,$AZ$41,0),0)) ->  | AY43: $1,800,000.00 | BC43: 39 | BD43: 4 | BE43: =IF(('Comparison Calculator'!$E$11-BD43)>=0,0,IFERROR(-PPMT($BI$42/12,(BC43-36),($F$1-3)*12,$BI$41),0)) -> $0.00 | BF43: =IF(('Comparison Calculator'!$E$11-BD43)>=0,$C$1*$BI$42/12,IFERROR(-IPMT($BI$42/12,(BC43-36),($F$1-3)*12,$BI$41,0),0)) -> $7,470.00 | BG43: $7,470.00 | BH43: $1,800,000.00 | BK43: 39 | BL43: 4 | BM43: =IF(('Comparison Calculator'!$E$11-BL43)>=0,0,IFERROR(-PPMT($BQ$42/12,(BK43-36),($F$1-3)*12,$BQ$41),0)) -> $0.00 | BN43: =IF(('Comparison Calculator'!$E$11-BL43)>=0,$C$1*$BQ$42/12,IFERROR(-IPMT($BQ$42/12,(BK43-36),($F$1-3)*12,$BQ$41,0),0)) -> $9,720.00 | BO43: $9,720.00 | BP43: $1,800,000.00 | BT43: 39 | BU43: 4 | BV43: =IF(('Comparison Calculator'!$E$11-BU43)>=0,0,IFERROR(-PPMT($BZ$42/12,(BT43-36),($F$1-3)*12,$BZ$41),0)) -> $0.00 | BW43: =IF(('Comparison Calculator'!$E$11-BU43)>=0,$C$1*$BZ$42/12,IFERROR(-IPMT($BZ$42/12,(BT43-36),($F$1-3)*12,$BZ$41,0),0)) -> $9,720.00 | BX43: $9,720.00 | BY43: $1,800,000.00 | CC43: 39 | CD43: 4 | CE43: =IF(('Comparison Calculator'!$E$11-CD43)>=0,0,IFERROR(-PPMT($CI$42/12,(CC43-36),($F$1-3)*12,$CI$41),0)) -> $0.00 | CF43: =IF(('Comparison Calculator'!$E$11-CD43)>=0,$C$1*$CI$42/12,IFERROR(-IPMT($CI$42/12,(CC43-36),($F$1-3)*12,$CI$41,0),0)) -> $9,570.00 | CG43: $9,570.00 | CH43: $1,800,000.00 | CL43: 39 | CM43: 4 | CN43: =IF(('Comparison Calculator'!$E$11-CM43)>=0,0,IFERROR(-PPMT($CR$42/12,(CL43-36),($F$1-3)*12,$CR$41),0)) -> $0.00 | CO43: =IF(('Comparison Calculator'!$E$11-CM43)>=0,$C$1*$CR$42/12,IFERROR(-IPMT($CR$42/12,(CL43-36),($F$1-3)*12,$CR$41,0),0)) ->  | CQ43: $1,800,000.00 | CU43: 39 | CV43: 4 | CW43: =IF(('Comparison Calculator'!$E$11-CV43)>=0,0,IFERROR(-PPMT($DA$42/12,(CU43-36),($F$1-3)*12,$DA$41),0)) -> $0.00 | CX43: =IF(('Comparison Calculator'!$E$11-CV43)>=0,$C$1*$DA$42/12,IFERROR(-IPMT($DA$42/12,(CU43-36),($F$1-3)*12,$DA$41,0),0)) ->  | CZ43: $1,800,000.00 | DD43: 39 | DE43: 4 | DF43: =IF(('Comparison Calculator'!$E$11-DE43)>=0,0,IFERROR(-PPMT($DJ$42/12,(DD43-36),($F$1-3)*12,$DJ$41),0)) -> $0.00 | DG43: =IF(('Comparison Calculator'!$E$11-DE43)>=0,$C$1*$DJ$42/12,IFERROR(-IPMT($DJ$42/12,(DD43-36),($F$1-3)*12,$DJ$41,0),0)) ->  | DI43: $1,800,000.00
A44: 40 | B44: 4 | C44: =IF(('Comparison Calculator'!$E$11-B44)>=0,0,IFERROR(-PPMT($G$42/12,(A44-36),($F$1-3)*12,$G$41),0)) -> $0.00 | D44: =IF(('Comparison Calculator'!$E$11-B44)>=0,$C$1*$G$42/12,IFERROR(-IPMT($G$42/12,(A44-36),($F$1-3)*12,$G$41,0),0)) -> $9,720.00 | E44: $9,720.00 | F44: $1,800,000.00 | J44: 40 | K44: 4 | L44: =IF(('Comparison Calculator'!$E$11-K44)>=0,0,IFERROR(-PPMT($P$42/12,(J44-36),($F$1-3)*12,$P$41),0)) -> $0.00 | M44: =IF(('Comparison Calculator'!$E$11-K44)>=0,$C$1*$P$42/12,IFERROR(-IPMT($P$42/12,(J44-36),($F$1-3)*12,$P$41,0),0)) -> $9,720.00 | N44: $9,720.00 | O44: $1,800,000.00 | S44: 40 | T44: 4 | U44: =IF(('Comparison Calculator'!$E$11-T44)>=0,0,IFERROR(-PPMT($Y$42/12,(S44-36),($F$1-3)*12,$Y$41),0)) -> $0.00 | V44: =IF(('Comparison Calculator'!$E$11-T44)>=0,$C$1*$Y$42/12,IFERROR(-IPMT($Y$42/12,(S44-36),($F$1-3)*12,$Y$41,0),0)) ->  | X44: $1,800,000.00 | AB44: 40 | AC44: 4 | AD44: =IF(('Comparison Calculator'!$E$11-AC44)>=0,0,IFERROR(-PPMT($AH$42/12,(AB44-36),($F$1-3)*12,$AH$41),0)) -> $0.00 | AE44: =IF(('Comparison Calculator'!$E$11-AC44)>=0,$C$1*$AH$42/12,IFERROR(-IPMT($AH$42/12,(AB44-36),($F$1-3)*12,$AH$41,0),0)) ->  | AG44: $1,800,000.00 | AK44: 40 | AL44: 4 | AM44: =IF(('Comparison Calculator'!$E$11-AL44)>=0,0,IFERROR(-PPMT($AQ$42/12,(AK44-36),($F$1-3)*12,$AQ$41),0)) -> $0.00 | AN44: =IF(('Comparison Calculator'!$E$11-AL44)>=0,$C$1*$AQ$42/12,IFERROR(-IPMT($AQ$42/12,(AK44-36),($F$1-3)*12,$AQ$41,0),0)) -> $8,040.00 | AO44: $8,040.00 | AP44: $1,800,000.00 | AT44: 40 | AU44: 4 | AV44: =IF(('Comparison Calculator'!$E$11-AU44)>=0,0,IFERROR(-PPMT($AZ$42/12,(AT44-36),($F$1-3)*12,$AZ$41),0)) -> $0.00 | AW44: =IF(('Comparison Calculator'!$E$11-AU44)>=0,$C$1*$AZ$42/12,IFERROR(-IPMT($AZ$42/12,(AT44-36),($F$1-3)*12,$AZ$41,0),0)) ->  | AY44: $1,800,000.00 | BC44: 40 | BD44: 4 | BE44: =IF(('Comparison Calculator'!$E$11-BD44)>=0,0,IFERROR(-PPMT($BI$42/12,(BC44-36),($F$1-3)*12,$BI$41),0)) -> $0.00 | BF44: =IF(('Comparison Calculator'!$E$11-BD44)>=0,$C$1*$BI$42/12,IFERROR(-IPMT($BI$42/12,(BC44-36),($F$1-3)*12,$BI$41,0),0)) -> $7,470.00 | BG44: $7,470.00 | BH44: $1,800,000.00 | BK44: 40 | BL44: 4 | BM44: =IF(('Comparison Calculator'!$E$11-BL44)>=0,0,IFERROR(-PPMT($BQ$42/12,(BK44-36),($F$1-3)*12,$BQ$41),0)) -> $0.00 | BN44: =IF(('Comparison Calculator'!$E$11-BL44)>=0,$C$1*$BQ$42/12,IFERROR(-IPMT($BQ$42/12,(BK44-36),($F$1-3)*12,$BQ$41,0),0)) -> $9,720.00 | BO44: $9,720.00 | BP44: $1,800,000.00 | BT44: 40 | BU44: 4 | BV44: =IF(('Comparison Calculator'!$E$11-BU44)>=0,0,IFERROR(-PPMT($BZ$42/12,(BT44-36),($F$1-3)*12,$BZ$41),0)) -> $0.00 | BW44: =IF(('Comparison Calculator'!$E$11-BU44)>=0,$C$1*$BZ$42/12,IFERROR(-IPMT($BZ$42/12,(BT44-36),($F$1-3)*12,$BZ$41,0),0)) -> $9,720.00 | BX44: $9,720.00 | BY44: $1,800,000.00 | CC44: 40 | CD44: 4 | CE44: =IF(('Comparison Calculator'!$E$11-CD44)>=0,0,IFERROR(-PPMT($CI$42/12,(CC44-36),($F$1-3)*12,$CI$41),0)) -> $0.00 | CF44: =IF(('Comparison Calculator'!$E$11-CD44)>=0,$C$1*$CI$42/12,IFERROR(-IPMT($CI$42/12,(CC44-36),($F$1-3)*12,$CI$41,0),0)) -> $9,570.00 | CG44: $9,570.00 | CH44: $1,800,000.00 | CL44: 40 | CM44: 4 | CN44: =IF(('Comparison Calculator'!$E$11-CM44)>=0,0,IFERROR(-PPMT($CR$42/12,(CL44-36),($F$1-3)*12,$CR$41),0)) -> $0.00 | CO44: =IF(('Comparison Calculator'!$E$11-CM44)>=0,$C$1*$CR$42/12,IFERROR(-IPMT($CR$42/12,(CL44-36),($F$1-3)*12,$CR$41,0),0)) ->  | CQ44: $1,800,000.00 | CU44: 40 | CV44: 4 | CW44: =IF(('Comparison Calculator'!$E$11-CV44)>=0,0,IFERROR(-PPMT($DA$42/12,(CU44-36),($F$1-3)*12,$DA$41),0)) -> $0.00 | CX44: =IF(('Comparison Calculator'!$E$11-CV44)>=0,$C$1*$DA$42/12,IFERROR(-IPMT($DA$42/12,(CU44-36),($F$1-3)*12,$DA$41,0),0)) ->  | CZ44: $1,800,000.00 | DD44: 40 | DE44: 4 | DF44: =IF(('Comparison Calculator'!$E$11-DE44)>=0,0,IFERROR(-PPMT($DJ$42/12,(DD44-36),($F$1-3)*12,$DJ$41),0)) -> $0.00 | DG44: =IF(('Comparison Calculator'!$E$11-DE44)>=0,$C$1*$DJ$42/12,IFERROR(-IPMT($DJ$42/12,(DD44-36),($F$1-3)*12,$DJ$41,0),0)) ->  | DI44: $1,800,000.00
A45: 41 | B45: 4 | C45: =IF(('Comparison Calculator'!$E$11-B45)>=0,0,IFERROR(-PPMT($G$42/12,(A45-36),($F$1-3)*12,$G$41),0)) -> $0.00 | D45: =IF(('Comparison Calculator'!$E$11-B45)>=0,$C$1*$G$42/12,IFERROR(-IPMT($G$42/12,(A45-36),($F$1-3)*12,$G$41,0),0)) -> $9,720.00 | E45: $9,720.00 | F45: $1,800,000.00 | J45: 41 | K45: 4 | L45: =IF(('Comparison Calculator'!$E$11-K45)>=0,0,IFERROR(-PPMT($P$42/12,(J45-36),($F$1-3)*12,$P$41),0)) -> $0.00 | M45: =IF(('Comparison Calculator'!$E$11-K45)>=0,$C$1*$P$42/12,IFERROR(-IPMT($P$42/12,(J45-36),($F$1-3)*12,$P$41,0),0)) -> $9,720.00 | N45: $9,720.00 | O45: $1,800,000.00 | S45: 41 | T45: 4 | U45: =IF(('Comparison Calculator'!$E$11-T45)>=0,0,IFERROR(-PPMT($Y$42/12,(S45-36),($F$1-3)*12,$Y$41),0)) -> $0.00 | V45: =IF(('Comparison Calculator'!$E$11-T45)>=0,$C$1*$Y$42/12,IFERROR(-IPMT($Y$42/12,(S45-36),($F$1-3)*12,$Y$41,0),0)) ->  | X45: $1,800,000.00 | AB45: 41 | AC45: 4 | AD45: =IF(('Comparison Calculator'!$E$11-AC45)>=0,0,IFERROR(-PPMT($AH$42/12,(AB45-36),($F$1-3)*12,$AH$41),0)) -> $0.00 | AE45: =IF(('Comparison Calculator'!$E$11-AC45)>=0,$C$1*$AH$42/12,IFERROR(-IPMT($AH$42/12,(AB45-36),($F$1-3)*12,$AH$41,0),0)) ->  | AG45: $1,800,000.00 | AK45: 41 | AL45: 4 | AM45: =IF(('Comparison Calculator'!$E$11-AL45)>=0,0,IFERROR(-PPMT($AQ$42/12,(AK45-36),($F$1-3)*12,$AQ$41),0)) -> $0.00 | AN45: =IF(('Comparison Calculator'!$E$11-AL45)>=0,$C$1*$AQ$42/12,IFERROR(-IPMT($AQ$42/12,(AK45-36),($F$1-3)*12,$AQ$41,0),0)) -> $8,040.00 | AO45: $8,040.00 | AP45: $1,800,000.00 | AT45: 41 | AU45: 4 | AV45: =IF(('Comparison Calculator'!$E$11-AU45)>=0,0,IFERROR(-PPMT($AZ$42/12,(AT45-36),($F$1-3)*12,$AZ$41),0)) -> $0.00 | AW45: =IF(('Comparison Calculator'!$E$11-AU45)>=0,$C$1*$AZ$42/12,IFERROR(-IPMT($AZ$42/12,(AT45-36),($F$1-3)*12,$AZ$41,0),0)) ->  | AY45: $1,800,000.00 | BC45: 41 | BD45: 4 | BE45: =IF(('Comparison Calculator'!$E$11-BD45)>=0,0,IFERROR(-PPMT($BI$42/12,(BC45-36),($F$1-3)*12,$BI$41),0)) -> $0.00 | BF45: =IF(('Comparison Calculator'!$E$11-BD45)>=0,$C$1*$BI$42/12,IFERROR(-IPMT($BI$42/12,(BC45-36),($F$1-3)*12,$BI$41,0),0)) -> $7,470.00 | BG45: $7,470.00 | BH45: $1,800,000.00 | BK45: 41 | BL45: 4 | BM45: =IF(('Comparison Calculator'!$E$11-BL45)>=0,0,IFERROR(-PPMT($BQ$42/12,(BK45-36),($F$1-3)*12,$BQ$41),0)) -> $0.00 | BN45: =IF(('Comparison Calculator'!$E$11-BL45)>=0,$C$1*$BQ$42/12,IFERROR(-IPMT($BQ$42/12,(BK45-36),($F$1-3)*12,$BQ$41,0),0)) -> $9,720.00 | BO45: $9,720.00 | BP45: $1,800,000.00 | BT45: 41 | BU45: 4 | BV45: =IF(('Comparison Calculator'!$E$11-BU45)>=0,0,IFERROR(-PPMT($BZ$42/12,(BT45-36),($F$1-3)*12,$BZ$41),0)) -> $0.00 | BW45: =IF(('Comparison Calculator'!$E$11-BU45)>=0,$C$1*$BZ$42/12,IFERROR(-IPMT($BZ$42/12,(BT45-36),($F$1-3)*12,$BZ$41,0),0)) -> $9,720.00 | BX45: $9,720.00 | BY45: $1,800,000.00 | CC45: 41 | CD45: 4 | CE45: =IF(('Comparison Calculator'!$E$11-CD45)>=0,0,IFERROR(-PPMT($CI$42/12,(CC45-36),($F$1-3)*12,$CI$41),0)) -> $0.00 | CF45: =IF(('Comparison Calculator'!$E$11-CD45)>=0,$C$1*$CI$42/12,IFERROR(-IPMT($CI$42/12,(CC45-36),($F$1-3)*12,$CI$41,0),0)) -> $9,570.00 | CG45: $9,570.00 | CH45: $1,800,000.00 | CL45: 41 | CM45: 4 | CN45: =IF(('Comparison Calculator'!$E$11-CM45)>=0,0,IFERROR(-PPMT($CR$42/12,(CL45-36),($F$1-3)*12,$CR$41),0)) -> $0.00 | CO45: =IF(('Comparison Calculator'!$E$11-CM45)>=0,$C$1*$CR$42/12,IFERROR(-IPMT($CR$42/12,(CL45-36),($F$1-3)*12,$CR$41,0),0)) ->  | CQ45: $1,800,000.00 | CU45: 41 | CV45: 4 | CW45: =IF(('Comparison Calculator'!$E$11-CV45)>=0,0,IFERROR(-PPMT($DA$42/12,(CU45-36),($F$1-3)*12,$DA$41),0)) -> $0.00 | CX45: =IF(('Comparison Calculator'!$E$11-CV45)>=0,$C$1*$DA$42/12,IFERROR(-IPMT($DA$42/12,(CU45-36),($F$1-3)*12,$DA$41,0),0)) ->  | CZ45: $1,800,000.00 | DD45: 41 | DE45: 4 | DF45: =IF(('Comparison Calculator'!$E$11-DE45)>=0,0,IFERROR(-PPMT($DJ$42/12,(DD45-36),($F$1-3)*12,$DJ$41),0)) -> $0.00 | DG45: =IF(('Comparison Calculator'!$E$11-DE45)>=0,$C$1*$DJ$42/12,IFERROR(-IPMT($DJ$42/12,(DD45-36),($F$1-3)*12,$DJ$41,0),0)) ->  | DI45: $1,800,000.00
A46: 42 | B46: 4 | C46: =IF(('Comparison Calculator'!$E$11-B46)>=0,0,IFERROR(-PPMT($G$42/12,(A46-36),($F$1-3)*12,$G$41),0)) -> $0.00 | D46: =IF(('Comparison Calculator'!$E$11-B46)>=0,$C$1*$G$42/12,IFERROR(-IPMT($G$42/12,(A46-36),($F$1-3)*12,$G$41,0),0)) -> $9,720.00 | E46: $9,720.00 | F46: $1,800,000.00 | J46: 42 | K46: 4 | L46: =IF(('Comparison Calculator'!$E$11-K46)>=0,0,IFERROR(-PPMT($P$42/12,(J46-36),($F$1-3)*12,$P$41),0)) -> $0.00 | M46: =IF(('Comparison Calculator'!$E$11-K46)>=0,$C$1*$P$42/12,IFERROR(-IPMT($P$42/12,(J46-36),($F$1-3)*12,$P$41,0),0)) -> $9,720.00 | N46: $9,720.00 | O46: $1,800,000.00 | S46: 42 | T46: 4 | U46: =IF(('Comparison Calculator'!$E$11-T46)>=0,0,IFERROR(-PPMT($Y$42/12,(S46-36),($F$1-3)*12,$Y$41),0)) -> $0.00 | V46: =IF(('Comparison Calculator'!$E$11-T46)>=0,$C$1*$Y$42/12,IFERROR(-IPMT($Y$42/12,(S46-36),($F$1-3)*12,$Y$41,0),0)) ->  | X46: $1,800,000.00 | AB46: 42 | AC46: 4 | AD46: =IF(('Comparison Calculator'!$E$11-AC46)>=0,0,IFERROR(-PPMT($AH$42/12,(AB46-36),($F$1-3)*12,$AH$41),0)) -> $0.00 | AE46: =IF(('Comparison Calculator'!$E$11-AC46)>=0,$C$1*$AH$42/12,IFERROR(-IPMT($AH$42/12,(AB46-36),($F$1-3)*12,$AH$41,0),0)) ->  | AG46: $1,800,000.00 | AK46: 42 | AL46: 4 | AM46: =IF(('Comparison Calculator'!$E$11-AL46)>=0,0,IFERROR(-PPMT($AQ$42/12,(AK46-36),($F$1-3)*12,$AQ$41),0)) -> $0.00 | AN46: =IF(('Comparison Calculator'!$E$11-AL46)>=0,$C$1*$AQ$42/12,IFERROR(-IPMT($AQ$42/12,(AK46-36),($F$1-3)*12,$AQ$41,0),0)) -> $8,040.00 | AO46: $8,040.00 | AP46: $1,800,000.00 | AT46: 42 | AU46: 4 | AV46: =IF(('Comparison Calculator'!$E$11-AU46)>=0,0,IFERROR(-PPMT($AZ$42/12,(AT46-36),($F$1-3)*12,$AZ$41),0)) -> $0.00 | AW46: =IF(('Comparison Calculator'!$E$11-AU46)>=0,$C$1*$AZ$42/12,IFERROR(-IPMT($AZ$42/12,(AT46-36),($F$1-3)*12,$AZ$41,0),0)) ->  | AY46: $1,800,000.00 | BC46: 42 | BD46: 4 | BE46: =IF(('Comparison Calculator'!$E$11-BD46)>=0,0,IFERROR(-PPMT($BI$42/12,(BC46-36),($F$1-3)*12,$BI$41),0)) -> $0.00 | BF46: =IF(('Comparison Calculator'!$E$11-BD46)>=0,$C$1*$BI$42/12,IFERROR(-IPMT($BI$42/12,(BC46-36),($F$1-3)*12,$BI$41,0),0)) -> $7,470.00 | BG46: $7,470.00 | BH46: $1,800,000.00 | BK46: 42 | BL46: 4 | BM46: =IF(('Comparison Calculator'!$E$11-BL46)>=0,0,IFERROR(-PPMT($BQ$42/12,(BK46-36),($F$1-3)*12,$BQ$41),0)) -> $0.00 | BN46: =IF(('Comparison Calculator'!$E$11-BL46)>=0,$C$1*$BQ$42/12,IFERROR(-IPMT($BQ$42/12,(BK46-36),($F$1-3)*12,$BQ$41,0),0)) -> $9,720.00 | BO46: $9,720.00 | BP46: $1,800,000.00 | BT46: 42 | BU46: 4 | BV46: =IF(('Comparison Calculator'!$E$11-BU46)>=0,0,IFERROR(-PPMT($BZ$42/12,(BT46-36),($F$1-3)*12,$BZ$41),0)) -> $0.00 | BW46: =IF(('Comparison Calculator'!$E$11-BU46)>=0,$C$1*$BZ$42/12,IFERROR(-IPMT($BZ$42/12,(BT46-36),($F$1-3)*12,$BZ$41,0),0)) -> $9,720.00 | BX46: $9,720.00 | BY46: $1,800,000.00 | CC46: 42 | CD46: 4 | CE46: =IF(('Comparison Calculator'!$E$11-CD46)>=0,0,IFERROR(-PPMT($CI$42/12,(CC46-36),($F$1-3)*12,$CI$41),0)) -> $0.00 | CF46: =IF(('Comparison Calculator'!$E$11-CD46)>=0,$C$1*$CI$42/12,IFERROR(-IPMT($CI$42/12,(CC46-36),($F$1-3)*12,$CI$41,0),0)) -> $9,570.00 | CG46: $9,570.00 | CH46: $1,800,000.00 | CL46: 42 | CM46: 4 | CN46: =IF(('Comparison Calculator'!$E$11-CM46)>=0,0,IFERROR(-PPMT($CR$42/12,(CL46-36),($F$1-3)*12,$CR$41),0)) -> $0.00 | CO46: =IF(('Comparison Calculator'!$E$11-CM46)>=0,$C$1*$CR$42/12,IFERROR(-IPMT($CR$42/12,(CL46-36),($F$1-3)*12,$CR$41,0),0)) ->  | CQ46: $1,800,000.00 | CU46: 42 | CV46: 4 | CW46: =IF(('Comparison Calculator'!$E$11-CV46)>=0,0,IFERROR(-PPMT($DA$42/12,(CU46-36),($F$1-3)*12,$DA$41),0)) -> $0.00 | CX46: =IF(('Comparison Calculator'!$E$11-CV46)>=0,$C$1*$DA$42/12,IFERROR(-IPMT($DA$42/12,(CU46-36),($F$1-3)*12,$DA$41,0),0)) ->  | CZ46: $1,800,000.00 | DD46: 42 | DE46: 4 | DF46: =IF(('Comparison Calculator'!$E$11-DE46)>=0,0,IFERROR(-PPMT($DJ$42/12,(DD46-36),($F$1-3)*12,$DJ$41),0)) -> $0.00 | DG46: =IF(('Comparison Calculator'!$E$11-DE46)>=0,$C$1*$DJ$42/12,IFERROR(-IPMT($DJ$42/12,(DD46-36),($F$1-3)*12,$DJ$41,0),0)) ->  | DI46: $1,800,000.00
A47: 43 | B47: 4 | C47: =IF(('Comparison Calculator'!$E$11-B47)>=0,0,IFERROR(-PPMT($G$42/12,(A47-36),($F$1-3)*12,$G$41),0)) -> $0.00 | D47: =IF(('Comparison Calculator'!$E$11-B47)>=0,$C$1*$G$42/12,IFERROR(-IPMT($G$42/12,(A47-36),($F$1-3)*12,$G$41,0),0)) -> $9,720.00 | E47: $9,720.00 | F47: $1,800,000.00 | J47: 43 | K47: 4 | L47: =IF(('Comparison Calculator'!$E$11-K47)>=0,0,IFERROR(-PPMT($P$42/12,(J47-36),($F$1-3)*12,$P$41),0)) -> $0.00 | M47: =IF(('Comparison Calculator'!$E$11-K47)>=0,$C$1*$P$42/12,IFERROR(-IPMT($P$42/12,(J47-36),($F$1-3)*12,$P$41,0),0)) -> $9,720.00 | N47: $9,720.00 | O47: $1,800,000.00 | S47: 43 | T47: 4 | U47: =IF(('Comparison Calculator'!$E$11-T47)>=0,0,IFERROR(-PPMT($Y$42/12,(S47-36),($F$1-3)*12,$Y$41),0)) -> $0.00 | V47: =IF(('Comparison Calculator'!$E$11-T47)>=0,$C$1*$Y$42/12,IFERROR(-IPMT($Y$42/12,(S47-36),($F$1-3)*12,$Y$41,0),0)) ->  | X47: $1,800,000.00 | AB47: 43 | AC47: 4 | AD47: =IF(('Comparison Calculator'!$E$11-AC47)>=0,0,IFERROR(-PPMT($AH$42/12,(AB47-36),($F$1-3)*12,$AH$41),0)) -> $0.00 | AE47: =IF(('Comparison Calculator'!$E$11-AC47)>=0,$C$1*$AH$42/12,IFERROR(-IPMT($AH$42/12,(AB47-36),($F$1-3)*12,$AH$41,0),0)) ->  | AG47: $1,800,000.00 | AK47: 43 | AL47: 4 | AM47: =IF(('Comparison Calculator'!$E$11-AL47)>=0,0,IFERROR(-PPMT($AQ$42/12,(AK47-36),($F$1-3)*12,$AQ$41),0)) -> $0.00 | AN47: =IF(('Comparison Calculator'!$E$11-AL47)>=0,$C$1*$AQ$42/12,IFERROR(-IPMT($AQ$42/12,(AK47-36),($F$1-3)*12,$AQ$41,0),0)) -> $8,040.00 | AO47: $8,040.00 | AP47: $1,800,000.00 | AT47: 43 | AU47: 4 | AV47: =IF(('Comparison Calculator'!$E$11-AU47)>=0,0,IFERROR(-PPMT($AZ$42/12,(AT47-36),($F$1-3)*12,$AZ$41),0)) -> $0.00 | AW47: =IF(('Comparison Calculator'!$E$11-AU47)>=0,$C$1*$AZ$42/12,IFERROR(-IPMT($AZ$42/12,(AT47-36),($F$1-3)*12,$AZ$41,0),0)) ->  | AY47: $1,800,000.00 | BC47: 43 | BD47: 4 | BE47: =IF(('Comparison Calculator'!$E$11-BD47)>=0,0,IFERROR(-PPMT($BI$42/12,(BC47-36),($F$1-3)*12,$BI$41),0)) -> $0.00 | BF47: =IF(('Comparison Calculator'!$E$11-BD47)>=0,$C$1*$BI$42/12,IFERROR(-IPMT($BI$42/12,(BC47-36),($F$1-3)*12,$BI$41,0),0)) -> $7,470.00 | BG47: $7,470.00 | BH47: $1,800,000.00 | BK47: 43 | BL47: 4 | BM47: =IF(('Comparison Calculator'!$E$11-BL47)>=0,0,IFERROR(-PPMT($BQ$42/12,(BK47-36),($F$1-3)*12,$BQ$41),0)) -> $0.00 | BN47: =IF(('Comparison Calculator'!$E$11-BL47)>=0,$C$1*$BQ$42/12,IFERROR(-IPMT($BQ$42/12,(BK47-36),($F$1-3)*12,$BQ$41,0),0)) -> $9,720.00 | BO47: $9,720.00 | BP47: $1,800,000.00 | BT47: 43 | BU47: 4 | BV47: =IF(('Comparison Calculator'!$E$11-BU47)>=0,0,IFERROR(-PPMT($BZ$42/12,(BT47-36),($F$1-3)*12,$BZ$41),0)) -> $0.00 | BW47: =IF(('Comparison Calculator'!$E$11-BU47)>=0,$C$1*$BZ$42/12,IFERROR(-IPMT($BZ$42/12,(BT47-36),($F$1-3)*12,$BZ$41,0),0)) -> $9,720.00 | BX47: $9,720.00 | BY47: $1,800,000.00 | CC47: 43 | CD47: 4 | CE47: =IF(('Comparison Calculator'!$E$11-CD47)>=0,0,IFERROR(-PPMT($CI$42/12,(CC47-36),($F$1-3)*12,$CI$41),0)) -> $0.00 | CF47: =IF(('Comparison Calculator'!$E$11-CD47)>=0,$C$1*$CI$42/12,IFERROR(-IPMT($CI$42/12,(CC47-36),($F$1-3)*12,$CI$41,0),0)) -> $9,570.00 | CG47: $9,570.00 | CH47: $1,800,000.00 | CL47: 43 | CM47: 4 | CN47: =IF(('Comparison Calculator'!$E$11-CM47)>=0,0,IFERROR(-PPMT($CR$42/12,(CL47-36),($F$1-3)*12,$CR$41),0)) -> $0.00 | CO47: =IF(('Comparison Calculator'!$E$11-CM47)>=0,$C$1*$CR$42/12,IFERROR(-IPMT($CR$42/12,(CL47-36),($F$1-3)*12,$CR$41,0),0)) ->  | CQ47: $1,800,000.00 | CU47: 43 | CV47: 4 | CW47: =IF(('Comparison Calculator'!$E$11-CV47)>=0,0,IFERROR(-PPMT($DA$42/12,(CU47-36),($F$1-3)*12,$DA$41),0)) -> $0.00 | CX47: =IF(('Comparison Calculator'!$E$11-CV47)>=0,$C$1*$DA$42/12,IFERROR(-IPMT($DA$42/12,(CU47-36),($F$1-3)*12,$DA$41,0),0)) ->  | CZ47: $1,800,000.00 | DD47: 43 | DE47: 4 | DF47: =IF(('Comparison Calculator'!$E$11-DE47)>=0,0,IFERROR(-PPMT($DJ$42/12,(DD47-36),($F$1-3)*12,$DJ$41),0)) -> $0.00 | DG47: =IF(('Comparison Calculator'!$E$11-DE47)>=0,$C$1*$DJ$42/12,IFERROR(-IPMT($DJ$42/12,(DD47-36),($F$1-3)*12,$DJ$41,0),0)) ->  | DI47: $1,800,000.00
A48: 44 | B48: 4 | C48: =IF(('Comparison Calculator'!$E$11-B48)>=0,0,IFERROR(-PPMT($G$42/12,(A48-36),($F$1-3)*12,$G$41),0)) -> $0.00 | D48: =IF(('Comparison Calculator'!$E$11-B48)>=0,$C$1*$G$42/12,IFERROR(-IPMT($G$42/12,(A48-36),($F$1-3)*12,$G$41,0),0)) -> $9,720.00 | E48: $9,720.00 | F48: $1,800,000.00 | J48: 44 | K48: 4 | L48: =IF(('Comparison Calculator'!$E$11-K48)>=0,0,IFERROR(-PPMT($P$42/12,(J48-36),($F$1-3)*12,$P$41),0)) -> $0.00 | M48: =IF(('Comparison Calculator'!$E$11-K48)>=0,$C$1*$P$42/12,IFERROR(-IPMT($P$42/12,(J48-36),($F$1-3)*12,$P$41,0),0)) -> $9,720.00 | N48: $9,720.00 | O48: $1,800,000.00 | S48: 44 | T48: 4 | U48: =IF(('Comparison Calculator'!$E$11-T48)>=0,0,IFERROR(-PPMT($Y$42/12,(S48-36),($F$1-3)*12,$Y$41),0)) -> $0.00 | V48: =IF(('Comparison Calculator'!$E$11-T48)>=0,$C$1*$Y$42/12,IFERROR(-IPMT($Y$42/12,(S48-36),($F$1-3)*12,$Y$41,0),0)) ->  | X48: $1,800,000.00 | AB48: 44 | AC48: 4 | AD48: =IF(('Comparison Calculator'!$E$11-AC48)>=0,0,IFERROR(-PPMT($AH$42/12,(AB48-36),($F$1-3)*12,$AH$41),0)) -> $0.00 | AE48: =IF(('Comparison Calculator'!$E$11-AC48)>=0,$C$1*$AH$42/12,IFERROR(-IPMT($AH$42/12,(AB48-36),($F$1-3)*12,$AH$41,0),0)) ->  | AG48: $1,800,000.00 | AK48: 44 | AL48: 4 | AM48: =IF(('Comparison Calculator'!$E$11-AL48)>=0,0,IFERROR(-PPMT($AQ$42/12,(AK48-36),($F$1-3)*12,$AQ$41),0)) -> $0.00 | AN48: =IF(('Comparison Calculator'!$E$11-AL48)>=0,$C$1*$AQ$42/12,IFERROR(-IPMT($AQ$42/12,(AK48-36),($F$1-3)*12,$AQ$41,0),0)) -> $8,040.00 | AO48: $8,040.00 | AP48: $1,800,000.00 | AT48: 44 | AU48: 4 | AV48: =IF(('Comparison Calculator'!$E$11-AU48)>=0,0,IFERROR(-PPMT($AZ$42/12,(AT48-36),($F$1-3)*12,$AZ$41),0)) -> $0.00 | AW48: =IF(('Comparison Calculator'!$E$11-AU48)>=0,$C$1*$AZ$42/12,IFERROR(-IPMT($AZ$42/12,(AT48-36),($F$1-3)*12,$AZ$41,0),0)) ->  | AY48: $1,800,000.00 | BC48: 44 | BD48: 4 | BE48: =IF(('Comparison Calculator'!$E$11-BD48)>=0,0,IFERROR(-PPMT($BI$42/12,(BC48-36),($F$1-3)*12,$BI$41),0)) -> $0.00 | BF48: =IF(('Comparison Calculator'!$E$11-BD48)>=0,$C$1*$BI$42/12,IFERROR(-IPMT($BI$42/12,(BC48-36),($F$1-3)*12,$BI$41,0),0)) -> $7,470.00 | BG48: $7,470.00 | BH48: $1,800,000.00 | BK48: 44 | BL48: 4 | BM48: =IF(('Comparison Calculator'!$E$11-BL48)>=0,0,IFERROR(-PPMT($BQ$42/12,(BK48-36),($F$1-3)*12,$BQ$41),0)) -> $0.00 | BN48: =IF(('Comparison Calculator'!$E$11-BL48)>=0,$C$1*$BQ$42/12,IFERROR(-IPMT($BQ$42/12,(BK48-36),($F$1-3)*12,$BQ$41,0),0)) -> $9,720.00 | BO48: $9,720.00 | BP48: $1,800,000.00 | BT48: 44 | BU48: 4 | BV48: =IF(('Comparison Calculator'!$E$11-BU48)>=0,0,IFERROR(-PPMT($BZ$42/12,(BT48-36),($F$1-3)*12,$BZ$41),0)) -> $0.00 | BW48: =IF(('Comparison Calculator'!$E$11-BU48)>=0,$C$1*$BZ$42/12,IFERROR(-IPMT($BZ$42/12,(BT48-36),($F$1-3)*12,$BZ$41,0),0)) -> $9,720.00 | BX48: $9,720.00 | BY48: $1,800,000.00 | CC48: 44 | CD48: 4 | CE48: =IF(('Comparison Calculator'!$E$11-CD48)>=0,0,IFERROR(-PPMT($CI$42/12,(CC48-36),($F$1-3)*12,$CI$41),0)) -> $0.00 | CF48: =IF(('Comparison Calculator'!$E$11-CD48)>=0,$C$1*$CI$42/12,IFERROR(-IPMT($CI$42/12,(CC48-36),($F$1-3)*12,$CI$41,0),0)) -> $9,570.00 | CG48: $9,570.00 | CH48: $1,800,000.00 | CL48: 44 | CM48: 4 | CN48: =IF(('Comparison Calculator'!$E$11-CM48)>=0,0,IFERROR(-PPMT($CR$42/12,(CL48-36),($F$1-3)*12,$CR$41),0)) -> $0.00 | CO48: =IF(('Comparison Calculator'!$E$11-CM48)>=0,$C$1*$CR$42/12,IFERROR(-IPMT($CR$42/12,(CL48-36),($F$1-3)*12,$CR$41,0),0)) ->  | CQ48: $1,800,000.00 | CU48: 44 | CV48: 4 | CW48: =IF(('Comparison Calculator'!$E$11-CV48)>=0,0,IFERROR(-PPMT($DA$42/12,(CU48-36),($F$1-3)*12,$DA$41),0)) -> $0.00 | CX48: =IF(('Comparison Calculator'!$E$11-CV48)>=0,$C$1*$DA$42/12,IFERROR(-IPMT($DA$42/12,(CU48-36),($F$1-3)*12,$DA$41,0),0)) ->  | CZ48: $1,800,000.00 | DD48: 44 | DE48: 4 | DF48: =IF(('Comparison Calculator'!$E$11-DE48)>=0,0,IFERROR(-PPMT($DJ$42/12,(DD48-36),($F$1-3)*12,$DJ$41),0)) -> $0.00 | DG48: =IF(('Comparison Calculator'!$E$11-DE48)>=0,$C$1*$DJ$42/12,IFERROR(-IPMT($DJ$42/12,(DD48-36),($F$1-3)*12,$DJ$41,0),0)) ->  | DI48: $1,800,000.00
A49: 45 | B49: 4 | C49: =IF(('Comparison Calculator'!$E$11-B49)>=0,0,IFERROR(-PPMT($G$42/12,(A49-36),($F$1-3)*12,$G$41),0)) -> $0.00 | D49: =IF(('Comparison Calculator'!$E$11-B49)>=0,$C$1*$G$42/12,IFERROR(-IPMT($G$42/12,(A49-36),($F$1-3)*12,$G$41,0),0)) -> $9,720.00 | E49: $9,720.00 | F49: $1,800,000.00 | J49: 45 | K49: 4 | L49: =IF(('Comparison Calculator'!$E$11-K49)>=0,0,IFERROR(-PPMT($P$42/12,(J49-36),($F$1-3)*12,$P$41),0)) -> $0.00 | M49: =IF(('Comparison Calculator'!$E$11-K49)>=0,$C$1*$P$42/12,IFERROR(-IPMT($P$42/12,(J49-36),($F$1-3)*12,$P$41,0),0)) -> $9,720.00 | N49: $9,720.00 | O49: $1,800,000.00 | S49: 45 | T49: 4 | U49: =IF(('Comparison Calculator'!$E$11-T49)>=0,0,IFERROR(-PPMT($Y$42/12,(S49-36),($F$1-3)*12,$Y$41),0)) -> $0.00 | V49: =IF(('Comparison Calculator'!$E$11-T49)>=0,$C$1*$Y$42/12,IFERROR(-IPMT($Y$42/12,(S49-36),($F$1-3)*12,$Y$41,0),0)) ->  | X49: $1,800,000.00 | AB49: 45 | AC49: 4 | AD49: =IF(('Comparison Calculator'!$E$11-AC49)>=0,0,IFERROR(-PPMT($AH$42/12,(AB49-36),($F$1-3)*12,$AH$41),0)) -> $0.00 | AE49: =IF(('Comparison Calculator'!$E$11-AC49)>=0,$C$1*$AH$42/12,IFERROR(-IPMT($AH$42/12,(AB49-36),($F$1-3)*12,$AH$41,0),0)) ->  | AG49: $1,800,000.00 | AK49: 45 | AL49: 4 | AM49: =IF(('Comparison Calculator'!$E$11-AL49)>=0,0,IFERROR(-PPMT($AQ$42/12,(AK49-36),($F$1-3)*12,$AQ$41),0)) -> $0.00 | AN49: =IF(('Comparison Calculator'!$E$11-AL49)>=0,$C$1*$AQ$42/12,IFERROR(-IPMT($AQ$42/12,(AK49-36),($F$1-3)*12,$AQ$41,0),0)) -> $8,040.00 | AO49: $8,040.00 | AP49: $1,800,000.00 | AT49: 45 | AU49: 4 | AV49: =IF(('Comparison Calculator'!$E$11-AU49)>=0,0,IFERROR(-PPMT($AZ$42/12,(AT49-36),($F$1-3)*12,$AZ$41),0)) -> $0.00 | AW49: =IF(('Comparison Calculator'!$E$11-AU49)>=0,$C$1*$AZ$42/12,IFERROR(-IPMT($AZ$42/12,(AT49-36),($F$1-3)*12,$AZ$41,0),0)) ->  | AY49: $1,800,000.00 | BC49: 45 | BD49: 4 | BE49: =IF(('Comparison Calculator'!$E$11-BD49)>=0,0,IFERROR(-PPMT($BI$42/12,(BC49-36),($F$1-3)*12,$BI$41),0)) -> $0.00 | BF49: =IF(('Comparison Calculator'!$E$11-BD49)>=0,$C$1*$BI$42/12,IFERROR(-IPMT($BI$42/12,(BC49-36),($F$1-3)*12,$BI$41,0),0)) -> $7,470.00 | BG49: $7,470.00 | BH49: $1,800,000.00 | BK49: 45 | BL49: 4 | BM49: =IF(('Comparison Calculator'!$E$11-BL49)>=0,0,IFERROR(-PPMT($BQ$42/12,(BK49-36),($F$1-3)*12,$BQ$41),0)) -> $0.00 | BN49: =IF(('Comparison Calculator'!$E$11-BL49)>=0,$C$1*$BQ$42/12,IFERROR(-IPMT($BQ$42/12,(BK49-36),($F$1-3)*12,$BQ$41,0),0)) -> $9,720.00 | BO49: $9,720.00 | BP49: $1,800,000.00 | BT49: 45 | BU49: 4 | BV49: =IF(('Comparison Calculator'!$E$11-BU49)>=0,0,IFERROR(-PPMT($BZ$42/12,(BT49-36),($F$1-3)*12,$BZ$41),0)) -> $0.00 | BW49: =IF(('Comparison Calculator'!$E$11-BU49)>=0,$C$1*$BZ$42/12,IFERROR(-IPMT($BZ$42/12,(BT49-36),($F$1-3)*12,$BZ$41,0),0)) -> $9,720.00 | BX49: $9,720.00 | BY49: $1,800,000.00 | CC49: 45 | CD49: 4 | CE49: =IF(('Comparison Calculator'!$E$11-CD49)>=0,0,IFERROR(-PPMT($CI$42/12,(CC49-36),($F$1-3)*12,$CI$41),0)) -> $0.00 | CF49: =IF(('Comparison Calculator'!$E$11-CD49)>=0,$C$1*$CI$42/12,IFERROR(-IPMT($CI$42/12,(CC49-36),($F$1-3)*12,$CI$41,0),0)) -> $9,570.00 | CG49: $9,570.00 | CH49: $1,800,000.00 | CL49: 45 | CM49: 4 | CN49: =IF(('Comparison Calculator'!$E$11-CM49)>=0,0,IFERROR(-PPMT($CR$42/12,(CL49-36),($F$1-3)*12,$CR$41),0)) -> $0.00 | CO49: =IF(('Comparison Calculator'!$E$11-CM49)>=0,$C$1*$CR$42/12,IFERROR(-IPMT($CR$42/12,(CL49-36),($F$1-3)*12,$CR$41,0),0)) ->  | CQ49: $1,800,000.00 | CU49: 45 | CV49: 4 | CW49: =IF(('Comparison Calculator'!$E$11-CV49)>=0,0,IFERROR(-PPMT($DA$42/12,(CU49-36),($F$1-3)*12,$DA$41),0)) -> $0.00 | CX49: =IF(('Comparison Calculator'!$E$11-CV49)>=0,$C$1*$DA$42/12,IFERROR(-IPMT($DA$42/12,(CU49-36),($F$1-3)*12,$DA$41,0),0)) ->  | CZ49: $1,800,000.00 | DD49: 45 | DE49: 4 | DF49: =IF(('Comparison Calculator'!$E$11-DE49)>=0,0,IFERROR(-PPMT($DJ$42/12,(DD49-36),($F$1-3)*12,$DJ$41),0)) -> $0.00 | DG49: =IF(('Comparison Calculator'!$E$11-DE49)>=0,$C$1*$DJ$42/12,IFERROR(-IPMT($DJ$42/12,(DD49-36),($F$1-3)*12,$DJ$41,0),0)) ->  | DI49: $1,800,000.00
A50: 46 | B50: 4 | C50: =IF(('Comparison Calculator'!$E$11-B50)>=0,0,IFERROR(-PPMT($G$42/12,(A50-36),($F$1-3)*12,$G$41),0)) -> $0.00 | D50: =IF(('Comparison Calculator'!$E$11-B50)>=0,$C$1*$G$42/12,IFERROR(-IPMT($G$42/12,(A50-36),($F$1-3)*12,$G$41,0),0)) -> $9,720.00 | E50: $9,720.00 | F50: $1,800,000.00 | J50: 46 | K50: 4 | L50: =IF(('Comparison Calculator'!$E$11-K50)>=0,0,IFERROR(-PPMT($P$42/12,(J50-36),($F$1-3)*12,$P$41),0)) -> $0.00 | M50: =IF(('Comparison Calculator'!$E$11-K50)>=0,$C$1*$P$42/12,IFERROR(-IPMT($P$42/12,(J50-36),($F$1-3)*12,$P$41,0),0)) -> $9,720.00 | N50: $9,720.00 | O50: $1,800,000.00 | S50: 46 | T50: 4 | U50: =IF(('Comparison Calculator'!$E$11-T50)>=0,0,IFERROR(-PPMT($Y$42/12,(S50-36),($F$1-3)*12,$Y$41),0)) -> $0.00 | V50: =IF(('Comparison Calculator'!$E$11-T50)>=0,$C$1*$Y$42/12,IFERROR(-IPMT($Y$42/12,(S50-36),($F$1-3)*12,$Y$41,0),0)) ->  | X50: $1,800,000.00 | AB50: 46 | AC50: 4 | AD50: =IF(('Comparison Calculator'!$E$11-AC50)>=0,0,IFERROR(-PPMT($AH$42/12,(AB50-36),($F$1-3)*12,$AH$41),0)) -> $0.00 | AE50: =IF(('Comparison Calculator'!$E$11-AC50)>=0,$C$1*$AH$42/12,IFERROR(-IPMT($AH$42/12,(AB50-36),($F$1-3)*12,$AH$41,0),0)) ->  | AG50: $1,800,000.00 | AK50: 46 | AL50: 4 | AM50: =IF(('Comparison Calculator'!$E$11-AL50)>=0,0,IFERROR(-PPMT($AQ$42/12,(AK50-36),($F$1-3)*12,$AQ$41),0)) -> $0.00 | AN50: =IF(('Comparison Calculator'!$E$11-AL50)>=0,$C$1*$AQ$42/12,IFERROR(-IPMT($AQ$42/12,(AK50-36),($F$1-3)*12,$AQ$41,0),0)) -> $8,040.00 | AO50: $8,040.00 | AP50: $1,800,000.00 | AT50: 46 | AU50: 4 | AV50: =IF(('Comparison Calculator'!$E$11-AU50)>=0,0,IFERROR(-PPMT($AZ$42/12,(AT50-36),($F$1-3)*12,$AZ$41),0)) -> $0.00 | AW50: =IF(('Comparison Calculator'!$E$11-AU50)>=0,$C$1*$AZ$42/12,IFERROR(-IPMT($AZ$42/12,(AT50-36),($F$1-3)*12,$AZ$41,0),0)) ->  | AY50: $1,800,000.00 | BC50: 46 | BD50: 4 | BE50: =IF(('Comparison Calculator'!$E$11-BD50)>=0,0,IFERROR(-PPMT($BI$42/12,(BC50-36),($F$1-3)*12,$BI$41),0)) -> $0.00 | BF50: =IF(('Comparison Calculator'!$E$11-BD50)>=0,$C$1*$BI$42/12,IFERROR(-IPMT($BI$42/12,(BC50-36),($F$1-3)*12,$BI$41,0),0)) -> $7,470.00 | BG50: $7,470.00 | BH50: $1,800,000.00 | BK50: 46 | BL50: 4 | BM50: =IF(('Comparison Calculator'!$E$11-BL50)>=0,0,IFERROR(-PPMT($BQ$42/12,(BK50-36),($F$1-3)*12,$BQ$41),0)) -> $0.00 | BN50: =IF(('Comparison Calculator'!$E$11-BL50)>=0,$C$1*$BQ$42/12,IFERROR(-IPMT($BQ$42/12,(BK50-36),($F$1-3)*12,$BQ$41,0),0)) -> $9,720.00 | BO50: $9,720.00 | BP50: $1,800,000.00 | BT50: 46 | BU50: 4 | BV50: =IF(('Comparison Calculator'!$E$11-BU50)>=0,0,IFERROR(-PPMT($BZ$42/12,(BT50-36),($F$1-3)*12,$BZ$41),0)) -> $0.00 | BW50: =IF(('Comparison Calculator'!$E$11-BU50)>=0,$C$1*$BZ$42/12,IFERROR(-IPMT($BZ$42/12,(BT50-36),($F$1-3)*12,$BZ$41,0),0)) -> $9,720.00 | BX50: $9,720.00 | BY50: $1,800,000.00 | CC50: 46 | CD50: 4 | CE50: =IF(('Comparison Calculator'!$E$11-CD50)>=0,0,IFERROR(-PPMT($CI$42/12,(CC50-36),($F$1-3)*12,$CI$41),0)) -> $0.00 | CF50: =IF(('Comparison Calculator'!$E$11-CD50)>=0,$C$1*$CI$42/12,IFERROR(-IPMT($CI$42/12,(CC50-36),($F$1-3)*12,$CI$41,0),0)) -> $9,570.00 | CG50: $9,570.00 | CH50: $1,800,000.00 | CL50: 46 | CM50: 4 | CN50: =IF(('Comparison Calculator'!$E$11-CM50)>=0,0,IFERROR(-PPMT($CR$42/12,(CL50-36),($F$1-3)*12,$CR$41),0)) -> $0.00 | CO50: =IF(('Comparison Calculator'!$E$11-CM50)>=0,$C$1*$CR$42/12,IFERROR(-IPMT($CR$42/12,(CL50-36),($F$1-3)*12,$CR$41,0),0)) ->  | CQ50: $1,800,000.00 | CU50: 46 | CV50: 4 | CW50: =IF(('Comparison Calculator'!$E$11-CV50)>=0,0,IFERROR(-PPMT($DA$42/12,(CU50-36),($F$1-3)*12,$DA$41),0)) -> $0.00 | CX50: =IF(('Comparison Calculator'!$E$11-CV50)>=0,$C$1*$DA$42/12,IFERROR(-IPMT($DA$42/12,(CU50-36),($F$1-3)*12,$DA$41,0),0)) ->  | CZ50: $1,800,000.00 | DD50: 46 | DE50: 4 | DF50: =IF(('Comparison Calculator'!$E$11-DE50)>=0,0,IFERROR(-PPMT($DJ$42/12,(DD50-36),($F$1-3)*12,$DJ$41),0)) -> $0.00 | DG50: =IF(('Comparison Calculator'!$E$11-DE50)>=0,$C$1*$DJ$42/12,IFERROR(-IPMT($DJ$42/12,(DD50-36),($F$1-3)*12,$DJ$41,0),0)) ->  | DI50: $1,800,000.00
A51: 47 | B51: 4 | C51: =IF(('Comparison Calculator'!$E$11-B51)>=0,0,IFERROR(-PPMT($G$42/12,(A51-36),($F$1-3)*12,$G$41),0)) -> $0.00 | D51: =IF(('Comparison Calculator'!$E$11-B51)>=0,$C$1*$G$42/12,IFERROR(-IPMT($G$42/12,(A51-36),($F$1-3)*12,$G$41,0),0)) -> $9,720.00 | E51: $9,720.00 | F51: $1,800,000.00 | J51: 47 | K51: 4 | L51: =IF(('Comparison Calculator'!$E$11-K51)>=0,0,IFERROR(-PPMT($P$42/12,(J51-36),($F$1-3)*12,$P$41),0)) -> $0.00 | M51: =IF(('Comparison Calculator'!$E$11-K51)>=0,$C$1*$P$42/12,IFERROR(-IPMT($P$42/12,(J51-36),($F$1-3)*12,$P$41,0),0)) -> $9,720.00 | N51: $9,720.00 | O51: $1,800,000.00 | S51: 47 | T51: 4 | U51: =IF(('Comparison Calculator'!$E$11-T51)>=0,0,IFERROR(-PPMT($Y$42/12,(S51-36),($F$1-3)*12,$Y$41),0)) -> $0.00 | V51: =IF(('Comparison Calculator'!$E$11-T51)>=0,$C$1*$Y$42/12,IFERROR(-IPMT($Y$42/12,(S51-36),($F$1-3)*12,$Y$41,0),0)) ->  | X51: $1,800,000.00 | AB51: 47 | AC51: 4 | AD51: =IF(('Comparison Calculator'!$E$11-AC51)>=0,0,IFERROR(-PPMT($AH$42/12,(AB51-36),($F$1-3)*12,$AH$41),0)) -> $0.00 | AE51: =IF(('Comparison Calculator'!$E$11-AC51)>=0,$C$1*$AH$42/12,IFERROR(-IPMT($AH$42/12,(AB51-36),($F$1-3)*12,$AH$41,0),0)) ->  | AG51: $1,800,000.00 | AK51: 47 | AL51: 4 | AM51: =IF(('Comparison Calculator'!$E$11-AL51)>=0,0,IFERROR(-PPMT($AQ$42/12,(AK51-36),($F$1-3)*12,$AQ$41),0)) -> $0.00 | AN51: =IF(('Comparison Calculator'!$E$11-AL51)>=0,$C$1*$AQ$42/12,IFERROR(-IPMT($AQ$42/12,(AK51-36),($F$1-3)*12,$AQ$41,0),0)) -> $8,040.00 | AO51: $8,040.00 | AP51: $1,800,000.00 | AT51: 47 | AU51: 4 | AV51: =IF(('Comparison Calculator'!$E$11-AU51)>=0,0,IFERROR(-PPMT($AZ$42/12,(AT51-36),($F$1-3)*12,$AZ$41),0)) -> $0.00 | AW51: =IF(('Comparison Calculator'!$E$11-AU51)>=0,$C$1*$AZ$42/12,IFERROR(-IPMT($AZ$42/12,(AT51-36),($F$1-3)*12,$AZ$41,0),0)) ->  | AY51: $1,800,000.00 | BC51: 47 | BD51: 4 | BE51: =IF(('Comparison Calculator'!$E$11-BD51)>=0,0,IFERROR(-PPMT($BI$42/12,(BC51-36),($F$1-3)*12,$BI$41),0)) -> $0.00 | BF51: =IF(('Comparison Calculator'!$E$11-BD51)>=0,$C$1*$BI$42/12,IFERROR(-IPMT($BI$42/12,(BC51-36),($F$1-3)*12,$BI$41,0),0)) -> $7,470.00 | BG51: $7,470.00 | BH51: $1,800,000.00 | BK51: 47 | BL51: 4 | BM51: =IF(('Comparison Calculator'!$E$11-BL51)>=0,0,IFERROR(-PPMT($BQ$42/12,(BK51-36),($F$1-3)*12,$BQ$41),0)) -> $0.00 | BN51: =IF(('Comparison Calculator'!$E$11-BL51)>=0,$C$1*$BQ$42/12,IFERROR(-IPMT($BQ$42/12,(BK51-36),($F$1-3)*12,$BQ$41,0),0)) -> $9,720.00 | BO51: $9,720.00 | BP51: $1,800,000.00 | BT51: 47 | BU51: 4 | BV51: =IF(('Comparison Calculator'!$E$11-BU51)>=0,0,IFERROR(-PPMT($BZ$42/12,(BT51-36),($F$1-3)*12,$BZ$41),0)) -> $0.00 | BW51: =IF(('Comparison Calculator'!$E$11-BU51)>=0,$C$1*$BZ$42/12,IFERROR(-IPMT($BZ$42/12,(BT51-36),($F$1-3)*12,$BZ$41,0),0)) -> $9,720.00 | BX51: $9,720.00 | BY51: $1,800,000.00 | CC51: 47 | CD51: 4 | CE51: =IF(('Comparison Calculator'!$E$11-CD51)>=0,0,IFERROR(-PPMT($CI$42/12,(CC51-36),($F$1-3)*12,$CI$41),0)) -> $0.00 | CF51: =IF(('Comparison Calculator'!$E$11-CD51)>=0,$C$1*$CI$42/12,IFERROR(-IPMT($CI$42/12,(CC51-36),($F$1-3)*12,$CI$41,0),0)) -> $9,570.00 | CG51: $9,570.00 | CH51: $1,800,000.00 | CL51: 47 | CM51: 4 | CN51: =IF(('Comparison Calculator'!$E$11-CM51)>=0,0,IFERROR(-PPMT($CR$42/12,(CL51-36),($F$1-3)*12,$CR$41),0)) -> $0.00 | CO51: =IF(('Comparison Calculator'!$E$11-CM51)>=0,$C$1*$CR$42/12,IFERROR(-IPMT($CR$42/12,(CL51-36),($F$1-3)*12,$CR$41,0),0)) ->  | CQ51: $1,800,000.00 | CU51: 47 | CV51: 4 | CW51: =IF(('Comparison Calculator'!$E$11-CV51)>=0,0,IFERROR(-PPMT($DA$42/12,(CU51-36),($F$1-3)*12,$DA$41),0)) -> $0.00 | CX51: =IF(('Comparison Calculator'!$E$11-CV51)>=0,$C$1*$DA$42/12,IFERROR(-IPMT($DA$42/12,(CU51-36),($F$1-3)*12,$DA$41,0),0)) ->  | CZ51: $1,800,000.00 | DD51: 47 | DE51: 4 | DF51: =IF(('Comparison Calculator'!$E$11-DE51)>=0,0,IFERROR(-PPMT($DJ$42/12,(DD51-36),($F$1-3)*12,$DJ$41),0)) -> $0.00 | DG51: =IF(('Comparison Calculator'!$E$11-DE51)>=0,$C$1*$DJ$42/12,IFERROR(-IPMT($DJ$42/12,(DD51-36),($F$1-3)*12,$DJ$41,0),0)) ->  | DI51: $1,800,000.00
A52: 48 | B52: 4 | C52: =IF(('Comparison Calculator'!$E$11-B52)>=0,0,IFERROR(-PPMT($G$42/12,(A52-36),($F$1-3)*12,$G$41),0)) -> $0.00 | D52: =IF(('Comparison Calculator'!$E$11-B52)>=0,$C$1*$G$42/12,IFERROR(-IPMT($G$42/12,(A52-36),($F$1-3)*12,$G$41,0),0)) -> $9,720.00 | E52: $9,720.00 | F52: $1,800,000.00 | G52: =SUM(E5:E52)+$H$1*B52 -> $351,916.00 | J52: 48 | K52: 4 | L52: =IF(('Comparison Calculator'!$E$11-K52)>=0,0,IFERROR(-PPMT($P$42/12,(J52-36),($F$1-3)*12,$P$41),0)) -> $0.00 | M52: =IF(('Comparison Calculator'!$E$11-K52)>=0,$C$1*$P$42/12,IFERROR(-IPMT($P$42/12,(J52-36),($F$1-3)*12,$P$41,0),0)) -> $9,720.00 | N52: $9,720.00 | O52: $1,800,000.00 | P52: =SUM(N5:N52)+$H$1*K52 -> $351,916.00 | S52: 48 | T52: 4 | U52: =IF(('Comparison Calculator'!$E$11-T52)>=0,0,IFERROR(-PPMT($Y$42/12,(S52-36),($F$1-3)*12,$Y$41),0)) -> $0.00 | V52: =IF(('Comparison Calculator'!$E$11-T52)>=0,$C$1*$Y$42/12,IFERROR(-IPMT($Y$42/12,(S52-36),($F$1-3)*12,$Y$41,0),0)) ->  | X52: $1,800,000.00 | Y52: =SUM(W5:W52)+$Z$1*T52 ->  | AB52: 48 | AC52: 4 | AD52: =IF(('Comparison Calculator'!$E$11-AC52)>=0,0,IFERROR(-PPMT($AH$42/12,(AB52-36),($F$1-3)*12,$AH$41),0)) -> $0.00 | AE52: =IF(('Comparison Calculator'!$E$11-AC52)>=0,$C$1*$AH$42/12,IFERROR(-IPMT($AH$42/12,(AB52-36),($F$1-3)*12,$AH$41,0),0)) ->  | AG52: $1,800,000.00 | AH52: =SUM(AF5:AF52)+$AI$1*AC52 ->  | AK52: 48 | AL52: 4 | AM52: =IF(('Comparison Calculator'!$E$11-AL52)>=0,0,IFERROR(-PPMT($AQ$42/12,(AK52-36),($F$1-3)*12,$AQ$41),0)) -> $0.00 | AN52: =IF(('Comparison Calculator'!$E$11-AL52)>=0,$C$1*$AQ$42/12,IFERROR(-IPMT($AQ$42/12,(AK52-36),($F$1-3)*12,$AQ$41,0),0)) -> $8,040.00 | AO52: $8,040.00 | AP52: $1,800,000.00 | AQ52: =SUM(AO5:AO52)+$AR$1*AL52 -> $291,436.00 | AT52: 48 | AU52: 4 | AV52: =IF(('Comparison Calculator'!$E$11-AU52)>=0,0,IFERROR(-PPMT($AZ$42/12,(AT52-36),($F$1-3)*12,$AZ$41),0)) -> $0.00 | AW52: =IF(('Comparison Calculator'!$E$11-AU52)>=0,$C$1*$AZ$42/12,IFERROR(-IPMT($AZ$42/12,(AT52-36),($F$1-3)*12,$AZ$41,0),0)) ->  | AY52: $1,800,000.00 | AZ52: =SUM(AX5:AX52)+$BA$1*AU52 ->  | BC52: 48 | BD52: 4 | BE52: =IF(('Comparison Calculator'!$E$11-BD52)>=0,0,IFERROR(-PPMT($BI$42/12,(BC52-36),($F$1-3)*12,$BI$41),0)) -> $0.00 | BF52: =IF(('Comparison Calculator'!$E$11-BD52)>=0,$C$1*$BI$42/12,IFERROR(-IPMT($BI$42/12,(BC52-36),($F$1-3)*12,$BI$41,0),0)) -> $7,470.00 | BG52: $7,470.00 | BH52: $1,800,000.00 | BI52: =SUM(BG5:BG52)+$BA$1*BD52 -> $270,916.00 | BK52: 48 | BL52: 4 | BM52: =IF(('Comparison Calculator'!$E$11-BL52)>=0,0,IFERROR(-PPMT($BQ$42/12,(BK52-36),($F$1-3)*12,$BQ$41),0)) -> $0.00 | BN52: =IF(('Comparison Calculator'!$E$11-BL52)>=0,$C$1*$BQ$42/12,IFERROR(-IPMT($BQ$42/12,(BK52-36),($F$1-3)*12,$BQ$41,0),0)) -> $9,720.00 | BO52: $9,720.00 | BP52: $1,800,000.00 | BQ52: =SUM(BO5:BO52)+$BR$1*BL52 -> $351,916.00 | BT52: 48 | BU52: 4 | BV52: =IF(('Comparison Calculator'!$E$11-BU52)>=0,0,IFERROR(-PPMT($BZ$42/12,(BT52-36),($F$1-3)*12,$BZ$41),0)) -> $0.00 | BW52: =IF(('Comparison Calculator'!$E$11-BU52)>=0,$C$1*$BZ$42/12,IFERROR(-IPMT($BZ$42/12,(BT52-36),($F$1-3)*12,$BZ$41,0),0)) -> $9,720.00 | BX52: $9,720.00 | BY52: $1,800,000.00 | BZ52: =SUM(BX5:BX52)+$CA$1*BU52 -> $351,916.00 | CC52: 48 | CD52: 4 | CE52: =IF(('Comparison Calculator'!$E$11-CD52)>=0,0,IFERROR(-PPMT($CI$42/12,(CC52-36),($F$1-3)*12,$CI$41),0)) -> $0.00 | CF52: =IF(('Comparison Calculator'!$E$11-CD52)>=0,$C$1*$CI$42/12,IFERROR(-IPMT($CI$42/12,(CC52-36),($F$1-3)*12,$CI$41,0),0)) -> $9,570.00 | CG52: $9,570.00 | CH52: $1,800,000.00 | CI52: =SUM(CG5:CG52)+$CJ$1*CD52 -> $346,392.00 | CL52: 48 | CM52: 4 | CN52: =IF(('Comparison Calculator'!$E$11-CM52)>=0,0,IFERROR(-PPMT($CR$42/12,(CL52-36),($F$1-3)*12,$CR$41),0)) -> $0.00 | CO52: =IF(('Comparison Calculator'!$E$11-CM52)>=0,$C$1*$CR$42/12,IFERROR(-IPMT($CR$42/12,(CL52-36),($F$1-3)*12,$CR$41,0),0)) ->  | CQ52: $1,800,000.00 | CR52: =SUM(CP5:CP52)+$CS$1*CM52 ->  | CU52: 48 | CV52: 4 | CW52: =IF(('Comparison Calculator'!$E$11-CV52)>=0,0,IFERROR(-PPMT($DA$42/12,(CU52-36),($F$1-3)*12,$DA$41),0)) -> $0.00 | CX52: =IF(('Comparison Calculator'!$E$11-CV52)>=0,$C$1*$DA$42/12,IFERROR(-IPMT($DA$42/12,(CU52-36),($F$1-3)*12,$DA$41,0),0)) ->  | CZ52: $1,800,000.00 | DA52: =SUM(CY5:CY52)+$DB$1*CV52 ->  | DD52: 48 | DE52: 4 | DF52: =IF(('Comparison Calculator'!$E$11-DE52)>=0,0,IFERROR(-PPMT($DJ$42/12,(DD52-36),($F$1-3)*12,$DJ$41),0)) -> $0.00 | DG52: =IF(('Comparison Calculator'!$E$11-DE52)>=0,$C$1*$DJ$42/12,IFERROR(-IPMT($DJ$42/12,(DD52-36),($F$1-3)*12,$DJ$41,0),0)) ->  | DI52: $1,800,000.00 | DJ52: =SUM(DH5:DH52)+$DK$1*DE52 -> 
A53: 49 | B53: 5 | C53: =IF(('Comparison Calculator'!$E$11-B53)>=0,0,IFERROR(-PPMT($G$54/12,(A53-48),($F$1-4)*12,$G$53),0)) -> $0.00 | D53: =IF(('Comparison Calculator'!$E$11-B53)>=0,$C$1*$G$54/12,IFERROR(-IPMT($G$54/12,(A53-48),($F$1-4)*12,$G$53,0),0)) -> $9,720.00 | E53: $9,720.00 | F53: $1,800,000.00 | G53: =F52 -> $1,800,000.00 | J53: 49 | K53: 5 | L53: =IF(('Comparison Calculator'!$E$11-K53)>=0,0,IFERROR(-PPMT($P$54/12,(J53-48),($F$1-4)*12,$P$53),0)) -> $0.00 | M53: =IF(('Comparison Calculator'!$E$11-K53)>=0,$C$1*$P$54/12,IFERROR(-IPMT($P$54/12,(J53-48),($F$1-4)*12,$P$53,0),0)) -> $9,720.00 | N53: $9,720.00 | O53: $1,800,000.00 | P53: =O52 -> $1,800,000.00 | S53: 49 | T53: 5 | U53: =IF(('Comparison Calculator'!$E$11-T53)>=0,0,IFERROR(-PPMT($Y$54/12,(S53-48),($F$1-4)*12,$Y$53),0)) -> $0.00 | V53: =IF(('Comparison Calculator'!$E$11-T53)>=0,$C$1*$Y$54/12,IFERROR(-IPMT($Y$54/12,(S53-48),($F$1-4)*12,$Y$53,0),0)) ->  | X53: $1,800,000.00 | Y53: =X52 -> $1,800,000.00 | AB53: 49 | AC53: 5 | AD53: =IF(('Comparison Calculator'!$E$11-AC53)>=0,0,IFERROR(-PPMT($AH$54/12,(AB53-48),($F$1-4)*12,$AH$53),0)) -> $0.00 | AE53: =IF(('Comparison Calculator'!$E$11-AC53)>=0,$C$1*$AH$54/12,IFERROR(-IPMT($AH$54/12,(AB53-48),($F$1-4)*12,$AH$53,0),0)) ->  | AG53: $1,800,000.00 | AH53: =AG52 -> $1,800,000.00 | AK53: 49 | AL53: 5 | AM53: =IF(('Comparison Calculator'!$E$11-AL53)>=0,0,IFERROR(-PPMT($AQ$54/12,(AK53-48),($F$1-4)*12,$AQ$53),0)) -> $0.00 | AN53: =IF(('Comparison Calculator'!$E$11-AL53)>=0,$C$1*$AQ$54/12,IFERROR(-IPMT($AQ$54/12,(AK53-48),($F$1-4)*12,$AQ$53,0),0)) -> $8,040.00 | AO53: $8,040.00 | AP53: $1,800,000.00 | AQ53: =AP52 -> $1,800,000.00 | AT53: 49 | AU53: 5 | AV53: =IF(('Comparison Calculator'!$E$11-AU53)>=0,0,IFERROR(-PPMT($AZ$54/12,(AT53-48),($F$1-4)*12,$AZ$53),0)) -> $0.00 | AW53: =IF(('Comparison Calculator'!$E$11-AU53)>=0,$C$1*$AZ$54/12,IFERROR(-IPMT($AZ$54/12,(AT53-48),($F$1-4)*12,$AZ$53,0),0)) ->  | AY53: $1,800,000.00 | AZ53: =AY52 -> $1,800,000.00 | BC53: 49 | BD53: 5 | BE53: =IF(('Comparison Calculator'!$E$11-BD53)>=0,0,IFERROR(-PPMT($BI$54/12,(BC53-48),($F$1-4)*12,$BI$53),0)) -> $0.00 | BF53: =IF(('Comparison Calculator'!$E$11-BD53)>=0,$C$1*$BI$54/12,IFERROR(-IPMT($BI$54/12,(BC53-48),($F$1-4)*12,$BI$53,0),0)) -> $7,470.00 | BG53: $7,470.00 | BH53: $1,800,000.00 | BI53: =BH52 -> $1,800,000.00 | BK53: 49 | BL53: 5 | BM53: =IF(('Comparison Calculator'!$E$11-BL53)>=0,0,IFERROR(-PPMT($BQ$54/12,(BK53-48),($F$1-4)*12,$BQ$53),0)) -> $0.00 | BN53: =IF(('Comparison Calculator'!$E$11-BL53)>=0,$C$1*$BQ$54/12,IFERROR(-IPMT($BQ$54/12,(BK53-48),($F$1-4)*12,$BQ$53,0),0)) -> $9,720.00 | BO53: $9,720.00 | BP53: $1,800,000.00 | BQ53: =BP52 -> $1,800,000.00 | BT53: 49 | BU53: 5 | BV53: =IF(('Comparison Calculator'!$E$11-BU53)>=0,0,IFERROR(-PPMT($BZ$54/12,(BT53-48),($F$1-4)*12,$BZ$53),0)) -> $0.00 | BW53: =IF(('Comparison Calculator'!$E$11-BU53)>=0,$C$1*$BZ$54/12,IFERROR(-IPMT($BZ$54/12,(BT53-48),($F$1-4)*12,$BZ$53,0),0)) -> $9,720.00 | BX53: $9,720.00 | BY53: $1,800,000.00 | BZ53: =BY52 -> $1,800,000.00 | CC53: 49 | CD53: 5 | CE53: =IF(('Comparison Calculator'!$E$11-CD53)>=0,0,IFERROR(-PPMT($CI$54/12,(CC53-48),($F$1-4)*12,$CI$53),0)) -> $0.00 | CF53: =IF(('Comparison Calculator'!$E$11-CD53)>=0,$C$1*$CI$54/12,IFERROR(-IPMT($CI$54/12,(CC53-48),($F$1-4)*12,$CI$53,0),0)) -> $9,570.00 | CG53: $9,570.00 | CH53: $1,800,000.00 | CI53: =CH52 -> $1,800,000.00 | CL53: 49 | CM53: 5 | CN53: =IF(('Comparison Calculator'!$E$11-CM53)>=0,0,IFERROR(-PPMT($CR$54/12,(CL53-48),($F$1-4)*12,$CR$53),0)) -> $0.00 | CO53: =IF(('Comparison Calculator'!$E$11-CM53)>=0,$C$1*$CR$54/12,IFERROR(-IPMT($CR$54/12,(CL53-48),($F$1-4)*12,$CR$53,0),0)) ->  | CQ53: $1,800,000.00 | CR53: =CQ52 -> $1,800,000.00 | CU53: 49 | CV53: 5 | CW53: =IF(('Comparison Calculator'!$E$11-CV53)>=0,0,IFERROR(-PPMT($DA$54/12,(CU53-48),($F$1-4)*12,$DA$53),0)) -> $0.00 | CX53: =IF(('Comparison Calculator'!$E$11-CV53)>=0,$C$1*$DA$54/12,IFERROR(-IPMT($DA$54/12,(CU53-48),($F$1-4)*12,$DA$53,0),0)) ->  | CZ53: $1,800,000.00 | DA53: =CZ52 -> $1,800,000.00 | DD53: 49 | DE53: 5 | DF53: =IF(('Comparison Calculator'!$E$11-DE53)>=0,0,IFERROR(-PPMT($DJ$54/12,(DD53-48),($F$1-4)*12,$DJ$53),0)) -> $0.00 | DG53: =IF(('Comparison Calculator'!$E$11-DE53)>=0,$C$1*$DJ$54/12,IFERROR(-IPMT($DJ$54/12,(DD53-48),($F$1-4)*12,$DJ$53,0),0)) ->  | DI53: $1,800,000.00 | DJ53: =DI52 -> $1,800,000.00
A54: 50 | B54: 5 | C54: =IF(('Comparison Calculator'!$E$11-B54)>=0,0,IFERROR(-PPMT($G$54/12,(A54-48),($F$1-4)*12,$G$53),0)) -> $0.00 | D54: =IF(('Comparison Calculator'!$E$11-B54)>=0,$C$1*$G$54/12,IFERROR(-IPMT($G$54/12,(A54-48),($F$1-4)*12,$G$53,0),0)) -> $9,720.00 | E54: $9,720.00 | F54: $1,800,000.00 | G54: =Rates!D26 -> 6.48% | J54: 50 | K54: 5 | L54: =IF(('Comparison Calculator'!$E$11-K54)>=0,0,IFERROR(-PPMT($P$54/12,(J54-48),($F$1-4)*12,$P$53),0)) -> $0.00 | M54: =IF(('Comparison Calculator'!$E$11-K54)>=0,$C$1*$P$54/12,IFERROR(-IPMT($P$54/12,(J54-48),($F$1-4)*12,$P$53,0),0)) -> $9,720.00 | N54: $9,720.00 | O54: $1,800,000.00 | P54: =Rates!L26 -> 6.48% | S54: 50 | T54: 5 | U54: =IF(('Comparison Calculator'!$E$11-T54)>=0,0,IFERROR(-PPMT($Y$54/12,(S54-48),($F$1-4)*12,$Y$53),0)) -> $0.00 | V54: =IF(('Comparison Calculator'!$E$11-T54)>=0,$C$1*$Y$54/12,IFERROR(-IPMT($Y$54/12,(S54-48),($F$1-4)*12,$Y$53,0),0)) ->  | X54: $1,800,000.00 | Y54: =Rates!$E$47 ->  | AB54: 50 | AC54: 5 | AD54: =IF(('Comparison Calculator'!$E$11-AC54)>=0,0,IFERROR(-PPMT($AH$54/12,(AB54-48),($F$1-4)*12,$AH$53),0)) -> $0.00 | AE54: =IF(('Comparison Calculator'!$E$11-AC54)>=0,$C$1*$AH$54/12,IFERROR(-IPMT($AH$54/12,(AB54-48),($F$1-4)*12,$AH$53,0),0)) ->  | AG54: $1,800,000.00 | AH54: =Rates!$M$47 ->  | AK54: 50 | AL54: 5 | AM54: =IF(('Comparison Calculator'!$E$11-AL54)>=0,0,IFERROR(-PPMT($AQ$54/12,(AK54-48),($F$1-4)*12,$AQ$53),0)) -> $0.00 | AN54: =IF(('Comparison Calculator'!$E$11-AL54)>=0,$C$1*$AQ$54/12,IFERROR(-IPMT($AQ$54/12,(AK54-48),($F$1-4)*12,$AQ$53,0),0)) -> $8,040.00 | AO54: $8,040.00 | AP54: $1,800,000.00 | AQ54: =Rates!$C$69 -> 5.36% | AT54: 50 | AU54: 5 | AV54: =IF(('Comparison Calculator'!$E$11-AU54)>=0,0,IFERROR(-PPMT($AZ$54/12,(AT54-48),($F$1-4)*12,$AZ$53),0)) -> $0.00 | AW54: =IF(('Comparison Calculator'!$E$11-AU54)>=0,$C$1*$AZ$54/12,IFERROR(-IPMT($AZ$54/12,(AT54-48),($F$1-4)*12,$AZ$53,0),0)) ->  | AY54: $1,800,000.00 | AZ54: =Rates!$L$69 ->  | BC54: 50 | BD54: 5 | BE54: =IF(('Comparison Calculator'!$E$11-BD54)>=0,0,IFERROR(-PPMT($BI$54/12,(BC54-48),($F$1-4)*12,$BI$53),0)) -> $0.00 | BF54: =IF(('Comparison Calculator'!$E$11-BD54)>=0,$C$1*$BI$54/12,IFERROR(-IPMT($BI$54/12,(BC54-48),($F$1-4)*12,$BI$53,0),0)) -> $7,470.00 | BG54: $7,470.00 | BH54: $1,800,000.00 | BI54: ='Comparison Calculator'!N12 -> 4.98% | BK54: 50 | BL54: 5 | BM54: =IF(('Comparison Calculator'!$E$11-BL54)>=0,0,IFERROR(-PPMT($BQ$54/12,(BK54-48),($F$1-4)*12,$BQ$53),0)) -> $0.00 | BN54: =IF(('Comparison Calculator'!$E$11-BL54)>=0,$C$1*$BQ$54/12,IFERROR(-IPMT($BQ$54/12,(BK54-48),($F$1-4)*12,$BQ$53,0),0)) -> $9,720.00 | BO54: $9,720.00 | BP54: $1,800,000.00 | BQ54: =Rates!$C$89 -> 6.48% | BT54: 50 | BU54: 5 | BV54: =IF(('Comparison Calculator'!$E$11-BU54)>=0,0,IFERROR(-PPMT($BZ$54/12,(BT54-48),($F$1-4)*12,$BZ$53),0)) -> $0.00 | BW54: =IF(('Comparison Calculator'!$E$11-BU54)>=0,$C$1*$BZ$54/12,IFERROR(-IPMT($BZ$54/12,(BT54-48),($F$1-4)*12,$BZ$53,0),0)) -> $9,720.00 | BX54: $9,720.00 | BY54: $1,800,000.00 | BZ54: =Rates!$K$89 -> 6.48% | CC54: 50 | CD54: 5 | CE54: =IF(('Comparison Calculator'!$E$11-CD54)>=0,0,IFERROR(-PPMT($CI$54/12,(CC54-48),($F$1-4)*12,$CI$53),0)) -> $0.00 | CF54: =IF(('Comparison Calculator'!$E$11-CD54)>=0,$C$1*$CI$54/12,IFERROR(-IPMT($CI$54/12,(CC54-48),($F$1-4)*12,$CI$53,0),0)) -> $9,570.00 | CG54: $9,570.00 | CH54: $1,800,000.00 | CI54: =Rates!$C$108 -> 6.38% | CL54: 50 | CM54: 5 | CN54: =IF(('Comparison Calculator'!$E$11-CM54)>=0,0,IFERROR(-PPMT($CR$54/12,(CL54-48),($F$1-4)*12,$CR$53),0)) -> $0.00 | CO54: =IF(('Comparison Calculator'!$E$11-CM54)>=0,$C$1*$CR$54/12,IFERROR(-IPMT($CR$54/12,(CL54-48),($F$1-4)*12,$CR$53,0),0)) ->  | CQ54: $1,800,000.00 | CR54: =Rates!$B$129 ->  | CU54: 50 | CV54: 5 | CW54: =IF(('Comparison Calculator'!$E$11-CV54)>=0,0,IFERROR(-PPMT($DA$54/12,(CU54-48),($F$1-4)*12,$DA$53),0)) -> $0.00 | CX54: =IF(('Comparison Calculator'!$E$11-CV54)>=0,$C$1*$DA$54/12,IFERROR(-IPMT($DA$54/12,(CU54-48),($F$1-4)*12,$DA$53,0),0)) ->  | CZ54: $1,800,000.00 | DA54: =Rates!$C$148 ->  | DD54: 50 | DE54: 5 | DF54: =IF(('Comparison Calculator'!$E$11-DE54)>=0,0,IFERROR(-PPMT($DJ$54/12,(DD54-48),($F$1-4)*12,$DJ$53),0)) -> $0.00 | DG54: =IF(('Comparison Calculator'!$E$11-DE54)>=0,$C$1*$DJ$54/12,IFERROR(-IPMT($DJ$54/12,(DD54-48),($F$1-4)*12,$DJ$53,0),0)) ->  | DI54: $1,800,000.00 | DJ54: =Rates!$C$168 -> 
A55: 51 | B55: 5 | C55: =IF(('Comparison Calculator'!$E$11-B55)>=0,0,IFERROR(-PPMT($G$54/12,(A55-48),($F$1-4)*12,$G$53),0)) -> $0.00 | D55: =IF(('Comparison Calculator'!$E$11-B55)>=0,$C$1*$G$54/12,IFERROR(-IPMT($G$54/12,(A55-48),($F$1-4)*12,$G$53,0),0)) -> $9,720.00 | E55: $9,720.00 | F55: $1,800,000.00 | J55: 51 | K55: 5 | L55: =IF(('Comparison Calculator'!$E$11-K55)>=0,0,IFERROR(-PPMT($P$54/12,(J55-48),($F$1-4)*12,$P$53),0)) -> $0.00 | M55: =IF(('Comparison Calculator'!$E$11-K55)>=0,$C$1*$P$54/12,IFERROR(-IPMT($P$54/12,(J55-48),($F$1-4)*12,$P$53,0),0)) -> $9,720.00 | N55: $9,720.00 | O55: $1,800,000.00 | S55: 51 | T55: 5 | U55: =IF(('Comparison Calculator'!$E$11-T55)>=0,0,IFERROR(-PPMT($Y$54/12,(S55-48),($F$1-4)*12,$Y$53),0)) -> $0.00 | V55: =IF(('Comparison Calculator'!$E$11-T55)>=0,$C$1*$Y$54/12,IFERROR(-IPMT($Y$54/12,(S55-48),($F$1-4)*12,$Y$53,0),0)) ->  | X55: $1,800,000.00 | AB55: 51 | AC55: 5 | AD55: =IF(('Comparison Calculator'!$E$11-AC55)>=0,0,IFERROR(-PPMT($AH$54/12,(AB55-48),($F$1-4)*12,$AH$53),0)) -> $0.00 | AE55: =IF(('Comparison Calculator'!$E$11-AC55)>=0,$C$1*$AH$54/12,IFERROR(-IPMT($AH$54/12,(AB55-48),($F$1-4)*12,$AH$53,0),0)) ->  | AG55: $1,800,000.00 | AK55: 51 | AL55: 5 | AM55: =IF(('Comparison Calculator'!$E$11-AL55)>=0,0,IFERROR(-PPMT($AQ$54/12,(AK55-48),($F$1-4)*12,$AQ$53),0)) -> $0.00 | AN55: =IF(('Comparison Calculator'!$E$11-AL55)>=0,$C$1*$AQ$54/12,IFERROR(-IPMT($AQ$54/12,(AK55-48),($F$1-4)*12,$AQ$53,0),0)) -> $8,040.00 | AO55: $8,040.00 | AP55: $1,800,000.00 | AT55: 51 | AU55: 5 | AV55: =IF(('Comparison Calculator'!$E$11-AU55)>=0,0,IFERROR(-PPMT($AZ$54/12,(AT55-48),($F$1-4)*12,$AZ$53),0)) -> $0.00 | AW55: =IF(('Comparison Calculator'!$E$11-AU55)>=0,$C$1*$AZ$54/12,IFERROR(-IPMT($AZ$54/12,(AT55-48),($F$1-4)*12,$AZ$53,0),0)) ->  | AY55: $1,800,000.00 | BC55: 51 | BD55: 5 | BE55: =IF(('Comparison Calculator'!$E$11-BD55)>=0,0,IFERROR(-PPMT($BI$54/12,(BC55-48),($F$1-4)*12,$BI$53),0)) -> $0.00 | BF55: =IF(('Comparison Calculator'!$E$11-BD55)>=0,$C$1*$BI$54/12,IFERROR(-IPMT($BI$54/12,(BC55-48),($F$1-4)*12,$BI$53,0),0)) -> $7,470.00 | BG55: $7,470.00 | BH55: $1,800,000.00 | BK55: 51 | BL55: 5 | BM55: =IF(('Comparison Calculator'!$E$11-BL55)>=0,0,IFERROR(-PPMT($BQ$54/12,(BK55-48),($F$1-4)*12,$BQ$53),0)) -> $0.00 | BN55: =IF(('Comparison Calculator'!$E$11-BL55)>=0,$C$1*$BQ$54/12,IFERROR(-IPMT($BQ$54/12,(BK55-48),($F$1-4)*12,$BQ$53,0),0)) -> $9,720.00 | BO55: $9,720.00 | BP55: $1,800,000.00 | BT55: 51 | BU55: 5 | BV55: =IF(('Comparison Calculator'!$E$11-BU55)>=0,0,IFERROR(-PPMT($BZ$54/12,(BT55-48),($F$1-4)*12,$BZ$53),0)) -> $0.00 | BW55: =IF(('Comparison Calculator'!$E$11-BU55)>=0,$C$1*$BZ$54/12,IFERROR(-IPMT($BZ$54/12,(BT55-48),($F$1-4)*12,$BZ$53,0),0)) -> $9,720.00 | BX55: $9,720.00 | BY55: $1,800,000.00 | CC55: 51 | CD55: 5 | CE55: =IF(('Comparison Calculator'!$E$11-CD55)>=0,0,IFERROR(-PPMT($CI$54/12,(CC55-48),($F$1-4)*12,$CI$53),0)) -> $0.00 | CF55: =IF(('Comparison Calculator'!$E$11-CD55)>=0,$C$1*$CI$54/12,IFERROR(-IPMT($CI$54/12,(CC55-48),($F$1-4)*12,$CI$53,0),0)) -> $9,570.00 | CG55: $9,570.00 | CH55: $1,800,000.00 | CL55: 51 | CM55: 5 | CN55: =IF(('Comparison Calculator'!$E$11-CM55)>=0,0,IFERROR(-PPMT($CR$54/12,(CL55-48),($F$1-4)*12,$CR$53),0)) -> $0.00 | CO55: =IF(('Comparison Calculator'!$E$11-CM55)>=0,$C$1*$CR$54/12,IFERROR(-IPMT($CR$54/12,(CL55-48),($F$1-4)*12,$CR$53,0),0)) ->  | CQ55: $1,800,000.00 | CU55: 51 | CV55: 5 | CW55: =IF(('Comparison Calculator'!$E$11-CV55)>=0,0,IFERROR(-PPMT($DA$54/12,(CU55-48),($F$1-4)*12,$DA$53),0)) -> $0.00 | CX55: =IF(('Comparison Calculator'!$E$11-CV55)>=0,$C$1*$DA$54/12,IFERROR(-IPMT($DA$54/12,(CU55-48),($F$1-4)*12,$DA$53,0),0)) ->  | CZ55: $1,800,000.00 | DD55: 51 | DE55: 5 | DF55: =IF(('Comparison Calculator'!$E$11-DE55)>=0,0,IFERROR(-PPMT($DJ$54/12,(DD55-48),($F$1-4)*12,$DJ$53),0)) -> $0.00 | DG55: =IF(('Comparison Calculator'!$E$11-DE55)>=0,$C$1*$DJ$54/12,IFERROR(-IPMT($DJ$54/12,(DD55-48),($F$1-4)*12,$DJ$53,0),0)) ->  | DI55: $1,800,000.00
A56: 52 | B56: 5 | C56: =IF(('Comparison Calculator'!$E$11-B56)>=0,0,IFERROR(-PPMT($G$54/12,(A56-48),($F$1-4)*12,$G$53),0)) -> $0.00 | D56: =IF(('Comparison Calculator'!$E$11-B56)>=0,$C$1*$G$54/12,IFERROR(-IPMT($G$54/12,(A56-48),($F$1-4)*12,$G$53,0),0)) -> $9,720.00 | E56: $9,720.00 | F56: $1,800,000.00 | J56: 52 | K56: 5 | L56: =IF(('Comparison Calculator'!$E$11-K56)>=0,0,IFERROR(-PPMT($P$54/12,(J56-48),($F$1-4)*12,$P$53),0)) -> $0.00 | M56: =IF(('Comparison Calculator'!$E$11-K56)>=0,$C$1*$P$54/12,IFERROR(-IPMT($P$54/12,(J56-48),($F$1-4)*12,$P$53,0),0)) -> $9,720.00 | N56: $9,720.00 | O56: $1,800,000.00 | S56: 52 | T56: 5 | U56: =IF(('Comparison Calculator'!$E$11-T56)>=0,0,IFERROR(-PPMT($Y$54/12,(S56-48),($F$1-4)*12,$Y$53),0)) -> $0.00 | V56: =IF(('Comparison Calculator'!$E$11-T56)>=0,$C$1*$Y$54/12,IFERROR(-IPMT($Y$54/12,(S56-48),($F$1-4)*12,$Y$53,0),0)) ->  | X56: $1,800,000.00 | AB56: 52 | AC56: 5 | AD56: =IF(('Comparison Calculator'!$E$11-AC56)>=0,0,IFERROR(-PPMT($AH$54/12,(AB56-48),($F$1-4)*12,$AH$53),0)) -> $0.00 | AE56: =IF(('Comparison Calculator'!$E$11-AC56)>=0,$C$1*$AH$54/12,IFERROR(-IPMT($AH$54/12,(AB56-48),($F$1-4)*12,$AH$53,0),0)) ->  | AG56: $1,800,000.00 | AK56: 52 | AL56: 5 | AM56: =IF(('Comparison Calculator'!$E$11-AL56)>=0,0,IFERROR(-PPMT($AQ$54/12,(AK56-48),($F$1-4)*12,$AQ$53),0)) -> $0.00 | AN56: =IF(('Comparison Calculator'!$E$11-AL56)>=0,$C$1*$AQ$54/12,IFERROR(-IPMT($AQ$54/12,(AK56-48),($F$1-4)*12,$AQ$53,0),0)) -> $8,040.00 | AO56: $8,040.00 | AP56: $1,800,000.00 | AT56: 52 | AU56: 5 | AV56: =IF(('Comparison Calculator'!$E$11-AU56)>=0,0,IFERROR(-PPMT($AZ$54/12,(AT56-48),($F$1-4)*12,$AZ$53),0)) -> $0.00 | AW56: =IF(('Comparison Calculator'!$E$11-AU56)>=0,$C$1*$AZ$54/12,IFERROR(-IPMT($AZ$54/12,(AT56-48),($F$1-4)*12,$AZ$53,0),0)) ->  | AY56: $1,800,000.00 | BC56: 52 | BD56: 5 | BE56: =IF(('Comparison Calculator'!$E$11-BD56)>=0,0,IFERROR(-PPMT($BI$54/12,(BC56-48),($F$1-4)*12,$BI$53),0)) -> $0.00 | BF56: =IF(('Comparison Calculator'!$E$11-BD56)>=0,$C$1*$BI$54/12,IFERROR(-IPMT($BI$54/12,(BC56-48),($F$1-4)*12,$BI$53,0),0)) -> $7,470.00 | BG56: $7,470.00 | BH56: $1,800,000.00 | BK56: 52 | BL56: 5 | BM56: =IF(('Comparison Calculator'!$E$11-BL56)>=0,0,IFERROR(-PPMT($BQ$54/12,(BK56-48),($F$1-4)*12,$BQ$53),0)) -> $0.00 | BN56: =IF(('Comparison Calculator'!$E$11-BL56)>=0,$C$1*$BQ$54/12,IFERROR(-IPMT($BQ$54/12,(BK56-48),($F$1-4)*12,$BQ$53,0),0)) -> $9,720.00 | BO56: $9,720.00 | BP56: $1,800,000.00 | BT56: 52 | BU56: 5 | BV56: =IF(('Comparison Calculator'!$E$11-BU56)>=0,0,IFERROR(-PPMT($BZ$54/12,(BT56-48),($F$1-4)*12,$BZ$53),0)) -> $0.00 | BW56: =IF(('Comparison Calculator'!$E$11-BU56)>=0,$C$1*$BZ$54/12,IFERROR(-IPMT($BZ$54/12,(BT56-48),($F$1-4)*12,$BZ$53,0),0)) -> $9,720.00 | BX56: $9,720.00 | BY56: $1,800,000.00 | CC56: 52 | CD56: 5 | CE56: =IF(('Comparison Calculator'!$E$11-CD56)>=0,0,IFERROR(-PPMT($CI$54/12,(CC56-48),($F$1-4)*12,$CI$53),0)) -> $0.00 | CF56: =IF(('Comparison Calculator'!$E$11-CD56)>=0,$C$1*$CI$54/12,IFERROR(-IPMT($CI$54/12,(CC56-48),($F$1-4)*12,$CI$53,0),0)) -> $9,570.00 | CG56: $9,570.00 | CH56: $1,800,000.00 | CL56: 52 | CM56: 5 | CN56: =IF(('Comparison Calculator'!$E$11-CM56)>=0,0,IFERROR(-PPMT($CR$54/12,(CL56-48),($F$1-4)*12,$CR$53),0)) -> $0.00 | CO56: =IF(('Comparison Calculator'!$E$11-CM56)>=0,$C$1*$CR$54/12,IFERROR(-IPMT($CR$54/12,(CL56-48),($F$1-4)*12,$CR$53,0),0)) ->  | CQ56: $1,800,000.00 | CU56: 52 | CV56: 5 | CW56: =IF(('Comparison Calculator'!$E$11-CV56)>=0,0,IFERROR(-PPMT($DA$54/12,(CU56-48),($F$1-4)*12,$DA$53),0)) -> $0.00 | CX56: =IF(('Comparison Calculator'!$E$11-CV56)>=0,$C$1*$DA$54/12,IFERROR(-IPMT($DA$54/12,(CU56-48),($F$1-4)*12,$DA$53,0),0)) ->  | CZ56: $1,800,000.00 | DD56: 52 | DE56: 5 | DF56: =IF(('Comparison Calculator'!$E$11-DE56)>=0,0,IFERROR(-PPMT($DJ$54/12,(DD56-48),($F$1-4)*12,$DJ$53),0)) -> $0.00 | DG56: =IF(('Comparison Calculator'!$E$11-DE56)>=0,$C$1*$DJ$54/12,IFERROR(-IPMT($DJ$54/12,(DD56-48),($F$1-4)*12,$DJ$53,0),0)) ->  | DI56: $1,800,000.00
A57: 53 | B57: 5 | C57: =IF(('Comparison Calculator'!$E$11-B57)>=0,0,IFERROR(-PPMT($G$54/12,(A57-48),($F$1-4)*12,$G$53),0)) -> $0.00 | D57: =IF(('Comparison Calculator'!$E$11-B57)>=0,$C$1*$G$54/12,IFERROR(-IPMT($G$54/12,(A57-48),($F$1-4)*12,$G$53,0),0)) -> $9,720.00 | E57: $9,720.00 | F57: $1,800,000.00 | J57: 53 | K57: 5 | L57: =IF(('Comparison Calculator'!$E$11-K57)>=0,0,IFERROR(-PPMT($P$54/12,(J57-48),($F$1-4)*12,$P$53),0)) -> $0.00 | M57: =IF(('Comparison Calculator'!$E$11-K57)>=0,$C$1*$P$54/12,IFERROR(-IPMT($P$54/12,(J57-48),($F$1-4)*12,$P$53,0),0)) -> $9,720.00 | N57: $9,720.00 | O57: $1,800,000.00 | S57: 53 | T57: 5 | U57: =IF(('Comparison Calculator'!$E$11-T57)>=0,0,IFERROR(-PPMT($Y$54/12,(S57-48),($F$1-4)*12,$Y$53),0)) -> $0.00 | V57: =IF(('Comparison Calculator'!$E$11-T57)>=0,$C$1*$Y$54/12,IFERROR(-IPMT($Y$54/12,(S57-48),($F$1-4)*12,$Y$53,0),0)) ->  | X57: $1,800,000.00 | AB57: 53 | AC57: 5 | AD57: =IF(('Comparison Calculator'!$E$11-AC57)>=0,0,IFERROR(-PPMT($AH$54/12,(AB57-48),($F$1-4)*12,$AH$53),0)) -> $0.00 | AE57: =IF(('Comparison Calculator'!$E$11-AC57)>=0,$C$1*$AH$54/12,IFERROR(-IPMT($AH$54/12,(AB57-48),($F$1-4)*12,$AH$53,0),0)) ->  | AG57: $1,800,000.00 | AK57: 53 | AL57: 5 | AM57: =IF(('Comparison Calculator'!$E$11-AL57)>=0,0,IFERROR(-PPMT($AQ$54/12,(AK57-48),($F$1-4)*12,$AQ$53),0)) -> $0.00 | AN57: =IF(('Comparison Calculator'!$E$11-AL57)>=0,$C$1*$AQ$54/12,IFERROR(-IPMT($AQ$54/12,(AK57-48),($F$1-4)*12,$AQ$53,0),0)) -> $8,040.00 | AO57: $8,040.00 | AP57: $1,800,000.00 | AT57: 53 | AU57: 5 | AV57: =IF(('Comparison Calculator'!$E$11-AU57)>=0,0,IFERROR(-PPMT($AZ$54/12,(AT57-48),($F$1-4)*12,$AZ$53),0)) -> $0.00 | AW57: =IF(('Comparison Calculator'!$E$11-AU57)>=0,$C$1*$AZ$54/12,IFERROR(-IPMT($AZ$54/12,(AT57-48),($F$1-4)*12,$AZ$53,0),0)) ->  | AY57: $1,800,000.00 | BC57: 53 | BD57: 5 | BE57: =IF(('Comparison Calculator'!$E$11-BD57)>=0,0,IFERROR(-PPMT($BI$54/12,(BC57-48),($F$1-4)*12,$BI$53),0)) -> $0.00 | BF57: =IF(('Comparison Calculator'!$E$11-BD57)>=0,$C$1*$BI$54/12,IFERROR(-IPMT($BI$54/12,(BC57-48),($F$1-4)*12,$BI$53,0),0)) -> $7,470.00 | BG57: $7,470.00 | BH57: $1,800,000.00 | BK57: 53 | BL57: 5 | BM57: =IF(('Comparison Calculator'!$E$11-BL57)>=0,0,IFERROR(-PPMT($BQ$54/12,(BK57-48),($F$1-4)*12,$BQ$53),0)) -> $0.00 | BN57: =IF(('Comparison Calculator'!$E$11-BL57)>=0,$C$1*$BQ$54/12,IFERROR(-IPMT($BQ$54/12,(BK57-48),($F$1-4)*12,$BQ$53,0),0)) -> $9,720.00 | BO57: $9,720.00 | BP57: $1,800,000.00 | BT57: 53 | BU57: 5 | BV57: =IF(('Comparison Calculator'!$E$11-BU57)>=0,0,IFERROR(-PPMT($BZ$54/12,(BT57-48),($F$1-4)*12,$BZ$53),0)) -> $0.00 | BW57: =IF(('Comparison Calculator'!$E$11-BU57)>=0,$C$1*$BZ$54/12,IFERROR(-IPMT($BZ$54/12,(BT57-48),($F$1-4)*12,$BZ$53,0),0)) -> $9,720.00 | BX57: $9,720.00 | BY57: $1,800,000.00 | CC57: 53 | CD57: 5 | CE57: =IF(('Comparison Calculator'!$E$11-CD57)>=0,0,IFERROR(-PPMT($CI$54/12,(CC57-48),($F$1-4)*12,$CI$53),0)) -> $0.00 | CF57: =IF(('Comparison Calculator'!$E$11-CD57)>=0,$C$1*$CI$54/12,IFERROR(-IPMT($CI$54/12,(CC57-48),($F$1-4)*12,$CI$53,0),0)) -> $9,570.00 | CG57: $9,570.00 | CH57: $1,800,000.00 | CL57: 53 | CM57: 5 | CN57: =IF(('Comparison Calculator'!$E$11-CM57)>=0,0,IFERROR(-PPMT($CR$54/12,(CL57-48),($F$1-4)*12,$CR$53),0)) -> $0.00 | CO57: =IF(('Comparison Calculator'!$E$11-CM57)>=0,$C$1*$CR$54/12,IFERROR(-IPMT($CR$54/12,(CL57-48),($F$1-4)*12,$CR$53,0),0)) ->  | CQ57: $1,800,000.00 | CU57: 53 | CV57: 5 | CW57: =IF(('Comparison Calculator'!$E$11-CV57)>=0,0,IFERROR(-PPMT($DA$54/12,(CU57-48),($F$1-4)*12,$DA$53),0)) -> $0.00 | CX57: =IF(('Comparison Calculator'!$E$11-CV57)>=0,$C$1*$DA$54/12,IFERROR(-IPMT($DA$54/12,(CU57-48),($F$1-4)*12,$DA$53,0),0)) ->  | CZ57: $1,800,000.00 | DD57: 53 | DE57: 5 | DF57: =IF(('Comparison Calculator'!$E$11-DE57)>=0,0,IFERROR(-PPMT($DJ$54/12,(DD57-48),($F$1-4)*12,$DJ$53),0)) -> $0.00 | DG57: =IF(('Comparison Calculator'!$E$11-DE57)>=0,$C$1*$DJ$54/12,IFERROR(-IPMT($DJ$54/12,(DD57-48),($F$1-4)*12,$DJ$53,0),0)) ->  | DI57: $1,800,000.00
A58: 54 | B58: 5 | C58: =IF(('Comparison Calculator'!$E$11-B58)>=0,0,IFERROR(-PPMT($G$54/12,(A58-48),($F$1-4)*12,$G$53),0)) -> $0.00 | D58: =IF(('Comparison Calculator'!$E$11-B58)>=0,$C$1*$G$54/12,IFERROR(-IPMT($G$54/12,(A58-48),($F$1-4)*12,$G$53,0),0)) -> $9,720.00 | E58: $9,720.00 | F58: $1,800,000.00 | J58: 54 | K58: 5 | L58: =IF(('Comparison Calculator'!$E$11-K58)>=0,0,IFERROR(-PPMT($P$54/12,(J58-48),($F$1-4)*12,$P$53),0)) -> $0.00 | M58: =IF(('Comparison Calculator'!$E$11-K58)>=0,$C$1*$P$54/12,IFERROR(-IPMT($P$54/12,(J58-48),($F$1-4)*12,$P$53,0),0)) -> $9,720.00 | N58: $9,720.00 | O58: $1,800,000.00 | S58: 54 | T58: 5 | U58: =IF(('Comparison Calculator'!$E$11-T58)>=0,0,IFERROR(-PPMT($Y$54/12,(S58-48),($F$1-4)*12,$Y$53),0)) -> $0.00 | V58: =IF(('Comparison Calculator'!$E$11-T58)>=0,$C$1*$Y$54/12,IFERROR(-IPMT($Y$54/12,(S58-48),($F$1-4)*12,$Y$53,0),0)) ->  | X58: $1,800,000.00 | AB58: 54 | AC58: 5 | AD58: =IF(('Comparison Calculator'!$E$11-AC58)>=0,0,IFERROR(-PPMT($AH$54/12,(AB58-48),($F$1-4)*12,$AH$53),0)) -> $0.00 | AE58: =IF(('Comparison Calculator'!$E$11-AC58)>=0,$C$1*$AH$54/12,IFERROR(-IPMT($AH$54/12,(AB58-48),($F$1-4)*12,$AH$53,0),0)) ->  | AG58: $1,800,000.00 | AK58: 54 | AL58: 5 | AM58: =IF(('Comparison Calculator'!$E$11-AL58)>=0,0,IFERROR(-PPMT($AQ$54/12,(AK58-48),($F$1-4)*12,$AQ$53),0)) -> $0.00 | AN58: =IF(('Comparison Calculator'!$E$11-AL58)>=0,$C$1*$AQ$54/12,IFERROR(-IPMT($AQ$54/12,(AK58-48),($F$1-4)*12,$AQ$53,0),0)) -> $8,040.00 | AO58: $8,040.00 | AP58: $1,800,000.00 | AT58: 54 | AU58: 5 | AV58: =IF(('Comparison Calculator'!$E$11-AU58)>=0,0,IFERROR(-PPMT($AZ$54/12,(AT58-48),($F$1-4)*12,$AZ$53),0)) -> $0.00 | AW58: =IF(('Comparison Calculator'!$E$11-AU58)>=0,$C$1*$AZ$54/12,IFERROR(-IPMT($AZ$54/12,(AT58-48),($F$1-4)*12,$AZ$53,0),0)) ->  | AY58: $1,800,000.00 | BC58: 54 | BD58: 5 | BE58: =IF(('Comparison Calculator'!$E$11-BD58)>=0,0,IFERROR(-PPMT($BI$54/12,(BC58-48),($F$1-4)*12,$BI$53),0)) -> $0.00 | BF58: =IF(('Comparison Calculator'!$E$11-BD58)>=0,$C$1*$BI$54/12,IFERROR(-IPMT($BI$54/12,(BC58-48),($F$1-4)*12,$BI$53,0),0)) -> $7,470.00 | BG58: $7,470.00 | BH58: $1,800,000.00 | BK58: 54 | BL58: 5 | BM58: =IF(('Comparison Calculator'!$E$11-BL58)>=0,0,IFERROR(-PPMT($BQ$54/12,(BK58-48),($F$1-4)*12,$BQ$53),0)) -> $0.00 | BN58: =IF(('Comparison Calculator'!$E$11-BL58)>=0,$C$1*$BQ$54/12,IFERROR(-IPMT($BQ$54/12,(BK58-48),($F$1-4)*12,$BQ$53,0),0)) -> $9,720.00 | BO58: $9,720.00 | BP58: $1,800,000.00 | BT58: 54 | BU58: 5 | BV58: =IF(('Comparison Calculator'!$E$11-BU58)>=0,0,IFERROR(-PPMT($BZ$54/12,(BT58-48),($F$1-4)*12,$BZ$53),0)) -> $0.00 | BW58: =IF(('Comparison Calculator'!$E$11-BU58)>=0,$C$1*$BZ$54/12,IFERROR(-IPMT($BZ$54/12,(BT58-48),($F$1-4)*12,$BZ$53,0),0)) -> $9,720.00 | BX58: $9,720.00 | BY58: $1,800,000.00 | CC58: 54 | CD58: 5 | CE58: =IF(('Comparison Calculator'!$E$11-CD58)>=0,0,IFERROR(-PPMT($CI$54/12,(CC58-48),($F$1-4)*12,$CI$53),0)) -> $0.00 | CF58: =IF(('Comparison Calculator'!$E$11-CD58)>=0,$C$1*$CI$54/12,IFERROR(-IPMT($CI$54/12,(CC58-48),($F$1-4)*12,$CI$53,0),0)) -> $9,570.00 | CG58: $9,570.00 | CH58: $1,800,000.00 | CL58: 54 | CM58: 5 | CN58: =IF(('Comparison Calculator'!$E$11-CM58)>=0,0,IFERROR(-PPMT($CR$54/12,(CL58-48),($F$1-4)*12,$CR$53),0)) -> $0.00 | CO58: =IF(('Comparison Calculator'!$E$11-CM58)>=0,$C$1*$CR$54/12,IFERROR(-IPMT($CR$54/12,(CL58-48),($F$1-4)*12,$CR$53,0),0)) ->  | CQ58: $1,800,000.00 | CU58: 54 | CV58: 5 | CW58: =IF(('Comparison Calculator'!$E$11-CV58)>=0,0,IFERROR(-PPMT($DA$54/12,(CU58-48),($F$1-4)*12,$DA$53),0)) -> $0.00 | CX58: =IF(('Comparison Calculator'!$E$11-CV58)>=0,$C$1*$DA$54/12,IFERROR(-IPMT($DA$54/12,(CU58-48),($F$1-4)*12,$DA$53,0),0)) ->  | CZ58: $1,800,000.00 | DD58: 54 | DE58: 5 | DF58: =IF(('Comparison Calculator'!$E$11-DE58)>=0,0,IFERROR(-PPMT($DJ$54/12,(DD58-48),($F$1-4)*12,$DJ$53),0)) -> $0.00 | DG58: =IF(('Comparison Calculator'!$E$11-DE58)>=0,$C$1*$DJ$54/12,IFERROR(-IPMT($DJ$54/12,(DD58-48),($F$1-4)*12,$DJ$53,0),0)) ->  | DI58: $1,800,000.00
